Workbook

Sheet Summary
A1: 분 전
A2: minutes
A3: 일전
A4: days
A5: 시간 전
A6: hours
A7: 방금
A8: 1 minutes
A10: 브론즈
A11: Bronze
A12: 실버
A13: Silver
A14: 골드
A15: Gold
A16: 플래티넘
A17: Platinum
A18: 다이아몬드
A19: Diamond
A20: 마스터
A21: Master
A22: 그랜드마스터
A23: Grandmaster
A25: =A2&"-"&C2&"|"&F2&"-"&H2&"|"&K2&"-"&M2&"|"&P2&"-"&R2

Sheet Analysis - 1v1
A1: Week Start | B1: Bonus Pool Per Week (Sub-Masters) | C1: Bonus Pool Per Week (Masters+GM) | D1: Cum. Bonus Pool (Sub-Masters) | E1: Cum. Bonus Pool (Masters+GM) | F1: Week # | H1: Program Run Notes
A2: 2014-07-07 | B2: 104.4 | C2: 180 | D2: =B2 -> 104.4 | E2: =C2 -> 180 | F2: 1 | H2: 7/29/2014 runtime:
A3: 2014-07-14 | B3: 104.4 | C3: 180 | D3: =D2+B3 -> 208.8 | E3: =E2+C3 -> 360 | F3: =F2+1 -> 2 | H3: start | I3: 2014-07-21T16:36:39
A4: 2014-07-21 | B4: 104.4 | C4: 180 | D4: =D3+B4 -> 313.2 | E4: =E3+C4 -> 540 | F4: =F3+1 -> 3 | H4: end | I4: 2014-07-22T00:17:21
A5: 2014-07-28 | B5: 104.4 | C5: 180 | D5: 417.6 | E5: 720 | F5: 4
A6: 2014-08-04 | B6: 104.4 | C6: 180 | D6: =D5+B6 -> 522 | E6: =E5+C6 -> 900 | F6: 5 | H6: 2014-08-27
A7: 2014-08-11 | B7: 104.4 | C7: 180 | D7: =D6+B7 -> 626.4 | E7: =E6+C7 -> 1080 | F7: 6 | H7: start | I7: 2014-08-26T21:31:02
A8: 2014-08-18 | B8: 104.4 | C8: 180 | D8: 730.8 | E8: 1260 | F8: 7 | H8: end | I8: 2014-08-27T01:47:55
A9: 2014-08-25 | B9: 104.4 | C9: 180 | D9: 835.2 | E9: 1440 | F9: 8 | G9: <-
A10: 2014-09-01 | B10: 104.4 | C10: 180 | F10: 9
A11: 2014-09-08 | B11: 104.4 | C11: 180 | F11: 10
A12: 2014-09-15 | B12: 104.4 | C12: 180 | F12: 11
A13: 2014-09-22 | B13: 104.4 | C13: 180 | F13: 12
A14: 2014-09-29 | B14: 104.4 | C14: 180 | F14: 13
A15: 2014-10-06 | B15: 104.4 | C15: 180 | F15: 14
A16: 2014-10-13 | B16: 104.4 | C16: 180 | F16: 15
A17: 2014-10-20 | B17: 104.4 | C17: 180 | F17: 16
A18: 2014-10-27 | B18: 104.4 | C18: 180 | F18: 17
A19: 11/3/2014 (season lock) | B19: 104.4 | C19: 180 | F19: 18
A20: 2014-11-10 | B20: 104.4 | C20: 180 | F20: 19
A23: Raw Counts | K23: % Distributions | R23: Weeks Behind Averager: | S23: 4
A24: Weeks Remaining | B24: Bronze | C24: Silver | D24: Gold | E24: Platinum | F24: Diamond | G24: Master | H24: Grandmaster | I24: Totals | J24: Percentages of Total | K24: Bronze | L24: Silver | M24: Gold | N24: Platinum | O24: Diamond | P24: Master | R24: Bronze | S24: Silver | T24: Gold | U24: Platinum | V24: Diamond | W24: Master
A25: 1 | B25: 240 | C25: 524 | D25: 2318 | E25: 1734 | F25: 1551 | G25: 169 | H25: 198 | I25: =SUM(B25:H25) -> 6734 | J25: =I25/$I$44 -> 0.1493821957 | K25: =B25/$I25 -> 0.03564003564 | L25: =C25/$I25 -> 0.07781407781 | M25: =D25/$I25 -> 0.3442233442 | N25: =E25/$I25 -> 0.2574992575 | O25: =F25/$I25 -> 0.2303237303 | P25: =G25/$I25 -> 0.0250965251 | R25: =AVERAGEIFS(K25:K43,$A$25:$A$43,"<=4") -> 0.03774235459 | S25: 0.1105666718 | T25: 0.3967493518 | U25: 0.239914211 | V25: 0.1803507149 | W25: 0.02732593854
A26: 2 | B26: 91 | C26: 259 | D26: 853 | E26: 556 | F26: 412 | G26: 58 | I26: =SUM(B26:H26) -> 2229 | J26: =I26/$I$44 -> 0.04944652721 | K26: =B26/$I26 -> 0.04082548228 | L26: =C26/$I26 -> 0.1161956034 | M26: =D26/$I26 -> 0.3826828174 | N26: =E26/$I26 -> 0.2494392104 | O26: =F26/$I26 -> 0.1848362494 | P26: =G26/$I26 -> 0.02602063706
A27: 3 | B27: 79 | C27: 252 | D27: 925 | E27: 527 | F27: 357 | G27: 65 | I27: 2205 | J27: 0.04891412853 | K27: 0.0358276644 | L27: 0.1142857143 | M27: 0.4195011338 | N27: 0.2390022676 | O27: 0.1619047619 | P27: 0.02947845805
A28: 4 | B28: 97 | C28: 336 | D28: 1105 | E28: 536 | F28: 362 | G28: 72 | I28: 2508 | J28: 0.05563566184 | K28: 0.03867623604 | L28: 0.1339712919 | M28: 0.4405901116 | N28: 0.2137161085 | O28: 0.144338118 | P28: 0.02870813397
A29: 5 | B29: 133 | C29: 486 | D29: 1502 | E29: 577 | F29: 387 | G29: 100 | I29: 3185 | J29: 0.07065374121 | K29: 0.04175824176 | L29: 0.1525902669 | M29: 0.4715855573 | N29: 0.1811616954 | O29: 0.1215070644 | P29: 0.03139717425
A30: 6 | B30: 211 | C30: 1024 | D30: 1985 | E30: 624 | F30: 379 | G30: 106 | I30: 4329 | J30: 0.09603141152 | K30: 0.04874104874 | L30: 0.2365442365 | M30: 0.4585354585 | N30: 0.1441441441 | O30: 0.08754908755 | P30: 0.02448602449
A31: 7 | B31: 478 | C31: 2963 | D31: 2958 | E31: 784 | F31: 459 | G31: 122 | I31: 7764 | J31: 0.1722309723 | K31: 0.06156620299 | L31: 0.3816331788 | M31: 0.3809891808 | N31: 0.1009788769 | O31: 0.05911901082 | P31: 0.01571354972
A32: 8 | B32: 1977 | C32: 8774 | D32: 3479 | E32: 1253 | F32: 511 | G32: 131 | I32: =SUM(B32:H32) -> 16125 | J32: =I32/$I$44 -> 0.3577053617 | K32: =B32/$I32 -> 0.1226046512 | L32: =C32/$I32 -> 0.544124031 | M32: =D32/$I32 -> 0.215751938 | N32: =E32/$I32 -> 0.07770542636 | O32: =F32/$I32 -> 0.03168992248 | P32: =G32/$I32 -> 0.008124031008
A33: 9
A34: 10
A35: 11
A36: =A35+1 -> 12
A37: =A36+1 -> 13
A38: 14
A39: 15
A40: 16
A41: 17
A42: 18
A43: 19
A44: Totals | B44: =SUM(B25:B43) -> 3306 | C44: =SUM(C25:C43) -> 14618 | D44: 15125 | E44: 6591 | F44: 4418 | G44: 823 | H44: 198 | I44: =SUM(I25:I43) -> 45079 | K44: =B44/$I44 -> 0.07333791788 | L44: =C44/$I44 -> 0.3242751614 | M44: =D44/$I44 -> 0.3355220835 | N44: =E44/$I44 -> 0.1462099869 | O44: =F44/$I44 -> 0.09800572329 | P44: =G44/$I44 -> 0.018256838
J45: Targets: | K45: 0.08 | L45: 0.2 | M45: 0.32 | N45: 0.2 | O45: 0.18 | P45: 0.02
A47: For Reddit tables
A48: =A25&"* | "&B25&" | "&C25&" | "&D25&" | "&E25&" | "&F25&" | "&G25 -> 1* | 240 | 524 | 2318 | 1734 | 1551 | 169 | K48: =A25&"* | "&ROUNDDOWN(K25,4)*100&"% | "&ROUNDDOWN(L25,4)*100&"% | "&ROUNDDOWN(M25,4)*100&"% | "&ROUNDDOWN(N25,4)*100&"% | "&ROUNDDOWN(O25,4)*100&"% | "&ROUNDDOWN(P25,4)*100&"%" -> 1* | 3.56% | 7.78% | 34.42% | 25.74% | 23.03% | 2.5%
A49: =A26&" | "&B26&" | "&C26&" | "&D26&" | "&E26&" | "&F26&" | "&G26 -> 2 | 91 | 259 | 853 | 556 | 412 | 58 | K49: =A26&" | "&ROUNDDOWN(K26,4)*100&"% | "&ROUNDDOWN(L26,4)*100&"% | "&ROUNDDOWN(M26,4)*100&"% | "&ROUNDDOWN(N26,4)*100&"% | "&ROUNDDOWN(O26,4)*100&"% | "&ROUNDDOWN(P26,4)*100&"%" -> 2 | 4.08% | 11.61% | 38.26% | 24.94% | 18.48% | 2.6%
A50: 3 | 79 | 252 | 925 | 527 | 357 | 65 | K50: 3 | 3.58% | 11.42% | 41.95% | 23.9% | 16.19% | 2.94%
A51: 4 | 97 | 336 | 1105 | 536 | 362 | 72 | K51: 4 | 3.86% | 13.39% | 44.05% | 21.37% | 14.43% | 2.87%
A52: 5 | 133 | 486 | 1502 | 577 | 387 | 100 | K52: 5 | 4.17% | 15.25% | 47.15% | 18.11% | 12.15% | 3.13%
A53: 6 | 211 | 1024 | 1985 | 624 | 379 | 106 | K53: 6 | 4.87% | 23.65% | 45.85% | 14.41% | 8.75% | 2.44%
A54: 7 | 478 | 2963 | 2958 | 784 | 459 | 122 | K54: 7 | 6.15% | 38.16% | 38.09% | 10.09% | 5.91% | 1.57%
A55: 8 | 1977 | 8774 | 3479 | 1253 | 511 | 131 | K55: 8 | 12.26% | 54.41% | 21.57% | 7.77% | 3.16% | 0.81%
A56: 9 | | | | | | | K56: 9 | 0% | 0% | 0% | 0% | 0% | 0%
A57: 10 | | | | | | | K57: 10 | 0% | 0% | 0% | 0% | 0% | 0%
A58: =A35&" | "&B35&" | "&C35&" | "&D35&" | "&E35&" | "&F35&" | "&G35 -> 11 | | | | | | | K58: =A35&" | "&ROUNDDOWN(K35,4)*100&"% | "&ROUNDDOWN(L35,4)*100&"% | "&ROUNDDOWN(M35,4)*100&"% | "&ROUNDDOWN(N35,4)*100&"% | "&ROUNDDOWN(O35,4)*100&"% | "&ROUNDDOWN(P35,4)*100&"%" -> 11 | 0% | 0% | 0% | 0% | 0% | 0%
A59: =A36&" | "&B36&" | "&C36&" | "&D36&" | "&E36&" | "&F36&" | "&G36 -> 12 | | | | | | | K59: =A36&" | "&ROUNDDOWN(K36,4)*100&"% | "&ROUNDDOWN(L36,4)*100&"% | "&ROUNDDOWN(M36,4)*100&"% | "&ROUNDDOWN(N36,4)*100&"% | "&ROUNDDOWN(O36,4)*100&"% | "&ROUNDDOWN(P36,4)*100&"%" -> 12 | 0% | 0% | 0% | 0% | 0% | 0%
A60: 13 | | | | | | | K60: 13 | 0% | 0% | 0% | 0% | 0% | 0%
A61: 14 | | | | | | | K61: 14 | 0% | 0% | 0% | 0% | 0% | 0%
A62: 15 | | | | | | | K62: 15 | 0% | 0% | 0% | 0% | 0% | 0%
A63: 16 | | | | | | | K63: 16 | 0% | 0% | 0% | 0% | 0% | 0%
A64: 17 | | | | | | | K64: 17 | 0% | 0% | 0% | 0% | 0% | 0%
A65: 18 | | | | | | | K65: 18 | 0% | 0% | 0% | 0% | 0% | 0%
A66: 19 | | | | | | | K66: 19 | 0% | 0% | 0% | 0% | 0% | 0%
A70: Race Stats
B71: Bronze | F71: Silver | J71: Gold | N71: Platinum | R71: Diamond | V71: Master | Z71: Grandmaster | AD71: Totals | AH71: Totals Overall
A72: Weeks Remaining | B72: Z | C72: T | D72: P | E72: R | F72: Z | G72: T | H72: P | I72: R | J72: Z | K72: T | L72: P | M72: R | N72: Z | O72: T | P72: P | Q72: R | R72: Z | S72: T | T72: P | U72: R | V72: Z | W72: T | X72: P | Y72: R | Z72: Z | AA72: T | AB72: P | AC72: R | AD72: Z | AE72: T | AF72: P | AG72: R
A73: 1 | B73: =COUNTIFS('1v1'!$E$2:$E$45080,LOWER('Analysis - 1v1'!B$72),'1v1'!$F$2:$F$45080,'Analysis - 1v1'!$B$71,'1v1'!$Q$2:$Q$45080,'Analysis - 1v1'!$A73) -> 40 | C73: =COUNTIFS('1v1'!$E$2:$E$45080,LOWER('Analysis - 1v1'!C$72),'1v1'!$F$2:$F$45080,'Analysis - 1v1'!$B$71,'1v1'!$Q$2:$Q$45080,'Analysis - 1v1'!$A73) -> 84 | D73: =COUNTIFS('1v1'!$E$2:$E$45080,LOWER('Analysis - 1v1'!D$72),'1v1'!$F$2:$F$45080,'Analysis - 1v1'!$B$71,'1v1'!$Q$2:$Q$45080,'Analysis - 1v1'!$A73) -> 92 | E73: =COUNTIFS('1v1'!$E$2:$E$45080,LOWER('Analysis - 1v1'!E$72),'1v1'!$F$2:$F$45080,'Analysis - 1v1'!$B$71,'1v1'!$Q$2:$Q$45080,'Analysis - 1v1'!$A73) -> 24 | F73: =COUNTIFS('1v1'!$E$2:$E$45080,LOWER('Analysis - 1v1'!F$72),'1v1'!$F$2:$F$45080,'Analysis - 1v1'!$F$71,'1v1'!$Q$2:$Q$45080,'Analysis - 1v1'!$A73) -> 96 | G73: =COUNTIFS('1v1'!$E$2:$E$45080,LOWER('Analysis - 1v1'!G$72),'1v1'!$F$2:$F$45080,'Analysis - 1v1'!$F$71,'1v1'!$Q$2:$Q$45080,'Analysis - 1v1'!$A73) -> 196 | H73: =COUNTIFS('1v1'!$E$2:$E$45080,LOWER('Analysis - 1v1'!H$72),'1v1'!$F$2:$F$45080,'Analysis - 1v1'!$F$71,'1v1'!$Q$2:$Q$45080,'Analysis - 1v1'!$A73) -> 163 | I73: =COUNTIFS('1v1'!$E$2:$E$45080,LOWER('Analysis - 1v1'!I$72),'1v1'!$F$2:$F$45080,'Analysis - 1v1'!$F$71,'1v1'!$Q$2:$Q$45080,'Analysis - 1v1'!$A73) -> 69 | J73: =COUNTIFS('1v1'!$E$2:$E$45080,LOWER('Analysis - 1v1'!J$72),'1v1'!$F$2:$F$45080,'Analysis - 1v1'!$J$71,'1v1'!$Q$2:$Q$45080,'Analysis - 1v1'!$A73) -> 553 | K73: =COUNTIFS('1v1'!$E$2:$E$45080,LOWER('Analysis - 1v1'!K$72),'1v1'!$F$2:$F$45080,'Analysis - 1v1'!$J$71,'1v1'!$Q$2:$Q$45080,'Analysis - 1v1'!$A73) -> 701 | L73: =COUNTIFS('1v1'!$E$2:$E$45080,LOWER('Analysis - 1v1'!L$72),'1v1'!$F$2:$F$45080,'Analysis - 1v1'!$J$71,'1v1'!$Q$2:$Q$45080,'Analysis - 1v1'!$A73) -> 793 | M73: =COUNTIFS('1v1'!$E$2:$E$45080,LOWER('Analysis - 1v1'!M$72),'1v1'!$F$2:$F$45080,'Analysis - 1v1'!$J$71,'1v1'!$Q$2:$Q$45080,'Analysis - 1v1'!$A73) -> 271 | N73: =COUNTIFS('1v1'!$E$2:$E$45080,LOWER('Analysis - 1v1'!N$72),'1v1'!$F$2:$F$45080,'Analysis - 1v1'!$N$71,'1v1'!$Q$2:$Q$45080,'Analysis - 1v1'!$A73) -> 499 | O73: =COUNTIFS('1v1'!$E$2:$E$45080,LOWER('Analysis - 1v1'!O$72),'1v1'!$F$2:$F$45080,'Analysis - 1v1'!$N$71,'1v1'!$Q$2:$Q$45080,'Analysis - 1v1'!$A73) -> 529 | P73: =COUNTIFS('1v1'!$E$2:$E$45080,LOWER('Analysis - 1v1'!P$72),'1v1'!$F$2:$F$45080,'Analysis - 1v1'!$N$71,'1v1'!$Q$2:$Q$45080,'Analysis - 1v1'!$A73) -> 546 | Q73: =COUNTIFS('1v1'!$E$2:$E$45080,LOWER('Analysis - 1v1'!Q$72),'1v1'!$F$2:$F$45080,'Analysis - 1v1'!$N$71,'1v1'!$Q$2:$Q$45080,'Analysis - 1v1'!$A73) -> 160 | R73: =COUNTIFS('1v1'!$E$2:$E$45080,LOWER('Analysis - 1v1'!R$72),'1v1'!$F$2:$F$45080,'Analysis - 1v1'!$R$71,'1v1'!$Q$2:$Q$45080,'Analysis - 1v1'!$A73) -> 468 | S73: =COUNTIFS('1v1'!$E$2:$E$45080,LOWER('Analysis - 1v1'!S$72),'1v1'!$F$2:$F$45080,'Analysis - 1v1'!$R$71,'1v1'!$Q$2:$Q$45080,'Analysis - 1v1'!$A73) -> 520 | T73: =COUNTIFS('1v1'!$E$2:$E$45080,LOWER('Analysis - 1v1'!T$72),'1v1'!$F$2:$F$45080,'Analysis - 1v1'!$R$71,'1v1'!$Q$2:$Q$45080,'Analysis - 1v1'!$A73) -> 470 | U73: =COUNTIFS('1v1'!$E$2:$E$45080,LOWER('Analysis - 1v1'!U$72),'1v1'!$F$2:$F$45080,'Analysis - 1v1'!$R$71,'1v1'!$Q$2:$Q$45080,'Analysis - 1v1'!$A73) -> 93 | V73: =COUNTIFS('1v1'!$E$2:$E$45080,LOWER('Analysis - 1v1'!V$72),'1v1'!$F$2:$F$45080,'Analysis - 1v1'!$V$71,'1v1'!$Q$2:$Q$45080,'Analysis - 1v1'!$A73) -> 51 | W73: =COUNTIFS('1v1'!$E$2:$E$45080,LOWER('Analysis - 1v1'!W$72),'1v1'!$F$2:$F$45080,'Analysis - 1v1'!$V$71,'1v1'!$Q$2:$Q$45080,'Analysis - 1v1'!$A73) -> 59 | X73: =COUNTIFS('1v1'!$E$2:$E$45080,LOWER('Analysis - 1v1'!X$72),'1v1'!$F$2:$F$45080,'Analysis - 1v1'!$V$71,'1v1'!$Q$2:$Q$45080,'Analysis - 1v1'!$A73) -> 53 | Y73: =COUNTIFS('1v1'!$E$2:$E$45080,LOWER('Analysis - 1v1'!Y$72),'1v1'!$F$2:$F$45080,'Analysis - 1v1'!$V$71,'1v1'!$Q$2:$Q$45080,'Analysis - 1v1'!$A73) -> 6 | Z73: =COUNTIFS('1v1'!$E$2:$E$45080,LOWER('Analysis - 1v1'!Z$72),'1v1'!$F$2:$F$45080,'Analysis - 1v1'!$Z$71,'1v1'!$Q$2:$Q$45080,'Analysis - 1v1'!$A73) -> 59 | AA73: =COUNTIFS('1v1'!$E$2:$E$45080,LOWER('Analysis - 1v1'!AA$72),'1v1'!$F$2:$F$45080,'Analysis - 1v1'!$Z$71,'1v1'!$Q$2:$Q$45080,'Analysis - 1v1'!$A73) -> 73 | AB73: =COUNTIFS('1v1'!$E$2:$E$45080,LOWER('Analysis - 1v1'!AB$72),'1v1'!$F$2:$F$45080,'Analysis - 1v1'!$Z$71,'1v1'!$Q$2:$Q$45080,'Analysis - 1v1'!$A73) -> 60 | AC73: =COUNTIFS('1v1'!$E$2:$E$45080,LOWER('Analysis - 1v1'!AC$72),'1v1'!$F$2:$F$45080,'Analysis - 1v1'!$Z$71,'1v1'!$Q$2:$Q$45080,'Analysis - 1v1'!$A73) -> 6 | AD73: =B73+F73+J73+N73+R73+V73+Z73 -> 1766 | AE73: =C73+G73+K73+O73+S73+W73+AA73 -> 2162 | AF73: 2177 | AG73: 629 | AH73: =SUM(AD73:AG73) -> 6734
A74: 2 | B74: =COUNTIFS('1v1'!$E$2:$E$45080,LOWER('Analysis - 1v1'!B$72),'1v1'!$F$2:$F$45080,'Analysis - 1v1'!$B$71,'1v1'!$Q$2:$Q$45080,'Analysis - 1v1'!$A74) -> 16 | C74: =COUNTIFS('1v1'!$E$2:$E$45080,LOWER('Analysis - 1v1'!C$72),'1v1'!$F$2:$F$45080,'Analysis - 1v1'!$B$71,'1v1'!$Q$2:$Q$45080,'Analysis - 1v1'!$A74) -> 41 | D74: =COUNTIFS('1v1'!$E$2:$E$45080,LOWER('Analysis - 1v1'!D$72),'1v1'!$F$2:$F$45080,'Analysis - 1v1'!$B$71,'1v1'!$Q$2:$Q$45080,'Analysis - 1v1'!$A74) -> 28 | E74: =COUNTIFS('1v1'!$E$2:$E$45080,LOWER('Analysis - 1v1'!E$72),'1v1'!$F$2:$F$45080,'Analysis - 1v1'!$B$71,'1v1'!$Q$2:$Q$45080,'Analysis - 1v1'!$A74) -> 6 | F74: =COUNTIFS('1v1'!$E$2:$E$45080,LOWER('Analysis - 1v1'!F$72),'1v1'!$F$2:$F$45080,'Analysis - 1v1'!$F$71,'1v1'!$Q$2:$Q$45080,'Analysis - 1v1'!$A74) -> 47 | G74: =COUNTIFS('1v1'!$E$2:$E$45080,LOWER('Analysis - 1v1'!G$72),'1v1'!$F$2:$F$45080,'Analysis - 1v1'!$F$71,'1v1'!$Q$2:$Q$45080,'Analysis - 1v1'!$A74) -> 79 | H74: =COUNTIFS('1v1'!$E$2:$E$45080,LOWER('Analysis - 1v1'!H$72),'1v1'!$F$2:$F$45080,'Analysis - 1v1'!$F$71,'1v1'!$Q$2:$Q$45080,'Analysis - 1v1'!$A74) -> 102 | I74: =COUNTIFS('1v1'!$E$2:$E$45080,LOWER('Analysis - 1v1'!I$72),'1v1'!$F$2:$F$45080,'Analysis - 1v1'!$F$71,'1v1'!$Q$2:$Q$45080,'Analysis - 1v1'!$A74) -> 31 | J74: =COUNTIFS('1v1'!$E$2:$E$45080,LOWER('Analysis - 1v1'!J$72),'1v1'!$F$2:$F$45080,'Analysis - 1v1'!$J$71,'1v1'!$Q$2:$Q$45080,'Analysis - 1v1'!$A74) -> 230 | K74: =COUNTIFS('1v1'!$E$2:$E$45080,LOWER('Analysis - 1v1'!K$72),'1v1'!$F$2:$F$45080,'Analysis - 1v1'!$J$71,'1v1'!$Q$2:$Q$45080,'Analysis - 1v1'!$A74) -> 251 | L74: =COUNTIFS('1v1'!$E$2:$E$45080,LOWER('Analysis - 1v1'!L$72),'1v1'!$F$2:$F$45080,'Analysis - 1v1'!$J$71,'1v1'!$Q$2:$Q$45080,'Analysis - 1v1'!$A74) -> 276 | M74: =COUNTIFS('1v1'!$E$2:$E$45080,LOWER('Analysis - 1v1'!M$72),'1v1'!$F$2:$F$45080,'Analysis - 1v1'!$J$71,'1v1'!$Q$2:$Q$45080,'Analysis - 1v1'!$A74) -> 96 | N74: =COUNTIFS('1v1'!$E$2:$E$45080,LOWER('Analysis - 1v1'!N$72),'1v1'!$F$2:$F$45080,'Analysis - 1v1'!$N$71,'1v1'!$Q$2:$Q$45080,'Analysis - 1v1'!$A74) -> 155 | O74: =COUNTIFS('1v1'!$E$2:$E$45080,LOWER('Analysis - 1v1'!O$72),'1v1'!$F$2:$F$45080,'Analysis - 1v1'!$N$71,'1v1'!$Q$2:$Q$45080,'Analysis - 1v1'!$A74) -> 172 | P74: =COUNTIFS('1v1'!$E$2:$E$45080,LOWER('Analysis - 1v1'!P$72),'1v1'!$F$2:$F$45080,'Analysis - 1v1'!$N$71,'1v1'!$Q$2:$Q$45080,'Analysis - 1v1'!$A74) -> 184 | Q74: =COUNTIFS('1v1'!$E$2:$E$45080,LOWER('Analysis - 1v1'!Q$72),'1v1'!$F$2:$F$45080,'Analysis - 1v1'!$N$71,'1v1'!$Q$2:$Q$45080,'Analysis - 1v1'!$A74) -> 45 | R74: =COUNTIFS('1v1'!$E$2:$E$45080,LOWER('Analysis - 1v1'!R$72),'1v1'!$F$2:$F$45080,'Analysis - 1v1'!$R$71,'1v1'!$Q$2:$Q$45080,'Analysis - 1v1'!$A74) -> 115 | S74: =COUNTIFS('1v1'!$E$2:$E$45080,LOWER('Analysis - 1v1'!S$72),'1v1'!$F$2:$F$45080,'Analysis - 1v1'!$R$71,'1v1'!$Q$2:$Q$45080,'Analysis - 1v1'!$A74) -> 152 | T74: =COUNTIFS('1v1'!$E$2:$E$45080,LOWER('Analysis - 1v1'!T$72),'1v1'!$F$2:$F$45080,'Analysis - 1v1'!$R$71,'1v1'!$Q$2:$Q$45080,'Analysis - 1v1'!$A74) -> 115 | U74: =COUNTIFS('1v1'!$E$2:$E$45080,LOWER('Analysis - 1v1'!U$72),'1v1'!$F$2:$F$45080,'Analysis - 1v1'!$R$71,'1v1'!$Q$2:$Q$45080,'Analysis - 1v1'!$A74) -> 30 | V74: =COUNTIFS('1v1'!$E$2:$E$45080,LOWER('Analysis - 1v1'!V$72),'1v1'!$F$2:$F$45080,'Analysis - 1v1'!$V$71,'1v1'!$Q$2:$Q$45080,'Analysis - 1v1'!$A74) -> 19 | W74: =COUNTIFS('1v1'!$E$2:$E$45080,LOWER('Analysis - 1v1'!W$72),'1v1'!$F$2:$F$45080,'Analysis - 1v1'!$V$71,'1v1'!$Q$2:$Q$45080,'Analysis - 1v1'!$A74) -> 19 | X74: =COUNTIFS('1v1'!$E$2:$E$45080,LOWER('Analysis - 1v1'!X$72),'1v1'!$F$2:$F$45080,'Analysis - 1v1'!$V$71,'1v1'!$Q$2:$Q$45080,'Analysis - 1v1'!$A74) -> 19 | Y74: =COUNTIFS('1v1'!$E$2:$E$45080,LOWER('Analysis - 1v1'!Y$72),'1v1'!$F$2:$F$45080,'Analysis - 1v1'!$V$71,'1v1'!$Q$2:$Q$45080,'Analysis - 1v1'!$A74) -> 1 | Z74: =COUNTIFS('1v1'!$E$2:$E$45080,LOWER('Analysis - 1v1'!Z$72),'1v1'!$F$2:$F$45080,'Analysis - 1v1'!$Z$71,'1v1'!$Q$2:$Q$45080,'Analysis - 1v1'!$A74) -> 0 | AA74: =COUNTIFS('1v1'!$E$2:$E$45080,LOWER('Analysis - 1v1'!AA$72),'1v1'!$F$2:$F$45080,'Analysis - 1v1'!$Z$71,'1v1'!$Q$2:$Q$45080,'Analysis - 1v1'!$A74) -> 0 | AB74: =COUNTIFS('1v1'!$E$2:$E$45080,LOWER('Analysis - 1v1'!AB$72),'1v1'!$F$2:$F$45080,'Analysis - 1v1'!$Z$71,'1v1'!$Q$2:$Q$45080,'Analysis - 1v1'!$A74) -> 0 | AC74: =COUNTIFS('1v1'!$E$2:$E$45080,LOWER('Analysis - 1v1'!AC$72),'1v1'!$F$2:$F$45080,'Analysis - 1v1'!$Z$71,'1v1'!$Q$2:$Q$45080,'Analysis - 1v1'!$A74) -> 0 | AD74: =B74+F74+J74+N74+R74+V74+Z74 -> 582 | AE74: 714 | AF74: 724 | AG74: 209 | AH74: =SUM(AD74:AG74) -> 2229
A75: 3 | B75: =COUNTIFS('1v1'!$E$2:$E$45080,LOWER('Analysis - 1v1'!B$72),'1v1'!$F$2:$F$45080,'Analysis - 1v1'!$B$71,'1v1'!$Q$2:$Q$45080,'Analysis - 1v1'!$A75) -> 13 | C75: =COUNTIFS('1v1'!$E$2:$E$45080,LOWER('Analysis - 1v1'!C$72),'1v1'!$F$2:$F$45080,'Analysis - 1v1'!$B$71,'1v1'!$Q$2:$Q$45080,'Analysis - 1v1'!$A75) -> 34 | D75: =COUNTIFS('1v1'!$E$2:$E$45080,LOWER('Analysis - 1v1'!D$72),'1v1'!$F$2:$F$45080,'Analysis - 1v1'!$B$71,'1v1'!$Q$2:$Q$45080,'Analysis - 1v1'!$A75) -> 25 | E75: =COUNTIFS('1v1'!$E$2:$E$45080,LOWER('Analysis - 1v1'!E$72),'1v1'!$F$2:$F$45080,'Analysis - 1v1'!$B$71,'1v1'!$Q$2:$Q$45080,'Analysis - 1v1'!$A75) -> 7 | F75: =COUNTIFS('1v1'!$E$2:$E$45080,LOWER('Analysis - 1v1'!F$72),'1v1'!$F$2:$F$45080,'Analysis - 1v1'!$F$71,'1v1'!$Q$2:$Q$45080,'Analysis - 1v1'!$A75) -> 54 | G75: =COUNTIFS('1v1'!$E$2:$E$45080,LOWER('Analysis - 1v1'!G$72),'1v1'!$F$2:$F$45080,'Analysis - 1v1'!$F$71,'1v1'!$Q$2:$Q$45080,'Analysis - 1v1'!$A75) -> 72 | H75: =COUNTIFS('1v1'!$E$2:$E$45080,LOWER('Analysis - 1v1'!H$72),'1v1'!$F$2:$F$45080,'Analysis - 1v1'!$F$71,'1v1'!$Q$2:$Q$45080,'Analysis - 1v1'!$A75) -> 100 | I75: =COUNTIFS('1v1'!$E$2:$E$45080,LOWER('Analysis - 1v1'!I$72),'1v1'!$F$2:$F$45080,'Analysis - 1v1'!$F$71,'1v1'!$Q$2:$Q$45080,'Analysis - 1v1'!$A75) -> 26 | J75: =COUNTIFS('1v1'!$E$2:$E$45080,LOWER('Analysis - 1v1'!J$72),'1v1'!$F$2:$F$45080,'Analysis - 1v1'!$J$71,'1v1'!$Q$2:$Q$45080,'Analysis - 1v1'!$A75) -> 221 | K75: =COUNTIFS('1v1'!$E$2:$E$45080,LOWER('Analysis - 1v1'!K$72),'1v1'!$F$2:$F$45080,'Analysis - 1v1'!$J$71,'1v1'!$Q$2:$Q$45080,'Analysis - 1v1'!$A75) -> 271 | L75: =COUNTIFS('1v1'!$E$2:$E$45080,LOWER('Analysis - 1v1'!L$72),'1v1'!$F$2:$F$45080,'Analysis - 1v1'!$J$71,'1v1'!$Q$2:$Q$45080,'Analysis - 1v1'!$A75) -> 308 | M75: =COUNTIFS('1v1'!$E$2:$E$45080,LOWER('Analysis - 1v1'!M$72),'1v1'!$F$2:$F$45080,'Analysis - 1v1'!$J$71,'1v1'!$Q$2:$Q$45080,'Analysis - 1v1'!$A75) -> 125 | N75: =COUNTIFS('1v1'!$E$2:$E$45080,LOWER('Analysis - 1v1'!N$72),'1v1'!$F$2:$F$45080,'Analysis - 1v1'!$N$71,'1v1'!$Q$2:$Q$45080,'Analysis - 1v1'!$A75) -> 165 | O75: =COUNTIFS('1v1'!$E$2:$E$45080,LOWER('Analysis - 1v1'!O$72),'1v1'!$F$2:$F$45080,'Analysis - 1v1'!$N$71,'1v1'!$Q$2:$Q$45080,'Analysis - 1v1'!$A75) -> 165 | P75: =COUNTIFS('1v1'!$E$2:$E$45080,LOWER('Analysis - 1v1'!P$72),'1v1'!$F$2:$F$45080,'Analysis - 1v1'!$N$71,'1v1'!$Q$2:$Q$45080,'Analysis - 1v1'!$A75) -> 147 | Q75: =COUNTIFS('1v1'!$E$2:$E$45080,LOWER('Analysis - 1v1'!Q$72),'1v1'!$F$2:$F$45080,'Analysis - 1v1'!$N$71,'1v1'!$Q$2:$Q$45080,'Analysis - 1v1'!$A75) -> 50 | R75: =COUNTIFS('1v1'!$E$2:$E$45080,LOWER('Analysis - 1v1'!R$72),'1v1'!$F$2:$F$45080,'Analysis - 1v1'!$R$71,'1v1'!$Q$2:$Q$45080,'Analysis - 1v1'!$A75) -> 125 | S75: =COUNTIFS('1v1'!$E$2:$E$45080,LOWER('Analysis - 1v1'!S$72),'1v1'!$F$2:$F$45080,'Analysis - 1v1'!$R$71,'1v1'!$Q$2:$Q$45080,'Analysis - 1v1'!$A75) -> 114 | T75: =COUNTIFS('1v1'!$E$2:$E$45080,LOWER('Analysis - 1v1'!T$72),'1v1'!$F$2:$F$45080,'Analysis - 1v1'!$R$71,'1v1'!$Q$2:$Q$45080,'Analysis - 1v1'!$A75) -> 96 | U75: =COUNTIFS('1v1'!$E$2:$E$45080,LOWER('Analysis - 1v1'!U$72),'1v1'!$F$2:$F$45080,'Analysis - 1v1'!$R$71,'1v1'!$Q$2:$Q$45080,'Analysis - 1v1'!$A75) -> 22 | V75: =COUNTIFS('1v1'!$E$2:$E$45080,LOWER('Analysis - 1v1'!V$72),'1v1'!$F$2:$F$45080,'Analysis - 1v1'!$V$71,'1v1'!$Q$2:$Q$45080,'Analysis - 1v1'!$A75) -> 21 | W75: =COUNTIFS('1v1'!$E$2:$E$45080,LOWER('Analysis - 1v1'!W$72),'1v1'!$F$2:$F$45080,'Analysis - 1v1'!$V$71,'1v1'!$Q$2:$Q$45080,'Analysis - 1v1'!$A75) -> 21 | X75: =COUNTIFS('1v1'!$E$2:$E$45080,LOWER('Analysis - 1v1'!X$72),'1v1'!$F$2:$F$45080,'Analysis - 1v1'!$V$71,'1v1'!$Q$2:$Q$45080,'Analysis - 1v1'!$A75) -> 22 | Y75: =COUNTIFS('1v1'!$E$2:$E$45080,LOWER('Analysis - 1v1'!Y$72),'1v1'!$F$2:$F$45080,'Analysis - 1v1'!$V$71,'1v1'!$Q$2:$Q$45080,'Analysis - 1v1'!$A75) -> 1 | Z75: =COUNTIFS('1v1'!$E$2:$E$45080,LOWER('Analysis - 1v1'!Z$72),'1v1'!$F$2:$F$45080,'Analysis - 1v1'!$Z$71,'1v1'!$Q$2:$Q$45080,'Analysis - 1v1'!$A75) -> 0 | AA75: =COUNTIFS('1v1'!$E$2:$E$45080,LOWER('Analysis - 1v1'!AA$72),'1v1'!$F$2:$F$45080,'Analysis - 1v1'!$Z$71,'1v1'!$Q$2:$Q$45080,'Analysis - 1v1'!$A75) -> 0 | AB75: =COUNTIFS('1v1'!$E$2:$E$45080,LOWER('Analysis - 1v1'!AB$72),'1v1'!$F$2:$F$45080,'Analysis - 1v1'!$Z$71,'1v1'!$Q$2:$Q$45080,'Analysis - 1v1'!$A75) -> 0 | AC75: =COUNTIFS('1v1'!$E$2:$E$45080,LOWER('Analysis - 1v1'!AC$72),'1v1'!$F$2:$F$45080,'Analysis - 1v1'!$Z$71,'1v1'!$Q$2:$Q$45080,'Analysis - 1v1'!$A75) -> 0 | AD75: 599 | AE75: 677 | AF75: 698 | AG75: 231 | AH75: 2205
A76: 4 | B76: =COUNTIFS('1v1'!$E$2:$E$45080,LOWER('Analysis - 1v1'!B$72),'1v1'!$F$2:$F$45080,'Analysis - 1v1'!$B$71,'1v1'!$Q$2:$Q$45080,'Analysis - 1v1'!$A76) -> 25 | C76: =COUNTIFS('1v1'!$E$2:$E$45080,LOWER('Analysis - 1v1'!C$72),'1v1'!$F$2:$F$45080,'Analysis - 1v1'!$B$71,'1v1'!$Q$2:$Q$45080,'Analysis - 1v1'!$A76) -> 26 | D76: =COUNTIFS('1v1'!$E$2:$E$45080,LOWER('Analysis - 1v1'!D$72),'1v1'!$F$2:$F$45080,'Analysis - 1v1'!$B$71,'1v1'!$Q$2:$Q$45080,'Analysis - 1v1'!$A76) -> 39 | E76: =COUNTIFS('1v1'!$E$2:$E$45080,LOWER('Analysis - 1v1'!E$72),'1v1'!$F$2:$F$45080,'Analysis - 1v1'!$B$71,'1v1'!$Q$2:$Q$45080,'Analysis - 1v1'!$A76) -> 7 | F76: =COUNTIFS('1v1'!$E$2:$E$45080,LOWER('Analysis - 1v1'!F$72),'1v1'!$F$2:$F$45080,'Analysis - 1v1'!$F$71,'1v1'!$Q$2:$Q$45080,'Analysis - 1v1'!$A76) -> 66 | G76: =COUNTIFS('1v1'!$E$2:$E$45080,LOWER('Analysis - 1v1'!G$72),'1v1'!$F$2:$F$45080,'Analysis - 1v1'!$F$71,'1v1'!$Q$2:$Q$45080,'Analysis - 1v1'!$A76) -> 99 | H76: =COUNTIFS('1v1'!$E$2:$E$45080,LOWER('Analysis - 1v1'!H$72),'1v1'!$F$2:$F$45080,'Analysis - 1v1'!$F$71,'1v1'!$Q$2:$Q$45080,'Analysis - 1v1'!$A76) -> 137 | I76: =COUNTIFS('1v1'!$E$2:$E$45080,LOWER('Analysis - 1v1'!I$72),'1v1'!$F$2:$F$45080,'Analysis - 1v1'!$F$71,'1v1'!$Q$2:$Q$45080,'Analysis - 1v1'!$A76) -> 34 | J76: =COUNTIFS('1v1'!$E$2:$E$45080,LOWER('Analysis - 1v1'!J$72),'1v1'!$F$2:$F$45080,'Analysis - 1v1'!$J$71,'1v1'!$Q$2:$Q$45080,'Analysis - 1v1'!$A76) -> 300 | K76: =COUNTIFS('1v1'!$E$2:$E$45080,LOWER('Analysis - 1v1'!K$72),'1v1'!$F$2:$F$45080,'Analysis - 1v1'!$J$71,'1v1'!$Q$2:$Q$45080,'Analysis - 1v1'!$A76) -> 306 | L76: =COUNTIFS('1v1'!$E$2:$E$45080,LOWER('Analysis - 1v1'!L$72),'1v1'!$F$2:$F$45080,'Analysis - 1v1'!$J$71,'1v1'!$Q$2:$Q$45080,'Analysis - 1v1'!$A76) -> 372 | M76: =COUNTIFS('1v1'!$E$2:$E$45080,LOWER('Analysis - 1v1'!M$72),'1v1'!$F$2:$F$45080,'Analysis - 1v1'!$J$71,'1v1'!$Q$2:$Q$45080,'Analysis - 1v1'!$A76) -> 127 | N76: =COUNTIFS('1v1'!$E$2:$E$45080,LOWER('Analysis - 1v1'!N$72),'1v1'!$F$2:$F$45080,'Analysis - 1v1'!$N$71,'1v1'!$Q$2:$Q$45080,'Analysis - 1v1'!$A76) -> 167 | O76: =COUNTIFS('1v1'!$E$2:$E$45080,LOWER('Analysis - 1v1'!O$72),'1v1'!$F$2:$F$45080,'Analysis - 1v1'!$N$71,'1v1'!$Q$2:$Q$45080,'Analysis - 1v1'!$A76) -> 162 | P76: =COUNTIFS('1v1'!$E$2:$E$45080,LOWER('Analysis - 1v1'!P$72),'1v1'!$F$2:$F$45080,'Analysis - 1v1'!$N$71,'1v1'!$Q$2:$Q$45080,'Analysis - 1v1'!$A76) -> 154 | Q76: =COUNTIFS('1v1'!$E$2:$E$45080,LOWER('Analysis - 1v1'!Q$72),'1v1'!$F$2:$F$45080,'Analysis - 1v1'!$N$71,'1v1'!$Q$2:$Q$45080,'Analysis - 1v1'!$A76) -> 53 | R76: =COUNTIFS('1v1'!$E$2:$E$45080,LOWER('Analysis - 1v1'!R$72),'1v1'!$F$2:$F$45080,'Analysis - 1v1'!$R$71,'1v1'!$Q$2:$Q$45080,'Analysis - 1v1'!$A76) -> 113 | S76: =COUNTIFS('1v1'!$E$2:$E$45080,LOWER('Analysis - 1v1'!S$72),'1v1'!$F$2:$F$45080,'Analysis - 1v1'!$R$71,'1v1'!$Q$2:$Q$45080,'Analysis - 1v1'!$A76) -> 120 | T76: =COUNTIFS('1v1'!$E$2:$E$45080,LOWER('Analysis - 1v1'!T$72),'1v1'!$F$2:$F$45080,'Analysis - 1v1'!$R$71,'1v1'!$Q$2:$Q$45080,'Analysis - 1v1'!$A76) -> 105 | U76: =COUNTIFS('1v1'!$E$2:$E$45080,LOWER('Analysis - 1v1'!U$72),'1v1'!$F$2:$F$45080,'Analysis - 1v1'!$R$71,'1v1'!$Q$2:$Q$45080,'Analysis - 1v1'!$A76) -> 24 | V76: =COUNTIFS('1v1'!$E$2:$E$45080,LOWER('Analysis - 1v1'!V$72),'1v1'!$F$2:$F$45080,'Analysis - 1v1'!$V$71,'1v1'!$Q$2:$Q$45080,'Analysis - 1v1'!$A76) -> 19 | W76: =COUNTIFS('1v1'!$E$2:$E$45080,LOWER('Analysis - 1v1'!W$72),'1v1'!$F$2:$F$45080,'Analysis - 1v1'!$V$71,'1v1'!$Q$2:$Q$45080,'Analysis - 1v1'!$A76) -> 30 | X76: =COUNTIFS('1v1'!$E$2:$E$45080,LOWER('Analysis - 1v1'!X$72),'1v1'!$F$2:$F$45080,'Analysis - 1v1'!$V$71,'1v1'!$Q$2:$Q$45080,'Analysis - 1v1'!$A76) -> 21 | Y76: =COUNTIFS('1v1'!$E$2:$E$45080,LOWER('Analysis - 1v1'!Y$72),'1v1'!$F$2:$F$45080,'Analysis - 1v1'!$V$71,'1v1'!$Q$2:$Q$45080,'Analysis - 1v1'!$A76) -> 2 | Z76: =COUNTIFS('1v1'!$E$2:$E$45080,LOWER('Analysis - 1v1'!Z$72),'1v1'!$F$2:$F$45080,'Analysis - 1v1'!$Z$71,'1v1'!$Q$2:$Q$45080,'Analysis - 1v1'!$A76) -> 0 | AA76: =COUNTIFS('1v1'!$E$2:$E$45080,LOWER('Analysis - 1v1'!AA$72),'1v1'!$F$2:$F$45080,'Analysis - 1v1'!$Z$71,'1v1'!$Q$2:$Q$45080,'Analysis - 1v1'!$A76) -> 0 | AB76: =COUNTIFS('1v1'!$E$2:$E$45080,LOWER('Analysis - 1v1'!AB$72),'1v1'!$F$2:$F$45080,'Analysis - 1v1'!$Z$71,'1v1'!$Q$2:$Q$45080,'Analysis - 1v1'!$A76) -> 0 | AC76: =COUNTIFS('1v1'!$E$2:$E$45080,LOWER('Analysis - 1v1'!AC$72),'1v1'!$F$2:$F$45080,'Analysis - 1v1'!$Z$71,'1v1'!$Q$2:$Q$45080,'Analysis - 1v1'!$A76) -> 0 | AD76: 690 | AE76: 743 | AF76: 828 | AG76: 247 | AH76: 2508
A77: 5 | B77: =COUNTIFS('1v1'!$E$2:$E$45080,LOWER('Analysis - 1v1'!B$72),'1v1'!$F$2:$F$45080,'Analysis - 1v1'!$B$71,'1v1'!$Q$2:$Q$45080,'Analysis - 1v1'!$A77) -> 31 | C77: =COUNTIFS('1v1'!$E$2:$E$45080,LOWER('Analysis - 1v1'!C$72),'1v1'!$F$2:$F$45080,'Analysis - 1v1'!$B$71,'1v1'!$Q$2:$Q$45080,'Analysis - 1v1'!$A77) -> 43 | D77: =COUNTIFS('1v1'!$E$2:$E$45080,LOWER('Analysis - 1v1'!D$72),'1v1'!$F$2:$F$45080,'Analysis - 1v1'!$B$71,'1v1'!$Q$2:$Q$45080,'Analysis - 1v1'!$A77) -> 44 | E77: =COUNTIFS('1v1'!$E$2:$E$45080,LOWER('Analysis - 1v1'!E$72),'1v1'!$F$2:$F$45080,'Analysis - 1v1'!$B$71,'1v1'!$Q$2:$Q$45080,'Analysis - 1v1'!$A77) -> 15 | F77: =COUNTIFS('1v1'!$E$2:$E$45080,LOWER('Analysis - 1v1'!F$72),'1v1'!$F$2:$F$45080,'Analysis - 1v1'!$F$71,'1v1'!$Q$2:$Q$45080,'Analysis - 1v1'!$A77) -> 108 | G77: =COUNTIFS('1v1'!$E$2:$E$45080,LOWER('Analysis - 1v1'!G$72),'1v1'!$F$2:$F$45080,'Analysis - 1v1'!$F$71,'1v1'!$Q$2:$Q$45080,'Analysis - 1v1'!$A77) -> 151 | H77: =COUNTIFS('1v1'!$E$2:$E$45080,LOWER('Analysis - 1v1'!H$72),'1v1'!$F$2:$F$45080,'Analysis - 1v1'!$F$71,'1v1'!$Q$2:$Q$45080,'Analysis - 1v1'!$A77) -> 178 | I77: =COUNTIFS('1v1'!$E$2:$E$45080,LOWER('Analysis - 1v1'!I$72),'1v1'!$F$2:$F$45080,'Analysis - 1v1'!$F$71,'1v1'!$Q$2:$Q$45080,'Analysis - 1v1'!$A77) -> 49 | J77: =COUNTIFS('1v1'!$E$2:$E$45080,LOWER('Analysis - 1v1'!J$72),'1v1'!$F$2:$F$45080,'Analysis - 1v1'!$J$71,'1v1'!$Q$2:$Q$45080,'Analysis - 1v1'!$A77) -> 413 | K77: =COUNTIFS('1v1'!$E$2:$E$45080,LOWER('Analysis - 1v1'!K$72),'1v1'!$F$2:$F$45080,'Analysis - 1v1'!$J$71,'1v1'!$Q$2:$Q$45080,'Analysis - 1v1'!$A77) -> 401 | L77: =COUNTIFS('1v1'!$E$2:$E$45080,LOWER('Analysis - 1v1'!L$72),'1v1'!$F$2:$F$45080,'Analysis - 1v1'!$J$71,'1v1'!$Q$2:$Q$45080,'Analysis - 1v1'!$A77) -> 530 | M77: =COUNTIFS('1v1'!$E$2:$E$45080,LOWER('Analysis - 1v1'!M$72),'1v1'!$F$2:$F$45080,'Analysis - 1v1'!$J$71,'1v1'!$Q$2:$Q$45080,'Analysis - 1v1'!$A77) -> 158 | N77: =COUNTIFS('1v1'!$E$2:$E$45080,LOWER('Analysis - 1v1'!N$72),'1v1'!$F$2:$F$45080,'Analysis - 1v1'!$N$71,'1v1'!$Q$2:$Q$45080,'Analysis - 1v1'!$A77) -> 169 | O77: =COUNTIFS('1v1'!$E$2:$E$45080,LOWER('Analysis - 1v1'!O$72),'1v1'!$F$2:$F$45080,'Analysis - 1v1'!$N$71,'1v1'!$Q$2:$Q$45080,'Analysis - 1v1'!$A77) -> 186 | P77: =COUNTIFS('1v1'!$E$2:$E$45080,LOWER('Analysis - 1v1'!P$72),'1v1'!$F$2:$F$45080,'Analysis - 1v1'!$N$71,'1v1'!$Q$2:$Q$45080,'Analysis - 1v1'!$A77) -> 175 | Q77: =COUNTIFS('1v1'!$E$2:$E$45080,LOWER('Analysis - 1v1'!Q$72),'1v1'!$F$2:$F$45080,'Analysis - 1v1'!$N$71,'1v1'!$Q$2:$Q$45080,'Analysis - 1v1'!$A77) -> 47 | R77: =COUNTIFS('1v1'!$E$2:$E$45080,LOWER('Analysis - 1v1'!R$72),'1v1'!$F$2:$F$45080,'Analysis - 1v1'!$R$71,'1v1'!$Q$2:$Q$45080,'Analysis - 1v1'!$A77) -> 112 | S77: =COUNTIFS('1v1'!$E$2:$E$45080,LOWER('Analysis - 1v1'!S$72),'1v1'!$F$2:$F$45080,'Analysis - 1v1'!$R$71,'1v1'!$Q$2:$Q$45080,'Analysis - 1v1'!$A77) -> 135 | T77: =COUNTIFS('1v1'!$E$2:$E$45080,LOWER('Analysis - 1v1'!T$72),'1v1'!$F$2:$F$45080,'Analysis - 1v1'!$R$71,'1v1'!$Q$2:$Q$45080,'Analysis - 1v1'!$A77) -> 112 | U77: =COUNTIFS('1v1'!$E$2:$E$45080,LOWER('Analysis - 1v1'!U$72),'1v1'!$F$2:$F$45080,'Analysis - 1v1'!$R$71,'1v1'!$Q$2:$Q$45080,'Analysis - 1v1'!$A77) -> 28 | V77: =COUNTIFS('1v1'!$E$2:$E$45080,LOWER('Analysis - 1v1'!V$72),'1v1'!$F$2:$F$45080,'Analysis - 1v1'!$V$71,'1v1'!$Q$2:$Q$45080,'Analysis - 1v1'!$A77) -> 30 | W77: =COUNTIFS('1v1'!$E$2:$E$45080,LOWER('Analysis - 1v1'!W$72),'1v1'!$F$2:$F$45080,'Analysis - 1v1'!$V$71,'1v1'!$Q$2:$Q$45080,'Analysis - 1v1'!$A77) -> 26 | X77: =COUNTIFS('1v1'!$E$2:$E$45080,LOWER('Analysis - 1v1'!X$72),'1v1'!$F$2:$F$45080,'Analysis - 1v1'!$V$71,'1v1'!$Q$2:$Q$45080,'Analysis - 1v1'!$A77) -> 39 | Y77: =COUNTIFS('1v1'!$E$2:$E$45080,LOWER('Analysis - 1v1'!Y$72),'1v1'!$F$2:$F$45080,'Analysis - 1v1'!$V$71,'1v1'!$Q$2:$Q$45080,'Analysis - 1v1'!$A77) -> 5 | Z77: =COUNTIFS('1v1'!$E$2:$E$45080,LOWER('Analysis - 1v1'!Z$72),'1v1'!$F$2:$F$45080,'Analysis - 1v1'!$Z$71,'1v1'!$Q$2:$Q$45080,'Analysis - 1v1'!$A77) -> 0 | AA77: =COUNTIFS('1v1'!$E$2:$E$45080,LOWER('Analysis - 1v1'!AA$72),'1v1'!$F$2:$F$45080,'Analysis - 1v1'!$Z$71,'1v1'!$Q$2:$Q$45080,'Analysis - 1v1'!$A77) -> 0 | AB77: =COUNTIFS('1v1'!$E$2:$E$45080,LOWER('Analysis - 1v1'!AB$72),'1v1'!$F$2:$F$45080,'Analysis - 1v1'!$Z$71,'1v1'!$Q$2:$Q$45080,'Analysis - 1v1'!$A77) -> 0 | AC77: =COUNTIFS('1v1'!$E$2:$E$45080,LOWER('Analysis - 1v1'!AC$72),'1v1'!$F$2:$F$45080,'Analysis - 1v1'!$Z$71,'1v1'!$Q$2:$Q$45080,'Analysis - 1v1'!$A77) -> 0 | AD77: 863 | AE77: 942 | AF77: 1078 | AG77: 302 | AH77: 3185
A78: 6 | B78: =COUNTIFS('1v1'!$E$2:$E$45080,LOWER('Analysis - 1v1'!B$72),'1v1'!$F$2:$F$45080,'Analysis - 1v1'!$B$71,'1v1'!$Q$2:$Q$45080,'Analysis - 1v1'!$A78) -> 42 | C78: =COUNTIFS('1v1'!$E$2:$E$45080,LOWER('Analysis - 1v1'!C$72),'1v1'!$F$2:$F$45080,'Analysis - 1v1'!$B$71,'1v1'!$Q$2:$Q$45080,'Analysis - 1v1'!$A78) -> 83 | D78: =COUNTIFS('1v1'!$E$2:$E$45080,LOWER('Analysis - 1v1'!D$72),'1v1'!$F$2:$F$45080,'Analysis - 1v1'!$B$71,'1v1'!$Q$2:$Q$45080,'Analysis - 1v1'!$A78) -> 67 | E78: =COUNTIFS('1v1'!$E$2:$E$45080,LOWER('Analysis - 1v1'!E$72),'1v1'!$F$2:$F$45080,'Analysis - 1v1'!$B$71,'1v1'!$Q$2:$Q$45080,'Analysis - 1v1'!$A78) -> 19 | F78: =COUNTIFS('1v1'!$E$2:$E$45080,LOWER('Analysis - 1v1'!F$72),'1v1'!$F$2:$F$45080,'Analysis - 1v1'!$F$71,'1v1'!$Q$2:$Q$45080,'Analysis - 1v1'!$A78) -> 232 | G78: =COUNTIFS('1v1'!$E$2:$E$45080,LOWER('Analysis - 1v1'!G$72),'1v1'!$F$2:$F$45080,'Analysis - 1v1'!$F$71,'1v1'!$Q$2:$Q$45080,'Analysis - 1v1'!$A78) -> 317 | H78: =COUNTIFS('1v1'!$E$2:$E$45080,LOWER('Analysis - 1v1'!H$72),'1v1'!$F$2:$F$45080,'Analysis - 1v1'!$F$71,'1v1'!$Q$2:$Q$45080,'Analysis - 1v1'!$A78) -> 380 | I78: =COUNTIFS('1v1'!$E$2:$E$45080,LOWER('Analysis - 1v1'!I$72),'1v1'!$F$2:$F$45080,'Analysis - 1v1'!$F$71,'1v1'!$Q$2:$Q$45080,'Analysis - 1v1'!$A78) -> 95 | J78: =COUNTIFS('1v1'!$E$2:$E$45080,LOWER('Analysis - 1v1'!J$72),'1v1'!$F$2:$F$45080,'Analysis - 1v1'!$J$71,'1v1'!$Q$2:$Q$45080,'Analysis - 1v1'!$A78) -> 548 | K78: =COUNTIFS('1v1'!$E$2:$E$45080,LOWER('Analysis - 1v1'!K$72),'1v1'!$F$2:$F$45080,'Analysis - 1v1'!$J$71,'1v1'!$Q$2:$Q$45080,'Analysis - 1v1'!$A78) -> 582 | L78: =COUNTIFS('1v1'!$E$2:$E$45080,LOWER('Analysis - 1v1'!L$72),'1v1'!$F$2:$F$45080,'Analysis - 1v1'!$J$71,'1v1'!$Q$2:$Q$45080,'Analysis - 1v1'!$A78) -> 622 | M78: =COUNTIFS('1v1'!$E$2:$E$45080,LOWER('Analysis - 1v1'!M$72),'1v1'!$F$2:$F$45080,'Analysis - 1v1'!$J$71,'1v1'!$Q$2:$Q$45080,'Analysis - 1v1'!$A78) -> 233 | N78: =COUNTIFS('1v1'!$E$2:$E$45080,LOWER('Analysis - 1v1'!N$72),'1v1'!$F$2:$F$45080,'Analysis - 1v1'!$N$71,'1v1'!$Q$2:$Q$45080,'Analysis - 1v1'!$A78) -> 197 | O78: =COUNTIFS('1v1'!$E$2:$E$45080,LOWER('Analysis - 1v1'!O$72),'1v1'!$F$2:$F$45080,'Analysis - 1v1'!$N$71,'1v1'!$Q$2:$Q$45080,'Analysis - 1v1'!$A78) -> 194 | P78: =COUNTIFS('1v1'!$E$2:$E$45080,LOWER('Analysis - 1v1'!P$72),'1v1'!$F$2:$F$45080,'Analysis - 1v1'!$N$71,'1v1'!$Q$2:$Q$45080,'Analysis - 1v1'!$A78) -> 185 | Q78: =COUNTIFS('1v1'!$E$2:$E$45080,LOWER('Analysis - 1v1'!Q$72),'1v1'!$F$2:$F$45080,'Analysis - 1v1'!$N$71,'1v1'!$Q$2:$Q$45080,'Analysis - 1v1'!$A78) -> 48 | R78: =COUNTIFS('1v1'!$E$2:$E$45080,LOWER('Analysis - 1v1'!R$72),'1v1'!$F$2:$F$45080,'Analysis - 1v1'!$R$71,'1v1'!$Q$2:$Q$45080,'Analysis - 1v1'!$A78) -> 112 | S78: =COUNTIFS('1v1'!$E$2:$E$45080,LOWER('Analysis - 1v1'!S$72),'1v1'!$F$2:$F$45080,'Analysis - 1v1'!$R$71,'1v1'!$Q$2:$Q$45080,'Analysis - 1v1'!$A78) -> 129 | T78: =COUNTIFS('1v1'!$E$2:$E$45080,LOWER('Analysis - 1v1'!T$72),'1v1'!$F$2:$F$45080,'Analysis - 1v1'!$R$71,'1v1'!$Q$2:$Q$45080,'Analysis - 1v1'!$A78) -> 116 | U78: =COUNTIFS('1v1'!$E$2:$E$45080,LOWER('Analysis - 1v1'!U$72),'1v1'!$F$2:$F$45080,'Analysis - 1v1'!$R$71,'1v1'!$Q$2:$Q$45080,'Analysis - 1v1'!$A78) -> 22 | V78: =COUNTIFS('1v1'!$E$2:$E$45080,LOWER('Analysis - 1v1'!V$72),'1v1'!$F$2:$F$45080,'Analysis - 1v1'!$V$71,'1v1'!$Q$2:$Q$45080,'Analysis - 1v1'!$A78) -> 29 | W78: =COUNTIFS('1v1'!$E$2:$E$45080,LOWER('Analysis - 1v1'!W$72),'1v1'!$F$2:$F$45080,'Analysis - 1v1'!$V$71,'1v1'!$Q$2:$Q$45080,'Analysis - 1v1'!$A78) -> 32 | X78: =COUNTIFS('1v1'!$E$2:$E$45080,LOWER('Analysis - 1v1'!X$72),'1v1'!$F$2:$F$45080,'Analysis - 1v1'!$V$71,'1v1'!$Q$2:$Q$45080,'Analysis - 1v1'!$A78) -> 39 | Y78: =COUNTIFS('1v1'!$E$2:$E$45080,LOWER('Analysis - 1v1'!Y$72),'1v1'!$F$2:$F$45080,'Analysis - 1v1'!$V$71,'1v1'!$Q$2:$Q$45080,'Analysis - 1v1'!$A78) -> 6 | Z78: =COUNTIFS('1v1'!$E$2:$E$45080,LOWER('Analysis - 1v1'!Z$72),'1v1'!$F$2:$F$45080,'Analysis - 1v1'!$Z$71,'1v1'!$Q$2:$Q$45080,'Analysis - 1v1'!$A78) -> 0 | AA78: =COUNTIFS('1v1'!$E$2:$E$45080,LOWER('Analysis - 1v1'!AA$72),'1v1'!$F$2:$F$45080,'Analysis - 1v1'!$Z$71,'1v1'!$Q$2:$Q$45080,'Analysis - 1v1'!$A78) -> 0 | AB78: =COUNTIFS('1v1'!$E$2:$E$45080,LOWER('Analysis - 1v1'!AB$72),'1v1'!$F$2:$F$45080,'Analysis - 1v1'!$Z$71,'1v1'!$Q$2:$Q$45080,'Analysis - 1v1'!$A78) -> 0 | AC78: =COUNTIFS('1v1'!$E$2:$E$45080,LOWER('Analysis - 1v1'!AC$72),'1v1'!$F$2:$F$45080,'Analysis - 1v1'!$Z$71,'1v1'!$Q$2:$Q$45080,'Analysis - 1v1'!$A78) -> 0 | AD78: 1160 | AE78: 1337 | AF78: 1409 | AG78: 423 | AH78: 4329
A79: 7 | B79: =COUNTIFS('1v1'!$E$2:$E$45080,LOWER('Analysis - 1v1'!B$72),'1v1'!$F$2:$F$45080,'Analysis - 1v1'!$B$71,'1v1'!$Q$2:$Q$45080,'Analysis - 1v1'!$A79) -> 104 | C79: =COUNTIFS('1v1'!$E$2:$E$45080,LOWER('Analysis - 1v1'!C$72),'1v1'!$F$2:$F$45080,'Analysis - 1v1'!$B$71,'1v1'!$Q$2:$Q$45080,'Analysis - 1v1'!$A79) -> 168 | D79: =COUNTIFS('1v1'!$E$2:$E$45080,LOWER('Analysis - 1v1'!D$72),'1v1'!$F$2:$F$45080,'Analysis - 1v1'!$B$71,'1v1'!$Q$2:$Q$45080,'Analysis - 1v1'!$A79) -> 172 | E79: =COUNTIFS('1v1'!$E$2:$E$45080,LOWER('Analysis - 1v1'!E$72),'1v1'!$F$2:$F$45080,'Analysis - 1v1'!$B$71,'1v1'!$Q$2:$Q$45080,'Analysis - 1v1'!$A79) -> 34 | F79: =COUNTIFS('1v1'!$E$2:$E$45080,LOWER('Analysis - 1v1'!F$72),'1v1'!$F$2:$F$45080,'Analysis - 1v1'!$F$71,'1v1'!$Q$2:$Q$45080,'Analysis - 1v1'!$A79) -> 678 | G79: =COUNTIFS('1v1'!$E$2:$E$45080,LOWER('Analysis - 1v1'!G$72),'1v1'!$F$2:$F$45080,'Analysis - 1v1'!$F$71,'1v1'!$Q$2:$Q$45080,'Analysis - 1v1'!$A79) -> 940 | H79: =COUNTIFS('1v1'!$E$2:$E$45080,LOWER('Analysis - 1v1'!H$72),'1v1'!$F$2:$F$45080,'Analysis - 1v1'!$F$71,'1v1'!$Q$2:$Q$45080,'Analysis - 1v1'!$A79) -> 1004 | I79: =COUNTIFS('1v1'!$E$2:$E$45080,LOWER('Analysis - 1v1'!I$72),'1v1'!$F$2:$F$45080,'Analysis - 1v1'!$F$71,'1v1'!$Q$2:$Q$45080,'Analysis - 1v1'!$A79) -> 341 | J79: =COUNTIFS('1v1'!$E$2:$E$45080,LOWER('Analysis - 1v1'!J$72),'1v1'!$F$2:$F$45080,'Analysis - 1v1'!$J$71,'1v1'!$Q$2:$Q$45080,'Analysis - 1v1'!$A79) -> 835 | K79: =COUNTIFS('1v1'!$E$2:$E$45080,LOWER('Analysis - 1v1'!K$72),'1v1'!$F$2:$F$45080,'Analysis - 1v1'!$J$71,'1v1'!$Q$2:$Q$45080,'Analysis - 1v1'!$A79) -> 880 | L79: =COUNTIFS('1v1'!$E$2:$E$45080,LOWER('Analysis - 1v1'!L$72),'1v1'!$F$2:$F$45080,'Analysis - 1v1'!$J$71,'1v1'!$Q$2:$Q$45080,'Analysis - 1v1'!$A79) -> 890 | M79: =COUNTIFS('1v1'!$E$2:$E$45080,LOWER('Analysis - 1v1'!M$72),'1v1'!$F$2:$F$45080,'Analysis - 1v1'!$J$71,'1v1'!$Q$2:$Q$45080,'Analysis - 1v1'!$A79) -> 353 | N79: =COUNTIFS('1v1'!$E$2:$E$45080,LOWER('Analysis - 1v1'!N$72),'1v1'!$F$2:$F$45080,'Analysis - 1v1'!$N$71,'1v1'!$Q$2:$Q$45080,'Analysis - 1v1'!$A79) -> 249 | O79: =COUNTIFS('1v1'!$E$2:$E$45080,LOWER('Analysis - 1v1'!O$72),'1v1'!$F$2:$F$45080,'Analysis - 1v1'!$N$71,'1v1'!$Q$2:$Q$45080,'Analysis - 1v1'!$A79) -> 258 | P79: =COUNTIFS('1v1'!$E$2:$E$45080,LOWER('Analysis - 1v1'!P$72),'1v1'!$F$2:$F$45080,'Analysis - 1v1'!$N$71,'1v1'!$Q$2:$Q$45080,'Analysis - 1v1'!$A79) -> 210 | Q79: =COUNTIFS('1v1'!$E$2:$E$45080,LOWER('Analysis - 1v1'!Q$72),'1v1'!$F$2:$F$45080,'Analysis - 1v1'!$N$71,'1v1'!$Q$2:$Q$45080,'Analysis - 1v1'!$A79) -> 67 | R79: =COUNTIFS('1v1'!$E$2:$E$45080,LOWER('Analysis - 1v1'!R$72),'1v1'!$F$2:$F$45080,'Analysis - 1v1'!$R$71,'1v1'!$Q$2:$Q$45080,'Analysis - 1v1'!$A79) -> 140 | S79: =COUNTIFS('1v1'!$E$2:$E$45080,LOWER('Analysis - 1v1'!S$72),'1v1'!$F$2:$F$45080,'Analysis - 1v1'!$R$71,'1v1'!$Q$2:$Q$45080,'Analysis - 1v1'!$A79) -> 143 | T79: =COUNTIFS('1v1'!$E$2:$E$45080,LOWER('Analysis - 1v1'!T$72),'1v1'!$F$2:$F$45080,'Analysis - 1v1'!$R$71,'1v1'!$Q$2:$Q$45080,'Analysis - 1v1'!$A79) -> 150 | U79: =COUNTIFS('1v1'!$E$2:$E$45080,LOWER('Analysis - 1v1'!U$72),'1v1'!$F$2:$F$45080,'Analysis - 1v1'!$R$71,'1v1'!$Q$2:$Q$45080,'Analysis - 1v1'!$A79) -> 26 | V79: =COUNTIFS('1v1'!$E$2:$E$45080,LOWER('Analysis - 1v1'!V$72),'1v1'!$F$2:$F$45080,'Analysis - 1v1'!$V$71,'1v1'!$Q$2:$Q$45080,'Analysis - 1v1'!$A79) -> 34 | W79: =COUNTIFS('1v1'!$E$2:$E$45080,LOWER('Analysis - 1v1'!W$72),'1v1'!$F$2:$F$45080,'Analysis - 1v1'!$V$71,'1v1'!$Q$2:$Q$45080,'Analysis - 1v1'!$A79) -> 46 | X79: =COUNTIFS('1v1'!$E$2:$E$45080,LOWER('Analysis - 1v1'!X$72),'1v1'!$F$2:$F$45080,'Analysis - 1v1'!$V$71,'1v1'!$Q$2:$Q$45080,'Analysis - 1v1'!$A79) -> 39 | Y79: =COUNTIFS('1v1'!$E$2:$E$45080,LOWER('Analysis - 1v1'!Y$72),'1v1'!$F$2:$F$45080,'Analysis - 1v1'!$V$71,'1v1'!$Q$2:$Q$45080,'Analysis - 1v1'!$A79) -> 3 | Z79: =COUNTIFS('1v1'!$E$2:$E$45080,LOWER('Analysis - 1v1'!Z$72),'1v1'!$F$2:$F$45080,'Analysis - 1v1'!$Z$71,'1v1'!$Q$2:$Q$45080,'Analysis - 1v1'!$A79) -> 0 | AA79: =COUNTIFS('1v1'!$E$2:$E$45080,LOWER('Analysis - 1v1'!AA$72),'1v1'!$F$2:$F$45080,'Analysis - 1v1'!$Z$71,'1v1'!$Q$2:$Q$45080,'Analysis - 1v1'!$A79) -> 0 | AB79: =COUNTIFS('1v1'!$E$2:$E$45080,LOWER('Analysis - 1v1'!AB$72),'1v1'!$F$2:$F$45080,'Analysis - 1v1'!$Z$71,'1v1'!$Q$2:$Q$45080,'Analysis - 1v1'!$A79) -> 0 | AC79: =COUNTIFS('1v1'!$E$2:$E$45080,LOWER('Analysis - 1v1'!AC$72),'1v1'!$F$2:$F$45080,'Analysis - 1v1'!$Z$71,'1v1'!$Q$2:$Q$45080,'Analysis - 1v1'!$A79) -> 0 | AD79: 2040 | AE79: 2435 | AF79: 2465 | AG79: 824 | AH79: 7764
A80: 8 | B80: =COUNTIFS('1v1'!$E$2:$E$45080,LOWER('Analysis - 1v1'!B$72),'1v1'!$F$2:$F$45080,'Analysis - 1v1'!$B$71,'1v1'!$Q$2:$Q$45080,'Analysis - 1v1'!$A80) -> 455 | C80: =COUNTIFS('1v1'!$E$2:$E$45080,LOWER('Analysis - 1v1'!C$72),'1v1'!$F$2:$F$45080,'Analysis - 1v1'!$B$71,'1v1'!$Q$2:$Q$45080,'Analysis - 1v1'!$A80) -> 691 | D80: =COUNTIFS('1v1'!$E$2:$E$45080,LOWER('Analysis - 1v1'!D$72),'1v1'!$F$2:$F$45080,'Analysis - 1v1'!$B$71,'1v1'!$Q$2:$Q$45080,'Analysis - 1v1'!$A80) -> 628 | E80: =COUNTIFS('1v1'!$E$2:$E$45080,LOWER('Analysis - 1v1'!E$72),'1v1'!$F$2:$F$45080,'Analysis - 1v1'!$B$71,'1v1'!$Q$2:$Q$45080,'Analysis - 1v1'!$A80) -> 203 | F80: =COUNTIFS('1v1'!$E$2:$E$45080,LOWER('Analysis - 1v1'!F$72),'1v1'!$F$2:$F$45080,'Analysis - 1v1'!$F$71,'1v1'!$Q$2:$Q$45080,'Analysis - 1v1'!$A80) -> 2198 | G80: =COUNTIFS('1v1'!$E$2:$E$45080,LOWER('Analysis - 1v1'!G$72),'1v1'!$F$2:$F$45080,'Analysis - 1v1'!$F$71,'1v1'!$Q$2:$Q$45080,'Analysis - 1v1'!$A80) -> 2713 | H80: =COUNTIFS('1v1'!$E$2:$E$45080,LOWER('Analysis - 1v1'!H$72),'1v1'!$F$2:$F$45080,'Analysis - 1v1'!$F$71,'1v1'!$Q$2:$Q$45080,'Analysis - 1v1'!$A80) -> 2878 | I80: =COUNTIFS('1v1'!$E$2:$E$45080,LOWER('Analysis - 1v1'!I$72),'1v1'!$F$2:$F$45080,'Analysis - 1v1'!$F$71,'1v1'!$Q$2:$Q$45080,'Analysis - 1v1'!$A80) -> 985 | J80: =COUNTIFS('1v1'!$E$2:$E$45080,LOWER('Analysis - 1v1'!J$72),'1v1'!$F$2:$F$45080,'Analysis - 1v1'!$J$71,'1v1'!$Q$2:$Q$45080,'Analysis - 1v1'!$A80) -> 989 | K80: =COUNTIFS('1v1'!$E$2:$E$45080,LOWER('Analysis - 1v1'!K$72),'1v1'!$F$2:$F$45080,'Analysis - 1v1'!$J$71,'1v1'!$Q$2:$Q$45080,'Analysis - 1v1'!$A80) -> 1053 | L80: =COUNTIFS('1v1'!$E$2:$E$45080,LOWER('Analysis - 1v1'!L$72),'1v1'!$F$2:$F$45080,'Analysis - 1v1'!$J$71,'1v1'!$Q$2:$Q$45080,'Analysis - 1v1'!$A80) -> 1065 | M80: =COUNTIFS('1v1'!$E$2:$E$45080,LOWER('Analysis - 1v1'!M$72),'1v1'!$F$2:$F$45080,'Analysis - 1v1'!$J$71,'1v1'!$Q$2:$Q$45080,'Analysis - 1v1'!$A80) -> 372 | N80: =COUNTIFS('1v1'!$E$2:$E$45080,LOWER('Analysis - 1v1'!N$72),'1v1'!$F$2:$F$45080,'Analysis - 1v1'!$N$71,'1v1'!$Q$2:$Q$45080,'Analysis - 1v1'!$A80) -> 360 | O80: =COUNTIFS('1v1'!$E$2:$E$45080,LOWER('Analysis - 1v1'!O$72),'1v1'!$F$2:$F$45080,'Analysis - 1v1'!$N$71,'1v1'!$Q$2:$Q$45080,'Analysis - 1v1'!$A80) -> 398 | P80: =COUNTIFS('1v1'!$E$2:$E$45080,LOWER('Analysis - 1v1'!P$72),'1v1'!$F$2:$F$45080,'Analysis - 1v1'!$N$71,'1v1'!$Q$2:$Q$45080,'Analysis - 1v1'!$A80) -> 369 | Q80: =COUNTIFS('1v1'!$E$2:$E$45080,LOWER('Analysis - 1v1'!Q$72),'1v1'!$F$2:$F$45080,'Analysis - 1v1'!$N$71,'1v1'!$Q$2:$Q$45080,'Analysis - 1v1'!$A80) -> 126 | R80: =COUNTIFS('1v1'!$E$2:$E$45080,LOWER('Analysis - 1v1'!R$72),'1v1'!$F$2:$F$45080,'Analysis - 1v1'!$R$71,'1v1'!$Q$2:$Q$45080,'Analysis - 1v1'!$A80) -> 173 | S80: =COUNTIFS('1v1'!$E$2:$E$45080,LOWER('Analysis - 1v1'!S$72),'1v1'!$F$2:$F$45080,'Analysis - 1v1'!$R$71,'1v1'!$Q$2:$Q$45080,'Analysis - 1v1'!$A80) -> 158 | T80: =COUNTIFS('1v1'!$E$2:$E$45080,LOWER('Analysis - 1v1'!T$72),'1v1'!$F$2:$F$45080,'Analysis - 1v1'!$R$71,'1v1'!$Q$2:$Q$45080,'Analysis - 1v1'!$A80) -> 142 | U80: =COUNTIFS('1v1'!$E$2:$E$45080,LOWER('Analysis - 1v1'!U$72),'1v1'!$F$2:$F$45080,'Analysis - 1v1'!$R$71,'1v1'!$Q$2:$Q$45080,'Analysis - 1v1'!$A80) -> 38 | V80: =COUNTIFS('1v1'!$E$2:$E$45080,LOWER('Analysis - 1v1'!V$72),'1v1'!$F$2:$F$45080,'Analysis - 1v1'!$V$71,'1v1'!$Q$2:$Q$45080,'Analysis - 1v1'!$A80) -> 38 | W80: =COUNTIFS('1v1'!$E$2:$E$45080,LOWER('Analysis - 1v1'!W$72),'1v1'!$F$2:$F$45080,'Analysis - 1v1'!$V$71,'1v1'!$Q$2:$Q$45080,'Analysis - 1v1'!$A80) -> 41 | X80: =COUNTIFS('1v1'!$E$2:$E$45080,LOWER('Analysis - 1v1'!X$72),'1v1'!$F$2:$F$45080,'Analysis - 1v1'!$V$71,'1v1'!$Q$2:$Q$45080,'Analysis - 1v1'!$A80) -> 42 | Y80: =COUNTIFS('1v1'!$E$2:$E$45080,LOWER('Analysis - 1v1'!Y$72),'1v1'!$F$2:$F$45080,'Analysis - 1v1'!$V$71,'1v1'!$Q$2:$Q$45080,'Analysis - 1v1'!$A80) -> 10 | Z80: =COUNTIFS('1v1'!$E$2:$E$45080,LOWER('Analysis - 1v1'!Z$72),'1v1'!$F$2:$F$45080,'Analysis - 1v1'!$Z$71,'1v1'!$Q$2:$Q$45080,'Analysis - 1v1'!$A80) -> 0 | AA80: =COUNTIFS('1v1'!$E$2:$E$45080,LOWER('Analysis - 1v1'!AA$72),'1v1'!$F$2:$F$45080,'Analysis - 1v1'!$Z$71,'1v1'!$Q$2:$Q$45080,'Analysis - 1v1'!$A80) -> 0 | AB80: =COUNTIFS('1v1'!$E$2:$E$45080,LOWER('Analysis - 1v1'!AB$72),'1v1'!$F$2:$F$45080,'Analysis - 1v1'!$Z$71,'1v1'!$Q$2:$Q$45080,'Analysis - 1v1'!$A80) -> 0 | AC80: =COUNTIFS('1v1'!$E$2:$E$45080,LOWER('Analysis - 1v1'!AC$72),'1v1'!$F$2:$F$45080,'Analysis - 1v1'!$Z$71,'1v1'!$Q$2:$Q$45080,'Analysis - 1v1'!$A80) -> 0 | AD80: =B80+F80+J80+N80+R80+V80+Z80 -> 4213 | AE80: =C80+G80+K80+O80+S80+W80+AA80 -> 5054 | AF80: =D80+H80+L80+P80+T80+X80+AB80 -> 5124 | AG80: =E80+I80+M80+Q80+U80+Y80+AC80 -> 1734
A81: 9
A82: 10
A83: 11
A84: =A83+1 -> 12
A85: =A84+1 -> 13
A86: 14
A87: 15
A88: 16
A89: 17
A90: 18
A91: 19
A92: Totals | B92: =SUM(B73:B83) -> 726 | C92: =SUM(C73:C83) -> 1170 | D92: 1095 | E92: 315 | F92: 3479 | G92: 4567 | H92: 4942 | I92: 1630 | J92: 4089 | K92: 4445 | L92: 4856 | M92: 1735 | N92: 1961 | O92: 2064 | P92: 1970 | Q92: 596 | R92: 1358 | S92: 1471 | T92: 1306 | U92: 283 | V92: 241 | W92: 274 | X92: 274 | Y92: 34 | Z92: 59 | AA92: 73 | AB92: 60 | AC92: 6 | AD92: =SUM(AD73:AD83) -> 11913 | AE92: 14064 | AF92: 14503 | AG92: 4599
A96: Percentages Race Stats
B97: Bronze | F97: Silver | J97: Gold | N97: Platinum | R97: Diamond | V97: Master | Z97: Grandmaster | AD97: Totals
A98: Weeks Remaining | B98: Z | C98: T | D98: P | E98: R | F98: Z | G98: T | H98: P | I98: R | J98: Z | K98: T | L98: P | M98: R | N98: Z | O98: T | P98: P | Q98: R | R98: Z | S98: T | T98: P | U98: R | V98: Z | W98: T | X98: P | Y98: R | Z98: Z | AA98: T | AB98: P | AC98: R | AD98: Z | AE98: T | AF98: P | AG98: R
A99: 1 | B99: =B73/$B25 -> 0.1666666667 | C99: 0.35 | D99: 0.3833333333 | E99: 0.1 | F99: =F73/$C25 -> 0.1832061069 | G99: 0.3740458015 | H99: 0.3110687023 | I99: 0.1316793893 | J99: =J73/$D25 -> 0.2385677308 | K99: 0.3024158758 | L99: 0.3421052632 | M99: 0.1169111303 | N99: =N73/$E25 -> 0.2877739331 | O99: 0.3050749712 | P99: 0.3148788927 | Q99: 0.092272203 | R99: =R73/$F25 -> 0.3017408124 | S99: 0.3352675693 | T99: 0.303030303 | U99: 0.05996131528 | V99: =V73/$G25 -> 0.3017751479 | W99: 0.349112426 | X99: 0.3136094675 | Y99: 0.03550295858 | Z99: =Z73/$H25 -> 0.297979798 | AA99: 0.3686868687 | AB99: =AB73/$H25 -> 0.303030303 | AC99: =AC73/$H25 -> 0.0303030303 | AD99: =AD73/$I25 -> 0.2622512623 | AE99: 0.3210573211 | AF99: 0.3232848233 | AG99: 0.09340659341
A100: 2 | B100: 0.1758241758 | C100: 0.4505494505 | D100: 0.3076923077 | E100: 0.06593406593 | F100: 0.1814671815 | G100: 0.305019305 | H100: 0.3938223938 | I100: 0.1196911197 | J100: 0.2696365768 | K100: 0.2942555686 | L100: 0.3235638921 | M100: 0.1125439625 | N100: 0.2787769784 | O100: 0.309352518 | P100: 0.3309352518 | Q100: 0.0809352518 | R100: 0.2791262136 | S100: 0.3689320388 | T100: 0.2791262136 | U100: 0.07281553398 | V100: 0.3275862069 | W100: 0.3275862069 | X100: 0.3275862069 | Y100: 0.01724137931 | AB100: =AH74/$H26 ->  | AD100: 0.2611036339 | AE100: 0.3203230148 | AF100: 0.3248093315 | AG100: 0.09376401974
A101: 3 | B101: 0.164556962 | C101: 0.4303797468 | D101: 0.3164556962 | E101: 0.08860759494 | F101: 0.2142857143 | G101: 0.2857142857 | H101: 0.3968253968 | I101: 0.1031746032 | J101: 0.2389189189 | K101: 0.292972973 | L101: 0.332972973 | M101: 0.1351351351 | N101: 0.3130929791 | O101: 0.3130929791 | P101: 0.2789373814 | Q101: 0.09487666034 | R101: 0.350140056 | S101: 0.3193277311 | T101: 0.268907563 | U101: 0.06162464986 | V101: 0.3230769231 | W101: 0.3230769231 | X101: 0.3384615385 | Y101: 0.01538461538 | AD101: 0.2716553288 | AE101: 0.3070294785 | AF101: 0.316553288 | AG101: 0.1047619048
A102: 4 | B102: 0.2577319588 | C102: 0.2680412371 | D102: 0.4020618557 | E102: 0.07216494845 | F102: 0.1964285714 | G102: 0.2946428571 | H102: 0.4077380952 | I102: 0.1011904762 | J102: 0.2714932127 | K102: 0.2769230769 | L102: 0.3366515837 | M102: 0.1149321267 | N102: 0.3115671642 | O102: 0.302238806 | P102: 0.2873134328 | Q102: 0.09888059701 | R102: 0.3121546961 | S102: 0.3314917127 | T102: 0.2900552486 | U102: 0.06629834254 | V102: 0.2638888889 | W102: 0.4166666667 | X102: 0.2916666667 | Y102: 0.02777777778 | AD102: 0.2751196172 | AE102: 0.2962519936 | AF102: 0.3301435407 | AG102: 0.09848484848
A103: 5 | B103: 0.2330827068 | C103: 0.3233082707 | D103: 0.3308270677 | E103: 0.1127819549 | F103: 0.2222222222 | G103: 0.3106995885 | H103: 0.366255144 | I103: 0.1008230453 | J103: 0.2749667111 | K103: 0.2669773635 | L103: 0.3528628495 | M103: 0.1051930759 | N103: 0.2928942808 | O103: 0.3223570191 | P103: 0.3032928943 | Q103: 0.08145580589 | R103: 0.2894056848 | S103: 0.3488372093 | T103: 0.2894056848 | U103: 0.07235142119 | V103: 0.3 | W103: 0.26 | X103: 0.39 | Y103: 0.05 | AD103: 0.2709576138 | AE103: 0.2957613815 | AF103: 0.3384615385 | AG103: 0.09481946625
A104: 6 | B104: 0.1990521327 | C104: 0.3933649289 | D104: 0.317535545 | E104: 0.09004739336 | F104: 0.2265625 | G104: 0.3095703125 | H104: 0.37109375 | I104: 0.0927734375 | J104: 0.276070529 | K104: 0.2931989924 | L104: 0.3133501259 | M104: 0.1173803526 | N104: 0.3157051282 | O104: 0.3108974359 | P104: 0.296474359 | Q104: 0.07692307692 | R104: 0.2955145119 | S104: 0.3403693931 | T104: 0.3060686016 | U104: 0.0580474934 | V104: 0.2735849057 | W104: 0.3018867925 | X104: 0.3679245283 | Y104: 0.05660377358 | AD104: 0.267960268 | AE104: 0.3088473088 | AF104: 0.3254793255 | AG104: 0.09771309771
A105: 7 | B105: 0.2175732218 | C105: 0.3514644351 | D105: 0.359832636 | E105: 0.07112970711 | F105: 0.2288221397 | G105: 0.3172460344 | H105: 0.3388457644 | I105: 0.1150860614 | J105: 0.2822853279 | K105: 0.2974983097 | L105: 0.3008789723 | M105: 0.1193373901 | N105: 0.3176020408 | O105: 0.3290816327 | P105: 0.2678571429 | Q105: 0.08545918367 | R105: 0.3050108932 | S105: 0.311546841 | T105: 0.3267973856 | U105: 0.05664488017 | V105: 0.2786885246 | W105: 0.3770491803 | X105: 0.3196721311 | Y105: 0.02459016393 | AD105: 0.2627511592 | AE105: 0.3136269964 | AF105: 0.317490984 | AG105: 0.1061308604
A106: 8 | B106: 0.2301466869 | C106: 0.349519474 | D106: 0.3176530096 | E106: 0.1026808295 | F106: 0.250512879 | G106: 0.3092090267 | H106: 0.3280145886 | I106: 0.1122635058 | J106: 0.2842770911 | K106: 0.3026731819 | L106: 0.306122449 | M106: 0.106927278 | N106: 0.2873104549 | O106: 0.3176376696 | P106: 0.2944932163 | Q106: 0.1005586592 | R106: 0.3385518591 | S106: 0.3091976517 | T106: 0.2778864971 | U106: 0.07436399217 | V106: 0.2900763359 | W106: 0.3129770992 | X106: 0.320610687 | Y106: 0.07633587786 | AD106: 0.2612713178 | AE106: 0.3134263566 | AF106: 0.3177674419 | AG106: 0.1075348837
A107: 9
A108: 10
A109: 11
A110: =A109+1 -> 12
A111: =A110+1 -> 13
A112: 14
A113: 15
A114: 16
A115: 17
A116: 18
A117: 19
A122: Most Recent Games
B123: Bronze | D123: Silver | F123: Gold | H123: Platinum | J123: Diamond | L123: Master | N123: Grandmaster | P123: Totals
A124: Weeks Remaining | B124: Last Week | C124: Last Month | D124: Last Week | E124: Last Month | F124: Last Week | G124: Last Month | H124: Last Week | I124: Last Month | J124: Last Week | K124: Last Month | L124: Last Week | M124: Last Month | N124: Last Week | O124: Last Month | P124: Last Week | Q124: Last Month
A125: 1 | B125: 240 | D125: 524 | F125: 2317 | G125: 1 | H125: 1734 | J125: 1551 | L125: 169 | N125: 198 | P125: =B125+D125+F125+H125+J125+L125+N125 -> 6733 | Q125: =C125+E125+G125+I125+K125+M125+O125 -> 1
A126: 2 | B126: 73 | C126: 18 | D126: 197 | E126: 62 | F126: 611 | G126: 242 | H126: 371 | I126: 185 | J126: 264 | K126: 148 | L126: 50 | M126: 8 | P126: =B126+D126+F126+H126+J126+L126+N126 -> 1566 | Q126: 663
A127: 3 | B127: 56 | C127: 23 | D127: 178 | E127: 74 | F127: 614 | G127: 311 | H127: 295 | I127: 232 | J127: 191 | K127: 166 | L127: 45 | M127: 20 | P127: 1379 | Q127: 826
A128: 4 | B128: 55 | C128: 42 | D128: 201 | E128: 135 | F128: 600 | G128: 505 | H128: 277 | I128: 259 | J128: 163 | K128: 199 | L128: 48 | M128: 24 | P128: 1344 | Q128: 1164
A129: 5 | B129: 68 | C129: 61 | D129: 279 | E129: 197 | F129: 803 | G129: 661 | H129: 241 | I129: 305 | J129: 168 | K129: 193 | L129: 36 | M129: 63 | P129: 1595 | Q129: 1480
A130: 6 | B130: 102 | C130: 86 | D130: 479 | E130: 475 | F130: 896 | G130: 862 | H130: 240 | I130: 268 | J130: 128 | K130: 153 | L130: 48 | M130: 48 | P130: 1893 | Q130: 1892
A131: 7 | B131: 190 | C131: 178 | D131: 1108 | E131: 1402 | F131: 977 | G131: 1353 | H131: 236 | I131: 315 | J131: 131 | K131: 171 | L131: 34 | M131: 45 | P131: 2676 | Q131: 3464
A132: 8 | B132: 413 | C132: 928 | D132: 1916 | E132: 4203 | F132: 773 | G132: 1504 | H132: 275 | I132: 486 | J132: 102 | K132: 171 | L132: 24 | M132: 53 | P132: 3503 | Q132: 7345
A133: 9 | P133: 0 | Q133: 0
A134: 10 | P134: 0 | Q134: 0
A135: 11 | P135: 0 | Q135: 0
A136: 12
A137: 13
A138: 14
A139: 15
A140: 16
A141: 17
A142: 18
A143: 19
A144: Totals | B144: =SUM(B125:B135) -> 1197 | C144: =SUM(C125:C135) -> 1336 | D144: =SUM(D125:D135) -> 4882 | E144: 6548 | F144: 7591 | G144: 5439 | H144: 3669 | I144: 2050 | J144: 2698 | K144: 1201 | L144: 454 | M144: 261 | N144: 198 | O144: 0 | P144: 20689 | Q144: 16835
A145: At least 1 game in the last month | B145: =SUM(B144:C144) -> 2533 | D145: =SUM(D144:E144) -> 11430 | F145: =SUM(F144:G144) -> 13030 | H145: =SUM(H144:I144) -> 5719 | J145: =SUM(J144:K144) -> 3899 | L145: =SUM(L144:M144) -> 715 | N145: =SUM(N144:O144) -> 198 | P145: =SUM(P144:Q144) -> 37524
A149: Percentages - Most Recent Games
B150: Bronze | D150: Silver | F150: Gold | H150: Platinum | J150: Diamond | L150: Master | N150: Grandmaster | P150: Totals
A151: Weeks Remaining | B151: Last Week | C151: Last Month | D151: Last Week | E151: Last Month | F151: Last Week | G151: Last Month | H151: Last Week | I151: Last Month | J151: Last Week | K151: Last Month | L151: Last Week | M151: Last Month | N151: Last Week | O151: Last Month | P151: Last Week | Q151: Last Month
A152: 1 | B152: =B125/$I25 -> 0.03564003564 | C152: 0 | D152: 0.07781407781 | E152: 0 | F152: 0.3440748441 | G152: 0.0001485001485 | H152: 0.2574992575 | I152: 0 | J152: 0.2303237303 | K152: 0 | L152: 0.0250965251 | M152: 0 | N152: 0.0294030294 | O152: 0 | P152: 0.9998514999 | Q152: 0.0001485001485
A153: 2 | B153: =B126/$I26 -> 0.03275011216 | C153: 0.008075370121 | D153: 0.08838043966 | E153: 0.02781516375 | F153: 0.2741139524 | G153: 0.108568865 | H153: 0.1664423508 | I153: 0.08299685958 | J153: 0.1184387618 | K153: 0.06639748766 | L153: 0.02243158367 | M153: 0.003589053387 | N153: 0 | O153: 0 | P153: 0.7025572005 | Q153: 0.2974427995
A154: 3 | B154: =B127/$I27 -> 0.0253968254 | C154: 0.010430839 | D154: 0.08072562358 | E154: 0.0335600907 | F154: 0.2784580499 | G154: 0.1410430839 | H154: 0.1337868481 | I154: 0.1052154195 | J154: 0.08662131519 | K154: 0.07528344671 | L154: 0.02040816327 | M154: 0.009070294785 | N154: 0 | O154: 0 | P154: 0.6253968254 | Q154: 0.3746031746
A155: 4 | B155: =B128/$I28 -> 0.02192982456 | C155: 0.01674641148 | D155: 0.08014354067 | E155: 0.0538277512 | F155: 0.2392344498 | G155: 0.2013556619 | H155: 0.110446571 | I155: 0.1032695375 | J155: 0.06499202552 | K155: 0.0793460925 | L155: 0.01913875598 | M155: 0.00956937799 | N155: 0 | O155: 0 | P155: 0.5358851675 | Q155: 0.4641148325
A156: 5 | B156: =B129/$I29 -> 0.02135007849 | C156: 0.0191522763 | D156: 0.08759811617 | E156: 0.06185243328 | F156: 0.2521193093 | G156: 0.2075353218 | H156: 0.07566718995 | I156: 0.09576138148 | J156: 0.05274725275 | K156: 0.06059654631 | L156: 0.01130298273 | M156: 0.01978021978 | N156: 0 | O156: 0 | P156: 0.5007849294 | Q156: 0.464678179
A157: 6 | B157: =B130/$I30 -> 0.02356202356 | C157: 0.01986601987 | D157: 0.1106491106 | E157: 0.1097251097 | F157: 0.206976207 | G157: 0.1991221991 | H157: 0.05544005544 | I157: 0.06190806191 | J157: 0.02956802957 | K157: 0.03534303534 | L157: 0.01108801109 | M157: 0.01108801109 | N157: 0 | O157: 0 | P157: 0.4372834373 | Q157: 0.4370524371
A158: 7 | B158: =B131/$I31 -> 0.02447192169 | C158: 0.02292632664 | D158: 0.1427099433 | E158: 0.1805770222 | F158: 0.1258371973 | G158: 0.1742658423 | H158: 0.03039670273 | I158: 0.04057187017 | J158: 0.01687274601 | K158: 0.02202472952 | L158: 0.004379185987 | M158: 0.005795981453 | N158: 0 | O158: 0 | P158: 0.3446676971 | Q158: 0.4461617723
A159: 8 | B159: =B132/$I32 -> 0.0256124031 | C159: 0.0575503876 | D159: 0.1188217054 | E159: 0.2606511628 | F159: 0.0479379845 | G159: 0.09327131783 | H159: 0.01705426357 | I159: 0.03013953488 | J159: 0.006325581395 | K159: 0.01060465116 | L159: 0.001488372093 | M159: 0.003286821705 | N159: 0 | O159: 0 | P159: 0.2172403101 | Q159: 0.455503876
A160: 9
A161: 10
A162: 11
A163: 12
A164: 13
A165: 14
A166: 15
A167: 16
A168: 17
A169: 18
A170: 19
A171: Totals | B171: =B144/$I44 -> 0.02655338406 | C171: 0.02963685974 | D171: 0.1082987644 | E171: 0.1452561059 | F171: 0.1683932652 | G171: 0.1206548504 | H171: 0.08139044788 | I171: 0.0454757204 | J171: 0.0598504847 | K171: 0.02664211717 | L171: 0.01007120832 | M171: 0.005789835622 | N171: 0.004392289092 | O171: 0 | P171: 0.4589498436 | Q171: 0.3734554893
A172: Percentage in the Last Month | B172: =SUM(B171:C171) -> 0.05619024379 | D172: =SUM(D171:E171) -> 0.2535548703 | F172: =SUM(F171:G171) -> 0.2890481155 | H172: =SUM(H171:I171) -> 0.1268661683 | J172: =SUM(J171:K171) -> 0.08649260188 | L172: =SUM(L171:M171) -> 0.01586104395 | N172: =SUM(N171:O171) -> 0.004392289092 | P172: =SUM(P171:Q171) -> 0.8324053329
A173: Percentage out of the specific league, in the last week | B173: =B144/B44 -> 0.3620689655 | D173: =D144/C44 -> 0.3339718156 | F173: =F144/D44 -> 0.5018842975 | H173: =H144/E44 -> 0.5566681839 | J173: =I144/F44 -> 0.4640108646 | L173: =L144/G44 -> 0.5516403402 | N173: =N144/H44 -> 1
A174: Percentage out of the specific league, in the last month | B174: =B145/B44 -> 0.7661826981 | D174: =D145/C44 -> 0.7819127104 | F174: =F145/D44 -> 0.8614876033 | H174: =H145/E44 -> 0.8676983766 | J174: =J145/F44 -> 0.8825260299 | L174: =L145/G44 -> 0.8687727825 | N174: =N145/H44 -> 1
A176: Inactive Player Analysis (Max bonus pool weeks remaining that have not played a game in the last month) | B176: Bronze | C176: Silver | D176: Gold | E176: Platinum | F176: Diamond | G176: Master | H176: Totals
A177: Total Players | B177: =AVERAGEIFS('1v1'!$S$2:$S$45080,'1v1'!$F$2:$F$45080,'Analysis - 1v1'!B176,'1v1'!$Q$2:$Q$45080,MAX('1v1'!$Q$2:$Q$45080)) -> 3.312594841 | C177: =AVERAGEIFS('1v1'!$S$2:$S$45080,'1v1'!$F$2:$F$45080,'Analysis - 1v1'!C176,'1v1'!$Q$2:$Q$45080,MAX('1v1'!$Q$2:$Q$45080)) -> 3.443811261 | D177: =AVERAGEIFS('1v1'!$S$2:$S$45080,'1v1'!$F$2:$F$45080,'Analysis - 1v1'!D176,'1v1'!$Q$2:$Q$45080,MAX('1v1'!$Q$2:$Q$45080)) -> 4.118137396 | E177: =AVERAGEIFS('1v1'!$S$2:$S$45080,'1v1'!$F$2:$F$45080,'Analysis - 1v1'!E176,'1v1'!$Q$2:$Q$45080,MAX('1v1'!$Q$2:$Q$45080)) -> 4.251396648 | F177: =AVERAGEIFS('1v1'!$S$2:$S$45080,'1v1'!$F$2:$F$45080,'Analysis - 1v1'!F176,'1v1'!$Q$2:$Q$45080,MAX('1v1'!$Q$2:$Q$45080)) -> 2.992172211 | G177: =AVERAGEIFS('1v1'!$S$2:$S$45080,'1v1'!$F$2:$F$45080,'Analysis - 1v1'!G176,'1v1'!$Q$2:$Q$45080,MAX('1v1'!$Q$2:$Q$45080)) -> 4.717557252 | H177: =AVERAGEIFS('1v1'!S2:S45080,'1v1'!Q2:Q45080,MAX('1v1'!Q2:Q45080)) -> 3.632

Sheet 1v1
A1: PlayerID, ServerID, SubServerID, PlayerName, Race, League, DivisionName, Wins, Losses, Score, BonusPool, JoinDate, LastGame, LastUpdate, TrueID (A+C), Duplicate Check (sort by TrueID - if O curr row = O prev row then mark as 1 and then sort by Duplicate Check and delete all 1's), Bonus Pool Weeks Remaining, Ordered ID (used to preserve ordering from nios.kr) | B1: ServerID | C1: SubServerID | D1: PlayerName | E1: Race | F1: League | G1: DivisionName | H1: Wins | I1: Losses | J1: Score | K1: BonusPool | L1: JoinDate | M1: LastGame | N1: LastUpdate | O1: TrueID (A+C) | P1: Duplicate Check (sort by TrueID - if O curr row = O prev row then mark as 1 and then sort by Duplicate Check and delete all 1's) | Q1: Bonus Pool Weeks Remaining | R1: Ordered ID (used to preserve ordering from nios.kr) | S1: Total Games Played
A2: 4667983 | B2: kr | C2: 1 | D2: BorA | E2: t | F2: Bronze | G2: 타림 엑스레이 조 | H2: 10 | I2: 13 | J2: 356 | K2: 521 | L2: 2014-08-17 | M2: 19 hours | N2: 2014-08-26T21:31:02 | O2: 4667983-1 | P2: 0 | Q2: 5 | R2: 1 | S2: =H2+I2 -> 23
A3: 966167 | B3: kr | C3: 2 | D3: 王詩凱 | E3: z | F3: Bronze | G3: 정찰기 줄리엣 조 | H3: 49 | I3: 21 | J3: 1029 | K3: 749 | L3: 2014-08-13 | M3: 2 hours | N3: 2014-08-27T01:19:02 | O3: 966167-2 | P3: 0 | Q3: 8 | R3: 2 | S3: 70
A4: 197877 | B4: kr | C4: 1 | D4: 호미베베 | E4: p | F4: Bronze | G4: 법무관 호크 조 | H4: 59 | I4: 58 | J4: 970 | K4: 2 | L4: 2014-07-07 | M4: 2 hours | N4: 2014-08-27T01:19:03 | O4: 197877-1 | P4: 0 | Q4: 1 | R4: 3 | S4: 117
A5: 4349502 | B5: kr | C5: 1 | D5: kingslayer | E5: t | F5: Bronze | G5: 듀갈 에타 조 | H5: 142 | I5: 150 | J5: 954 | K5: 18 | L5: 2014-07-07 | M5: 11 hours | N5: 2014-08-27T01:19:04 | O5: 4349502-1 | P5: 0 | Q5: 1 | R5: 4 | S5: 292
A6: 3716471 | B6: kr | C6: 1 | D6: 천사의날개 | E6: t | F6: Bronze | G6: 용기병 시에라 조 | H6: 161 | I6: 170 | J6: 953 | K6: 40 | L6: 2014-07-08 | M6: 23 hours | N6: 2014-08-27T01:19:05 | O6: 3716471-1 | P6: 0 | Q6: 1 | R6: 5 | S6: 331
A7: 795400 | B7: kr | C7: 1 | D7: ABMM | E7: p | F7: Bronze | G7: 할시온 엡실론 조 | H7: 154 | I7: 162 | J7: 950 | K7: 12 | L7: 2014-07-07 | M7: 6 hours | N7: 2014-08-27T01:19:06 | O7: 795400-1 | P7: 0 | Q7: 1 | R7: 6 | S7: 316
A8: 4303599 | B8: kr | C8: 1 | D8: 능금이 | E8: z | F8: Bronze | G8: 법무관 호크 조 | H8: 49 | I8: 41 | J8: 948 | K8: 43 | L8: 2014-08-10 | M8: 2 days | N8: 2014-08-27T01:19:07 | O8: 4303599-1 | P8: 0 | Q8: 1 | R8: 7 | S8: 90
A9: 46243 | B9: kr | C9: 2 | D9: GzRouSe | E9: t | F9: Bronze | G9: 집정관 요타 조 | H9: 41 | I9: 35 | J9: 947 | K9: 10 | L9: 2014-07-10 | M9: 2 hours | N9: 2014-08-27T01:19:08 | O9: 46243-2 | P9: 0 | Q9: 1 | R9: 8 | S9: 76
A10: 1120763 | B10: kr | C10: 1 | D10: 지구탈출 | E10: t | F10: Bronze | G10: 신관 뮤 조 | H10: 135 | I10: 145 | J10: 946 | K10: 12 | L10: 2014-07-09 | M10: 5 hours | N10: 2014-08-27T01:19:09 | O10: 1120763-1 | P10: 0 | Q10: 1 | R10: 9 | S10: 280
A11: 2470886 | B11: kr | C11: 1 | D11: 멍멍 | E11: t | F11: Bronze | G11: 스완 오미크론 조 | H11: 129 | I11: 147 | J11: 944 | K11: 23 | L11: 2014-07-08 | M11: 23 hours | N11: 2014-08-27T01:19:10 | O11: 2470886-1 | P11: 0 | Q11: 1 | R11: 10 | S11: 276
A12: 906094 | B12: kr | C12: 1 | D12: SpringZerg | E12: z | F12: Bronze | G12: 전쟁광 용병단 오스카 조 | H12: 39 | I12: 25 | J12: 941 | K12: 42 | L12: 2014-08-02 | M12: 2 days | N12: 2014-08-27T01:19:11 | O12: 906094-1 | P12: 0 | Q12: 1 | R12: 11 | S12: 64
A13: 4111617 | B13: kr | C13: 1 | D13: 프사기종족빨헌터 | E13: t | F13: Bronze | G13: 토라스크 피 조 | H13: 53 | I13: 55 | J13: 937 | K13: 11 | L13: 2014-07-13 | M13: 3 hours | N13: 2014-08-27T01:19:12 | O13: 4111617-1 | P13: 0 | Q13: 1 | R13: 12 | S13: 108
A14: 4381771 | B14: kr | C14: 1 | D14: dksoccer | E14: t | F14: Bronze | G14: 신관 뮤 조 | H14: 95 | I14: 90 | J14: 937 | K14: 11 | L14: 2014-07-09 | M14: 3 hours | N14: 2014-08-27T01:19:13 | O14: 4381771-1 | P14: 0 | Q14: 1 | R14: 13 | S14: 185
A15: 4630274 | B15: kr | C15: 1 | D15: Ubermensch | E15: t | F15: Bronze | G15: 망령 오메가 조 | H15: 88 | I15: 88 | J15: 937 | K15: 7 | L15: 2014-07-14 | M15: 4 hours | N15: 2014-08-27T01:19:14 | O15: 4630274-1 | P15: 0 | Q15: 1 | R15: 14 | S15: 176
A16: 950335 | B16: kr | C16: 1 | D16: wnteoaos | E16: r | F16: Bronze | G16: 투락시스 빅터 조 | H16: 54 | I16: 50 | J16: 934 | K16: 10 | L16: 2014-07-07 | M16: 1 hours | N16: 2014-08-27T01:19:15 | O16: 950335-1 | P16: 0 | Q16: 1 | R16: 15 | S16: 104
A17: 4669829 | B17: kr | C17: 1 | D17: 홍딸기 | E17: z | F17: Bronze | G17: 군락 제타 조 | H17: 77 | I17: 74 | J17: 934 | K17: 13 | L17: 2014-07-25 | M17: 8 hours | N17: 2014-08-27T01:19:16 | O17: 4669829-1 | P17: 0 | Q17: 1 | R17: 16 | S17: 151
A18: 3721135 | B18: kr | C18: 1 | D18: 공룡 | E18: t | F18: Bronze | G18: 알렉산더 타우 조 | H18: 37 | I18: 34 | J18: 933 | K18: 13 | L18: 2014-08-12 | M18: 7 hours | N18: 2014-08-27T01:19:17 | O18: 3721135-1 | P18: 0 | Q18: 1 | R18: 17 | S18: 71
A19: 1190053 | B19: kr | C19: 2 | D19: 阿寶 | E19: t | F19: Bronze | G19: 용기병 시에라 조 | H19: 50 | I19: 44 | J19: 932 | K19: 47 | L19: 2014-07-08 | M19: 2 days | N19: 2014-08-27T01:19:18 | O19: 1190053-2 | P19: 0 | Q19: 1 | R19: 18 | S19: 94
A20: 1326558 | B20: kr | C20: 2 | D20: FAIRYTAIL | E20: t | F20: Bronze | G20: 화염방사병 뉴 조 | H20: 115 | I20: 112 | J20: 932 | K20: 15 | L20: 2014-07-06 | M20: 10 hours | N20: 2014-08-27T01:19:19 | O20: 1326558-2 | P20: 0 | Q20: 1 | R20: 19 | S20: 227
A21: 374666 | B21: kr | C21: 2 | D21: 神鬼驚嘆 | E21: p | F21: Bronze | G21: 투락시스 빅터 조 | H21: 80 | I21: 72 | J21: 931 | K21: 10 | L21: 2014-07-07 | M21: 2 hours | N21: 2014-08-27T01:19:20 | O21: 374666-2 | P21: 0 | Q21: 1 | R21: 20 | S21: 152
A22: 4604393 | B22: kr | C22: 1 | D22: 용깡 | E22: z | F22: Bronze | G22: 할시온 엡실론 조 | H22: 45 | I22: 34 | J22: 930 | K22: 3 | L22: 2014-08-21 | M22: 1 days | N22: 2014-08-27T01:19:21 | O22: 4604393-1 | P22: 0 | Q22: 1 | R22: 21 | S22: 79
A23: 875429 | B23: kr | C23: 2 | D23: 凤牙雷神 | E23: z | F23: Bronze | G23: 군락 제타 조 | H23: 141 | I23: 149 | J23: 928 | K23: 19 | L23: 2014-07-07 | M23: 16 hours | N23: 2014-08-27T01:19:22 | O23: 875429-2 | P23: 0 | Q23: 1 | R23: 22 | S23: 290
A24: 3078275 | B24: kr | C24: 1 | D24: IIIIIIIIIIII | E24: t | F24: Bronze | G24: 타림 엑스레이 조 | H24: 34 | I24: 31 | J24: 926 | K24: 11 | L24: 2014-07-26 | M24: 3 hours | N24: 2014-08-27T01:19:23 | O24: 3078275-1 | P24: 0 | Q24: 1 | R24: 23 | S24: 65
A25: 4693227 | B25: kr | C25: 1 | D25: glock | E25: p | F25: Bronze | G25: 갈귀 찰리 조 | H25: 37 | I25: 32 | J25: 926 | K25: 59 | L25: 2014-08-16 | M25: 7 hours | N25: 2014-08-27T01:19:24 | O25: 4693227-1 | P25: 0 | Q25: 1 | R25: 24 | S25: 69
A26: 823527 | B26: kr | C26: 2 | D26: AOSHIMA | E26: t | F26: Bronze | G26: 펠라니스 폭스트롯 조 | H26: 44 | I26: 37 | J26: 920 | K26: 15 | L26: 2014-08-22 | M26: 11 hours | N26: 2014-08-27T01:19:25 | O26: 823527-2 | P26: 0 | Q26: 1 | R26: 25 | S26: 81
A27: 934033 | B27: kr | C27: 1 | D27: 살살해요 | E27: p | F27: Bronze | G27: 아이어 델타 조 | H27: 149 | I27: 168 | J27: 920 | K27: 14 | L27: 2014-07-07 | M27: 8 hours | N27: 2014-08-27T01:19:26 | O27: 934033-1 | P27: 0 | Q27: 1 | R27: 26 | S27: 317
A28: 559183 | B28: kr | C28: 1 | D28: 불타는깡다구 | E28: t | F28: Bronze | G28: 할시온 엡실론 조 | H28: 156 | I28: 164 | J28: 919 | K28: 6 | L28: 2014-07-07 | M28: 1 hours | N28: 2014-08-27T01:19:27 | O28: 559183-1 | P28: 0 | Q28: 1 | R28: 27 | S28: 320
A29: 2738684 | B29: kr | C29: 1 | D29: 스타킹왕짱 | E29: z | F29: Bronze | G29: 법무관 호크 조 | H29: 35 | I29: 37 | J29: 917 | K29: 17 | L29: 2014-07-08 | M29: 14 hours | N29: 2014-08-27T01:19:28 | O29: 2738684-1 | P29: 0 | Q29: 1 | R29: 28 | S29: 72
A30: 4343010 | B30: kr | C30: 1 | D30: 사신 | E30: p | F30: Bronze | G30: 연결체 람다 조 | H30: 67 | I30: 57 | J30: 917 | K30: 60 | L30: 2014-07-29 | M30: 3 days | N30: 2014-08-27T01:19:29 | O30: 4343010-1 | P30: 0 | Q30: 1 | R30: 29 | S30: 124
A31: 856001 | B31: kr | C31: 2 | D31: Fungip | E31: z | F31: Bronze | G31: 카스 알라모 조 | H31: 54 | I31: 43 | J31: 916 | K31: 1 | L31: 2014-08-20 | M31: 3 hours | N31: 2014-08-27T01:19:30 | O31: 856001-2 | P31: 0 | Q31: 1 | R31: 30 | S31: 97
A32: 1279082 | B32: kr | C32: 2 | D32: DCDPP | E32: z | F32: Bronze | G32: 화염방사병 뉴 조 | H32: 167 | I32: 177 | J32: 916 | K32: 4 | L32: 2014-07-06 | M32: 7 hours | N32: 2014-08-27T01:19:31 | O32: 1279082-2 | P32: 0 | Q32: 1 | R32: 31 | S32: 344
A33: 941414 | B33: kr | C33: 2 | D33: Pulong | E33: p | F33: Bronze | G33: 듀갈 에타 조 | H33: 63 | I33: 53 | J33: 913 | K33: 45 | L33: 2014-07-07 | M33: 2 days | N33: 2014-08-27T01:19:32 | O33: 941414-2 | P33: 0 | Q33: 1 | R33: 32 | S33: 116
A34: 1001401 | B34: kr | C34: 2 | D34: llllllllllll | E34: p | F34: Bronze | G34: 파멸충 에코 조 | H34: 54 | I34: 65 | J34: 910 | K34: 11 | L34: 2014-07-27 | M34: 4 hours | N34: 2014-08-27T01:19:33 | O34: 1001401-2 | P34: 0 | Q34: 1 | R34: 33 | S34: 119
A35: 708754 | B35: kr | C35: 2 | D35: louis | E35: t | F35: Bronze | G35: 울트라리스크 카이 조 | H35: 34 | I35: 30 | J35: 906 | K35: 8 | L35: 2014-07-20 | M35: 1 days | N35: 2014-08-27T01:19:34 | O35: 708754-2 | P35: 0 | Q35: 1 | R35: 34 | S35: 64
A36: 4718724 | B36: kr | C36: 1 | D36: 항상균 | E36: p | F36: Bronze | G36: 몬리스 크시 조 | H36: 38 | I36: 26 | J36: 906 | K36: 785 | L36: 2014-08-24 | M36: 9 hours | N36: 2014-08-27T01:19:35 | O36: 4718724-1 | P36: 0 | Q36: 8 | R36: 35 | S36: 64
A37: 4402525 | B37: kr | C37: 1 | D37: RogueTurtle | E37: t | F37: Bronze | G37: 퓨리낙스 제드 조 | H37: 68 | I37: 70 | J37: 905 | K37: 7 | L37: 2014-07-18 | M37: 12 hours | N37: 2014-08-27T01:19:36 | O37: 4402525-1 | P37: 0 | Q37: 1 | R37: 36 | S37: 138
A38: 656542 | B38: kr | C38: 1 | D38: 엘비와이 | E38: t | F38: Bronze | G38: 아이어 델타 조 | H38: 41 | I38: 38 | J38: 904 | K38: 42 | L38: 2014-07-07 | M38: 2 days | N38: 2014-08-27T01:19:37 | O38: 656542-1 | P38: 0 | Q38: 1 | R38: 37 | S38: 79
A39: 3815861 | B39: kr | C39: 1 | D39: JGJG | E39: t | F39: Bronze | G39: 투락시스 빅터 조 | H39: 261 | I39: 285 | J39: 904 | K39: 25 | L39: 2014-07-07 | M39: 1 days | N39: 2014-08-27T01:19:38 | O39: 3815861-1 | P39: 0 | Q39: 1 | R39: 38 | S39: 546
A40: 918889 | B40: kr | C40: 1 | D40: 김미향잡자테란 | E40: p | F40: Bronze | G40: 화염방사병 뉴 조 | H40: 78 | I40: 75 | J40: 902 | K40: 10 | L40: 2014-07-07 | M40: 2 hours | N40: 2014-08-27T01:19:40 | O40: 918889-1 | P40: 0 | Q40: 1 | R40: 39 | S40: 153
A41: 972740 | B41: kr | C41: 2 | D41: Josdare | E41: p | F41: Bronze | G41: 아이어 델타 조 | H41: 169 | I41: 186 | J41: 901 | K41: 12 | L41: 2014-07-07 | M41: 5 hours | N41: 2014-08-27T01:19:41 | O41: 972740-2 | P41: 0 | Q41: 1 | R41: 40 | S41: 355
A42: 230926 | B42: kr | C42: 1 | D42: 영웅 | E42: r | F42: Bronze | G42: 할시온 엡실론 조 | H42: 42 | I42: 42 | J42: 900 | K42: 41 | L42: 2014-07-12 | M42: 2 days | N42: 2014-08-27T01:19:41 | O42: 230926-1 | P42: 0 | Q42: 1 | R42: 41 | S42: 84
A43: 618436 | B43: kr | C43: 1 | D43: 흑드라군 | E43: z | F43: Bronze | G43: 군락 제타 조 | H43: 38 | I43: 35 | J43: 897 | K43: 10 | L43: 2014-07-07 | M43: 2 hours | N43: 2014-08-27T01:19:43 | O43: 618436-1 | P43: 0 | Q43: 1 | R43: 42 | S43: 73
A44: 1317998 | B44: kr | C44: 2 | D44: 滄月無淚 | E44: p | F44: Bronze | G44: 펠라니스 폭스트롯 조 | H44: 110 | I44: 100 | J44: 897 | K44: 11 | L44: 2014-07-28 | M44: 4 hours | N44: 2014-08-27T01:19:44 | O44: 1317998-2 | P44: 0 | Q44: 1 | R44: 43 | S44: 210
A45: 4632935 | B45: kr | C45: 1 | D45: sweetsquash | E45: t | F45: Bronze | G45: 퓨리낙스 제드 조 | H45: 127 | I45: 152 | J45: 897 | K45: 40 | L45: 2014-07-24 | M45: 2 days | N45: 2014-08-27T01:19:45 | O45: 4632935-1 | P45: 0 | Q45: 1 | R45: 44 | S45: 279
A46: 4660957 | B46: kr | C46: 1 | D46: 조지아 | E46: z | F46: Bronze | G46: 펠라니스 폭스트롯 조 | H46: 43 | I46: 43 | J46: 897 | K46: 42 | L46: 2014-08-02 | M46: 2 days | N46: 2014-08-27T01:19:46 | O46: 4660957-1 | P46: 0 | Q46: 1 | R46: 45 | S46: 86
A47: 848194 | B47: kr | C47: 2 | D47: Fomula | E47: z | F47: Bronze | G47: 스완 오미크론 조 | H47: 111 | I47: 125 | J47: 896 | K47: 11 | L47: 2014-07-08 | M47: 4 hours | N47: 2014-08-27T01:19:47 | O47: 848194-2 | P47: 0 | Q47: 1 | R47: 46 | S47: 236
A48: 1261613 | B48: kr | C48: 2 | D48: cyove | E48: p | F48: Bronze | G48: 용기병 시에라 조 | H48: 57 | I48: 63 | J48: 896 | K48: 64 | L48: 2014-07-08 | M48: 2 days | N48: 2014-08-27T01:19:48 | O48: 1261613-2 | P48: 0 | Q48: 1 | R48: 47 | S48: 120
A49: 3137916 | B49: kr | C49: 1 | D49: 통큰대장부 | E49: r | F49: Bronze | G49: 펠라니스 폭스트롯 조 | H49: 34 | I49: 31 | J49: 896 | K49: 58 | L49: 2014-07-13 | M49: 2 days | N49: 2014-08-27T01:19:49 | O49: 3137916-1 | P49: 0 | Q49: 1 | R49: 48 | S49: 65
A50: 1339071 | B50: kr | C50: 1 | D50: 강회장님 | E50: p | F50: Bronze | G50: 정찰기 줄리엣 조 | H50: 42 | I50: 52 | J50: 895 | K50: 38 | L50: 2014-07-06 | M50: 2 days | N50: 2014-08-27T01:19:50 | O50: 1339071-1 | P50: 0 | Q50: 1 | R50: 49 | S50: 94
A51: 4314953 | B51: kr | C51: 1 | D51: 아이템풀 | E51: p | F51: Bronze | G51: 스완 오미크론 조 | H51: 76 | I51: 76 | J51: 895 | K51: 25 | L51: 2014-07-08 | M51: 1 days | N51: 2014-08-27T01:19:51 | O51: 4314953-1 | P51: 0 | Q51: 1 | R51: 50 | S51: 152
A52: 786107 | B52: kr | C52: 1 | D52: 덕진파 | E52: p | F52: Bronze | G52: 타이커스 로미오 조 | H52: 67 | I52: 66 | J52: 893 | K52: 6 | L52: 2014-07-12 | M52: 7 hours | N52: 2014-08-27T01:19:52 | O52: 786107-1 | P52: 0 | Q52: 1 | R52: 51 | S52: 133
A53: 4615058 | B53: kr | C53: 1 | D53: EsseChange | E53: t | F53: Bronze | G53: 타림 엑스레이 조 | H53: 51 | I53: 47 | J53: 892 | K53: 28 | L53: 2014-07-25 | M53: 1 days | N53: 2014-08-27T01:19:53 | O53: 4615058-1 | P53: 0 | Q53: 1 | R53: 52 | S53: 98
A54: 1305345 | B54: kr | C54: 1 | D54: 십세기소년 | E54: t | F54: Bronze | G54: 법무관 호크 조 | H54: 43 | I54: 45 | J54: 891 | K54: 15 | L54: 2014-07-13 | M54: 10 hours | N54: 2014-08-27T01:19:54 | O54: 1305345-1 | P54: 0 | Q54: 1 | R54: 53 | S54: 88
A55: 4374470 | B55: kr | C55: 1 | D55: 핵언더 | E55: p | F55: Bronze | G55: 군락 제타 조 | H55: 42 | I55: 48 | J55: 891 | K55: 63 | L55: 2014-07-07 | M55: 1 days | N55: 2014-08-27T01:19:55 | O55: 4374470-1 | P55: 0 | Q55: 1 | R55: 54 | S55: 90
A56: 764672 | B56: kr | C56: 2 | D56: DeMa | E56: p | F56: Bronze | G56: 정찰기 줄리엣 조 | H56: 31 | I56: 32 | J56: 890 | K56: 28 | L56: 2014-08-22 | M56: 1 hours | N56: 2014-08-27T01:19:56 | O56: 764672-2 | P56: 0 | Q56: 1 | R56: 55 | S56: 63
A57: 4098624 | B57: kr | C57: 1 | D57: SoNia | E57: p | F57: Bronze | G57: 아이어 델타 조 | H57: 111 | I57: 116 | J57: 890 | K57: 17 | L57: 2014-07-07 | M57: 13 hours | N57: 2014-08-27T01:19:57 | O57: 4098624-1 | P57: 0 | Q57: 1 | R57: 56 | S57: 227
A58: 773496 | B58: kr | C58: 1 | D58: WhisperLive | E58: p | F58: Bronze | G58: 골리앗 베타 조 | H58: 57 | I58: 66 | J58: 889 | K58: 10 | L58: 2014-08-15 | M58: 2 hours | N58: 2014-08-27T01:19:58 | O58: 773496-1 | P58: 0 | Q58: 1 | R58: 57 | S58: 123
A59: 904370 | B59: kr | C59: 2 | D59: 王小虎 | E59: t | F59: Bronze | G59: 투락시스 빅터 조 | H59: 106 | I59: 122 | J59: 888 | K59: 18 | L59: 2014-07-07 | M59: 15 hours | N59: 2014-08-27T01:20:02 | O59: 904370-2 | P59: 0 | Q59: 1 | R59: 58 | S59: 228
A60: 905728 | B60: kr | C60: 2 | D60: wowsugar | E60: z | F60: Bronze | G60: 밴시 프사이 조 | H60: 121 | I60: 133 | J60: 888 | K60: 11 | L60: 2014-07-08 | M60: 3 hours | N60: 2014-08-27T01:20:03 | O60: 905728-2 | P60: 0 | Q60: 1 | R60: 59 | S60: 254
A61: 1050430 | B61: kr | C61: 1 | D61: 아놔아나아나아난 | E61: p | F61: Bronze | G61: 아지마르 알파 조 | H61: 60 | I61: 63 | J61: 888 | K61: 8 | L61: 2014-07-12 | M61: 5 minutes | N61: 2014-08-27T01:20:03 | O61: 1050430-1 | P61: 0 | Q61: 1 | R61: 60 | S61: 123
A62: 2463161 | B62: kr | C62: 1 | D62: 포도장수 | E62: p | F62: Bronze | G62: 아이어 델타 조 | H62: 46 | I62: 53 | J62: 888 | K62: 11 | L62: 2014-08-12 | M62: 5 hours | N62: 2014-08-27T01:20:04 | O62: 2463161-1 | P62: 0 | Q62: 1 | R62: 61 | S62: 99
A63: 936337 | B63: kr | C63: 2 | D63: 牛寶寶 | E63: z | F63: Bronze | G63: 군락 제타 조 | H63: 88 | I63: 92 | J63: 886 | K63: 14 | L63: 2014-07-07 | M63: 2 hours | N63: 2014-08-27T01:20:05 | O63: 936337-2 | P63: 0 | Q63: 1 | R63: 62 | S63: =H63+I63 -> 180
A64: 4586810 | B64: kr | C64: 1 | D64: david | E64: p | F64: Bronze | G64: 할시온 엡실론 조 | H64: 125 | I64: 122 | J64: 886 | K64: 34 | L64: 2014-07-07 | M64: 1 days | N64: 2014-08-27T01:20:06 | O64: 4586810-1 | P64: 0 | Q64: 1 | R64: 63 | S64: 247
A65: 4528624 | B65: kr | C65: 1 | D65: 내가바로돌짭새 | E65: p | F65: Bronze | G65: 망령 오메가 조 | H65: 36 | I65: 33 | J65: 884 | K65: 33 | L65: 2014-07-14 | M65: 19 hours | N65: 2014-08-27T01:20:07 | O65: 4528624-1 | P65: 0 | Q65: 1 | R65: 64 | S65: 69
A66: 1290010 | B66: kr | C66: 2 | D66: 望紀川內依 | E66: z | F66: Bronze | G66: 정찰기 줄리엣 조 | H66: 50 | I66: 50 | J66: 882 | K66: 3 | L66: 2014-07-07 | M66: 15 hours | N66: 2014-08-27T01:20:09 | O66: 1290010-2 | P66: 0 | Q66: 1 | R66: 65 | S66: 100
A67: 1853238 | B67: kr | C67: 1 | D67: Neverdie | E67: r | F67: Bronze | G67: 계승자 그라비티 조 | H67: 52 | I67: 54 | J67: 882 | K67: 67 | L67: 2014-07-13 | M67: 2 days | N67: 2014-08-27T01:20:09 | O67: 1853238-1 | P67: 0 | Q67: 1 | R67: 66 | S67: 106
A68: 4698106 | B68: kr | C68: 1 | D68: Horizon | E68: t | F68: Bronze | G68: 법무관 호크 조 | H68: 63 | I68: 59 | J68: 882 | K68: 13 | L68: 2014-08-17 | M68: 8 hours | N68: 2014-08-27T01:20:10 | O68: 4698106-1 | P68: 0 | Q68: 1 | R68: 67 | S68: 122
A69: 4386669 | B69: kr | C69: 1 | D69: 야박 | E69: p | F69: Bronze | G69: 투락시스 빅터 조 | H69: 37 | I69: 37 | J69: 880 | K69: 51 | L69: 2014-07-07 | M69: 2 days | N69: 2014-08-27T01:20:12 | O69: 4386669-1 | P69: 0 | Q69: 1 | R69: 68 | S69: 74
A70: 382280 | B70: kr | C70: 1 | D70: 젤리나졸 | E70: p | F70: Bronze | G70: 스완 오미크론 조 | H70: 190 | I70: 241 | J70: 877 | K70: 9 | L70: 2014-07-08 | M70: 1 hours | N70: 2014-08-27T01:20:12 | O70: 382280-1 | P70: 0 | Q70: 1 | R70: 69 | S70: 431
A71: 755767 | B71: kr | C71: 2 | D71: 生命之光 | E71: z | F71: Bronze | G71: 아이어 델타 조 | H71: 96 | I71: 93 | J71: 877 | K71: 15 | L71: 2014-07-07 | M71: 11 hours | N71: 2014-08-27T01:20:14 | O71: 755767-2 | P71: 0 | Q71: 1 | R71: 70 | S71: 189
A72: 1615274 | B72: kr | C72: 1 | D72: 블랙호이트 | E72: r | F72: Bronze | G72: 아이어 델타 조 | H72: 78 | I72: 76 | J72: 876 | K72: 62 | L72: 2014-07-07 | M72: 2 hours | N72: 2014-08-27T01:20:15 | O72: 1615274-1 | P72: 0 | Q72: 1 | R72: 71 | S72: 154
A73: 4558105 | B73: kr | C73: 1 | D73: Linu | E73: p | F73: Bronze | G73: 듀갈 에타 조 | H73: 44 | I73: 48 | J73: 875 | K73: 35 | L73: 2014-07-07 | M73: 1 days | N73: 2014-08-27T01:20:16 | O73: 4558105-1 | P73: 0 | Q73: 1 | R73: 72 | S73: 92
A74: 196555 | B74: kr | C74: 2 | D74: Undertaker | E74: z | F74: Bronze | G74: 알자다르 로 조 | H74: 69 | I74: 64 | J74: 873 | K74: 29 | L74: 2014-07-16 | M74: 1 days | N74: 2014-08-27T01:20:17 | O74: 196555-2 | P74: 0 | Q74: 1 | R74: 73 | S74: 133
A75: 560287 | B75: kr | C75: 1 | D75: 해리어 | E75: t | F75: Bronze | G75: 투락시스 빅터 조 | H75: 47 | I75: 43 | J75: 873 | K75: 26 | L75: 2014-07-07 | M75: 1 days | N75: 2014-08-27T01:20:18 | O75: 560287-1 | P75: 0 | Q75: 1 | R75: 74 | S75: 90
A76: 1634637 | B76: kr | C76: 1 | D76: 펩시맨 | E76: r | F76: Bronze | G76: 연결체 람다 조 | H76: 103 | I76: 105 | J76: 873 | K76: 3 | L76: 2014-07-29 | M76: 14 minutes | N76: 2014-08-27T01:20:19 | O76: 1634637-1 | P76: 0 | Q76: 1 | R76: 75 | S76: 208
A77: 4351926 | B77: kr | C77: 1 | D77: 적토마아 | E77: p | F77: Bronze | G77: 일벌레 탱고 조 | H77: 68 | I77: 91 | J77: 867 | K77: 27 | L77: 2014-07-11 | M77: 1 days | N77: 2014-08-27T01:20:20 | O77: 4351926-1 | P77: 0 | Q77: 1 | R77: 76 | S77: 159
A78: 4594289 | B78: kr | C78: 1 | D78: 개남자 | E78: p | F78: Bronze | G78: 연결체 람다 조 | H78: 53 | I78: 57 | J78: 867 | K78: 43 | L78: 2014-07-29 | M78: 2 days | N78: 2014-08-27T01:20:21 | O78: 4594289-1 | P78: 0 | Q78: 1 | R78: 77 | S78: 110
A79: 862134 | B79: kr | C79: 2 | D79: Arthur | E79: t | F79: Bronze | G79: 용기병 시에라 조 | H79: 39 | I79: 39 | J79: 866 | K79: 55 | L79: 2014-07-08 | M79: 3 days | N79: 2014-08-27T01:20:22 | O79: 862134-2 | P79: 0 | Q79: 1 | R79: 78 | S79: 78
A80: 4661394 | B80: kr | C80: 1 | D80: 조랑말 | E80: p | F80: Bronze | G80: 정찰기 줄리엣 조 | H80: 67 | I80: 74 | J80: 866 | K80: 8 | L80: 2014-08-09 | M80: 1 hours | N80: 2014-08-27T01:20:23 | O80: 4661394-1 | P80: 0 | Q80: 1 | R80: 79 | S80: 141
A81: 944021 | B81: kr | C81: 2 | D81: 賊小文 | E81: t | F81: Bronze | G81: 투락시스 빅터 조 | H81: 134 | I81: 143 | J81: 865 | K81: 10 | L81: 2014-07-07 | M81: 2 hours | N81: 2014-08-27T01:20:23 | O81: 944021-2 | P81: 0 | Q81: 1 | R81: 80 | S81: 277
A82: 1422767 | B82: kr | C82: 1 | D82: 싼쵸 | E82: p | F82: Bronze | G82: 코로니스 감마 조 | H82: 194 | I82: 204 | J82: 865 | K82: 25 | L82: 2014-07-06 | M82: 23 hours | N82: 2014-08-27T01:20:24 | O82: 1422767-1 | P82: 0 | Q82: 1 | R82: 81 | S82: 398
A83: 348645 | B83: kr | C83: 1 | D83: 짐레이널 | E83: p | F83: Bronze | G83: 군락 제타 조 | H83: 38 | I83: 43 | J83: 864 | K83: 3 | L83: 2014-08-04 | M83: 9 hours | N83: 2014-08-27T01:20:25 | O83: 348645-1 | P83: 0 | Q83: 1 | R83: 82 | S83: 81
A84: 781918 | B84: kr | C84: 2 | D84: Triton | E84: z | F84: Bronze | G84: 군락 제타 조 | H84: 70 | I84: 80 | J84: 863 | K84: 3 | L84: 2014-07-09 | M84: 1 days | N84: 2014-08-27T01:20:26 | O84: 781918-2 | P84: 0 | Q84: 1 | R84: 83 | S84: 150
A85: 1171280 | B85: kr | C85: 1 | D85: 가조우 | E85: t | F85: Bronze | G85: 브락시스 딕시 조 | H85: 61 | I85: 66 | J85: 863 | K85: 65 | L85: 2014-07-07 | M85: 1 days | N85: 2014-08-27T01:20:27 | O85: 1171280-1 | P85: 0 | Q85: 1 | R85: 84 | S85: 127
A86: 4291977 | B86: kr | C86: 1 | D86: zeus | E86: r | F86: Bronze | G86: 브락시스 딕시 조 | H86: 89 | I86: 109 | J86: 863 | K86: 1 | L86: 2014-07-07 | M86: 14 hours | N86: 2014-08-27T01:20:28 | O86: 4291977-1 | P86: 0 | Q86: 1 | R86: 85 | S86: 198
A87: 4310696 | B87: kr | C87: 1 | D87: lhh | E87: p | F87: Bronze | G87: 일벌레 탱고 조 | H87: 59 | I87: 56 | J87: 863 | K87: 45 | L87: 2014-07-11 | M87: 2 days | N87: 2014-08-27T01:20:29 | O87: 4310696-1 | P87: 0 | Q87: 1 | R87: 86 | S87: 115
A88: 4652569 | B88: kr | C88: 1 | D88: wslee | E88: p | F88: Bronze | G88: 토라스크 피 조 | H88: 56 | I88: 41 | J88: 863 | K88: 80 | L88: 2014-07-14 | M88: 7 days | N88: 2014-08-27T01:20:30 | O88: 4652569-1 | P88: 0 | Q88: 1 | R88: 87 | S88: 97
A89: 2068161 | B89: kr | C89: 1 | D89: fluxusnamu | E89: p | F89: Bronze | G89: 화염방사병 뉴 조 | H89: 82 | I89: 84 | J89: 861 | K89: 8 | L89: 2014-07-06 | M89: 1 minutes | N89: 2014-08-27T01:20:31 | O89: 2068161-1 | P89: 0 | Q89: 1 | R89: 88 | S89: 166
A90: 3972048 | B90: kr | C90: 1 | D90: soonhyo | E90: t | F90: Bronze | G90: 펠라니스 폭스트롯 조 | H90: 37 | I90: 29 | J90: 861 | K90: 44 | L90: 2014-07-26 | M90: 2 days | N90: 2014-08-27T01:20:32 | O90: 3972048-1 | P90: 0 | Q90: 1 | R90: 89 | S90: 66
A91: 4584267 | B91: kr | C91: 1 | D91: 전지영 | E91: z | F91: Bronze | G91: 법무관 호크 조 | H91: 47 | I91: 44 | J91: 860 | K91: 31 | L91: 2014-07-08 | M91: 1 days | N91: 2014-08-27T01:20:33 | O91: 4584267-1 | P91: 0 | Q91: 1 | R91: 90 | S91: 91
A92: 4704903 | B92: kr | C92: 1 | D92: 왕지 | E92: p | F92: Bronze | G92: 알렉산더 타우 조 | H92: 35 | I92: 34 | J92: 860 | K92: 60 | L92: 2014-08-10 | M92: 3 days | N92: 2014-08-27T01:20:34 | O92: 4704903-1 | P92: 0 | Q92: 1 | R92: 91 | S92: 69
A93: 901639 | B93: kr | C93: 2 | D93: Uan | E93: p | F93: Bronze | G93: 법무관 호크 조 | H93: 98 | I93: 125 | J93: 859 | K93: 8 | L93: 2014-07-07 | M93: 5 minutes | N93: 2014-08-27T01:20:35 | O93: 901639-2 | P93: 0 | Q93: 1 | R93: 92 | S93: 223
A94: 905170 | B94: kr | C94: 2 | D94: 海龍王 | E94: z | F94: Bronze | G94: 할시온 엡실론 조 | H94: 64 | I94: 68 | J94: 859 | K94: 29 | L94: 2014-07-07 | M94: 1 days | N94: 2014-08-27T01:20:36 | O94: 905170-2 | P94: 0 | Q94: 1 | R94: 93 | S94: 132
A95: 2510380 | B95: kr | C95: 1 | D95: ghost | E95: t | F95: Bronze | G95: 용기병 시에라 조 | H95: 44 | I95: 42 | J95: 859 | K95: 96 | L95: 2014-07-08 | M95: 3 days | N95: 2014-08-27T01:20:37 | O95: 2510380-1 | P95: 0 | Q95: 1 | R95: 94 | S95: 86
A96: 570276 | B96: kr | C96: 1 | D96: marin | E96: t | F96: Bronze | G96: 코로니스 감마 조 | H96: 52 | I96: 56 | J96: 856 | K96: 7 | L96: 2014-07-06 | M96: 7 minutes | N96: 2014-08-27T01:20:38 | O96: 570276-1 | P96: 0 | Q96: 1 | R96: 95 | S96: 108
A97: 4447246 | B97: kr | C97: 1 | D97: 뽈뜨 | E97: p | F97: Bronze | G97: 알렉산더 타우 조 | H97: 36 | I97: 42 | J97: 856 | K97: 25 | L97: 2014-08-17 | M97: 1 days | N97: 2014-08-27T01:20:39 | O97: 4447246-1 | P97: 0 | Q97: 1 | R97: 96 | S97: 78
A98: 4687523 | B98: kr | C98: 1 | D98: Lew | E98: p | F98: Bronze | G98: 셀렌디스 엉클 조 | H98: 36 | I98: 29 | J98: 856 | K98: 97 | L98: 2014-08-08 | M98: 4 days | N98: 2014-08-27T01:20:40 | O98: 4687523-1 | P98: 0 | Q98: 1 | R98: 97 | S98: 65
A99: 1187328 | B99: kr | C99: 2 | D99: 殲滅飄飄 | E99: t | F99: Bronze | G99: 밴시 프사이 조 | H99: 72 | I99: 71 | J99: 854 | K99: 40 | L99: 2014-07-11 | M99: 2 days | N99: 2014-08-27T01:20:41 | O99: 1187328-2 | P99: 0 | Q99: 1 | R99: 98 | S99: 143
A100: 4687688 | B100: kr | C100: 1 | D100: Ghost | E100: t | F100: Bronze | G100: 연결체 람다 조 | H100: 39 | I100: 47 | J100: 853 | K100: 28 | L100: 2014-07-29 | M100: 1 days | N100: 2014-08-27T01:20:42 | O100: 4687688-1 | P100: 0 | Q100: 1 | R100: 99 | S100: 86
A101: 1200372 | B101: kr | C101: 2 | D101: TomoyaGE | E101: p | F101: Bronze | G101: 아이어 델타 조 | H101: 53 | I101: 57 | J101: 852 | K101: 36 | L101: 2014-07-17 | M101: 3 days | N101: 2014-08-27T01:20:43 | O101: 1200372-2 | P101: 0 | Q101: 1 | R101: 100 | S101: 110
A102: 823979 | B102: kr | C102: 2 | D102: lorenz | E102: p | F102: Bronze | G102: 펠라니스 폭스트롯 조 | H102: 37 | I102: 48 | J102: 851 | K102: 16 | L102: 2014-07-11 | M102: 12 hours | N102: 2014-08-27T01:20:44 | O102: 823979-2 | P102: 0 | Q102: 1 | R102: 101 | S102: 85
A103: 3744318 | B103: kr | C103: 1 | D103: 왕달려 | E103: t | F103: Bronze | G103: 코로니스 감마 조 | H103: 79 | I103: 98 | J103: 851 | K103: 18 | L103: 2014-07-06 | M103: 1 hours | N103: 2014-08-27T01:20:45 | O103: 3744318-1 | P103: 0 | Q103: 1 | R103: 102 | S103: 177
A104: 1089620 | B104: kr | C104: 2 | D104: 鐵人佛朗基 | E104: t | F104: Bronze | G104: 울트라리스크 카이 조 | H104: 39 | I104: 38 | J104: 850 | K104: 22 | L104: 2014-07-20 | M104: 2 hours | N104: 2014-08-27T01:20:46 | O104: 1089620-2 | P104: 0 | Q104: 1 | R104: 103 | S104: 77
A105: 319649 | B105: kr | C105: 2 | D105: ming | E105: t | F105: Bronze | G105: 알자다르 로 조 | H105: 36 | I105: 45 | J105: 849 | K105: 10 | L105: 2014-07-16 | M105: 3 hours | N105: 2014-08-27T01:20:47 | O105: 319649-2 | P105: 0 | Q105: 1 | R105: 104 | S105: 81
A106: 219377 | B106: kr | C106: 1 | D106: 민수에요 | E106: p | F106: Bronze | G106: 할시온 엡실론 조 | H106: 94 | I106: 106 | J106: 848 | K106: 11 | L106: 2014-07-07 | M106: 4 hours | N106: 2014-08-27T01:20:48 | O106: 219377-1 | P106: 0 | Q106: 1 | R106: 105 | S106: 200
A107: 490630 | B107: kr | C107: 1 | D107: 시크릿상상가 | E107: p | F107: Bronze | G107: 일벌레 탱고 조 | H107: 62 | I107: 66 | J107: 848 | K107: 27 | L107: 2014-07-11 | M107: 1 days | N107: 2014-08-27T01:20:49 | O107: 490630-1 | P107: 0 | Q107: 1 | R107: 106 | S107: 128
A108: 774592 | B108: kr | C108: 2 | D108: 草莓棉花糖 | E108: r | F108: Bronze | G108: 화염방사병 뉴 조 | H108: 58 | I108: 65 | J108: 847 | K108: 60 | L108: 2014-07-06 | M108: 3 days | N108: 2014-08-27T01:20:50 | O108: 774592-2 | P108: 0 | Q108: 1 | R108: 107 | S108: 123
A109: 398604 | B109: kr | C109: 1 | D109: wtlohscvehsc | E109: z | F109: Bronze | G109: 정찰기 줄리엣 조 | H109: 110 | I109: 124 | J109: 845 | K109: 9 | L109: 2014-07-06 | M109: 14 minutes | N109: 2014-08-27T01:20:51 | O109: 398604-1 | P109: 0 | Q109: 1 | R109: 108 | S109: 234
A110: 958374 | B110: kr | C110: 2 | D110: Gamera | E110: t | F110: Bronze | G110: 타락귀 파이 조 | H110: 34 | I110: 47 | J110: 844 | K110: 24 | L110: 2014-07-10 | M110: 1 days | N110: 2014-08-27T01:20:52 | O110: 958374-2 | P110: 0 | Q110: 1 | R110: 109 | S110: 81
A111: 3720345 | B111: kr | C111: 1 | D111: 워크 | E111: r | F111: Bronze | G111: 계승자 그라비티 조 | H111: 72 | I111: 82 | J111: 844 | K111: 29 | L111: 2014-07-09 | M111: 1 days | N111: 2014-08-27T01:20:52 | O111: 3720345-1 | P111: 0 | Q111: 1 | R111: 110 | S111: 154
A112: 4198463 | B112: kr | C112: 1 | D112: 조의군단수장 | E112: z | F112: Bronze | G112: 타락귀 파이 조 | H112: 175 | I112: 179 | J112: 844 | K112: 8 | L112: 2014-07-11 | M112: 16 minutes | N112: 2014-08-27T01:20:53 | O112: 4198463-1 | P112: 0 | Q112: 1 | R112: 111 | S112: 354
A113: 4482892 | B113: kr | C113: 1 | D113: 두바퀴 | E113: t | F113: Bronze | G113: 스완 오미크론 조 | H113: 32 | I113: 38 | J113: 844 | K113: 24 | L113: 2014-07-08 | M113: 9 hours | N113: 2014-08-27T01:20:54 | O113: 4482892-1 | P113: 0 | Q113: 1 | R113: 112 | S113: 70
A114: 4674885 | B114: kr | C114: 1 | D114: 에너자이져 | E114: p | F114: Bronze | G114: 브락시스 딕시 조 | H114: 30 | I114: 31 | J114: 844 | K114: 69 | L114: 2014-07-07 | M114: 3 hours | N114: 2014-08-27T01:20:55 | O114: 4674885-1 | P114: 0 | Q114: 1 | R114: 113 | S114: 61
A115: 470837 | B115: kr | C115: 1 | D115: kwakdw | E115: p | F115: Bronze | G115: 화염방사병 뉴 조 | H115: 77 | I115: 93 | J115: 843 | K115: 23 | L115: 2014-07-06 | M115: 1 days | N115: 2014-08-27T01:20:56 | O115: 470837-1 | P115: 0 | Q115: 1 | R115: 114 | S115: 170
A116: 4563489 | B116: kr | C116: 1 | D116: KAKA | E116: p | F116: Bronze | G116: 화염방사병 뉴 조 | H116: 56 | I116: 56 | J116: 843 | K116: 44 | L116: 2014-07-06 | M116: 5 hours | N116: 2014-08-27T01:20:57 | O116: 4563489-1 | P116: 0 | Q116: 1 | R116: 115 | S116: 112
A117: 4678151 | B117: kr | C117: 1 | D117: PopCon | E117: t | F117: Bronze | G117: 파멸충 에코 조 | H117: 76 | I117: 106 | J117: 843 | K117: 2 | L117: 2014-07-28 | M117: 4 hours | N117: 2014-08-27T01:20:58 | O117: 4678151-1 | P117: 0 | Q117: 1 | R117: 116 | S117: 182
A118: 943979 | B118: kr | C118: 1 | D118: 라디오스타 | E118: p | F118: Bronze | G118: 투락시스 빅터 조 | H118: 60 | I118: 67 | J118: 841 | K118: 53 | L118: 2014-07-07 | M118: 3 days | N118: 2014-08-27T01:20:59 | O118: 943979-1 | P118: 0 | Q118: 1 | R118: 117 | S118: 127
A119: 1340353 | B119: kr | C119: 1 | D119: 떳다찬영 | E119: r | F119: Bronze | G119: 아이어 델타 조 | H119: 60 | I119: 65 | J119: 841 | K119: 44 | L119: 2014-07-12 | M119: 2 days | N119: 2014-08-27T01:21:00 | O119: 1340353-1 | P119: 0 | Q119: 1 | R119: 118 | S119: 125
A120: 3521425 | B120: kr | C120: 1 | D120: 마탄의사수 | E120: z | F120: Bronze | G120: 타락귀 파이 조 | H120: 44 | I120: 42 | J120: 840 | K120: 1 | L120: 2014-07-10 | M120: 12 hours | N120: 2014-08-27T01:21:01 | O120: 3521425-1 | P120: 0 | Q120: 1 | R120: 119 | S120: 86
A121: 664313 | B121: kr | C121: 1 | D121: Jupiter | E121: t | F121: Bronze | G121: 할시온 엡실론 조 | H121: 44 | I121: 46 | J121: 839 | K121: 40 | L121: 2014-07-07 | M121: 2 days | N121: 2014-08-27T01:21:02 | O121: 664313-1 | P121: 0 | Q121: 1 | R121: 120 | S121: 90
A122: 4606602 | B122: kr | C122: 1 | D122: soma | E122: p | F122: Bronze | G122: 뮤탈리스크 마즈 조 | H122: 55 | I122: 52 | J122: 839 | K122: 11 | L122: 2014-07-31 | M122: 2 hours | N122: 2014-08-27T01:21:03 | O122: 4606602-1 | P122: 0 | Q122: 1 | R122: 121 | S122: 107
A123: 721233 | B123: kr | C123: 2 | D123: JACK | E123: t | F123: Bronze | G123: 할시온 엡실론 조 | H123: 92 | I123: 107 | J123: 838 | K123: 11 | L123: 2014-07-07 | M123: 4 hours | N123: 2014-08-27T01:21:04 | O123: 721233-2 | P123: 0 | Q123: 1 | R123: 122 | S123: 199
A124: 1055235 | B124: kr | C124: 2 | D124: OscarCool | E124: t | F124: Bronze | G124: 법무관 호크 조 | H124: 32 | I124: 32 | J124: 837 | K124: 24 | L124: 2014-07-07 | M124: 1 days | N124: 2014-08-27T01:21:05 | O124: 1055235-2 | P124: 0 | Q124: 1 | R124: 123 | S124: 64
A125: 3326967 | B125: kr | C125: 1 | D125: SlayersAZM | E125: t | F125: Bronze | G125: 타림 엑스레이 조 | H125: 113 | I125: 150 | J125: 837 | K125: 2 | L125: 2014-07-25 | M125: 3 hours | N125: 2014-08-27T01:21:06 | O125: 3326967-1 | P125: 0 | Q125: 1 | R125: 124 | S125: 263
A126: 4029635 | B126: kr | C126: 1 | D126: 미니맥스 | E126: p | F126: Bronze | G126: 화염방사병 뉴 조 | H126: 88 | I126: 105 | J126: 836 | K126: 7 | L126: 2014-07-06 | M126: 1 minutes | N126: 2014-08-27T01:21:07 | O126: 4029635-1 | P126: 0 | Q126: 1 | R126: 125 | S126: 193
A127: 2976502 | B127: kr | C127: 1 | D127: spay | E127: t | F127: Bronze | G127: 타락귀 파이 조 | H127: 31 | I127: 47 | J127: 835 | K127: 2 | L127: 2014-07-10 | M127: 2 hours | N127: 2014-08-27T01:21:08 | O127: 2976502-1 | P127: 0 | Q127: 1 | R127: 126 | S127: =H127+I127 -> 78
A128: 4448462 | B128: kr | C128: 1 | D128: RobRoyce | E128: t | F128: Bronze | G128: 타림 엑스레이 조 | H128: 43 | I128: 58 | J128: 835 | K128: 15 | L128: 2014-07-25 | M128: 10 hours | N128: 2014-08-27T01:21:09 | O128: 4448462-1 | P128: 0 | Q128: 1 | R128: 127 | S128: 101
A129: 3514918 | B129: kr | C129: 1 | D129: 야삽 | E129: p | F129: Bronze | G129: 정찰기 줄리엣 조 | H129: 76 | I129: 77 | J129: 833 | K129: 101 | L129: 2014-07-09 | M129: 4 days | N129: 2014-08-27T01:21:10 | O129: 3514918-1 | P129: 0 | Q129: 1 | R129: 128 | S129: 153
A130: 4380301 | B130: kr | C130: 1 | D130: 애키호용 | E130: z | F130: Bronze | G130: 펠라니스 폭스트롯 조 | H130: 159 | I130: 177 | J130: 832 | K130: 42 | L130: 2014-07-13 | M130: 2 days | N130: 2014-08-27T01:21:11 | O130: 4380301-1 | P130: 0 | Q130: 1 | R130: 129 | S130: 336
A131: 4516163 | B131: kr | C131: 1 | D131: startrack | E131: p | F131: Bronze | G131: 듀갈 에타 조 | H131: 190 | I131: 210 | J131: 830 | K131: 3 | L131: 2014-07-07 | M131: 15 hours | N131: 2014-08-27T01:21:12 | O131: 4516163-1 | P131: 0 | Q131: 1 | R131: 130 | S131: 400
A132: 469215 | B132: kr | C132: 1 | D132: 슬픈늑대 | E132: t | F132: Bronze | G132: 투락시스 빅터 조 | H132: 93 | I132: 105 | J132: 829 | K132: 32 | L132: 2014-07-07 | M132: 2 hours | N132: 2014-08-27T01:21:13 | O132: 469215-1 | P132: 0 | Q132: 1 | R132: 131 | S132: 198
A133: 4673642 | B133: kr | C133: 1 | D133: 성기사요 | E133: z | F133: Bronze | G133: 카스 알라모 조 | H133: 31 | I133: 52 | J133: 829 | K133: 12 | L133: 2014-08-21 | M133: 5 hours | N133: 2014-08-27T01:21:13 | O133: 4673642-1 | P133: 0 | Q133: 1 | R133: 132 | S133: 83
A134: 872130 | B134: kr | C134: 2 | D134: Wolf | E134: p | F134: Bronze | G134: 아이어 델타 조 | H134: 65 | I134: 68 | J134: 828 | K134: 96 | L134: 2014-07-07 | M134: 4 days | N134: 2014-08-27T01:21:14 | O134: 872130-2 | P134: 0 | Q134: 1 | R134: 133 | S134: 133
A135: 876230 | B135: kr | C135: 1 | D135: Mondchen | E135: t | F135: Bronze | G135: 용기병 시에라 조 | H135: 60 | I135: 68 | J135: 828 | K135: 25 | L135: 2014-07-08 | M135: 1 hours | N135: 2014-08-27T01:21:15 | O135: 876230-1 | P135: 0 | Q135: 1 | R135: 134 | S135: 128
A136: 623134 | B136: kr | C136: 1 | D136: 지금이때다 | E136: t | F136: Bronze | G136: 아지마르 알파 조 | H136: 32 | I136: 40 | J136: 827 | K136: 33 | L136: 2014-07-13 | M136: 3 days | N136: 2014-08-27T01:21:17 | O136: 623134-1 | P136: 0 | Q136: 1 | R136: 135 | S136: 72
A137: 3175002 | B137: kr | C137: 1 | D137: peace | E137: p | F137: Bronze | G137: 아지마르 알파 조 | H137: 109 | I137: 127 | J137: 827 | K137: 39 | L137: 2014-07-12 | M137: 2 days | N137: 2014-08-27T01:21:17 | O137: 3175002-1 | P137: 0 | Q137: 1 | R137: 136 | S137: 236
A138: 535598 | B138: kr | C138: 1 | D138: dssf | E138: t | F138: Bronze | G138: 화염방사병 뉴 조 | H138: 41 | I138: 65 | J138: 826 | K138: 45 | L138: 2014-07-06 | M138: 2 days | N138: 2014-08-27T01:21:18 | O138: 535598-1 | P138: 0 | Q138: 1 | R138: 137 | S138: 106
A139: 1172655 | B139: kr | C139: 2 | D139: 禁區 | E139: p | F139: Bronze | G139: 법무관 호크 조 | H139: 127 | I139: 152 | J139: 826 | K139: 10 | L139: 2014-07-07 | M139: 2 hours | N139: 2014-08-27T01:21:19 | O139: 1172655-2 | P139: 0 | Q139: 1 | R139: 138 | S139: 279
A140: 1896543 | B140: kr | C140: 1 | D140: 택배머신 | E140: t | F140: Bronze | G140: 버밀리언 노벰버 조 | H140: 31 | I140: 37 | J140: 826 | K140: 74 | L140: 2014-08-03 | M140: 4 days | N140: 2014-08-27T01:21:20 | O140: 1896543-1 | P140: 0 | Q140: 1 | R140: 139 | S140: 68
A141: 3441851 | B141: kr | C141: 1 | D141: 사람 | E141: t | F141: Bronze | G141: 정찰기 줄리엣 조 | H141: 40 | I141: 29 | J141: 826 | K141: 117 | L141: 2014-07-17 | M141: 7 days | N141: 2014-08-27T01:21:21 | O141: 3441851-1 | P141: 0 | Q141: 2 | R141: 140 | S141: 69
A142: 1077422 | B142: kr | C142: 2 | D142: bill | E142: z | F142: Bronze | G142: 투락시스 빅터 조 | H142: 39 | I142: 55 | J142: 825 | K142: 17 | L142: 2014-07-07 | M142: 2 hours | N142: 2014-08-27T01:21:22 | O142: 1077422-2 | P142: 0 | Q142: 1 | R142: 141 | S142: 94
A143: 996251 | B143: kr | C143: 1 | D143: KingMalthael | E143: t | F143: Bronze | G143: 화염방사병 뉴 조 | H143: 32 | I143: 48 | J143: 823 | K143: 20 | L143: 2014-07-22 | M143: 9 hours | N143: 2014-08-27T01:21:23 | O143: 996251-1 | P143: 0 | Q143: 1 | R143: 142 | S143: 80
A144: 1128217 | B144: kr | C144: 1 | D144: Marine | E144: t | F144: Bronze | G144: 신관 뮤 조 | H144: 52 | I144: 46 | J144: 823 | K144: 47 | L144: 2014-08-02 | M144: 1 days | N144: 2014-08-27T01:21:24 | O144: 1128217-1 | P144: 0 | Q144: 1 | R144: 143 | S144: 98
A145: 1354310 | B145: kr | C145: 2 | D145: LoWay | E145: p | F145: Bronze | G145: 몬리스 크시 조 | H145: 35 | I145: 28 | J145: 822 | K145: 93 | L145: 2014-08-14 | M145: 1 days | N145: 2014-08-27T01:21:25 | O145: 1354310-2 | P145: 0 | Q145: 1 | R145: 144 | S145: 63
A146: 2609833 | B146: kr | C146: 1 | D146: 똥싼맹구 | E146: p | F146: Bronze | G146: 펠라니스 폭스트롯 조 | H146: 59 | I146: 55 | J146: 822 | K146: 6 | L146: 2014-07-11 | M146: 6 days | N146: 2014-08-27T01:21:26 | O146: 2609833-1 | P146: 0 | Q146: 1 | R146: 145 | S146: 114
A147: 1255664 | B147: kr | C147: 2 | D147: 大炮 | E147: p | F147: Bronze | G147: 정찰기 줄리엣 조 | H147: 60 | I147: 72 | J147: 820 | K147: 11 | L147: 2014-07-07 | M147: 3 hours | N147: 2014-08-27T01:21:27 | O147: 1255664-2 | P147: 0 | Q147: 1 | R147: 146 | S147: 132
A148: 2564086 | B148: kr | C148: 1 | D148: gogodk | E148: t | F148: Bronze | G148: 브락시스 딕시 조 | H148: 49 | I148: 62 | J148: 820 | K148: 62 | L148: 2014-07-07 | M148: 2 days | N148: 2014-08-27T01:21:28 | O148: 2564086-1 | P148: 0 | Q148: 1 | R148: 147 | S148: 111
A149: 4378581 | B149: kr | C149: 1 | D149: AdmiralBonng | E149: r | F149: Bronze | G149: 망령 오메가 조 | H149: 67 | I149: 78 | J149: 820 | K149: 1 | L149: 2014-08-19 | M149: 1 hours | N149: 2014-08-27T01:21:29 | O149: 4378581-1 | P149: 0 | Q149: 1 | R149: 148 | S149: 145
A150: 4402054 | B150: kr | C150: 1 | D150: FAMDOMBBYLEX | E150: t | F150: Bronze | G150: 코로니스 감마 조 | H150: 137 | I150: 158 | J150: 820 | K150: 23 | L150: 2014-07-06 | M150: 23 hours | N150: 2014-08-27T01:21:30 | O150: 4402054-1 | P150: 0 | Q150: 1 | R150: 149 | S150: 295
A151: 738130 | B151: kr | C151: 2 | D151: Migo | E151: t | F151: Bronze | G151: 듀갈 에타 조 | H151: 102 | I151: 115 | J151: 819 | K151: 4 | L151: 2014-07-07 | M151: 2 days | N151: 2014-08-27T01:21:31 | O151: 738130-2 | P151: 0 | Q151: 1 | R151: 150 | S151: 217
A152: 221487 | B152: kr | C152: 1 | D152: 천그루 | E152: t | F152: Bronze | G152: 코로니스 감마 조 | H152: 103 | I152: 109 | J152: 818 | K152: 57 | L152: 2014-07-06 | M152: 3 days | N152: 2014-08-27T01:21:32 | O152: 221487-1 | P152: 0 | Q152: 1 | R152: 151 | S152: 212
A153: 1265684 | B153: kr | C153: 2 | D153: 憂鬱的三稜鏡 | E153: z | F153: Bronze | G153: 브락시스 딕시 조 | H153: 77 | I153: 73 | J153: 818 | K153: 12 | L153: 2014-07-07 | M153: 3 hours | N153: 2014-08-27T01:21:33 | O153: 1265684-2 | P153: 0 | Q153: 1 | R153: 152 | S153: 150
A154: 1033821 | B154: kr | C154: 1 | D154: 포풍같은러쉬 | E154: t | F154: Bronze | G154: 코로니스 감마 조 | H154: 76 | I154: 90 | J154: 815 | K154: 1 | L154: 2014-07-06 | M154: 10 hours | N154: 2014-08-27T01:21:34 | O154: 1033821-1 | P154: 0 | Q154: 1 | R154: 153 | S154: 166
A155: 1129793 | B155: kr | C155: 1 | D155: 싸울아비 | E155: r | F155: Bronze | G155: 투락시스 빅터 조 | H155: 60 | I155: 71 | J155: 814 | K155: 9 | L155: 2014-07-07 | M155: 1 hours | N155: 2014-08-27T01:21:35 | O155: 1129793-1 | P155: 0 | Q155: 1 | R155: 154 | S155: 131
A156: 3712314 | B156: kr | C156: 1 | D156: 최민식님 | E156: t | F156: Bronze | G156: 울트라리스크 카이 조 | H156: 36 | I156: 35 | J156: 813 | K156: 120 | L156: 2014-07-20 | M156: 5 days | N156: 2014-08-27T01:21:36 | O156: 3712314-1 | P156: 0 | Q156: 2 | R156: 155 | S156: 71
A157: 1272083 | B157: kr | C157: 1 | D157: 할리와스타투맨 | E157: t | F157: Bronze | G157: 아지마르 알파 조 | H157: 74 | I157: 80 | J157: 812 | K157: 43 | L157: 2014-07-12 | M157: 2 days | N157: 2014-08-27T01:21:37 | O157: 1272083-1 | P157: 0 | Q157: 1 | R157: 156 | S157: 154
A158: 3026822 | B158: kr | C158: 1 | D158: neoforce | E158: t | F158: Bronze | G158: 타락귀 파이 조 | H158: 49 | I158: 51 | J158: 812 | K158: 10 | L158: 2014-07-10 | M158: 2 hours | N158: 2014-08-27T01:21:38 | O158: 3026822-1 | P158: 0 | Q158: 1 | R158: 157 | S158: 100
A159: 4096663 | B159: kr | C159: 1 | D159: 육오슬라비아 | E159: p | F159: Bronze | G159: 골리앗 베타 조 | H159: 39 | I159: 55 | J159: 812 | K159: 59 | L159: 2014-08-17 | M159: 3 days | N159: 2014-08-27T01:21:39 | O159: 4096663-1 | P159: 0 | Q159: 1 | R159: 158 | S159: 94
A160: 211820 | B160: kr | C160: 2 | D160: PennySR | E160: r | F160: Bronze | G160: 코로니스 감마 조 | H160: 177 | I160: 203 | J160: 811 | K160: 8 | L160: 2014-07-06 | M160: 7 minutes | N160: 2014-08-27T01:21:39 | O160: 211820-2 | P160: 0 | Q160: 1 | R160: 159 | S160: 380
A161: 189257 | B161: kr | C161: 1 | D161: 로빈 | E161: p | F161: Bronze | G161: 코로니스 감마 조 | H161: 35 | I161: 37 | J161: 809 | K161: 72 | L161: 2014-07-06 | M161: 2 days | N161: 2014-08-27T01:21:40 | O161: 189257-1 | P161: 0 | Q161: 1 | R161: 160 | S161: 72
A162: 2153747 | B162: kr | C162: 1 | D162: 찰스 | E162: z | F162: Bronze | G162: 정찰기 줄리엣 조 | H162: 43 | I162: 72 | J162: 809 | K162: 16 | L162: 2014-07-06 | M162: 12 hours | N162: 2014-08-27T01:21:41 | O162: 2153747-1 | P162: 0 | Q162: 1 | R162: 161 | S162: 115
A163: 2252592 | B163: kr | C163: 1 | D163: imagoodboy | E163: r | F163: Bronze | G163: 펠라니스 폭스트롯 조 | H163: 64 | I163: 67 | J163: 809 | K163: 55 | L163: 2014-07-12 | M163: 1 days | N163: 2014-08-27T01:21:42 | O163: 2252592-1 | P163: 0 | Q163: 1 | R163: 162 | S163: 131
A164: 3642092 | B164: kr | C164: 1 | D164: 먹고보니할매 | E164: p | F164: Bronze | G164: 스완 오미크론 조 | H164: 55 | I164: 57 | J164: 809 | K164: 59 | L164: 2014-07-08 | M164: 3 days | N164: 2014-08-27T01:21:43 | O164: 3642092-1 | P164: 0 | Q164: 1 | R164: 163 | S164: 112
A165: 3996666 | B165: kr | C165: 1 | D165: 닉노이 | E165: t | F165: Bronze | G165: 토라스크 피 조 | H165: 31 | I165: 37 | J165: 809 | K165: 10 | L165: 2014-07-13 | M165: 13 minutes | N165: 2014-08-27T01:21:44 | O165: 3996666-1 | P165: 0 | Q165: 1 | R165: 164 | S165: 68
A166: 1058680 | B166: kr | C166: 1 | D166: 오라오라 | E166: t | F166: Bronze | G166: 투락시스 빅터 조 | H166: 33 | I166: 32 | J166: 808 | K166: 28 | L166: 2014-07-07 | M166: 2 hours | N166: 2014-08-27T01:21:45 | O166: 1058680-1 | P166: 0 | Q166: 1 | R166: 165 | S166: 65
A167: 825121 | B167: kr | C167: 2 | D167: stargogo | E167: t | F167: Bronze | G167: 화염방사병 뉴 조 | H167: 40 | I167: 46 | J167: 805 | K167: 59 | L167: 2014-07-06 | M167: 3 days | N167: 2014-08-27T01:21:46 | O167: 825121-2 | P167: 0 | Q167: 1 | R167: 166 | S167: 86
A168: 4599966 | B168: kr | C168: 1 | D168: dimaria | E168: p | F168: Bronze | G168: 계승자 그라비티 조 | H168: 104 | I168: 131 | J168: 805 | K168: 1 | L168: 2014-07-09 | M168: 1 days | N168: 2014-08-27T01:21:47 | O168: 4599966-1 | P168: 0 | Q168: 1 | R168: 167 | S168: 235
A169: 226376 | B169: kr | C169: 2 | D169: saweaz | E169: z | F169: Bronze | G169: 용기병 시에라 조 | H169: 29 | I169: 31 | J169: 802 | K169: 87 | L169: 2014-07-08 | M169: 1 days | N169: 2014-08-27T01:21:48 | O169: 226376-2 | P169: 0 | Q169: 1 | R169: 168 | S169: 60
A170: 583438 | B170: kr | C170: 1 | D170: 태권 | E170: z | F170: Bronze | G170: 계승자 그라비티 조 | H170: 33 | I170: 39 | J170: 801 | K170: 14 | L170: 2014-07-30 | M170: 8 hours | N170: 2014-08-27T01:21:49 | O170: 583438-1 | P170: 0 | Q170: 1 | R170: 169 | S170: 72
A171: 4408498 | B171: kr | C171: 1 | D171: OJingAYa | E171: p | F171: Bronze | G171: 법무관 호크 조 | H171: 31 | I171: 57 | J171: 800 | K171: 24 | L171: 2014-07-07 | M171: 17 hours | N171: 2014-08-27T01:21:50 | O171: 4408498-1 | P171: 0 | Q171: 1 | R171: 170 | S171: 88
A172: 180829 | B172: kr | C172: 2 | D172: wavequation | E172: t | F172: Bronze | G172: 투락시스 빅터 조 | H172: 102 | I172: 128 | J172: 799 | K172: 110 | L172: 2014-07-07 | M172: 2 days | N172: 2014-08-27T01:21:51 | O172: 180829-2 | P172: 0 | Q172: 2 | R172: 171 | S172: 230
A173: 823600 | B173: kr | C173: 1 | D173: 대장 | E173: p | F173: Bronze | G173: 신관 뮤 조 | H173: 49 | I173: 64 | J173: 799 | K173: 1 | L173: 2014-07-09 | M173: 9 hours | N173: 2014-08-27T01:21:52 | O173: 823600-1 | P173: 0 | Q173: 1 | R173: 172 | S173: 113
A174: 3199279 | B174: kr | C174: 1 | D174: Leedaegyu | E174: t | F174: Bronze | G174: 신관 뮤 조 | H174: 29 | I174: 29 | J174: 795 | K174: 111 | L174: 2014-07-09 | M174: 3 days | N174: 2014-08-27T01:21:53 | O174: 3199279-1 | P174: 0 | Q174: 2 | R174: 173 | S174: 58
A175: 488327 | B175: kr | C175: 2 | D175: 鹽巴哥 | E175: p | F175: Bronze | G175: 코로니스 감마 조 | H175: 94 | I175: 101 | J175: 793 | K175: 19 | L175: 2014-07-06 | M175: 1 hours | N175: 2014-08-27T01:21:54 | O175: 488327-2 | P175: 0 | Q175: 1 | R175: 174 | S175: 195
A176: 1038442 | B176: kr | C176: 1 | D176: 메탈리카 | E176: r | F176: Bronze | G176: 타락귀 파이 조 | H176: 36 | I176: 48 | J176: 793 | K176: 43 | L176: 2014-07-10 | M176: 2 days | N176: 2014-08-27T01:21:55 | O176: 1038442-1 | P176: 0 | Q176: 1 | R176: 175 | S176: 84
A177: 3846443 | B177: kr | C177: 1 | D177: 토토의신 | E177: p | F177: Bronze | G177: 전쟁광 용병단 오스카 조 | H177: 41 | I177: 60 | J177: 793 | K177: 13 | L177: 2014-07-26 | M177: 7 hours | N177: 2014-08-27T01:21:56 | O177: 3846443-1 | P177: 0 | Q177: 1 | R177: 176 | S177: 101
A178: 172025 | B178: kr | C178: 1 | D178: scuffle | E178: z | F178: Bronze | G178: 군락 제타 조 | H178: 155 | I178: 212 | J178: 792 | K178: 12 | L178: 2014-07-07 | M178: 7 hours | N178: 2014-08-27T01:21:57 | O178: 172025-1 | P178: 0 | Q178: 1 | R178: 177 | S178: 367
A179: 3945061 | B179: kr | C179: 1 | D179: tosin | E179: p | F179: Bronze | G179: 계승자 그라비티 조 | H179: 41 | I179: 50 | J179: 792 | K179: 2 | L179: 2014-08-04 | M179: 4 hours | N179: 2014-08-27T01:21:58 | O179: 3945061-1 | P179: 0 | Q179: 1 | R179: 178 | S179: 91
A180: 381119 | B180: kr | C180: 1 | D180: Liberty | E180: r | F180: Bronze | G180: 갈귀 찰리 조 | H180: 28 | I180: 29 | J180: 788 | K180: 93 | L180: 2014-08-16 | M180: 1 days | N180: 2014-08-27T01:21:59 | O180: 381119-1 | P180: 0 | Q180: 1 | R180: 179 | S180: 57
A181: 688484 | B181: kr | C181: 2 | D181: GoodTake | E181: r | F181: Bronze | G181: 전쟁광 용병단 오스카 조 | H181: 88 | I181: 103 | J181: 788 | K181: 11 | L181: 2014-07-24 | M181: 2 days | N181: 2014-08-27T01:22:00 | O181: 688484-2 | P181: 0 | Q181: 1 | R181: 180 | S181: 191
A182: 1377776 | B182: kr | C182: 1 | D182: 납치 | E182: t | F182: Bronze | G182: 일벌레 탱고 조 | H182: 28 | I182: 42 | J182: 788 | K182: 1 | L182: 2014-07-11 | M182: 2 hours | N182: 2014-08-27T01:22:01 | O182: 1377776-1 | P182: 0 | Q182: 1 | R182: 181 | S182: 70
A183: 1926483 | B183: kr | C183: 1 | D183: Marin | E183: p | F183: Bronze | G183: 집정관 요타 조 | H183: 35 | I183: 43 | J183: 788 | K183: 56 | L183: 2014-07-10 | M183: 3 days | N183: 2014-08-27T01:22:02 | O183: 1926483-1 | P183: 0 | Q183: 1 | R183: 182 | S183: 78
A184: 3501968 | B184: kr | C184: 1 | D184: LeeKu | E184: r | F184: Bronze | G184: 울트라리스크 카이 조 | H184: 30 | I184: 22 | J184: 788 | K184: 165 | L184: 2014-07-26 | M184: 1 days | N184: 2014-08-27T01:22:03 | O184: 3501968-1 | P184: 0 | Q184: 2 | R184: 183 | S184: 52
A185: 3570145 | B185: kr | C185: 1 | D185: Sunny | E185: t | F185: Bronze | G185: 할시온 엡실론 조 | H185: 46 | I185: 62 | J185: 788 | K185: 70 | L185: 2014-07-07 | M185: 4 hours | N185: 2014-08-27T01:22:04 | O185: 3570145-1 | P185: 0 | Q185: 1 | R185: 184 | S185: 108
A186: 4187866 | B186: kr | C186: 1 | D186: 머털도사 | E186: p | F186: Bronze | G186: 법무관 호크 조 | H186: 41 | I186: 49 | J186: 788 | K186: 46 | L186: 2014-07-08 | M186: 2 days | N186: 2014-08-27T01:22:05 | O186: 4187866-1 | P186: 0 | Q186: 1 | R186: 185 | S186: 90
A187: 232607 | B187: kr | C187: 1 | D187: bigboy | E187: t | F187: Bronze | G187: 타이커스 로미오 조 | H187: 38 | I187: 56 | J187: 787 | K187: 12 | L187: 2014-07-12 | M187: 6 hours | N187: 2014-08-27T01:22:06 | O187: 232607-1 | P187: 0 | Q187: 1 | R187: 186 | S187: 94
A188: 2084472 | B188: kr | C188: 1 | D188: lionet | E188: p | F188: Bronze | G188: 아지마르 알파 조 | H188: 76 | I188: 74 | J188: 787 | K188: 160 | L188: 2014-07-12 | M188: 10 days | N188: 2014-08-27T01:22:07 | O188: 2084472-1 | P188: 0 | Q188: 2 | R188: 187 | S188: 150
A189: 1332750 | B189: kr | C189: 1 | D189: splayerccm | E189: p | F189: Bronze | G189: 용기병 시에라 조 | H189: 40 | I189: 46 | J189: 785 | K189: 49 | L189: 2014-07-08 | M189: 2 hours | N189: 2014-08-27T01:22:08 | O189: 1332750-1 | P189: 0 | Q189: 1 | R189: 188 | S189: 86
A190: 4232586 | B190: kr | C190: 1 | D190: 박하사탕 | E190: t | F190: Bronze | G190: 타이커스 로미오 조 | H190: 32 | I190: 37 | J190: 785 | K190: 101 | L190: 2014-07-12 | M190: 2 days | N190: 2014-08-27T01:22:09 | O190: 4232586-1 | P190: 0 | Q190: 1 | R190: 189 | S190: 69
A191: 1052018 | B191: kr | C191: 2 | D191: 速度決定一切 | E191: t | F191: Bronze | G191: 타이커스 로미오 조 | H191: 52 | I191: 60 | J191: 784 | K191: 40 | L191: 2014-07-12 | M191: 2 days | N191: 2014-08-27T01:22:10 | O191: 1052018-2 | P191: 0 | Q191: 1 | R191: 190 | S191: =H191+I191 -> 112
A192: 675903 | B192: kr | C192: 2 | D192: TpWolfKurorO | E192: r | F192: Bronze | G192: 화염방사병 뉴 조 | H192: 93 | I192: 116 | J192: 783 | K192: 25 | L192: 2014-07-06 | M192: 1 days | N192: 2014-08-27T01:22:11 | O192: 675903-2 | P192: 0 | Q192: 1 | R192: 191 | S192: 209
A193: 4594332 | B193: kr | C193: 1 | D193: 히틀러 | E193: p | F193: Bronze | G193: 투락시스 빅터 조 | H193: 146 | I193: 154 | J193: 783 | K193: 13 | L193: 2014-07-07 | M193: 7 hours | N193: 2014-08-27T01:22:12 | O193: 4594332-1 | P193: 0 | Q193: 1 | R193: 192 | S193: 300
A194: 227320 | B194: kr | C194: 1 | D194: 난참차케 | E194: p | F194: Bronze | G194: 집정관 요타 조 | H194: 39 | I194: 45 | J194: 782 | K194: 81 | L194: 2014-07-12 | M194: 2 hours | N194: 2014-08-27T01:22:13 | O194: 227320-1 | P194: 0 | Q194: 1 | R194: 193 | S194: 84
A195: 1108336 | B195: kr | C195: 2 | D195: 無敵小鐵 | E195: t | F195: Bronze | G195: 화염방사병 뉴 조 | H195: 28 | I195: 32 | J195: 782 | K195: 142 | L195: 2014-07-06 | M195: 2 hours | N195: 2014-08-27T01:22:14 | O195: 1108336-2 | P195: 0 | Q195: 2 | R195: 194 | S195: 60
A196: 1476354 | B196: kr | C196: 1 | D196: LIghtnIng | E196: p | F196: Bronze | G196: 화염방사병 뉴 조 | H196: 156 | I196: 173 | J196: 782 | K196: 92 | L196: 2014-07-06 | M196: 1 days | N196: 2014-08-27T01:22:15 | O196: 1476354-1 | P196: 0 | Q196: 1 | R196: 195 | S196: 329
A197: 4712185 | B197: kr | C197: 1 | D197: Elldee | E197: r | F197: Bronze | G197: 갈귀 찰리 조 | H197: 29 | I197: 31 | J197: 780 | K197: 87 | L197: 2014-08-16 | M197: 9 hours | N197: 2014-08-27T01:22:16 | O197: 4712185-1 | P197: 0 | Q197: 1 | R197: 196 | S197: 60
A198: 415825 | B198: kr | C198: 1 | D198: 탱탱탱 | E198: r | F198: Bronze | G198: 아이어 델타 조 | H198: 144 | I198: 213 | J198: 778 | K198: 9 | L198: 2014-07-07 | M198: 1 hours | N198: 2014-08-27T01:22:17 | O198: 415825-1 | P198: 0 | Q198: 1 | R198: 197 | S198: 357
A199: 815200 | B199: kr | C199: 2 | D199: ttnwinf | E199: t | F199: Bronze | G199: 투락시스 빅터 조 | H199: 84 | I199: 94 | J199: 778 | K199: 87 | L199: 2014-07-07 | M199: 4 days | N199: 2014-08-27T01:22:18 | O199: 815200-2 | P199: 0 | Q199: 1 | R199: 198 | S199: 178
A200: 115725 | B200: kr | C200: 2 | D200: 紅花油 | E200: p | F200: Bronze | G200: 화염방사병 뉴 조 | H200: 84 | I200: 119 | J200: 777 | K200: 38 | L200: 2014-07-06 | M200: 1 days | N200: 2014-08-27T01:22:18 | O200: 115725-2 | P200: 0 | Q200: 1 | R200: 199 | S200: 203
... 4300 more rows

Sheet Analysis - Team
A1: 2v2 - Most Recent Games
B2: Bronze | D2: Silver | F2: Gold | H2: Platinum | J2: Diamond | L2: Master | N2: Totals | P2: Total Team Count
A3: Category | B3: Last Week | C3: Last Month | D3: Last Week | E3: Last Month | F3: Last Week | G3: Last Month | H3: Last Week | I3: Last Month | J3: Last Week | K3: Last Month | L3: Last Week | M3: Last Month | N3: Last Week | O3: Last Month
A4: Totals | B4: 861 | C4: 1623 | D4: 987 | E4: 1614 | F4: 976 | G4: 1214 | H4: 358 | I4: 392 | J4: 95 | K4: 79 | L4: 43 | M4: 21 | N4: 3320 | O4: 4943
A5: At least 1 game within the last month | B5: 2484 | D5: 2601 | F5: 2190 | H5: 750 | J5: 174 | L5: 64 | N5: 8263
B6: Avg Wins | C6: Avg Losses | D6: Avg Wins | E6: Avg Losses | F6: Avg Wins | G6: Avg Losses | H6: Avg Wins | I6: Avg Losses | J6: Avg Wins | K6: Avg Losses | L6: Avg Wins | M6: Avg Losses | N6: Avg Wins | O6: Avg Losses
A7: Games Count | B7: 4.074480045 | C7: 5.345980888 | D7: 7.385243511 | E7: 6.742198892 | F7: 13.16184352 | G7: 10.44158628 | H7: 22.13225806 | I7: 16.73978495 | J7: 27.71904762 | K7: 18.05714286 | L7: 44.21917808 | M7: 18.17808219 | N7: 9.663878534 | O7: 8.369215383
A8: Avg Score | B8: 95.23889826 | D8: 149.2983377 | F8: 211.4841015 | H8: 273.7612903 | J8: 313.6428571 | L8: 381.369863 | N8: 162.8376216
A9: Total Team Count | B9: 3558 | D9: 3429 | F9: 2799 | H9: 930 | J9: 210 | L9: 73 | N9: 10999
A13: 3v3 - Most Recent Games
B14: Bronze | D14: Silver | F14: Gold | H14: Platinum | J14: Diamond | L14: Master | N14: Totals | P14: Total Team Count
A15: Category | B15: Last Week | C15: Last Month | D15: Last Week | E15: Last Month | F15: Last Week | G15: Last Month | H15: Last Week | I15: Last Month | J15: Last Week | K15: Last Month | L15: Last Week | M15: Last Month | N15: Last Week | O15: Last Month
A16: Totals | B16: 270 | C16: 608 | D16: 455 | E16: 917 | F16: 399 | G16: 664 | H16: 137 | I16: 212 | J16: 30 | K16: 40 | L16: 2 | M16: 4 | N16: 1293 | O16: 2445
A17: At least 1 game within the last month | B17: 878 | D17: 1372 | F17: 1063 | H17: 349 | J17: 70 | L17: 6 | N17: 3738
B18: Avg Wins | C18: Avg Losses | D18: Avg Wins | E18: Avg Losses | F18: Avg Wins | G18: Avg Losses | H18: Avg Wins | I18: Avg Losses | J18: Avg Wins | K18: Avg Losses | L18: Avg Wins | M18: Avg Losses | N18: Avg Wins | O18: Avg Losses
A19: Games Count | B19: 3.613601236 | C19: 4.442812983 | D19: 5.625197681 | E19: 5.076963627 | F19: 9.105153203 | G19: 6.378830084 | H19: 12.86401674 | I19: 7.023012552 | J19: 19.74117647 | K19: 9.2 | L19: 34.9 | M19: 10.3 | N19: 7.658846154 | O19: 5.790192308
A20: Avg Score | B20: 75.53400309 | D20: 92.55561413 | F20: 114.4693593 | H20: 127.3389121 | J20: 182.4941176 | L20: 196.6 | N20: 104.5928846
A21: Total Team Count | B21: 1294 | D21: 1897 | F21: 1436 | H21: 478 | J21: 85 | L21: 10 | N21: 5200
A25: 4v4 - Most Recent Games
B26: Bronze | D26: Silver | F26: Gold | H26: Platinum | J26: Diamond | L26: Master | N26: Totals | P26: Total Team Count
A27: Category | B27: Last Week | C27: Last Month | D27: Last Week | E27: Last Month | F27: Last Week | G27: Last Month | H27: Last Week | I27: Last Month | J27: Last Week | K27: Last Month | L27: Last Week | M27: Last Month | N27: Last Week | O27: Last Month
A28: Totals | B28: 66 | C28: 178 | D28: 158 | E28: 340 | F28: 77 | G28: 125 | H28: 40 | I28: 115 | J28: 2 | K28: 5 | N28: 343 | O28: 763
A29: At least 1 game within the last month | B29: 244 | D29: 498 | F29: 202 | H29: 155 | J29: 7 | N29: 1106
B30: Avg Wins | C30: Avg Losses | D30: Avg Wins | E30: Avg Losses | F30: Avg Wins | G30: Avg Losses | H30: Avg Wins | I30: Avg Losses | J30: Avg Wins | K30: Avg Losses | L30: Avg Wins | M30: Avg Losses | N30: Avg Wins | O30: Avg Losses
A31: Games Count | B31: 2.962566845 | C31: 4.181818182 | D31: 4.534170153 | E31: 3.79637378 | F31: 7.054744526 | G31: 3.806569343 | H31: 6.037037037 | I31: 1.305555556 | J31: 7.421052632 | K31: 1.105263158 | N31: 5.05375 | O31: 3.584375
A32: Avg Score | B32: 60.95187166 | D32: 65.42956764 | F32: 90.3540146 | H32: 39.28240741 | J32: 58.42105263 | N32: 66.266875
A33: Total Team Count | B33: 374 | D33: 717 | F33: 274 | H33: 216 | J33: 19 | N33: 1600
A37: 2v2r - Most Recent Games
B38: Bronze | D38: Silver | F38: Gold | H38: Platinum | J38: Diamond | L38: Master | N38: Totals
A39: Category | B39: Last Week | C39: Last Month | D39: Last Week | E39: Last Month | F39: Last Week | G39: Last Month | H39: Last Week | I39: Last Month | J39: Last Week | K39: Last Month | L39: Last Week | M39: Last Month | N39: Last Week | O39: Last Month
A40: Totals | B40: 349 | C40: 613 | D40: 1031 | E40: 1233 | F40: 803 | G40: 605 | H40: 520 | I40: 301 | J40: 167 | K40: 89 | L40: 82 | M40: 34 | N40: 2952 | O40: 2875
A41: At least 1 game within the last month | B41: 962 | D41: 2264 | F41: 1408 | H41: 821 | J41: 256 | L41: 116 | N41: 5827
B42: Avg Wins | C42: Avg Losses | D42: Avg Wins | E42: Avg Losses | F42: Avg Wins | G42: Avg Losses | H42: Avg Wins | I42: Avg Losses | J42: Avg Wins | K42: Avg Losses | L42: Avg Wins | M42: Avg Losses | N42: Avg Wins | O42: Avg Losses
A43: Games Count | B43: 0 | C43: 5.522331567 | D43: 0 | E43: 9.180189673 | F43: 0 | G43: 20.68727705 | H43: 0 | I43: 34.94909862 | J43: 0 | K43: 46.88256228 | L43: 0 | M43: 43.31746032 | N43: 0 | O43: 16.64111111
A44: Avg Score | B44: 62.86222559 | D44: 165.7242712 | F44: 342.3585018 | H44: 438.8313892 | J44: 503.0462633 | L44: 561.047619 | N44: 243.9681944
A45: Total Player Count | B45: 1321 | D45: 2847 | F45: 1682 | H45: 943 | J45: 281 | L45: 126 | N45: 7200
A49: 3v3r - Most Recent Games
B50: Bronze | D50: Silver | F50: Gold | H50: Platinum | J50: Diamond | L50: Master | N50: Totals
A51: Category | B51: Last Week | C51: Last Month | D51: Last Week | E51: Last Month | F51: Last Week | G51: Last Month | H51: Last Week | I51: Last Month | J51: Last Week | K51: Last Month | L51: Last Week | M51: Last Month | N51: Last Week | O51: Last Month
A52: Totals | B52: 450 | C52: 683 | D52: 1842 | E52: 1630 | F52: 1402 | G52: 828 | H52: 661 | I52: 345 | J52: 206 | K52: 108 | L52: 100 | M52: 42 | N52: 4661 | O52: 3636
A53: At least 1 game within the last month | B53: 1133 | D53: 3472 | F53: 2230 | H53: 1006 | J53: 314 | L53: 142 | N53: 8297
B54: Avg Wins | C54: Avg Losses | D54: Avg Wins | E54: Avg Losses | F54: Avg Wins | G54: Avg Losses | H54: Avg Wins | I54: Avg Losses | J54: Avg Wins | K54: Avg Losses | L54: Avg Wins | M54: Avg Losses | N54: Avg Wins | O54: Avg Losses
A55: Games Count | B55: 0 | C55: 15.06784083 | D55: 0 | E55: 14.5981241 | F55: 0 | G55: 30.70339977 | H55: 0 | I55: 42.06927176 | J55: 0 | K55: 45.27094972 | L55: 0 | M55: 45.13855422 | N55: 0 | O55: 24.13090909
A56: Avg Score | B56: 112.2635356 | D56: 234.5615681 | F56: 408.2106292 | H56: 464.3063943 | J56: 485.3240223 | L56: 593.0722892 | N56: 308.860101
A57: Total Player Count | B57: 1533 | D57: 4158 | F57: 2559 | H57: 1126 | J57: 358 | L57: 166 | N57: 9900
A61: 4v4r - Most Recent Games
B62: Bronze | D62: Silver | F62: Gold | H62: Platinum | J62: Diamond | L62: Master | N62: Totals
A63: Category | B63: Last Week | C63: Last Month | D63: Last Week | E63: Last Month | F63: Last Week | G63: Last Month | H63: Last Week | I63: Last Month | J63: Last Week | K63: Last Month | L63: Last Week | M63: Last Month | N63: Last Week | O63: Last Month
A64: Totals | B64: 292 | C64: 484 | D64: 780 | E64: 733 | F64: 470 | G64: 289 | H64: 85 | I64: 95 | J64: 47 | K64: 36 | L64: 19 | M64: 12 | N64: 1693 | O64: 1649
A65: At least 1 game within the last month | B65: 776 | D65: 1513 | F65: 759 | H65: 180 | J65: 83 | L65: 31 | N65: 3342
B66: Avg Wins | C66: Avg Losses | D66: Avg Wins | E66: Avg Losses | F66: Avg Wins | G66: Avg Losses | H66: Avg Wins | I66: Avg Losses | J66: Avg Wins | K66: Avg Losses | L66: Avg Wins | M66: Avg Losses | N66: Avg Wins | O66: Avg Losses
A67: Games Count | B67: 0 | C67: 8.086053412 | D67: 0 | E67: 14.3188326 | F67: 0 | G67: 27.00671141 | H67: 0 | I67: 14.71615721 | J67: 0 | K67: 17.11650485 | L67: 0 | M67: 19.93617021 | N67: 0 | O67: 17.53292683
A68: Avg Score | B68: 68.73689416 | D68: 226.1971366 | F68: 395.8187919 | H68: 245.8427948 | J68: 303.0291262 | L68: 489.8297872 | N68: 254.4173171
A69: Total Player Count | B69: 1011 | D69: 1816 | F69: 894 | H69: 229 | J69: 103 | L69: 47 | N69: 4100
A73: Most Recent Game Played
A74: Percentages of Total | B74: Last Week | C74: Last Month
A75: 2v2 | B75: =N4/N9 -> 0.3018456223 | C75: =N5/N9 -> 0.7512501136
A76: 3v3 | B76: =N16/N21 -> 0.2486538462 | C76: =N17/N21 -> 0.7188461538
A77: 4v4 | B77: =N28/N33 -> 0.214375 | C77: =N29/N33 -> 0.69125
A78: 2v2 Random | B78: =N40/N45 -> 0.41 | C78: =N41/N45 -> 0.8093055556
A79: 3v3 Random | B79: =N52/N57 -> 0.4708080808 | C79: =N53/N57 -> 0.8380808081
A80: 4v4 Random | B80: =N64/N69 -> 0.4129268293 | C80: =N65/N69 -> 0.8151219512
A84: Unique Player Counts
A85: Team Type | B85: Counts
A86: 2v2 | B86: =N9 -> 10999
A87: 3v3 | B87: =N21 -> 5200
A88: 4v4 | B88: =N33 -> 1600
A89: 2v2 Random | B89: =N45 -> 7200
A90: 3v3 Random | B90: =N57 -> 9900
A91: 4v4 Random | B91: =N69 -> 4100
A95: League Distributions - Based on Having Played At Least 1 Game Last Month | I95: League Distributions - All Teams
A96: Team Type | B96: Bronze | C96: Silver | D96: Gold | E96: Platinum | F96: Diamond | G96: Master | I96: Team Type | J96: Bronze | K96: Silver | L96: Gold | M96: Platinum | N96: Diamond | O96: Master
A97: 2v2 | B97: =B5/N5 -> 0.3006172092 | C97: =D5/N5 -> 0.3147767155 | D97: =F5/N5 -> 0.2650369115 | E97: =H5/N5 -> 0.09076606559 | F97: =J5/N5 -> 0.02105772722 | G97: =L5/N5 -> 0.007745370931 | I97: 2v2 | J97: =B9/N9 -> 0.3234839531 | K97: =D9/N9 -> 0.3117556141 | L97: =F9/N9 -> 0.2544776798 | M97: =H9/N9 -> 0.08455314119 | N97: =J9/N9 -> 0.01909264479 | O97: =L9/N9 -> 0.006636966997
A98: 3v3 | B98: =B17/N17 -> 0.2348849652 | C98: =D17/N17 -> 0.3670411985 | D98: =F17/N17 -> 0.284376672 | E98: =H17/N17 -> 0.09336543606 | F98: =J17/N17 -> 0.01872659176 | G98: =L17/N17 -> 0.001605136437 | I98: 3v3 | J98: =B21/N21 -> 0.2488461538 | K98: =D21/N21 -> 0.3648076923 | L98: =F21/N21 -> 0.2761538462 | M98: =H21/N21 -> 0.09192307692 | N98: =J21/N21 -> 0.01634615385 | O98: =L21/N21 -> 0.001923076923
A99: 4v4 | B99: =B29/N29 -> 0.2206148282 | C99: =D29/N29 -> 0.4502712477 | D99: =F29/N29 -> 0.1826401447 | E99: =H29/N29 -> 0.1401446655 | F99: =J29/N29 -> 0.006329113924 | G99: =L29/N29 -> 0 | I99: 4v4 | J99: =B33/N33 -> 0.23375 | K99: =D33/N33 -> 0.448125 | L99: =F33/N33 -> 0.17125 | M99: =H33/N33 -> 0.135 | N99: =J33/N33 -> 0.011875 | O99: =L33/N33 -> 0
A100: 2v2 Random | B100: =B41/N41 -> 0.1650935301 | C100: =D41/N41 -> 0.3885361249 | D100: =F41/N41 -> 0.2416337738 | E100: =H41/N41 -> 0.1408958298 | F100: =J41/N41 -> 0.04393341342 | G100: =L41/N41 -> 0.01990732796 | I100: 2v2 Random | J100: =B45/N45 -> 0.1834722222 | K100: =D45/N45 -> 0.3954166667 | L100: =F45/N45 -> 0.2336111111 | M100: =H45/N45 -> 0.1309722222 | N100: =J45/N45 -> 0.03902777778 | O100: =L45/N45 -> 0.0175
A101: 3v3 Random | B101: =B53/N53 -> 0.1365553815 | C101: =D53/N53 -> 0.4184645052 | D101: =F53/N53 -> 0.2687718452 | E101: =H53/N53 -> 0.1212486441 | F101: =J53/N53 -> 0.03784500422 | G101: =L53/N53 -> 0.01711461974 | I101: 3v3 Random | J101: =B57/N57 -> 0.1548484848 | K101: =D57/N57 -> 0.42 | L101: =F57/N57 -> 0.2584848485 | M101: =H57/N57 -> 0.1137373737 | N101: =J57/N57 -> 0.03616161616 | O101: =L57/N57 -> 0.01676767677
A102: 4v4 Random | B102: =B65/N65 -> 0.2321962896 | C102: =D65/N65 -> 0.4527229204 | D102: =F65/N65 -> 0.2271095153 | E102: =H65/N65 -> 0.05385996409 | F102: =J65/N65 -> 0.02483542789 | G102: =L65/N65 -> 0.009275882705 | I102: 4v4 Random | J102: =B69/N69 -> 0.2465853659 | K102: =D69/N69 -> 0.4429268293 | L102: =F69/N69 -> 0.2180487805 | M102: =H69/N69 -> 0.05585365854 | N102: =J69/N69 -> 0.02512195122 | O102: =L69/N69 -> 0.01146341463

Sheet IDs
A1: Player IDs | B1: Team Type | D1: Unique IDs | E1: # of team types | F1: Only in team games (if error) | G1: Unique 1v1 | H1: Only in 1v1 (if error) | I1: # of team types | J1: # of team-only players | K1: # of 1v1-only players
A2: 1000044-2 | B2: 2v2 Team | D2: 1000044-2 | E2: 1 | G2: 4667983-1 | I2: =IF(ISERROR(H2),0,E2) -> 0 | J2: =COUNTIF(F2:F110919,"#N/A") -> 18404 | K2: =COUNTIF(H2:H110919,"#N/A") -> 32210
A3: 1000075-2 | B3: 2v2r | D3: 1000075-2 | E3: 3 | F3: 1000075-2 | G3: 966167-2 | I3: =IF(ISERROR(H3),0,E3) -> 0
A4: 1000075-2 | B4: 3v3r | D4: 100016-1 | E4: 1 | F4: 100016-1 | G4: 197877-1 | H4: 197877-1 | I4: 1 | J4: Total 1v1 players | K4: =COUNTA(G2:G100402) -> 45079
A5: 1000075-2 | B5: 4v4r | D5: 1000324-2 | E5: 1 | G5: 4349502-1 | I5: 0 | J5: 1v1 players that also placed with a team type | K5: =K4-K2 -> 12869 | L5: =K5/K4 -> 0.2854766077
A6: 100016-1 | B6: 2v2 Team | D6: 1000341-2 | E6: 18 | F6: 1000341-2 | G6: 3716471-1 | I6: 0 | J6: # of 1v1 players that have completed placement matches for 3 or more team types | K6: =COUNTIF(I2:I45080,">=3") -> 1369
A7: 1000324-2 | B7: 2v2 Team | D7: 1000380-2 | E7: 1 | G7: 795400-1 | H7: 795400-1 | I7: 1 | J7: Team players that only placed with 1 team | K7: =COUNTIFS(E2:E110919,1,F2:F110919,"#N/A") -> 13039
A8: 1000341-2 | B8: 2v2 Team | D8: 1000387-2 | E8: 4 | G8: 4303599-1 | I8: 0 | J8: % of team-only with only 1 team | K8: =K7/J2 -> 0.7084872854
A9: 1000341-2 | B9: 3v3 Team | D9: 1000449-2 | E9: 2 | G9: 46243-2 | I9: 0 | J9: Most teams placed with | K9: =MAX(E2:E110919) -> 65
A10: 1000341-2 | B10: 3v3 Team | D10: 1000549-2 | E10: 1 | G10: 1120763-1 | H10: 1120763-1 | I10: 1 | J10: Average # of team types | K10: =AVERAGE(E2:E31274) -> 1.816199277
A11: 1000341-2 | B11: 3v3 Team | D11: 1000691-2 | E11: 1 | F11: 1000691-2 | G11: 2470886-1 | H11: 2470886-1 | I11: 1
A12: 1000341-2 | B12: 3v3 Team | D12: 1000710-2 | E12: 2 | F12: 1000710-2 | G12: 906094-1 | I12: 0
A13: 1000341-2 | B13: 3v3 Team | D13: 1000748-1 | E13: 1 | G13: 4111617-1 | I13: 0
A14: 1000341-2 | B14: 4v4 Team | D14: 1000782-1 | E14: 1 | F14: 1000782-1 | G14: 4381771-1 | I14: 0
A15: 1000341-2 | B15: 4v4 Team | D15: 1000848-2 | E15: 1 | F15: 1000848-2 | G15: 4630274-1 | I15: 0
A16: 1000341-2 | B16: 4v4 Team | D16: 100090-1 | E16: 1 | G16: 950335-1 | I16: 0
A17: 1000341-2 | B17: 4v4 Team | D17: 1001135-2 | E17: 2 | G17: 4669829-1 | H17: 4669829-1 | I17: 2
A18: 1000341-2 | B18: 4v4 Team | D18: 100116-1 | E18: 3 | G18: 3721135-1 | I18: 0
A19: 1000341-2 | B19: 4v4 Team | D19: 1001204-2 | E19: 1 | G19: 1190053-2 | H19: 1190053-2 | I19: 1
A20: 1000341-2 | B20: 4v4 Team | D20: 1001235-1 | E20: 2 | F20: 1001235-1 | G20: 1326558-2 | H20: 1326558-2 | I20: 2
A21: 1000341-2 | B21: 4v4 Team | D21: 1001274-1 | E21: 4 | F21: 1001274-1 | G21: 374666-2 | H21: 374666-2 | I21: 4
A22: 1000341-2 | B22: 4v4 Team | D22: 1001286-2 | E22: 2 | F22: 1001286-2 | G22: 4604393-1 | H22: 4604393-1 | I22: 2
A23: 1000341-2 | B23: 4v4 Team | D23: 1001315-2 | E23: 1 | F23: 1001315-2 | G23: 875429-2 | I23: 0
A24: 1000341-2 | B24: 3v3r | D24: 1001378-2 | E24: 3 | G24: 3078275-1 | I24: 0
A25: 1000341-2 | B25: 4v4r | D25: 1001409-1 | E25: 2 | F25: 1001409-1 | G25: 4693227-1 | H25: 4693227-1 | I25: 2
A26: 1000380-2 | B26: 2v2 Team | D26: 1001441-2 | E26: 1 | F26: 1001441-2 | G26: 823527-2 | H26: 823527-2 | I26: 1
A27: 1000387-2 | B27: 2v2 Team | D27: 1001453-2 | E27: 1 | F27: 1001453-2 | G27: 934033-1 | I27: 0
A28: 1000387-2 | B28: 3v3 Team | D28: 1001491-2 | E28: 9 | F28: 1001491-2 | G28: 559183-1 | I28: 0
A29: 1000387-2 | B29: 2v2r | D29: 1001603-2 | E29: 1 | G29: 2738684-1 | I29: 0
A30: 1000387-2 | B30: 3v3r | D30: 100162-2 | E30: 1 | F30: 100162-2 | G30: 4343010-1 | I30: 0
A31: 1000449-2 | B31: 2v2 Team | D31: 100164-2 | E31: 2 | G31: 856001-2 | I31: 0
A32: 1000449-2 | B32: 3v3r | D32: 1001646-1 | E32: 1 | G32: 1279082-2 | I32: 0
A33: 1000549-2 | B33: 2v2 Team | D33: 100166-1 | E33: 1 | G33: 941414-2 | I33: 0
A34: 1000691-2 | B34: 2v2 Team | D34: 100168-1 | E34: 2 | G34: 1001401-2 | I34: 0
A35: 1000710-2 | B35: 2v2 Team | D35: 1001682-1 | E35: 3 | G35: 708754-2 | H35: 708754-2 | I35: 3
A36: 1000710-2 | B36: 3v3 Team | D36: 1001725-2 | E36: 2 | G36: 4718724-1 | I36: 0
A37: 1000748-1 | B37: 4v4r | D37: 1001760-1 | E37: 1 | G37: 4402525-1 | H37: 4402525-1 | I37: 1
A38: 1000782-1 | B38: 2v2 Team | D38: 1001784-2 | E38: 28 | F38: 1001784-2 | G38: 656542-1 | H38: 656542-1 | I38: 28
A39: 1000848-2 | B39: 3v3 Team | D39: 1001924-2 | E39: 2 | F39: 1001924-2 | G39: 3815861-1 | I39: 0
A40: 100090-1 | B40: 2v2 Team | D40: 1002262-2 | E40: 1 | F40: 1002262-2 | G40: 918889-1 | I40: 0
A41: 1001135-2 | B41: 2v2 Team | D41: 1002263-2 | E41: 1 | F41: 1002263-2 | G41: 972740-2 | I41: 0
A42: 1001135-2 | B42: 2v2r | D42: 1002292-2 | E42: 2 | F42: 1002292-2 | G42: 230926-1 | I42: 0
A43: 100116-1 | B43: 2v2 Team | D43: 1002421-1 | E43: 3 | F43: 1002421-1 | G43: 618436-1 | I43: 0
A44: 100116-1 | B44: 2v2 Team | D44: 1002423-1 | E44: 1 | F44: 1002423-1 | G44: 1317998-2 | I44: 0
A45: 100116-1 | B45: 2v2 Team | D45: 1002495-2 | E45: 2 | G45: 4632935-1 | H45: 4632935-1 | I45: 2
A46: 1001204-2 | B46: 3v3r | D46: 100256-1 | E46: 1 | G46: 4660957-1 | I46: 0
A47: 1001235-1 | B47: 2v2 Team | D47: 1002722-2 | E47: 1 | G47: 848194-2 | H47: 848194-2 | I47: 1
A48: 1001235-1 | B48: 3v3 Team | D48: 1002821-1 | E48: 1 | F48: 1002821-1 | G48: 1261613-2 | I48: 0
A49: 1001274-1 | B49: 2v2 Team | D49: 1002891-2 | E49: 1 | F49: 1002891-2 | G49: 3137916-1 | I49: 0
A50: 1001274-1 | B50: 3v3 Team | D50: 1002892-2 | E50: 1 | F50: 1002892-2 | G50: 1339071-1 | H50: 1339071-1 | I50: 1
A51: 1001274-1 | B51: 3v3 Team | D51: 1002901-2 | E51: 1 | G51: 4314953-1 | I51: 0
A52: 1001274-1 | B52: 2v2r | D52: 100297-1 | E52: 1 | F52: 100297-1 | G52: 786107-1 | I52: 0
A53: 1001286-2 | B53: 2v2 Team | D53: 1003103-2 | E53: 3 | F53: 1003103-2 | G53: 4615058-1 | I53: 0
A54: 1001286-2 | B54: 3v3 Team | D54: 1003296-1 | E54: 4 | G54: 1305345-1 | I54: 0
A55: 1001315-2 | B55: 3v3 Team | D55: 1003327-1 | E55: 1 | G55: 4374470-1 | I55: 0
A56: 1001378-2 | B56: 2v2 Team | D56: 1003336-2 | E56: 1 | F56: 1003336-2 | G56: 764672-2 | I56: 0
A57: 1001378-2 | B57: 2v2r | D57: 1003375-2 | E57: 1 | F57: 1003375-2 | G57: 4098624-1 | H57: 4098624-1 | I57: 1
A58: 1001378-2 | B58: 3v3r | D58: 1003431-2 | E58: 1 | G58: 773496-1 | I58: 0
A59: 1001409-1 | B59: 2v2 Team | D59: 1003526-1 | E59: 1 | F59: 1003526-1 | G59: 904370-2 | I59: 0
A60: 1001409-1 | B60: 4v4r | D60: 1003530-1 | E60: 2 | G60: 905728-2 | I60: 0
A61: 1001441-2 | B61: 2v2 Team | D61: 100353-1 | E61: 1 | F61: 100353-1 | G61: 1050430-1 | I61: 0
A62: 1001453-2 | B62: 2v2r | D62: 1003536-2 | E62: 3 | F62: 1003536-2 | G62: 2463161-1 | I62: 0
A63: 1001491-2 | B63: 2v2 Team | D63: 1003539-2 | E63: 1 | G63: 936337-2 | I63: 0
A64: 1001491-2 | B64: 2v2 Team | D64: 100359-2 | E64: 7 | G64: 4586810-1 | I64: 0
A65: 1001491-2 | B65: 2v2 Team | D65: 100363-2 | E65: 4 | F65: 100363-2 | G65: 4528624-1 | I65: 0
A66: 1001491-2 | B66: 3v3 Team | D66: 1003640-1 | E66: 1 | F66: 1003640-1 | G66: 1290010-2 | I66: 0
A67: 1001491-2 | B67: 3v3 Team | D67: 1003755-1 | E67: 2 | F67: 1003755-1 | G67: 1853238-1 | I67: =IF(ISERROR(H67),0,E67) -> 0
A68: 1001491-2 | B68: 3v3 Team | D68: 100376-1 | E68: 1 | G68: 4698106-1 | I68: 0
A69: 1001491-2 | B69: 3v3 Team | D69: 100389-1 | E69: 1 | G69: 4386669-1 | H69: 4386669-1 | I69: 1
A70: 1001491-2 | B70: 3v3 Team | D70: 1003966-1 | E70: 1 | F70: 1003966-1 | G70: 382280-1 | I70: 0
A71: 1001491-2 | B71: 4v4 Team | D71: 1003966-2 | E71: 3 | F71: 1003966-2 | G71: 755767-2 | H71: 755767-2 | I71: 3
A72: 1001603-2 | B72: 3v3 Team | D72: 1004052-1 | E72: 1 | F72: 1004052-1 | G72: 1615274-1 | I72: 0
A73: 100162-2 | B73: 2v2 Team | D73: 1004104-1 | E73: 1 | F73: 1004104-1 | G73: 4558105-1 | H73: 4558105-1 | I73: 1
A74: 100164-2 | B74: 3v3r | D74: 1004108-2 | E74: 1 | F74: 1004108-2 | G74: 196555-2 | I74: 0
A75: 100164-2 | B75: 4v4r | D75: 100415-1 | E75: 1 | F75: 100415-1 | G75: 560287-1 | H75: 560287-1 | I75: 1
A76: 1001646-1 | B76: 2v2 Team | D76: 1004178-2 | E76: 1 | F76: 1004178-2 | G76: 1634637-1 | I76: 0
A77: 100166-1 | B77: 2v2r | D77: 1004393-1 | E77: 2 | G77: 4351926-1 | H77: 4351926-1 | I77: 2
A78: 100168-1 | B78: 2v2 Team | D78: 100449-1 | E78: 2 | G78: 4594289-1 | H78: 4594289-1 | I78: 2
A79: 100168-1 | B79: 3v3r | D79: 1004520-2 | E79: 1 | G79: 862134-2 | I79: 0
A80: 1001682-1 | B80: 2v2 Team | D80: 1004592-2 | E80: 1 | G80: 4661394-1 | I80: 0
A81: 1001682-1 | B81: 2v2r | D81: 1004598-2 | E81: 6 | F81: 1004598-2 | G81: 944021-2 | H81: 944021-2 | I81: 6
A82: 1001682-1 | B82: 3v3r | D82: 100462-1 | E82: 1 | F82: 100462-1 | G82: 1422767-1 | H82: 1422767-1 | I82: 1
A83: 1001725-2 | B83: 3v3 Team | D83: 1004760-2 | E83: 21 | F83: 1004760-2 | G83: 348645-1 | I83: 0
A84: 1001725-2 | B84: 4v4r | D84: 1004789-1 | E84: 1 | G84: 781918-2 | I84: 0
A85: 1001760-1 | B85: 3v3r | D85: 1004851-1 | E85: 2 | G85: 1171280-1 | I85: 0
A86: 1001784-2 | B86: 2v2 Team | D86: 1004999-2 | E86: 1 | F86: 1004999-2 | G86: 4291977-1 | H86: 4291977-1 | I86: 1
A87: 1001784-2 | B87: 2v2 Team | D87: 1005025-2 | E87: 2 | F87: 1005025-2 | G87: 4310696-1 | I87: 0
A88: 1001784-2 | B88: 2v2 Team | D88: 1005040-2 | E88: 1 | G88: 4652569-1 | I88: 0
A89: 1001784-2 | B89: 2v2 Team | D89: 1005108-2 | E89: 1 | F89: 1005108-2 | G89: 2068161-1 | I89: 0
A90: 1001784-2 | B90: 2v2 Team | D90: 1005121-2 | E90: 1 | G90: 3972048-1 | H90: 3972048-1 | I90: 1
A91: 1001784-2 | B91: 2v2 Team | D91: 1005172-2 | E91: 1 | G91: 4584267-1 | H91: 4584267-1 | I91: 1
A92: 1001784-2 | B92: 2v2 Team | D92: 100519-1 | E92: 4 | F92: 100519-1 | G92: 4704903-1 | I92: 0
A93: 1001784-2 | B93: 2v2 Team | D93: 1005280-2 | E93: 3 | F93: 1005280-2 | G93: 901639-2 | I93: 0
A94: 1001784-2 | B94: 2v2 Team | D94: 100543-1 | E94: 2 | G94: 905170-2 | I94: 0
A95: 1001784-2 | B95: 2v2 Team | D95: 1005442-2 | E95: 7 | G95: 2510380-1 | I95: 0
A96: 1001784-2 | B96: 2v2 Team | D96: 1005473-1 | E96: 2 | G96: 570276-1 | I96: 0
A97: 1001784-2 | B97: 2v2 Team | D97: 1005538-2 | E97: 1 | G97: 4447246-1 | I97: 0
A98: 1001784-2 | B98: 2v2 Team | D98: 1005539-2 | E98: 2 | F98: 1005539-2 | G98: 4687523-1 | I98: 0
A99: 1001784-2 | B99: 3v3 Team | D99: 1005599-1 | E99: 1 | F99: 1005599-1 | G99: 1187328-2 | I99: 0
A100: 1001784-2 | B100: 3v3 Team | D100: 1005806-2 | E100: 1 | F100: 1005806-2 | G100: 4687688-1 | I100: 0
A101: 1001784-2 | B101: 3v3 Team | D101: 1005824-1 | E101: 1 | F101: 1005824-1 | G101: 1200372-2 | I101: 0
A102: 1001784-2 | B102: 3v3 Team | D102: 1006017-2 | E102: 1 | G102: 823979-2 | I102: 0
A103: 1001784-2 | B103: 3v3 Team | D103: 1006345-1 | E103: 32 | G103: 3744318-1 | I103: 0
A104: 1001784-2 | B104: 3v3 Team | D104: 1006486-2 | E104: 1 | F104: 1006486-2 | G104: 1089620-2 | I104: 0
A105: 1001784-2 | B105: 3v3 Team | D105: 1006586-2 | E105: 1 | F105: 1006586-2 | G105: 319649-2 | I105: 0
A106: 1001784-2 | B106: 3v3 Team | D106: 1006655-2 | E106: 1 | G106: 219377-1 | I106: 0
A107: 1001784-2 | B107: 3v3 Team | D107: 1006683-1 | E107: 1 | G107: 490630-1 | I107: 0
A108: 1001784-2 | B108: 4v4 Team | D108: 1006884-2 | E108: 1 | F108: 1006884-2 | G108: 774592-2 | I108: 0
A109: 1001784-2 | B109: 4v4 Team | D109: 1006916-1 | E109: 2 | F109: 1006916-1 | G109: 398604-1 | I109: 0
A110: 1001784-2 | B110: 4v4 Team | D110: 1007081-2 | E110: 6 | F110: 1007081-2 | G110: 958374-2 | I110: 0
A111: 1001784-2 | B111: 2v2r | D111: 1007200-1 | E111: 1 | G111: 3720345-1 | I111: 0
A112: 1001784-2 | B112: 3v3r | D112: 1007215-2 | E112: 1 | G112: 4198463-1 | I112: 0
A113: 1001784-2 | B113: 4v4r | D113: 1007366-1 | E113: 4 | G113: 4482892-1 | I113: 0
A114: 1001924-2 | B114: 2v2 Team | D114: 1007393-1 | E114: 2 | G114: 4674885-1 | I114: 0
A115: 1001924-2 | B115: 2v2 Team | D115: 100742-1 | E115: 1 | G115: 470837-1 | I115: 0
A116: 1002262-2 | B116: 3v3r | D116: 1007473-1 | E116: 1 | G116: 4563489-1 | I116: 0
A117: 1002263-2 | B117: 3v3 Team | D117: 1007546-1 | E117: 1 | G117: 4678151-1 | H117: 4678151-1 | I117: 1
A118: 1002292-2 | B118: 2v2 Team | D118: 1007549-2 | E118: 6 | F118: 1007549-2 | G118: 943979-1 | I118: 0
A119: 1002292-2 | B119: 2v2 Team | D119: 1007706-2 | E119: 4 | F119: 1007706-2 | G119: 1340353-1 | I119: 0
A120: 1002421-1 | B120: 3v3 Team | D120: 100773-1 | E120: 1 | F120: 100773-1 | G120: 3521425-1 | H120: 3521425-1 | I120: 1
A121: 1002421-1 | B121: 2v2r | D121: 1007811-2 | E121: 1 | F121: 1007811-2 | G121: 664313-1 | I121: 0
A122: 1002421-1 | B122: 3v3r | D122: 1007875-1 | E122: 2 | F122: 1007875-1 | G122: 4606602-1 | I122: 0
A123: 1002423-1 | B123: 2v2r | D123: 1007933-1 | E123: 2 | F123: 1007933-1 | G123: 721233-2 | I123: 0
A124: 1002495-2 | B124: 2v2 Team | D124: 1007945-2 | E124: 1 | F124: 1007945-2 | G124: 1055235-2 | I124: 0
A125: 1002495-2 | B125: 3v3 Team | D125: 1008023-2 | E125: 1 | F125: 1008023-2 | G125: 3326967-1 | H125: 3326967-1 | I125: 1
A126: 100256-1 | B126: 3v3r | D126: 100805-1 | E126: 1 | G126: 4029635-1 | H126: 4029635-1 | I126: 1
A127: 1002722-2 | B127: 3v3r | D127: 1008182-2 | E127: 8 | G127: 2976502-1 | I127: 0
A128: 1002821-1 | B128: 3v3r | D128: 100823-1 | E128: 3 | G128: 4448462-1 | I128: 0
A129: 1002891-2 | B129: 2v2 Team | D129: 1008292-2 | E129: 1 | G129: 3514918-1 | H129: 3514918-1 | I129: 1
A130: 1002892-2 | B130: 2v2 Team | D130: 1008391-1 | E130: 1 | G130: 4380301-1 | I130: 0
A131: 1002901-2 | B131: 3v3 Team | D131: 1008408-1 | E131: 1 | G131: 4516163-1 | I131: =IF(ISERROR(H131),0,E131) -> 0
A132: 100297-1 | B132: 2v2 Team | D132: 1008451-2 | E132: 1 | G132: 469215-1 | I132: 0
A133: 1003103-2 | B133: 3v3 Team | D133: 1008464-2 | E133: 1 | F133: 1008464-2 | G133: 4673642-1 | I133: 0
A134: 1003103-2 | B134: 2v2r | D134: 1008477-1 | E134: 11 | F134: 1008477-1 | G134: 872130-2 | I134: 0
A135: 1003103-2 | B135: 3v3r | D135: 100866-1 | E135: 1 | G135: 876230-1 | I135: 0
A136: 1003296-1 | B136: 2v2 Team | D136: 100875-1 | E136: 1 | F136: 100875-1 | G136: 623134-1 | I136: 0
A137: 1003296-1 | B137: 3v3 Team | D137: 1008786-2 | E137: 3 | F137: 1008786-2 | G137: 3175002-1 | I137: 0
A138: 1003296-1 | B138: 3v3 Team | D138: 1008820-1 | E138: 1 | G138: 535598-1 | I138: 0
A139: 1003296-1 | B139: 3v3r | D139: 1008829-1 | E139: 1 | F139: 1008829-1 | G139: 1172655-2 | I139: 0
A140: 1003327-1 | B140: 2v2 Team | D140: 100883-1 | E140: 1 | G140: 1896543-1 | I140: 0
A141: 1003336-2 | B141: 2v2 Team | D141: 1008910-2 | E141: 2 | F141: 1008910-2 | G141: 3441851-1 | H141: 3441851-1 | I141: 2
A142: 1003375-2 | B142: 2v2 Team | D142: 1008944-1 | E142: 1 | G142: 1077422-2 | I142: 0
A143: 1003431-2 | B143: 2v2 Team | D143: 1008985-2 | E143: 1 | F143: 1008985-2 | G143: 996251-1 | H143: 996251-1 | I143: 1
A144: 1003526-1 | B144: 2v2 Team | D144: 1009017-1 | E144: 3 | G144: 1128217-1 | I144: 0
A145: 1003530-1 | B145: 2v2 Team | D145: 1009043-2 | E145: 6 | G145: 1354310-2 | I145: 0
A146: 1003530-1 | B146: 3v3r | D146: 1009074-2 | E146: 1 | F146: 1009074-2 | G146: 2609833-1 | I146: 0
A147: 100353-1 | B147: 2v2 Team | D147: 1009098-1 | E147: 1 | G147: 1255664-2 | I147: 0
A148: 1003536-2 | B148: 2v2 Team | D148: 100914-1 | E148: 3 | F148: 100914-1 | G148: 2564086-1 | I148: 0
A149: 1003536-2 | B149: 3v3 Team | D149: 1009210-1 | E149: 1 | G149: 4378581-1 | I149: 0
A150: 1003536-2 | B150: 3v3r | D150: 1009341-1 | E150: 1 | G150: 4402054-1 | I150: 0
A151: 1003539-2 | B151: 3v3 Team | D151: 100942-2 | E151: 4 | F151: 100942-2 | G151: 738130-2 | I151: 0
A152: 100359-2 | B152: 2v2 Team | D152: 1009434-2 | E152: 1 | F152: 1009434-2 | G152: 221487-1 | I152: 0
A153: 100359-2 | B153: 2v2 Team | D153: 1009624-1 | E153: 5 | G153: 1265684-2 | H153: 1265684-2 | I153: 5
A154: 100359-2 | B154: 2v2 Team | D154: 1009734-2 | E154: 10 | F154: 1009734-2 | G154: 1033821-1 | H154: 1033821-1 | I154: 10
A155: 100359-2 | B155: 2v2 Team | D155: 1009758-2 | E155: 3 | F155: 1009758-2 | G155: 1129793-1 | I155: 0
A156: 100359-2 | B156: 3v3 Team | D156: 1009808-2 | E156: 1 | F156: 1009808-2 | G156: 3712314-1 | I156: 0
A157: 100359-2 | B157: 3v3r | D157: 1009874-1 | E157: 1 | G157: 1272083-1 | I157: 0
A158: 100359-2 | B158: 4v4r | D158: 1009891-1 | E158: 1 | G158: 3026822-1 | I158: 0
A159: 100363-2 | B159: 2v2 Team | D159: 1009918-1 | E159: 1 | G159: 4096663-1 | I159: 0
A160: 100363-2 | B160: 2v2 Team | D160: 100993-1 | E160: 1 | G160: 211820-2 | I160: 0
A161: 100363-2 | B161: 2v2 Team | D161: 1010292-2 | E161: 2 | F161: 1010292-2 | G161: 189257-1 | I161: 0
A162: 100363-2 | B162: 3v3r | D162: 1010411-2 | E162: 1 | G162: 2153747-1 | I162: 0
A163: 1003640-1 | B163: 2v2 Team | D163: 1010443-2 | E163: 1 | F163: 1010443-2 | G163: 2252592-1 | I163: 0
A164: 1003755-1 | B164: 2v2 Team | D164: 1010480-2 | E164: 1 | G164: 3642092-1 | H164: 3642092-1 | I164: 1
A165: 1003755-1 | B165: 3v3 Team | D165: 1010547-2 | E165: 3 | F165: 1010547-2 | G165: 3996666-1 | I165: 0
A166: 100376-1 | B166: 2v2 Team | D166: 1010566-2 | E166: 1 | G166: 1058680-1 | I166: 0
A167: 100389-1 | B167: 2v2 Team | D167: 1010588-1 | E167: 1 | G167: 825121-2 | I167: 0
A168: 1003966-1 | B168: 2v2r | D168: 1010590-1 | E168: 1 | G168: 4599966-1 | I168: 0
A169: 1003966-2 | B169: 2v2 Team | D169: 1010608-1 | E169: 2 | F169: 1010608-1 | G169: 226376-2 | I169: 0
A170: 1003966-2 | B170: 3v3 Team | D170: 1010635-2 | E170: 4 | F170: 1010635-2 | G170: 583438-1 | I170: 0
A171: 1003966-2 | B171: 3v3r | D171: 1010640-2 | E171: 2 | F171: 1010640-2 | G171: 4408498-1 | I171: 0
A172: 1004052-1 | B172: 2v2r | D172: 1010795-1 | E172: 1 | F172: 1010795-1 | G172: 180829-2 | I172: 0
A173: 1004104-1 | B173: 2v2r | D173: 1010889-1 | E173: 1 | G173: 823600-1 | I173: 0
A174: 1004108-2 | B174: 3v3 Team | D174: 1010944-1 | E174: 2 | F174: 1010944-1 | G174: 3199279-1 | I174: 0
A175: 100415-1 | B175: 2v2 Team | D175: 1011013-1 | E175: 1 | G175: 488327-2 | H175: 488327-2 | I175: 1
A176: 1004178-2 | B176: 2v2 Team | D176: 1011030-2 | E176: 2 | F176: 1011030-2 | G176: 1038442-1 | H176: 1038442-1 | I176: 2
A177: 1004393-1 | B177: 2v2 Team | D177: 101104-1 | E177: 3 | F177: 101104-1 | G177: 3846443-1 | H177: 3846443-1 | I177: 3
A178: 1004393-1 | B178: 2v2 Team | D178: 1011054-1 | E178: 1 | F178: 1011054-1 | G178: 172025-1 | H178: 172025-1 | I178: 1
A179: 100449-1 | B179: 2v2 Team | D179: 1011067-2 | E179: 1 | G179: 3945061-1 | I179: 0
A180: 100449-1 | B180: 3v3r | D180: 101109-1 | E180: 1 | G180: 381119-1 | H180: 381119-1 | I180: 1
A181: 1004520-2 | B181: 3v3 Team | D181: 101111-1 | E181: 1 | G181: 688484-2 | I181: 0
A182: 1004592-2 | B182: 2v2 Team | D182: 1011207-2 | E182: 2 | F182: 1011207-2 | G182: 1377776-1 | I182: 0
A183: 1004598-2 | B183: 2v2 Team | D183: 1011237-1 | E183: 1 | G183: 1926483-1 | I183: 0
A184: 1004598-2 | B184: 3v3 Team | D184: 1011333-2 | E184: 1 | F184: 1011333-2 | G184: 3501968-1 | I184: 0
A185: 1004598-2 | B185: 4v4 Team | D185: 1011375-1 | E185: 1 | G185: 3570145-1 | I185: 0
A186: 1004598-2 | B186: 4v4 Team | D186: 1011489-1 | E186: 9 | F186: 1011489-1 | G186: 4187866-1 | I186: 0
A187: 1004598-2 | B187: 4v4 Team | D187: 1011518-1 | E187: 1 | G187: 232607-1 | I187: 0
A188: 1004598-2 | B188: 4v4 Team | D188: 1011647-1 | E188: 14 | F188: 1011647-1 | G188: 2084472-1 | H188: 2084472-1 | I188: 14
A189: 100462-1 | B189: 2v2 Team | D189: 1011667-2 | E189: 1 | G189: 1332750-1 | I189: 0
A190: 1004760-2 | B190: 2v2 Team | D190: 1011937-2 | E190: 1 | G190: 4232586-1 | H190: 4232586-1 | I190: 1
A191: 1004760-2 | B191: 2v2 Team | D191: 1012015-2 | E191: 2 | G191: 1052018-2 | I191: 0
A192: 1004760-2 | B192: 3v3 Team | D192: 1012131-2 | E192: 1 | G192: 675903-2 | I192: 0
A193: 1004760-2 | B193: 3v3 Team | D193: 1012222-1 | E193: 1 | G193: 4594332-1 | I193: 0
A194: 1004760-2 | B194: 3v3 Team | D194: 1012454-1 | E194: 1 | G194: 227320-1 | I194: 0
A195: 1004760-2 | B195: 3v3 Team | D195: 1012604-2 | E195: 1 | F195: 1012604-2 | G195: 1108336-2 | H195: 1108336-2 | I195: =IF(ISERROR(H195),0,E195) -> 1
A196: 1004760-2 | B196: 3v3 Team | D196: 1012612-2 | E196: 2 | F196: 1012612-2 | G196: 1476354-1 | I196: 0
A197: 1004760-2 | B197: 3v3 Team | D197: 101306-1 | E197: 1 | F197: 101306-1 | G197: 4712185-1 | I197: 0
A198: 1004760-2 | B198: 3v3 Team | D198: 1013168-1 | E198: 1 | G198: 415825-1 | I198: 0
A199: 1004760-2 | B199: 3v3 Team | D199: 1013246-1 | E199: 3 | F199: 1013246-1 | G199: 815200-2 | I199: 0
A200: 1004760-2 | B200: 3v3 Team | D200: 1013367-1 | E200: 1 | G200: 115725-2 | I200: 0
... 4300 more rows

Sheet 2v2 Team
A1: Player ID 1 | B1: Player 1 Region | C1: Player 1 Subregion | D1: Player 1 Name | E1: Player 1 Race | F1: Player ID 2 | G1: Player 2 Region | H1: Player 2 Subregion | I1: Player 2 Name | J1: Player 2 Race | K1: League | L1: Win | M1: Loss | N1: Score | O1: Date Joined | P1: Last Game | Q1: Timestamp | R1: TrueID | S1: Duplicate Check | T1: Ordered ID
A2: 791308 | B2: kr | C2: 1 | D2: 찍찍찍 | E2: r | F2: 164879 | G2: kr | H2: 1 | I2: Neo | J2: r | K2: Bronze | L2: 152 | M2: 209 | N2: 755 | O2: 2014-07-18 | P2: 4 hours | Q2: 2014-08-27T04:44:42 | R2: 791308-1|164879-1 | S2: 0 | T2: 1
A3: 1177335 | B3: kr | C3: 1 | D3: WonderWall | E3: z | F3: 696114 | G3: kr | H3: 1 | I3: Destiny | J3: p | K3: Bronze | L3: 34 | M3: 30 | N3: 712 | O3: 2014-08-19 | P3: 18 hours | Q3: 2014-08-27T04:44:42 | R3: 1177335-1|696114-1 | S3: 0 | T3: 2
A4: 1146432 | B4: kr | C4: 1 | D4: 아궁이 | E4: r | F4: 956665 | G4: kr | H4: 1 | I4: BOHEM | J4: r | K4: Bronze | L4: 32 | M4: 29 | N4: 685 | O4: 2014-07-31 | P4: 20 hours | Q4: 2014-08-27T04:44:42 | R4: 1146432-1|956665-1 | S4: 0 | T4: 3
A5: 4270919 | B5: kr | C5: 1 | D5: 중독자박곰 | E5: t | F5: 1900434 | G5: kr | H5: 1 | I5: chopist | J5: p | K5: Bronze | L5: 69 | M5: 72 | N5: 667 | O5: 2014-07-12 | P5: 1 days | Q5: 2014-08-27T04:44:42 | R5: 4270919-1|1900434-1 | S5: 0 | T5: 4
A6: 2424979 | B6: kr | C6: 1 | D6: 내띠띠에캔디 | E6: t | F6: 1285807 | G6: kr | H6: 1 | I6: 대부님 | J6: r | K6: Bronze | L6: 89 | M6: 102 | N6: 658 | O6: 2014-07-06 | P6: 2 days | Q6: 2014-08-27T04:44:42 | R6: 2424979-1|1285807-1 | S6: 0 | T6: 5
A7: 1346682 | B7: kr | C7: 2 | D7: 愛有偉阿 | E7: z | F7: 804953 | G7: kr | H7: 2 | I7: 聰明大帥哥 | J7: t | K7: Bronze | L7: 30 | M7: 39 | N7: 655 | O7: 2014-07-07 | P7: 16 hours | Q7: 2014-08-27T04:44:42 | R7: 1346682-2|804953-2 | S7: 0 | T7: 6
A8: 87173 | B8: kr | C8: 2 | D8: 天之焱 | E8: r | F8: 76713 | G8: kr | H8: 2 | I8: Arerisu | J8: r | K8: Bronze | L8: 29 | M8: 25 | N8: 648 | O8: 2014-07-13 | P8: 4 days | Q8: 2014-08-27T04:44:42 | R8: 87173-2|76713-2 | S8: 0 | T8: 7
A9: 4644976 | B9: kr | C9: 1 | D9: 이우롱 | E9: p | F9: 316570 | G9: kr | H9: 1 | I9: 슈팅메딕 | J9: t | K9: Bronze | L9: 23 | M9: 26 | N9: 642 | O9: 2014-07-27 | P9: 17 hours | Q9: 2014-08-27T04:44:42 | R9: 4644976-1|316570-1 | S9: 0 | T9: 8
A10: 4569033 | B10: kr | C10: 1 | D10: KimJongEun | E10: z | F10: 4378263 | G10: kr | H10: 1 | I10: jade | J10: p | K10: Bronze | L10: 26 | M10: 25 | N10: 640 | O10: 2014-07-25 | P10: 2 days | Q10: 2014-08-27T04:44:42 | R10: 4569033-1|4378263-1 | S10: 0 | T10: 9
A11: 1225063 | B11: kr | C11: 2 | D11: Gary | E11: z | F11: 1145815 | G11: kr | H11: 2 | I11: Arthur | J11: t | K11: Bronze | L11: 26 | M11: 33 | N11: 632 | O11: 2014-07-29 | P11: 17 hours | Q11: 2014-08-27T04:44:42 | R11: 1225063-2|1145815-2 | S11: 0 | T11: 10
A12: 1778461 | B12: kr | C12: 1 | D12: 자료실 | E12: p | F12: 1029290 | G12: kr | H12: 1 | I12: 두더지수염 | J12: p | K12: Bronze | L12: 26 | M12: 26 | N12: 630 | O12: 2014-07-30 | P12: 5 days | Q12: 2014-08-27T04:44:42 | R12: 1778461-1|1029290-1 | S12: 0 | T12: 11
A13: 4332519 | B13: kr | C13: 1 | D13: 듄서애비 | E13: p | F13: 4315195 | G13: kr | H13: 1 | I13: 발광하노 | J13: p | K13: Bronze | L13: 23 | M13: 29 | N13: 627 | O13: 2014-08-07 | P13: 16 hours | Q13: 2014-08-27T04:44:42 | R13: 4332519-1|4315195-1 | S13: 0 | T13: 12
A14: 449096 | B14: kr | C14: 1 | D14: 곰돌이 | E14: t | F14: 449071 | G14: kr | H14: 1 | I14: 집착태양 | J14: p | K14: Bronze | L14: 21 | M14: 33 | N14: 626 | O14: 2014-08-19 | P14: 11 hours | Q14: 2014-08-27T04:44:42 | R14: 449096-1|449071-1 | S14: 0 | T14: 13
A15: 4641089 | B15: kr | C15: 1 | D15: suncold | E15: p | F15: 4501296 | G15: kr | H15: 1 | I15: circleroot | J15: p | K15: Bronze | L15: 25 | M15: 26 | N15: 622 | O15: 2014-07-14 | P15: 2 days | Q15: 2014-08-27T04:44:42 | R15: 4641089-1|4501296-1 | S15: 0 | T15: 14
A16: 819452 | B16: kr | C16: 2 | D16: RYA | E16: t | F16: 810133 | G16: kr | H16: 2 | I16: TWDeatX | J16: t | K16: Bronze | L16: 25 | M16: 26 | N16: 617 | O16: 2014-08-14 | P16: 2 days | Q16: 2014-08-27T04:44:42 | R16: 819452-2|810133-2 | S16: 0 | T16: 15
A17: 3379623 | B17: kr | C17: 1 | D17: angels | E17: p | F17: 1025208 | G17: kr | H17: 1 | I17: 치석 | J17: r | K17: Bronze | L17: 45 | M17: 57 | N17: 617 | O17: 2014-07-25 | P17: 15 hours | Q17: 2014-08-27T04:44:42 | R17: 3379623-1|1025208-1 | S17: 0 | T17: 16
A18: 1808043 | B18: kr | C18: 1 | D18: 만식돌돌이 | E18: r | F18: 1728964 | G18: kr | H18: 1 | I18: 열화 | J18: r | K18: Bronze | L18: 19 | M18: 19 | N18: 600 | O18: 2014-08-13 | P18: 5 hours | Q18: 2014-08-27T04:44:42 | R18: 1808043-1|1728964-1 | S18: 0 | T18: 17
A19: 2948482 | B19: kr | C19: 1 | D19: 탱글이 | E19: p | F19: 1193200 | G19: kr | H19: 1 | I19: 주사장 | J19: p | K19: Bronze | L19: 31 | M19: 44 | N19: 599 | O19: 2014-07-07 | P19: 18 hours | Q19: 2014-08-27T04:44:42 | R19: 2948482-1|1193200-1 | S19: 0 | T19: 18
A20: 310138 | B20: kr | C20: 2 | D20: uts | E20: t | F20: 204080 | G20: kr | H20: 2 | I20: BigHammer | J20: t | K20: Bronze | L20: 63 | M20: 92 | N20: 599 | O20: 2014-07-06 | P20: 16 hours | Q20: 2014-08-27T04:44:42 | R20: 310138-2|204080-2 | S20: 0 | T20: 19
A21: 516616 | B21: kr | C21: 1 | D21: 필리핀노동자오주 | E21: r | F21: 411468 | G21: kr | H21: 1 | I21: Toshiya | J21: r | K21: Bronze | L21: 21 | M21: 30 | N21: 598 | O21: 2014-08-24 | P21: 18 hours | Q21: 2014-08-27T04:44:42 | R21: 516616-1|411468-1 | S21: 0 | T21: 20
A22: 4450314 | B22: kr | C22: 1 | D22: 호구왔능가 | E22: t | F22: 3349108 | G22: kr | H22: 1 | I22: mulsasin | J22: t | K22: Bronze | L22: 24 | M22: 21 | N22: 596 | O22: 2014-07-20 | P22: 11 days | Q22: 2014-08-27T04:44:42 | R22: 4450314-1|3349108-1 | S22: 0 | T22: 21
A23: 4689057 | B23: kr | C23: 1 | D23: kimlovely | E23: z | F23: 3281982 | G23: kr | H23: 1 | I23: 흡혈토끼 | J23: p | K23: Bronze | L23: 21 | M23: 29 | N23: 596 | O23: 2014-07-24 | P23: 4 days | Q23: 2014-08-27T04:44:42 | R23: 4689057-1|3281982-1 | S23: 0 | T23: 22
A24: 4686140 | B24: kr | C24: 1 | D24: RiCCardi | E24: r | F24: 858707 | G24: kr | H24: 1 | I24: Flyingbud | J24: p | K24: Bronze | L24: 22 | M24: 25 | N24: 594 | O24: 2014-08-09 | P24: 2 days | Q24: 2014-08-27T04:44:42 | R24: 4686140-1|858707-1 | S24: 0 | T24: 23
A25: 754324 | B25: kr | C25: 1 | D25: RHYMINT | E25: z | F25: 351484 | G25: kr | H25: 1 | I25: Acrime | J25: p | K25: Bronze | L25: 30 | M25: 44 | N25: 594 | O25: 2014-08-08 | P25: 16 hours | Q25: 2014-08-27T04:44:42 | R25: 754324-1|351484-1 | S25: 0 | T25: 24
A26: 4069706 | B26: kr | C26: 1 | D26: josesito | E26: z | F26: 2712286 | G26: kr | H26: 1 | I26: javichoton | J26: t | K26: Bronze | L26: 26 | M26: 30 | N26: 589 | O26: 2014-07-06 | P26: 6 days | Q26: 2014-08-27T04:44:42 | R26: 4069706-1|2712286-1 | S26: 0 | T26: 25
A27: 438075 | B27: kr | C27: 1 | D27: PsioniCWhiP | E27: r | F27: 245615 | G27: kr | H27: 1 | I27: 넥서스 | J27: p | K27: Bronze | L27: 27 | M27: 33 | N27: 583 | O27: 2014-08-09 | P27: 3 days | Q27: 2014-08-27T04:44:42 | R27: 438075-1|245615-1 | S27: 0 | T27: 26
A28: 164879 | B28: kr | C28: 1 | D28: Neo | E28: r | F28: 76646 | G28: kr | H28: 1 | I28: 헉헉헉 | J28: r | K28: Bronze | L28: 39 | M28: 55 | N28: 580 | O28: 2014-07-15 | P28: 6 days | Q28: 2014-08-27T04:44:42 | R28: 164879-1|76646-1 | S28: 0 | T28: 27
A29: 4272132 | B29: kr | C29: 1 | D29: 개가멍멍 | E29: p | F29: 4170229 | G29: kr | H29: 1 | I29: enducenim | J29: r | K29: Bronze | L29: 46 | M29: 62 | N29: 578 | O29: 2014-07-08 | P29: 11 days | Q29: 2014-08-27T04:44:42 | R29: 4272132-1|4170229-1 | S29: 0 | T29: 28
A30: 4110635 | B30: kr | C30: 1 | D30: 범수다 | E30: p | F30: 2613715 | G30: kr | H30: 1 | I30: 영현이닫 | J30: z | K30: Bronze | L30: 23 | M30: 28 | N30: 577 | O30: 2014-08-05 | P30: 3 days | Q30: 2014-08-27T04:44:42 | R30: 4110635-1|2613715-1 | S30: 0 | T30: 29
A31: 1577208 | B31: kr | C31: 1 | D31: dsccross | E31: p | F31: 308619 | G31: kr | H31: 1 | I31: 자칼 | J31: t | K31: Bronze | L31: 36 | M31: 52 | N31: 574 | O31: 2014-08-05 | P31: 18 hours | Q31: 2014-08-27T04:44:42 | R31: 1577208-1|308619-1 | S31: 0 | T31: 30
A32: 554284 | B32: kr | C32: 2 | D32: Nicholas | E32: t | F32: 74132 | G32: kr | H32: 2 | I32: ayumiowen | J32: p | K32: Bronze | L32: 19 | M32: 26 | N32: 570 | O32: 2014-07-12 | P32: 2 days | Q32: 2014-08-27T04:44:42 | R32: 554284-2|74132-2 | S32: 0 | T32: 31
A33: 1187329 | B33: kr | C33: 2 | D33: 叶小昕打大怪兽 | E33: z | F33: 1112832 | G33: kr | H33: 2 | I33: MacrossVF | J33: p | K33: Bronze | L33: 22 | M33: 30 | N33: 568 | O33: 2014-07-12 | P33: 17 hours | Q33: 2014-08-27T04:44:42 | R33: 1187329-2|1112832-2 | S33: 0 | T33: 32
A34: 4662886 | B34: kr | C34: 1 | D34: 군수공장 | E34: p | F34: 3169206 | G34: kr | H34: 1 | I34: 꽃벤시 | J34: t | K34: Bronze | L34: 42 | M34: 52 | N34: 567 | O34: 2014-07-16 | P34: 2 days | Q34: 2014-08-27T04:44:42 | R34: 4662886-1|3169206-1 | S34: 0 | T34: 33
A35: 1198089 | B35: kr | C35: 2 | D35: mumu | E35: t | F35: 1195463 | G35: kr | H35: 2 | I35: OCELOT | J35: p | K35: Bronze | L35: 60 | M35: 80 | N35: 567 | O35: 2014-07-06 | P35: 17 hours | Q35: 2014-08-27T04:44:42 | R35: 1198089-2|1195463-2 | S35: 0 | T35: 34
A36: 1776579 | B36: kr | C36: 1 | D36: wind | E36: p | F36: 1773150 | G36: kr | H36: 1 | I36: hjh | J36: t | K36: Bronze | L36: 62 | M36: 80 | N36: 563 | O36: 2014-07-13 | P36: 1 days | Q36: 2014-08-27T04:44:42 | R36: 1776579-1|1773150-1 | S36: 0 | T36: 35
A37: 1545430 | B37: kr | C37: 1 | D37: yurang | E37: p | F37: 1519038 | G37: kr | H37: 1 | I37: selly | J37: p | K37: Bronze | L37: 22 | M37: 20 | N37: 562 | O37: 2014-07-06 | P37: 2 days | Q37: 2014-08-27T04:44:42 | R37: 1545430-1|1519038-1 | S37: 0 | T37: 36
A38: 3086007 | B38: kr | C38: 1 | D38: oidmobile | E38: p | F38: 1477058 | G38: kr | H38: 1 | I38: Kura | J38: r | K38: Bronze | L38: 30 | M38: 52 | N38: 559 | O38: 2014-07-07 | P38: 1 days | Q38: 2014-08-27T04:44:42 | R38: 3086007-1|1477058-1 | S38: 0 | T38: 37
A39: 1077201 | B39: kr | C39: 2 | D39: davidliin | E39: p | F39: 822003 | G39: kr | H39: 2 | I39: Soleil | J39: p | K39: Bronze | L39: 30 | M39: 34 | N39: 557 | O39: 2014-07-06 | P39: 9 days | Q39: 2014-08-27T04:44:42 | R39: 1077201-2|822003-2 | S39: 0 | T39: 38
A40: 1921236 | B40: kr | C40: 1 | D40: 스껑그 | E40: z | F40: 1836961 | G40: kr | H40: 1 | I40: 만년삼 | J40: t | K40: Bronze | L40: 19 | M40: 25 | N40: 554 | O40: 2014-08-09 | P40: 4 days | Q40: 2014-08-27T04:44:42 | R40: 1921236-1|1836961-1 | S40: 0 | T40: 39
A41: 3687780 | B41: kr | C41: 1 | D41: 새벽소리 | E41: p | F41: 1277962 | G41: kr | H41: 1 | I41: harefoot | J41: t | K41: Bronze | L41: 31 | M41: 30 | N41: 547 | O41: 2014-07-11 | P41: 9 days | Q41: 2014-08-27T04:44:42 | R41: 3687780-1|1277962-1 | S41: 0 | T41: 40
A42: 3996310 | B42: kr | C42: 1 | D42: idisrock | E42: p | F42: 1819829 | G42: kr | H42: 1 | I42: SlashBay | J42: t | K42: Bronze | L42: 49 | M42: 54 | N42: 545 | O42: 2014-07-07 | P42: 9 days | Q42: 2014-08-27T04:44:42 | R42: 3996310-1|1819829-1 | S42: 0 | T42: 41
A43: 1977840 | B43: kr | C43: 1 | D43: 안티치토 | E43: p | F43: 1831010 | G43: kr | H43: 1 | I43: AirBone | J43: t | K43: Bronze | L43: 20 | M43: 41 | N43: 545 | O43: 2014-07-31 | P43: 19 hours | Q43: 2014-08-27T04:44:42 | R43: 1977840-1|1831010-1 | S43: 0 | T43: 42
A44: 4105889 | B44: kr | C44: 1 | D44: 제이제이 | E44: r | F44: 2158216 | G44: kr | H44: 1 | I44: 누렁이 | J44: t | K44: Bronze | L44: 22 | M44: 36 | N44: 544 | O44: 2014-07-07 | P44: 3 days | Q44: 2014-08-27T04:44:42 | R44: 4105889-1|2158216-1 | S44: 0 | T44: 43
A45: 1231180 | B45: kr | C45: 2 | D45: ZXC | E45: t | F45: 1075412 | G45: kr | H45: 2 | I45: Tom | J45: t | K45: Bronze | L45: 21 | M45: 21 | N45: 543 | O45: 2014-07-07 | P45: 1 days | Q45: 2014-08-27T04:44:42 | R45: 1231180-2|1075412-2 | S45: 0 | T45: 44
A46: 1053075 | B46: kr | C46: 2 | D46: 小嶋陽菜 | E46: z | F46: 791499 | G46: kr | H46: 2 | I46: KevinRush | J46: z | K46: Bronze | L46: 19 | M46: 21 | N46: 542 | O46: 2014-07-22 | P46: 1 minutes | Q46: 2014-08-27T04:44:42 | R46: 1053075-2|791499-2 | S46: 0 | T46: 45
A47: 4292884 | B47: kr | C47: 1 | D47: 안내도 | E47: t | F47: 1302849 | G47: kr | H47: 1 | I47: gisewife | J47: r | K47: Bronze | L47: 20 | M47: 15 | N47: 540 | O47: 2014-07-14 | P47: 7 days | Q47: 2014-08-27T04:44:42 | R47: 4292884-1|1302849-1 | S47: 0 | T47: 46
A48: 1363392 | B48: kr | C48: 1 | D48: 하늬삼춘 | E48: p | F48: 854668 | G48: kr | H48: 1 | I48: 하늬팝 | J48: t | K48: Bronze | L48: 19 | M48: 26 | N48: 540 | O48: 2014-08-02 | P48: 2 days | Q48: 2014-08-27T04:44:42 | R48: 1363392-1|854668-1 | S48: 0 | T48: 47
A49: 79633 | B49: kr | C49: 2 | D49: 林老 | E49: t | F49: 63946 | G49: kr | H49: 2 | I49: 阿刊 | J49: z | K49: Bronze | L49: 20 | M49: 22 | N49: 539 | O49: 2014-07-28 | P49: 8 days | Q49: 2014-08-27T04:44:42 | R49: 79633-2|63946-2 | S49: 0 | T49: 48
A50: 3711869 | B50: kr | C50: 1 | D50: 대장스승님 | E50: t | F50: 3582191 | G50: kr | H50: 1 | I50: 치훈스승님 | J50: p | K50: Bronze | L50: 20 | M50: 16 | N50: 534 | O50: 2014-08-03 | P50: 15 days | Q50: 2014-08-27T04:44:42 | R50: 3711869-1|3582191-1 | S50: 0 | T50: 49
A51: 1354557 | B51: kr | C51: 2 | D51: LEE | E51: z | F51: 1139871 | G51: kr | H51: 2 | I51: MIKE | J51: r | K51: Bronze | L51: 18 | M51: 28 | N51: 532 | O51: 2014-07-29 | P51: 19 hours | Q51: 2014-08-27T04:44:42 | R51: 1354557-2|1139871-2 | S51: 0 | T51: 50
A52: 2054885 | B52: kr | C52: 1 | D52: 개떵꼬 | E52: p | F52: 1803762 | G52: kr | H52: 1 | I52: 빠라드려요 | J52: p | K52: Bronze | L52: 20 | M52: 22 | N52: 530 | O52: 2014-08-02 | P52: 1 days | Q52: 2014-08-27T04:44:42 | R52: 2054885-1|1803762-1 | S52: 0 | T52: 51
A53: 4612465 | B53: kr | C53: 1 | D53: special | E53: z | F53: 4156501 | G53: kr | H53: 1 | I53: IlIlllIlIl | J53: z | K53: Bronze | L53: 20 | M53: 22 | N53: 528 | O53: 2014-08-11 | P53: 5 days | Q53: 2014-08-27T04:44:42 | R53: 4612465-1|4156501-1 | S53: 0 | T53: 52
A54: 4684692 | B54: kr | C54: 1 | D54: 주거주거시키야 | E54: p | F54: 1649028 | G54: kr | H54: 1 | I54: 발나우도 | J54: r | K54: Bronze | L54: 32 | M54: 43 | N54: 528 | O54: 2014-07-14 | P54: 8 days | Q54: 2014-08-27T04:44:42 | R54: 4684692-1|1649028-1 | S54: 0 | T54: 53
A55: 3848442 | B55: kr | C55: 1 | D55: 갈리할리 | E55: t | F55: 584718 | G55: kr | H55: 1 | I55: 할리갈리 | J55: r | K55: Bronze | L55: 21 | M55: 35 | N55: 527 | O55: 2014-08-13 | P55: 5 minutes | Q55: 2014-08-27T04:44:42 | R55: 3848442-1|584718-1 | S55: 0 | T55: 54
A56: 4675326 | B56: kr | C56: 1 | D56: 돈따자 | E56: p | F56: 4674010 | G56: kr | H56: 1 | I56: 명랑짱구 | J56: p | K56: Bronze | L56: 28 | M56: 41 | N56: 521 | O56: 2014-07-13 | P56: 11 days | Q56: 2014-08-27T04:44:42 | R56: 4675326-1|4674010-1 | S56: 0 | T56: 55
A57: 3220425 | B57: kr | C57: 1 | D57: 루시헬 | E57: p | F57: 591236 | G57: kr | H57: 1 | I57: 캐간지멋진남 | J57: t | K57: Bronze | L57: 20 | M57: 15 | N57: 520 | O57: 2014-08-15 | P57: 4 days | Q57: 2014-08-27T04:44:42 | R57: 3220425-1|591236-1 | S57: 0 | T57: 56
A58: 4710431 | B58: kr | C58: 1 | D58: 미아나따 | E58: p | F58: 737144 | G58: kr | H58: 1 | I58: 마다거스커 | J58: t | K58: Bronze | L58: 20 | M58: 34 | N58: 520 | O58: 2014-08-14 | P58: 2 days | Q58: 2014-08-27T04:44:42 | R58: 4710431-1|737144-1 | S58: 0 | T58: 57
A59: 2823259 | B59: kr | C59: 1 | D59: 어디야 | E59: r | F59: 2756439 | G59: kr | H59: 1 | I59: dragonzone | J59: p | K59: Bronze | L59: 27 | M59: 43 | N59: 517 | O59: 2014-07-20 | P59: 2 days | Q59: 2014-08-27T04:44:42 | R59: 2823259-1|2756439-1 | S59: 0 | T59: 58
A60: 2945164 | B60: kr | C60: 1 | D60: 시야나 | E60: p | F60: 2589373 | G60: kr | H60: 1 | I60: 고라 | J60: p | K60: Bronze | L60: 34 | M60: 57 | N60: 514 | O60: 2014-07-07 | P60: 3 days | Q60: 2014-08-27T04:44:43 | R60: 2945164-1|2589373-1 | S60: 0 | T60: 59
A61: 225164 | B61: kr | C61: 2 | D61: 牙籤 | E61: p | F61: 110265 | G61: kr | H61: 2 | I61: flybird | J61: t | K61: Bronze | L61: 47 | M61: 55 | N61: 503 | O61: 2014-07-08 | P61: 6 days | Q61: 2014-08-27T04:44:43 | R61: 225164-2|110265-2 | S61: 0 | T61: 60
A62: 1067190 | B62: kr | C62: 2 | D62: aquarius | E62: p | F62: 274575 | G62: kr | H62: 2 | I62: 泰瑞 | J62: p | K62: Bronze | L62: 16 | M62: 16 | N62: 502 | O62: 2014-07-14 | P62: 19 hours | Q62: 2014-08-27T04:44:43 | R62: 1067190-2|274575-2 | S62: 0 | T62: 61
A63: 1107761 | B63: kr | C63: 2 | D63: ForeverLove | E63: p | F63: 786891 | G63: kr | H63: 2 | I63: 乂肚皮乂 | J63: r | K63: Bronze | L63: 15 | M63: 16 | N63: 502 | O63: 2014-08-03 | P63: 8 days | Q63: 2014-08-27T04:44:43 | R63: 1107761-2|786891-2 | S63: 0 | T63: 62
A64: 3222216 | B64: kr | C64: 1 | D64: 유비 | E64: r | F64: 2985222 | G64: kr | H64: 1 | I64: LOUISVUITTON | J64: r | K64: Bronze | L64: 15 | M64: 18 | N64: 498 | O64: 2014-07-10 | P64: 3 days | Q64: 2014-08-27T04:44:43 | R64: 3222216-1|2985222-1 | S64: 0 | T64: 63
A65: 2680841 | B65: kr | C65: 1 | D65: 웅트라 | E65: t | F65: 176645 | G65: kr | H65: 1 | I65: HELLOW | J65: z | K65: Bronze | L65: 19 | M65: 16 | N65: 497 | O65: 2014-07-11 | P65: 3 days | Q65: 2014-08-27T04:44:43 | R65: 2680841-1|176645-1 | S65: 0 | T65: 64
A66: 4015701 | B66: kr | C66: 1 | D66: OneMarin | E66: t | F66: 534220 | G66: kr | H66: 1 | I66: OneGhost | J66: t | K66: Bronze | L66: 17 | M66: 27 | N66: 496 | O66: 2014-08-15 | P66: 4 days | Q66: 2014-08-27T04:44:43 | R66: 4015701-1|534220-1 | S66: 0 | T66: 65
A67: 4445168 | B67: kr | C67: 1 | D67: chuno | E67: z | F67: 3078314 | G67: kr | H67: 1 | I67: Romantist | J67: t | K67: Bronze | L67: 17 | M67: 15 | N67: 494 | O67: 2014-07-08 | P67: 4 days | Q67: 2014-08-27T04:44:43 | R67: 4445168-1|3078314-1 | S67: 0 | T67: 66
A68: 1344894 | B68: kr | C68: 2 | D68: LocKeYXX | E68: p | F68: 77614 | G68: kr | H68: 2 | I68: losfair | J68: r | K68: Bronze | L68: 47 | M68: 58 | N68: 492 | O68: 2014-07-09 | P68: 13 days | Q68: 2014-08-27T04:44:43 | R68: 1344894-2|77614-2 | S68: 0 | T68: 67
A69: 1131254 | B69: kr | C69: 1 | D69: WOoK | E69: t | F69: 1003526 | G69: kr | H69: 1 | I69: GanJI | J69: t | K69: Bronze | L69: 19 | M69: 24 | N69: 492 | O69: 2014-07-28 | P69: 3 days | Q69: 2014-08-27T04:44:43 | R69: 1131254-1|1003526-1 | S69: 0 | T69: 68
A70: 2925448 | B70: kr | C70: 1 | D70: 오후한때소나기 | E70: t | F70: 1504264 | G70: kr | H70: 1 | I70: SoSAe | J70: z | K70: Bronze | L70: 17 | M70: 15 | N70: 488 | O70: 2014-08-18 | P70: 20 hours | Q70: 2014-08-27T04:44:43 | R70: 2925448-1|1504264-1 | S70: 0 | T70: 69
A71: 3946436 | B71: kr | C71: 1 | D71: 혈공자 | E71: p | F71: 364063 | G71: kr | H71: 1 | I71: Take | J71: z | K71: Bronze | L71: 20 | M71: 24 | N71: 488 | O71: 2014-07-14 | P71: 22 hours | Q71: 2014-08-27T04:44:43 | R71: 3946436-1|364063-1 | S71: 0 | T71: 70
A72: 559848 | B72: kr | C72: 1 | D72: Jam | E72: t | F72: 81373 | G72: kr | H72: 1 | I72: 타유비 | J72: p | K72: Bronze | L72: 15 | M72: 23 | N72: 488 | O72: 2014-07-25 | P72: 12 days | Q72: 2014-08-27T04:44:43 | R72: 559848-1|81373-1 | S72: 0 | T72: 71
A73: 1095496 | B73: kr | C73: 1 | D73: 쩌리 | E73: r | F73: 849855 | G73: kr | H73: 1 | I73: Limhw | J73: r | K73: Bronze | L73: 17 | M73: 22 | N73: 480 | O73: 2014-07-22 | P73: 16 hours | Q73: 2014-08-27T04:44:43 | R73: 1095496-1|849855-1 | S73: 0 | T73: 72
A74: 4676894 | B74: kr | C74: 1 | D74: 당나귀야 | E74: t | F74: 2790604 | G74: kr | H74: 1 | I74: 앙증눈웃음 | J74: p | K74: Bronze | L74: 19 | M74: 22 | N74: 478 | O74: 2014-08-05 | P74: 8 days | Q74: 2014-08-27T04:44:43 | R74: 4676894-1|2790604-1 | S74: 0 | T74: 73
A75: 4659725 | B75: kr | C75: 1 | D75: 압구정동 | E75: z | F75: 218453 | G75: kr | H75: 1 | I75: 마쿤 | J75: p | K75: Bronze | L75: 18 | M75: 33 | N75: 478 | O75: 2014-07-13 | P75: 3 days | Q75: 2014-08-27T04:44:43 | R75: 4659725-1|218453-1 | S75: 0 | T75: 74
A76: 1001378 | B76: kr | C76: 2 | D76: saintswin | E76: z | F76: 1001135 | G76: kr | H76: 2 | I76: SaintsKee | J76: z | K76: Bronze | L76: 21 | M76: 36 | N76: 476 | O76: 2014-07-07 | P76: 1 days | Q76: 2014-08-27T04:44:43 | R76: 1001378-2|1001135-2 | S76: 0 | T76: 75
A77: 1230091 | B77: kr | C77: 2 | D77: 小忠 | E77: t | F77: 843091 | G77: kr | H77: 2 | I77: kof | J77: p | K77: Bronze | L77: 15 | M77: 14 | N77: 474 | O77: 2014-07-30 | P77: 17 days | Q77: 2014-08-27T04:44:43 | R77: 1230091-2|843091-2 | S77: 0 | T77: 76
A78: 3521425 | B78: kr | C78: 1 | D78: 마탄의사수 | E78: z | F78: 1965040 | G78: kr | H78: 1 | I78: Mercury | J78: z | K78: Bronze | L78: 38 | M78: 53 | N78: 470 | O78: 2014-07-14 | P78: 8 days | Q78: 2014-08-27T04:44:43 | R78: 3521425-1|1965040-1 | S78: 0 | T78: 77
A79: 4294165 | B79: kr | C79: 1 | D79: 에반 | E79: t | F79: 1650102 | G79: kr | H79: 1 | I79: 지랭이 | J79: p | K79: Bronze | L79: 16 | M79: 20 | N79: 469 | O79: 2014-07-17 | P79: 18 hours | Q79: 2014-08-27T04:44:43 | R79: 4294165-1|1650102-1 | S79: 0 | T79: 78
A80: 3514369 | B80: kr | C80: 1 | D80: 하하하 | E80: t | F80: 1560049 | G80: kr | H80: 1 | I80: 히딩브 | J80: t | K80: Bronze | L80: 17 | M80: 25 | N80: 469 | O80: 2014-07-12 | P80: 3 days | Q80: 2014-08-27T04:44:43 | R80: 3514369-1|1560049-1 | S80: 0 | T80: 79
A81: 3682826 | B81: kr | C81: 1 | D81: Torres | E81: p | F81: 2616964 | G81: kr | H81: 1 | I81: 디스 | J81: t | K81: Bronze | L81: 17 | M81: 17 | N81: 468 | O81: 2014-07-22 | P81: 13 days | Q81: 2014-08-27T04:44:43 | R81: 3682826-1|2616964-1 | S81: 0 | T81: 80
A82: 4110478 | B82: kr | C82: 1 | D82: 도미니언 | E82: t | F82: 266495 | G82: kr | H82: 1 | I82: Nightmare | J82: p | K82: Bronze | L82: 15 | M82: 20 | N82: 464 | O82: 2014-07-19 | P82: 11 days | Q82: 2014-08-27T04:44:43 | R82: 4110478-1|266495-1 | S82: 0 | T82: 81
A83: 4470576 | B83: kr | C83: 1 | D83: 태헌쮸 | E83: r | F83: 873779 | G83: kr | H83: 1 | I83: LeaP | J83: r | K83: Bronze | L83: 15 | M83: 10 | N83: 462 | O83: 2014-07-12 | P83: 4 days | Q83: 2014-08-27T04:44:43 | R83: 4470576-1|873779-1 | S83: 0 | T83: 82
A84: 3022268 | B84: kr | C84: 1 | D84: 최배달 | E84: t | F84: 628391 | G84: kr | H84: 1 | I84: TheSp | J84: t | K84: Bronze | L84: 22 | M84: 24 | N84: 462 | O84: 2014-07-08 | P84: 4 days | Q84: 2014-08-27T04:44:43 | R84: 3022268-1|628391-1 | S84: 0 | T84: 83
A85: 4059707 | B85: kr | C85: 1 | D85: 땡이 | E85: r | F85: 4058818 | G85: kr | H85: 1 | I85: 은삐군단 | J85: p | K85: Bronze | L85: 16 | M85: 16 | N85: 458 | O85: 2014-07-26 | P85: 3 days | Q85: 2014-08-27T04:44:43 | R85: 4059707-1|4058818-1 | S85: 0 | T85: 84
A86: 714281 | B86: kr | C86: 2 | D86: Nick | E86: p | F86: 713462 | G86: kr | H86: 2 | I86: Jimmy | J86: t | K86: Bronze | L86: 20 | M86: 23 | N86: 455 | O86: 2014-07-08 | P86: 18 hours | Q86: 2014-08-27T04:44:43 | R86: 714281-2|713462-2 | S86: 0 | T86: 85
A87: 3851433 | B87: kr | C87: 1 | D87: aLinK | E87: t | F87: 2171120 | G87: kr | H87: 1 | I87: 한예슬짱 | J87: p | K87: Bronze | L87: 16 | M87: 19 | N87: 454 | O87: 2014-08-19 | P87: 4 days | Q87: 2014-08-27T04:44:43 | R87: 3851433-1|2171120-1 | S87: 0 | T87: 86
A88: 2028445 | B88: kr | C88: 1 | D88: Hotbear | E88: p | F88: 822011 | G88: kr | H88: 1 | I88: 자두맛떡 | J88: t | K88: Bronze | L88: 31 | M88: 38 | N88: 451 | O88: 2014-07-11 | P88: 5 days | Q88: 2014-08-27T04:44:43 | R88: 2028445-1|822011-1 | S88: 0 | T88: 87
A89: 2787555 | B89: kr | C89: 1 | D89: 크하하하하하 | E89: p | F89: 2318067 | G89: kr | H89: 1 | I89: 만득이 | J89: r | K89: Bronze | L89: 16 | M89: 7 | N89: 448 | O89: 2014-07-15 | P89: 6 days | Q89: 2014-08-27T04:44:43 | R89: 2787555-1|2318067-1 | S89: 0 | T89: 88
A90: 3850122 | B90: kr | C90: 1 | D90: Incurable | E90: t | F90: 986621 | G90: kr | H90: 1 | I90: sniper | J90: z | K90: Bronze | L90: 14 | M90: 10 | N90: 448 | O90: 2014-08-17 | P90: 4 days | Q90: 2014-08-27T04:44:43 | R90: 3850122-1|986621-1 | S90: 0 | T90: 89
A91: 3946840 | B91: kr | C91: 1 | D91: 인생의참된것 | E91: p | F91: 1523743 | G91: kr | H91: 1 | I91: Sparky | J91: z | K91: Bronze | L91: 16 | M91: 17 | N91: 448 | O91: 2014-07-29 | P91: 7 days | Q91: 2014-08-27T04:44:43 | R91: 3946840-1|1523743-1 | S91: 0 | T91: 90
A92: 4160214 | B92: kr | C92: 1 | D92: kim | E92: r | F92: 4003149 | G92: kr | H92: 1 | I92: 호시기 | J92: p | K92: Bronze | L92: 15 | M92: 14 | N92: 446 | O92: 2014-07-19 | P92: 2 days | Q92: 2014-08-27T04:44:43 | R92: 4160214-1|4003149-1 | S92: 0 | T92: 91
A93: 402932 | B93: kr | C93: 1 | D93: 효찐 | E93: t | F93: 153139 | G93: kr | H93: 1 | I93: 떠도리 | J93: z | K93: Bronze | L93: 15 | M93: 23 | N93: 446 | O93: 2014-07-13 | P93: 3 days | Q93: 2014-08-27T04:44:43 | R93: 402932-1|153139-1 | S93: 0 | T93: 92
A94: 4003964 | B94: kr | C94: 1 | D94: 프리즌브레이크 | E94: p | F94: 1818161 | G94: kr | H94: 1 | I94: 백의천사 | J94: z | K94: Bronze | L94: 29 | M94: 33 | N94: 445 | O94: 2014-07-20 | P94: 21 days | Q94: 2014-08-27T04:44:43 | R94: 4003964-1|1818161-1 | S94: 0 | T94: 93
A95: 3143142 | B95: kr | C95: 1 | D95: 최민혁 | E95: z | F95: 673669 | G95: kr | H95: 1 | I95: 니얼굴 | J95: p | K95: Bronze | L95: 18 | M95: 22 | N95: 443 | O95: 2014-07-18 | P95: 17 days | Q95: 2014-08-27T04:44:43 | R95: 3143142-1|673669-1 | S95: 0 | T95: 94
A96: 1474919 | B96: kr | C96: 1 | D96: 스나이퍼 | E96: p | F96: 1328722 | G96: kr | H96: 1 | I96: 특전사 | J96: r | K96: Bronze | L96: 15 | M96: 9 | N96: 442 | O96: 2014-08-15 | P96: 10 days | Q96: 2014-08-27T04:44:43 | R96: 1474919-1|1328722-1 | S96: 0 | T96: 95
A97: 4504450 | B97: kr | C97: 1 | D97: Edwin | E97: p | F97: 1041646 | G97: kr | H97: 1 | I97: 냉강땡이 | J97: z | K97: Bronze | L97: 16 | M97: 24 | N97: 442 | O97: 2014-08-07 | P97: 5 days | Q97: 2014-08-27T04:44:43 | R97: 4504450-1|1041646-1 | S97: 0 | T97: 96
A98: 1071250 | B98: kr | C98: 2 | D98: YGodLAG | E98: z | F98: 819202 | G98: kr | H98: 2 | I98: UndecLaredRH | J98: t | K98: Bronze | L98: 13 | M98: 3 | N98: 441 | O98: 2014-07-13 | P98: 25 days | Q98: 2014-08-27T04:44:43 | R98: 1071250-2|819202-2 | S98: 0 | T98: 97
A99: 4493508 | B99: kr | C99: 1 | D99: moonsw | E99: r | F99: 4492614 | G99: kr | H99: 1 | I99: 아틀란티스 | J99: z | K99: Bronze | L99: 16 | M99: 13 | N99: 436 | O99: 2014-07-12 | P99: 4 days | Q99: 2014-08-27T04:44:43 | R99: 4493508-1|4492614-1 | S99: 0 | T99: 98
A100: 4365386 | B100: kr | C100: 1 | D100: 하방 | E100: z | F100: 1215780 | G100: kr | H100: 1 | I100: Lynx | J100: r | K100: Bronze | L100: 14 | M100: 12 | N100: 432 | O100: 2014-07-31 | P100: 6 days | Q100: 2014-08-27T04:44:43 | R100: 4365386-1|1215780-1 | S100: 0 | T100: 99
A101: 1324463 | B101: kr | C101: 2 | D101: 花禪 | E101: p | F101: 729487 | G101: kr | H101: 2 | I101: Xing | J101: r | K101: Bronze | L101: 27 | M101: 29 | N101: 432 | O101: 2014-07-07 | P101: 21 days | Q101: 2014-08-27T04:44:43 | R101: 1324463-2|729487-2 | S101: 0 | T101: 100
A102: 2013610 | B102: kr | C102: 1 | D102: Arondight | E102: t | F102: 264387 | G102: kr | H102: 1 | I102: FrostMagic | J102: t | K102: Bronze | L102: 25 | M102: 33 | N102: 432 | O102: 2014-07-07 | P102: 3 days | Q102: 2014-08-27T04:44:43 | R102: 2013610-1|264387-1 | S102: 0 | T102: 101
A103: 4650024 | B103: kr | C103: 1 | D103: 덕구 | E103: p | F103: 858707 | G103: kr | H103: 1 | I103: Flyingbud | J103: p | K103: Bronze | L103: 36 | M103: 46 | N103: 429 | O103: 2014-07-06 | P103: 4 days | Q103: 2014-08-27T04:44:43 | R103: 4650024-1|858707-1 | S103: 0 | T103: 102
A104: 4658978 | B104: kr | C104: 1 | D104: leeleleelee | E104: t | F104: 4386281 | G104: kr | H104: 1 | I104: PumBa | J104: r | K104: Bronze | L104: 15 | M104: 18 | N104: 427 | O104: 2014-07-11 | P104: 2 days | Q104: 2014-08-27T04:44:43 | R104: 4658978-1|4386281-1 | S104: 0 | T104: 103
A105: 1294235 | B105: kr | C105: 2 | D105: Soda | E105: p | F105: 148322 | G105: kr | H105: 2 | I105: MikeZTM | J105: r | K105: Bronze | L105: 16 | M105: 28 | N105: 427 | O105: 2014-07-18 | P105: 17 days | Q105: 2014-08-27T04:44:43 | R105: 1294235-2|148322-2 | S105: 0 | T105: 104
A106: 4376076 | B106: kr | C106: 1 | D106: 매력팡팡 | E106: z | F106: 4224910 | G106: kr | H106: 1 | I106: Scotch | J106: z | K106: Bronze | L106: 14 | M106: 11 | N106: 426 | O106: 2014-07-18 | P106: 21 days | Q106: 2014-08-27T04:44:43 | R106: 4376076-1|4224910-1 | S106: 0 | T106: 105
A107: 3938514 | B107: kr | C107: 1 | D107: 혜성이랑 | E107: p | F107: 319170 | G107: kr | H107: 1 | I107: 황간지 | J107: z | K107: Bronze | L107: 15 | M107: 18 | N107: 426 | O107: 2014-08-13 | P107: 2 days | Q107: 2014-08-27T04:44:43 | R107: 3938514-1|319170-1 | S107: 0 | T107: 106
A108: 3362098 | B108: kr | C108: 1 | D108: Adun | E108: r | F108: 3134558 | G108: kr | H108: 1 | I108: 셰프제이 | J108: r | K108: Bronze | L108: 17 | M108: 44 | N108: 424 | O108: 2014-07-09 | P108: 2 days | Q108: 2014-08-27T04:44:43 | R108: 3362098-1|3134558-1 | S108: 0 | T108: 107
A109: 4640248 | B109: kr | C109: 1 | D109: TEDgamecount | E109: t | F109: 2728797 | G109: kr | H109: 1 | I109: Drsong | J109: p | K109: Bronze | L109: 16 | M109: 14 | N109: 422 | O109: 2014-07-15 | P109: 16 days | Q109: 2014-08-27T04:44:43 | R109: 4640248-1|2728797-1 | S109: 0 | T109: 108
A110: 822002 | B110: kr | C110: 2 | D110: 洋皇 | E110: z | F110: 818352 | G110: kr | H110: 2 | I110: BILL | J110: t | K110: Bronze | L110: 21 | M110: 22 | N110: 421 | O110: 2014-07-10 | P110: 9 days | Q110: 2014-08-27T04:44:43 | R110: 822002-2|818352-2 | S110: 0 | T110: 109
A111: 2528060 | B111: kr | C111: 1 | D111: 민준짱 | E111: p | F111: 2464455 | G111: kr | H111: 1 | I111: erenc | J111: p | K111: Bronze | L111: 13 | M111: 10 | N111: 420 | O111: 2014-08-01 | P111: 10 days | Q111: 2014-08-27T04:44:43 | R111: 2528060-1|2464455-1 | S111: 0 | T111: 110
A112: 3019379 | B112: kr | C112: 1 | D112: 한번웃어줄께 | E112: r | F112: 697025 | G112: kr | H112: 1 | I112: 하루빨리 | J112: r | K112: Bronze | L112: 14 | M112: 14 | N112: 420 | O112: 2014-07-15 | P112: 6 days | Q112: 2014-08-27T04:44:43 | R112: 3019379-1|697025-1 | S112: 0 | T112: 111
A113: 2860326 | B113: kr | C113: 1 | D113: 가쯔오우동 | E113: p | F113: 718959 | G113: kr | H113: 1 | I113: 김밥팔아 | J113: p | K113: Bronze | L113: 20 | M113: 26 | N113: 417 | O113: 2014-07-07 | P113: 18 days | Q113: 2014-08-27T04:44:43 | R113: 2860326-1|718959-1 | S113: 0 | T113: 112
A114: 892251 | B114: kr | C114: 1 | D114: 권력 | E114: r | F114: 354530 | G114: kr | H114: 1 | I114: 형오셧어요 | J114: t | K114: Bronze | L114: 13 | M114: 23 | N114: 416 | O114: 2014-08-14 | P114: 3 days | Q114: 2014-08-27T04:44:43 | R114: 892251-1|354530-1 | S114: 0 | T114: 113
A115: 738256 | B115: kr | C115: 2 | D115: noid | E115: r | F115: 737187 | G115: kr | H115: 2 | I115: vAn | J115: r | K115: Bronze | L115: 83 | M115: 174 | N115: 416 | O115: 2014-07-08 | P115: 2 days | Q115: 2014-08-27T04:44:43 | R115: 738256-2|737187-2 | S115: 0 | T115: 114
A116: 2719540 | B116: kr | C116: 1 | D116: 장달 | E116: r | F116: 2022213 | G116: kr | H116: 1 | I116: 재구매할인쿠폰 | J116: t | K116: Bronze | L116: 15 | M116: 17 | N116: 412 | O116: 2014-07-19 | P116: 11 days | Q116: 2014-08-27T04:44:43 | R116: 2719540-1|2022213-1 | S116: 0 | T116: 115
A117: 1928462 | B117: kr | C117: 1 | D117: 제빵왕현욱 | E117: t | F117: 1928356 | G117: kr | H117: 1 | I117: 누구누구누구 | J117: z | K117: Bronze | L117: 14 | M117: 23 | N117: 410 | O117: 2014-07-12 | P117: 5 days | Q117: 2014-08-27T04:44:43 | R117: 1928462-1|1928356-1 | S117: 0 | T117: 116
A118: 457727 | B118: kr | C118: 1 | D118: 도사 | E118: p | F118: 377460 | G118: kr | H118: 1 | I118: 쭈야르 | J118: t | K118: Bronze | L118: 16 | M118: 23 | N118: 409 | O118: 2014-07-16 | P118: 18 hours | Q118: 2014-08-27T04:44:43 | R118: 457727-1|377460-1 | S118: 0 | T118: 117
A119: 2415246 | B119: kr | C119: 1 | D119: thsgmltmd | E119: z | F119: 2407631 | G119: kr | H119: 1 | I119: 송도비룡 | J119: p | K119: Bronze | L119: 14 | M119: 13 | N119: 408 | O119: 2014-07-19 | P119: 2 days | Q119: 2014-08-27T04:44:43 | R119: 2415246-1|2407631-1 | S119: 0 | T119: 118
A120: 4721937 | B120: kr | C120: 1 | D120: AresSpeed | E120: p | F120: 1099291 | G120: kr | H120: 1 | I120: VILLA | J120: p | K120: Bronze | L120: 12 | M120: 13 | N120: 408 | O120: 2014-08-26 | P120: 1 minutes | Q120: 2014-08-27T04:44:43 | R120: 4721937-1|1099291-1 | S120: 0 | T120: 119
A121: 4701999 | B121: kr | C121: 1 | D121: syj | E121: r | F121: 1232199 | G121: kr | H121: 1 | I121: wonbinsida | J121: t | K121: Bronze | L121: 13 | M121: 16 | N121: 408 | O121: 2014-08-03 | P121: 16 days | Q121: 2014-08-27T04:44:43 | R121: 4701999-1|1232199-1 | S121: 0 | T121: 120
A122: 2579915 | B122: kr | C122: 1 | D122: 홍당무 | E122: z | F122: 167999 | G122: kr | H122: 1 | I122: hhs | J122: p | K122: Bronze | L122: 15 | M122: 25 | N122: 408 | O122: 2014-07-21 | P122: 16 hours | Q122: 2014-08-27T04:44:43 | R122: 2579915-1|167999-1 | S122: 0 | T122: 121
A123: 4244528 | B123: kr | C123: 1 | D123: 되는되로퇴학 | E123: z | F123: 3259939 | G123: kr | H123: 1 | I123: dfafa | J123: p | K123: Bronze | L123: 14 | M123: 9 | N123: 406 | O123: 2014-08-03 | P123: 6 days | Q123: 2014-08-27T04:44:43 | R123: 4244528-1|3259939-1 | S123: 0 | T123: 122
A124: 3566181 | B124: kr | C124: 1 | D124: 장뚱 | E124: p | F124: 2719540 | G124: kr | H124: 1 | I124: 장달 | J124: r | K124: Bronze | L124: 12 | M124: 13 | N124: 404 | O124: 2014-07-17 | P124: 1 days | Q124: 2014-08-27T04:44:43 | R124: 3566181-1|2719540-1 | S124: 0 | T124: 123
A125: 2157179 | B125: kr | C125: 1 | D125: 프로토스 | E125: r | F125: 1305807 | G125: kr | H125: 1 | I125: jjtjdwns | J125: r | K125: Bronze | L125: 18 | M125: 14 | N125: 402 | O125: 2014-07-07 | P125: 8 days | Q125: 2014-08-27T04:44:43 | R125: 2157179-1|1305807-1 | S125: 0 | T125: 124
A126: 4705999 | B126: kr | C126: 1 | D126: fesjke | E126: p | F126: 2197353 | G126: kr | H126: 1 | I126: 곰탱이마왕 | J126: t | K126: Bronze | L126: 15 | M126: 20 | N126: 402 | O126: 2014-08-13 | P126: 5 days | Q126: 2014-08-27T04:44:43 | R126: 4705999-1|2197353-1 | S126: 0 | T126: 125
A127: 1260843 | B127: kr | C127: 2 | D127: starmark | E127: p | F127: 524790 | G127: kr | H127: 2 | I127: DENNIS | J127: t | K127: Bronze | L127: 13 | M127: 26 | N127: 402 | O127: 2014-08-12 | P127: 15 hours | Q127: 2014-08-27T04:44:43 | R127: 1260843-2|524790-2 | S127: 0 | T127: 126
A128: 810552 | B128: kr | C128: 1 | D128: 광폭혈주 | E128: r | F128: 300609 | G128: kr | H128: 1 | I128: 마르티네스 | J128: r | K128: Bronze | L128: 13 | M128: 14 | N128: 398 | O128: 2014-08-05 | P128: 3 days | Q128: 2014-08-27T04:44:43 | R128: 810552-1|300609-1 | S128: 0 | T128: 127
A129: 4360176 | B129: kr | C129: 1 | D129: ino | E129: p | F129: 801392 | G129: kr | H129: 1 | I129: sin | J129: p | K129: Bronze | L129: 12 | M129: 13 | N129: 398 | O129: 2014-07-31 | P129: 11 days | Q129: 2014-08-27T04:44:43 | R129: 4360176-1|801392-1 | S129: 0 | T129: 128
A130: 4701477 | B130: kr | C130: 1 | D130: 달래영 | E130: t | F130: 3924102 | G130: kr | H130: 1 | I130: StarRusH | J130: p | K130: Bronze | L130: 14 | M130: 19 | N130: 398 | O130: 2014-08-03 | P130: 2 days | Q130: 2014-08-27T04:44:43 | R130: 4701477-1|3924102-1 | S130: 0 | T130: 129
A131: 1271557 | B131: kr | C131: 2 | D131: Sam | E131: p | F131: 450441 | G131: kr | H131: 2 | I131: 亞倫印刻 | J131: z | K131: Bronze | L131: 24 | M131: 26 | N131: 397 | O131: 2014-07-10 | P131: 18 days | Q131: 2014-08-27T04:44:43 | R131: 1271557-2|450441-2 | S131: 0 | T131: 130
A132: 2469361 | B132: kr | C132: 1 | D132: virtuoso | E132: r | F132: 492752 | G132: kr | H132: 1 | I132: Beckham | J132: p | K132: Bronze | L132: 14 | M132: 10 | N132: 394 | O132: 2014-08-23 | P132: 1 days | Q132: 2014-08-27T04:44:43 | R132: 2469361-1|492752-1 | S132: 0 | T132: 131
A133: 4478390 | B133: kr | C133: 1 | D133: 식이당 | E133: p | F133: 4136361 | G133: kr | H133: 1 | I133: 울산남구삼산동 | J133: r | K133: Bronze | L133: 12 | M133: 10 | N133: 392 | O133: 2014-08-12 | P133: 12 days | Q133: 2014-08-27T04:44:43 | R133: 4478390-1|4136361-1 | S133: 0 | T133: 132
A134: 503665 | B134: kr | C134: 1 | D134: 천서방 | E134: r | F134: 291335 | G134: kr | H134: 1 | I134: 불켜보니저글링 | J134: t | K134: Bronze | L134: 12 | M134: 8 | N134: 390 | O134: 2014-07-27 | P134: 10 days | Q134: 2014-08-27T04:44:43 | R134: 503665-1|291335-1 | S134: 0 | T134: 133
A135: 486734 | B135: kr | C135: 2 | D135: 光一艾克羅傑瑞 | E135: p | F135: 361689 | G135: kr | H135: 2 | I135: 小橋照彥 | J135: p | K135: Bronze | L135: 13 | M135: 10 | N135: 390 | O135: 2014-07-20 | P135: 20 days | Q135: 2014-08-27T04:44:43 | R135: 486734-2|361689-2 | S135: 0 | T135: 134
A136: 4057504 | B136: kr | C136: 1 | D136: 한가해요 | E136: t | F136: 1332525 | G136: kr | H136: 1 | I136: 여녕이 | J136: z | K136: Bronze | L136: 17 | M136: 17 | N136: 390 | O136: 2014-07-11 | P136: 9 days | Q136: 2014-08-27T04:44:43 | R136: 4057504-1|1332525-1 | S136: 0 | T136: 135
A137: 1437406 | B137: kr | C137: 1 | D137: 무자본돋네 | E137: p | F137: 1025023 | G137: kr | H137: 1 | I137: ChocoCookie | J137: t | K137: Bronze | L137: 30 | M137: 74 | N137: 388 | O137: 2014-07-06 | P137: 1 days | Q137: 2014-08-27T04:44:43 | R137: 1437406-1|1025023-1 | S137: 0 | T137: 136
A138: 3408242 | B138: kr | C138: 1 | D138: gloomyhf | E138: z | F138: 299910 | G138: kr | H138: 1 | I138: 아이즈로칸 | J138: p | K138: Bronze | L138: 23 | M138: 22 | N138: 386 | O138: 2014-07-08 | P138: 10 days | Q138: 2014-08-27T04:44:43 | R138: 3408242-1|299910-1 | S138: 0 | T138: 137
A139: 273400 | B139: kr | C139: 2 | D139: Algae | E139: r | F139: 197092 | G139: kr | H139: 2 | I139: FishLeeLeon | J139: r | K139: Bronze | L139: 12 | M139: 15 | N139: 384 | O139: 2014-07-19 | P139: 2 days | Q139: 2014-08-27T04:44:43 | R139: 273400-2|197092-2 | S139: 0 | T139: 138
A140: 3926697 | B140: kr | C140: 1 | D140: NOEMOTION | E140: t | F140: 1446319 | G140: kr | H140: 1 | I140: kunrim | J140: p | K140: Bronze | L140: 11 | M140: 16 | N140: 384 | O140: 2014-08-04 | P140: 18 days | Q140: 2014-08-27T04:44:43 | R140: 3926697-1|1446319-1 | S140: 0 | T140: 139
A141: 1886341 | B141: kr | C141: 1 | D141: 물곰 | E141: r | F141: 1674493 | G141: kr | H141: 1 | I141: 순규 | J141: r | K141: Bronze | L141: 15 | M141: 7 | N141: 383 | O141: 2014-07-15 | P141: 16 days | Q141: 2014-08-27T04:44:43 | R141: 1886341-1|1674493-1 | S141: 0 | T141: 140
A142: 2336254 | B142: kr | C142: 1 | D142: 까씨꼬끼 | E142: p | F142: 2333768 | G142: kr | H142: 1 | I142: CuzYou | J142: z | K142: Bronze | L142: 12 | M142: 12 | N142: 380 | O142: 2014-07-07 | P142: 5 days | Q142: 2014-08-27T04:44:43 | R142: 2336254-1|2333768-1 | S142: 0 | T142: 141
A143: 4342634 | B143: kr | C143: 1 | D143: youngchulje | E143: t | F143: 729347 | G143: kr | H143: 1 | I143: jones | J143: t | K143: Bronze | L143: 12 | M143: 14 | N143: 380 | O143: 2014-07-09 | P143: 1 days | Q143: 2014-08-27T04:44:43 | R143: 4342634-1|729347-1 | S143: 0 | T143: 142
A144: 426678 | B144: kr | C144: 2 | D144: 毀無痕 | E144: t | F144: 170196 | G144: kr | H144: 2 | I144: 黑色疾風 | J144: r | K144: Bronze | L144: 30 | M144: 35 | N144: 379 | O144: 2014-07-12 | P144: 26 days | Q144: 2014-08-27T04:44:43 | R144: 426678-2|170196-2 | S144: 0 | T144: 143
A145: 2798554 | B145: kr | C145: 1 | D145: 사신토스 | E145: t | F145: 569542 | G145: kr | H145: 1 | I145: DEEPANIC | J145: r | K145: Bronze | L145: 13 | M145: 16 | N145: 376 | O145: 2014-08-14 | P145: 11 days | Q145: 2014-08-27T04:44:43 | R145: 2798554-1|569542-1 | S145: 0 | T145: 144
A146: 3204471 | B146: kr | C146: 1 | D146: 천년의심해 | E146: z | F146: 378764 | G146: kr | H146: 1 | I146: 촌장님 | J146: p | K146: Bronze | L146: 10 | M146: 11 | N146: 374 | O146: 2014-07-15 | P146: 16 days | Q146: 2014-08-27T04:44:43 | R146: 3204471-1|378764-1 | S146: 0 | T146: 145
A147: 1348414 | B147: kr | C147: 2 | D147: GhostSkyS | E147: z | F147: 1088167 | G147: kr | H147: 2 | I147: Grass | J147: p | K147: Bronze | L147: 11 | M147: 25 | N147: 374 | O147: 2014-07-25 | P147: 11 days | Q147: 2014-08-27T04:44:43 | R147: 1348414-2|1088167-2 | S147: 0 | T147: 146
A148: 4313414 | B148: kr | C148: 1 | D148: 신상하 | E148: t | F148: 1933309 | G148: kr | H148: 1 | I148: Monica | J148: r | K148: Bronze | L148: 12 | M148: 7 | N148: 372 | O148: 2014-07-27 | P148: 8 days | Q148: 2014-08-27T04:44:43 | R148: 4313414-1|1933309-1 | S148: 0 | T148: 147
A149: 1095083 | B149: kr | C149: 2 | D149: SPREE | E149: z | F149: 956918 | G149: kr | H149: 2 | I149: Killer | J149: t | K149: Bronze | L149: 12 | M149: 9 | N149: 372 | O149: 2014-08-10 | P149: 16 days | Q149: 2014-08-27T04:44:43 | R149: 1095083-2|956918-2 | S149: 0 | T149: 148
A150: 2585364 | B150: kr | C150: 1 | D150: 김자유 | E150: p | F150: 2056094 | G150: kr | H150: 1 | I150: 나쁜남자 | J150: p | K150: Bronze | L150: 12 | M150: 10 | N150: 372 | O150: 2014-07-21 | P150: 6 days | Q150: 2014-08-27T04:44:43 | R150: 2585364-1|2056094-1 | S150: 0 | T150: 149
A151: 4017443 | B151: kr | C151: 1 | D151: JeonG | E151: p | F151: 811254 | G151: kr | H151: 1 | I151: 플러스 | J151: t | K151: Bronze | L151: 11 | M151: 9 | N151: 370 | O151: 2014-07-31 | P151: 16 hours | Q151: 2014-08-27T04:44:43 | R151: 4017443-1|811254-1 | S151: 0 | T151: 150
A152: 4049103 | B152: kr | C152: 1 | D152: Lurker | E152: z | F152: 3782869 | G152: kr | H152: 1 | I152: Marine | J152: t | K152: Bronze | L152: 14 | M152: 12 | N152: 370 | O152: 2014-08-08 | P152: 4 days | Q152: 2014-08-27T04:44:43 | R152: 4049103-1|3782869-1 | S152: 0 | T152: 151
A153: 1089291 | B153: kr | C153: 2 | D153: 搶救北極熊 | E153: z | F153: 1026476 | G153: kr | H153: 2 | I153: Brian | J153: z | K153: Bronze | L153: 13 | M153: 21 | N153: 370 | O153: 2014-08-19 | P153: 17 hours | Q153: 2014-08-27T04:44:43 | R153: 1089291-2|1026476-2 | S153: 0 | T153: 152
A154: 4233923 | B154: kr | C154: 1 | D154: Andreas | E154: p | F154: 894169 | G154: kr | H154: 1 | I154: 최승혁 | J154: p | K154: Bronze | L154: 13 | M154: 29 | N154: 370 | O154: 2014-07-07 | P154: 17 minutes | Q154: 2014-08-27T04:44:43 | R154: 4233923-1|894169-1 | S154: 0 | T154: 153
A155: 857590 | B155: kr | C155: 2 | D155: Turbo | E155: p | F155: 72639 | G155: kr | H155: 2 | I155: freehero | J155: z | K155: Bronze | L155: 52 | M155: 94 | N155: 369 | O155: 2014-07-13 | P155: 15 days | Q155: 2014-08-27T04:44:43 | R155: 857590-2|72639-2 | S155: 0 | T155: 154
A156: 4454442 | B156: kr | C156: 1 | D156: AhnTLOVE | E156: p | F156: 3783992 | G156: kr | H156: 1 | I156: IlIIlIlllIIl | J156: z | K156: Bronze | L156: 13 | M156: 17 | N156: 368 | O156: 2014-07-27 | P156: 18 days | Q156: 2014-08-27T04:44:43 | R156: 4454442-1|3783992-1 | S156: 0 | T156: 155
A157: 4541088 | B157: kr | C157: 1 | D157: 하핡 | E157: p | F157: 3779588 | G157: kr | H157: 1 | I157: 논산딸기남 | J157: z | K157: Bronze | L157: 13 | M157: 18 | N157: 368 | O157: 2014-07-22 | P157: 11 days | Q157: 2014-08-27T04:44:43 | R157: 4541088-1|3779588-1 | S157: 0 | T157: 156
A158: 4101234 | B158: kr | C158: 1 | D158: 토토로삿대자 | E158: t | F158: 3010815 | G158: kr | H158: 1 | I158: 뻑쪄요 | J158: p | K158: Bronze | L158: 12 | M158: 21 | N158: 364 | O158: 2014-08-13 | P158: 3 days | Q158: 2014-08-27T04:44:43 | R158: 4101234-1|3010815-1 | S158: 0 | T158: 157
A159: 111416 | B159: kr | C159: 1 | D159: MadeinTW | E159: r | F159: 106759 | G159: kr | H159: 1 | I159: MadeinChina | J159: r | K159: Bronze | L159: 99 | M159: 170 | N159: 363 | O159: 2014-07-11 | P159: 8 days | Q159: 2014-08-27T04:44:43 | R159: 111416-1|106759-1 | S159: 0 | T159: 158
A160: 3591833 | B160: kr | C160: 1 | D160: 뚜완 | E160: z | F160: 2079528 | G160: kr | H160: 1 | I160: 강한부정 | J160: t | K160: Bronze | L160: 16 | M160: 19 | N160: 361 | O160: 2014-07-09 | P160: 21 days | Q160: 2014-08-27T04:44:44 | R160: 3591833-1|2079528-1 | S160: 0 | T160: 159
A161: 4245308 | B161: kr | C161: 1 | D161: wahoo | E161: p | F161: 4218984 | G161: kr | H161: 1 | I161: GoOdsOn | J161: z | K161: Bronze | L161: 13 | M161: 10 | N161: 360 | O161: 2014-07-18 | P161: 10 days | Q161: 2014-08-27T04:44:44 | R161: 4245308-1|4218984-1 | S161: 0 | T161: 160
A162: 1105216 | B162: kr | C162: 1 | D162: Megas | E162: r | F162: 413201 | G162: kr | H162: 1 | I162: Specialist | J162: p | K162: Bronze | L162: 15 | M162: 13 | N162: 358 | O162: 2014-07-27 | P162: 28 days | Q162: 2014-08-27T04:44:44 | R162: 1105216-1|413201-1 | S162: 0 | T162: 161
A163: 3840660 | B163: kr | C163: 1 | D163: SSKIM | E163: p | F163: 2505976 | G163: kr | H163: 1 | I163: CaSiaNo | J163: p | K163: Bronze | L163: 11 | M163: 11 | N163: 358 | O163: 2014-08-01 | P163: 17 days | Q163: 2014-08-27T04:44:44 | R163: 3840660-1|2505976-1 | S163: 0 | T163: 162
A164: 3366241 | B164: kr | C164: 1 | D164: xkrrnwkd | E164: p | F164: 263764 | G164: kr | H164: 1 | I164: Toad | J164: t | K164: Bronze | L164: 13 | M164: 23 | N164: 358 | O164: 2014-08-15 | P164: 15 hours | Q164: 2014-08-27T04:44:44 | R164: 3366241-1|263764-1 | S164: 0 | T164: 163
A165: 826626 | B165: kr | C165: 2 | D165: 陳大哥 | E165: p | F165: 764841 | G165: kr | H165: 2 | I165: 麥小狼 | J165: z | K165: Bronze | L165: 14 | M165: 4 | N165: 355 | O165: 2014-07-06 | P165: 3 days | Q165: 2014-08-27T04:44:44 | R165: 826626-2|764841-2 | S165: 0 | T165: 164
A166: 106842 | B166: kr | C166: 1 | D166: Cheese | E166: t | F166: 92556 | G166: kr | H166: 1 | I166: 박마리 | J166: z | K166: Bronze | L166: 28 | M166: 33 | N166: 354 | O166: 2014-07-09 | P166: 24 days | Q166: 2014-08-27T04:44:44 | R166: 106842-1|92556-1 | S166: 0 | T166: 165
A167: 2062375 | B167: kr | C167: 1 | D167: 후랑크소세지 | E167: t | F167: 1394978 | G167: kr | H167: 1 | I167: 미친존재감 | J167: r | K167: Bronze | L167: 9 | M167: 13 | N167: 354 | O167: 2014-08-14 | P167: 1 days | Q167: 2014-08-27T04:44:44 | R167: 2062375-1|1394978-1 | S167: 0 | T167: 166
A168: 2083311 | B168: kr | C168: 1 | D168: 넌머야 | E168: r | F168: 1386499 | G168: kr | H168: 1 | I168: 오앙리 | J168: r | K168: Bronze | L168: 10 | M168: 4 | N168: 352 | O168: 2014-07-28 | P168: 6 days | Q168: 2014-08-27T04:44:44 | R168: 2083311-1|1386499-1 | S168: 0 | T168: 167
A169: 413875 | B169: kr | C169: 2 | D169: 正之天 | E169: t | F169: 163519 | G169: kr | H169: 2 | I169: 刀客 | J169: z | K169: Bronze | L169: 12 | M169: 5 | N169: 352 | O169: 2014-07-12 | P169: 11 days | Q169: 2014-08-27T04:44:44 | R169: 413875-2|163519-2 | S169: 0 | T169: 168
A170: 867539 | B170: kr | C170: 2 | D170: OrzHsin | E170: t | F170: 820199 | G170: kr | H170: 2 | I170: 工具人 | J170: r | K170: Bronze | L170: 13 | M170: 8 | N170: 352 | O170: 2014-07-15 | P170: 13 days | Q170: 2014-08-27T04:44:44 | R170: 867539-2|820199-2 | S170: 0 | T170: 169
A171: 4629046 | B171: kr | C171: 1 | D171: 센세이션 | E171: p | F171: 3002391 | G171: kr | H171: 1 | I171: 뿌뿌뿡 | J171: p | K171: Bronze | L171: 12 | M171: 9 | N171: 352 | O171: 2014-07-20 | P171: 7 days | Q171: 2014-08-27T04:44:44 | R171: 4629046-1|3002391-1 | S171: 0 | T171: 170
A172: 1361406 | B172: kr | C172: 1 | D172: blueiris | E172: t | F172: 697025 | G172: kr | H172: 1 | I172: 하루빨리 | J172: r | K172: Bronze | L172: 12 | M172: 13 | N172: 352 | O172: 2014-07-09 | P172: 1 days | Q172: 2014-08-27T04:44:44 | R172: 1361406-1|697025-1 | S172: 0 | T172: 171
A173: 1360802 | B173: kr | C173: 2 | D173: 認真大帥哥 | E173: t | F173: 804953 | G173: kr | H173: 2 | I173: 聰明大帥哥 | J173: z | K173: Bronze | L173: 13 | M173: 9 | N173: 350 | O173: 2014-08-03 | P173: 1 days | Q173: 2014-08-27T04:44:44 | R173: 1360802-2|804953-2 | S173: 0 | T173: 172
A174: 4137001 | B174: kr | C174: 1 | D174: 유진짱 | E174: p | F174: 3717659 | G174: kr | H174: 1 | I174: 장유진 | J174: p | K174: Bronze | L174: 11 | M174: 23 | N174: 350 | O174: 2014-07-25 | P174: 3 days | Q174: 2014-08-27T04:44:44 | R174: 4137001-1|3717659-1 | S174: 0 | T174: 173
A175: 653136 | B175: kr | C175: 1 | D175: 홈런볼 | E175: t | F175: 554322 | G175: kr | H175: 1 | I175: MatthewJ | J175: t | K175: Bronze | L175: 12 | M175: 15 | N175: 348 | O175: 2014-07-24 | P175: 9 days | Q175: 2014-08-27T04:44:44 | R175: 653136-1|554322-1 | S175: 0 | T175: 174
A176: 3779975 | B176: kr | C176: 1 | D176: 저글링 | E176: z | F176: 1449545 | G176: kr | H176: 1 | I176: 봉팔이 | J176: t | K176: Bronze | L176: 10 | M176: 15 | N176: 348 | O176: 2014-07-09 | P176: 11 minutes | Q176: 2014-08-27T04:44:44 | R176: 3779975-1|1449545-1 | S176: 0 | T176: 175
A177: 4636147 | B177: kr | C177: 1 | D177: 주월동 | E177: t | F177: 4128694 | G177: kr | H177: 1 | I177: joyoungtae | J177: p | K177: Bronze | L177: 12 | M177: 21 | N177: 348 | O177: 2014-07-19 | P177: 5 days | Q177: 2014-08-27T04:44:44 | R177: 4636147-1|4128694-1 | S177: 0 | T177: 176
A178: 3283706 | B178: kr | C178: 1 | D178: 음머어 | E178: t | F178: 1508682 | G178: kr | H178: 1 | I178: 야식금지 | J178: z | K178: Bronze | L178: 12 | M178: 9 | N178: 346 | O178: 2014-07-28 | P178: 1 days | Q178: 2014-08-27T04:44:44 | R178: 3283706-1|1508682-1 | S178: 0 | T178: 177
A179: 1952544 | B179: kr | C179: 1 | D179: 얌마 | E179: t | F179: 177400 | G179: kr | H179: 1 | I179: overthedark | J179: p | K179: Bronze | L179: 11 | M179: 12 | N179: 346 | O179: 2014-08-16 | P179: 10 days | Q179: 2014-08-27T04:44:44 | R179: 1952544-1|177400-1 | S179: 0 | T179: 178
A180: 3350153 | B180: kr | C180: 1 | D180: 김말이 | E180: t | F180: 1254041 | G180: kr | H180: 1 | I180: guru | J180: p | K180: Bronze | L180: 15 | M180: 13 | N180: 345 | O180: 2014-07-07 | P180: 6 days | Q180: 2014-08-27T04:44:44 | R180: 3350153-1|1254041-1 | S180: 0 | T180: 179
A181: 1126914 | B181: kr | C181: 2 | D181: Gloster | E181: t | F181: 925523 | G181: kr | H181: 2 | I181: 鳴悅 | J181: t | K181: Bronze | L181: 13 | M181: 19 | N181: 345 | O181: 2014-07-12 | P181: 10 days | Q181: 2014-08-27T04:44:44 | R181: 1126914-2|925523-2 | S181: 0 | T181: 180
A182: 1129493 | B182: kr | C182: 1 | D182: 웅비성유리 | E182: p | F182: 543401 | G182: kr | H182: 1 | I182: 어떤게좋을까 | J182: t | K182: Bronze | L182: 10 | M182: 7 | N182: 344 | O182: 2014-07-19 | P182: 4 days | Q182: 2014-08-27T04:44:44 | R182: 1129493-1|543401-1 | S182: 0 | T182: 181
A183: 4351145 | B183: kr | C183: 1 | D183: 거북이 | E183: t | F183: 4233773 | G183: kr | H183: 1 | I183: 루미너스 | J183: z | K183: Bronze | L183: 10 | M183: 10 | N183: 344 | O183: 2014-07-12 | P183: 4 days | Q183: 2014-08-27T04:44:44 | R183: 4351145-1|4233773-1 | S183: 0 | T183: 182
A184: 3975881 | B184: kr | C184: 1 | D184: 삼산리김회장 | E184: r | F184: 464377 | G184: kr | H184: 1 | I184: 백록화 | J184: p | K184: Bronze | L184: 26 | M184: 40 | N184: 343 | O184: 2014-07-07 | P184: 24 days | Q184: 2014-08-27T04:44:44 | R184: 3975881-1|464377-1 | S184: 0 | T184: 183
A185: 4696335 | B185: kr | C185: 1 | D185: dabause | E185: t | F185: 3975408 | G185: kr | H185: 1 | I185: lll | J185: r | K185: Bronze | L185: 11 | M185: 16 | N185: 342 | O185: 2014-08-01 | P185: 11 days | Q185: 2014-08-27T04:44:44 | R185: 4696335-1|3975408-1 | S185: 0 | T185: 184
A186: 2167217 | B186: kr | C186: 1 | D186: 큐돌 | E186: t | F186: 631936 | G186: kr | H186: 1 | I186: 아슈켈론 | J186: r | K186: Bronze | L186: 10 | M186: 15 | N186: 342 | O186: 2014-07-25 | P186: 11 days | Q186: 2014-08-27T04:44:44 | R186: 2167217-1|631936-1 | S186: 0 | T186: 185
A187: 2298213 | B187: kr | C187: 1 | D187: 청면수 | E187: p | F187: 2172314 | G187: kr | H187: 1 | I187: 곰쥐 | J187: r | K187: Bronze | L187: 12 | M187: 19 | N187: 342 | O187: 2014-07-13 | P187: 13 days | Q187: 2014-08-27T04:44:44 | R187: 2298213-1|2172314-1 | S187: 0 | T187: 186
A188: 1072742 | B188: kr | C188: 2 | D188: XFKenLin | E188: p | F188: 835664 | G188: kr | H188: 2 | I188: XFMaple | J188: r | K188: Bronze | L188: 11 | M188: 21 | N188: 342 | O188: 2014-08-12 | P188: 8 days | Q188: 2014-08-27T04:44:44 | R188: 1072742-2|835664-2 | S188: 0 | T188: 187
A189: 1700144 | B189: kr | C189: 1 | D189: obiwan | E189: p | F189: 1699063 | G189: kr | H189: 1 | I189: 얄렝 | J189: t | K189: Bronze | L189: 11 | M189: 11 | N189: 340 | O189: 2014-08-23 | P189: 1 days | Q189: 2014-08-27T04:44:44 | R189: 1700144-1|1699063-1 | S189: 0 | T189: 188
A190: 4403339 | B190: kr | C190: 1 | D190: 클리톨리스 | E190: p | F190: 4401925 | G190: kr | H190: 1 | I190: llllllllll | J190: p | K190: Bronze | L190: 11 | M190: 14 | N190: 340 | O190: 2014-07-08 | P190: 13 days | Q190: 2014-08-27T04:44:44 | R190: 4403339-1|4401925-1 | S190: 0 | T190: 189
A191: 2010075 | B191: kr | C191: 1 | D191: 지니 | E191: r | F191: 475432 | G191: kr | H191: 1 | I191: lion | J191: r | K191: Bronze | L191: 12 | M191: 11 | N191: 338 | O191: 2014-08-12 | P191: 1 days | Q191: 2014-08-27T04:44:44 | R191: 2010075-1|475432-1 | S191: 0 | T191: 190
A192: 4707843 | B192: kr | C192: 1 | D192: 김양쯔 | E192: z | F192: 325040 | G192: kr | H192: 1 | I192: 물리치료중 | J192: p | K192: Bronze | L192: 11 | M192: 18 | N192: 338 | O192: 2014-08-22 | P192: 2 days | Q192: 2014-08-27T04:44:44 | R192: 4707843-1|325040-1 | S192: 0 | T192: 191
A193: 4409001 | B193: kr | C193: 1 | D193: 형부가이상해염 | E193: t | F193: 4408481 | G193: kr | H193: 1 | I193: 핵핵핵 | J193: p | K193: Bronze | L193: 18 | M193: 17 | N193: 336 | O193: 2014-07-20 | P193: 30 days | Q193: 2014-08-27T04:44:44 | R193: 4409001-1|4408481-1 | S193: 0 | T193: 192
A194: 3444914 | B194: kr | C194: 1 | D194: ShinSung | E194: p | F194: 2805454 | G194: kr | H194: 1 | I194: jsm | J194: t | K194: Bronze | L194: 10 | M194: 18 | N194: 335 | O194: 2014-07-08 | P194: 3 days | Q194: 2014-08-27T04:44:44 | R194: 3444914-1|2805454-1 | S194: 0 | T194: 193
A195: 4157346 | B195: kr | C195: 1 | D195: 호옹이 | E195: p | F195: 141675 | G195: kr | H195: 1 | I195: 주창달 | J195: p | K195: Bronze | L195: 11 | M195: 6 | N195: 334 | O195: 2014-07-25 | P195: 4 days | Q195: 2014-08-27T04:44:44 | R195: 4157346-1|141675-1 | S195: 0 | T195: 194
A196: 2882509 | B196: kr | C196: 1 | D196: 맑고향기롭게 | E196: r | F196: 1288480 | G196: kr | H196: 1 | I196: 무적검프스 | J196: r | K196: Bronze | L196: 11 | M196: 9 | N196: 334 | O196: 2014-07-13 | P196: 3 days | Q196: 2014-08-27T04:44:44 | R196: 2882509-1|1288480-1 | S196: 0 | T196: 195
A197: 830117 | B197: kr | C197: 1 | D197: 동해바다 | E197: z | F197: 561070 | G197: kr | H197: 1 | I197: Varshian | J197: t | K197: Bronze | L197: 11 | M197: 11 | N197: 334 | O197: 2014-07-15 | P197: 2 days | Q197: 2014-08-27T04:44:44 | R197: 830117-1|561070-1 | S197: 0 | T197: 196
A198: 1899527 | B198: kr | C198: 1 | D198: 홍구 | E198: p | F198: 480330 | G198: kr | H198: 1 | I198: 살살요 | J198: t | K198: Bronze | L198: 11 | M198: 8 | N198: 330 | O198: 2014-08-02 | P198: 2 days | Q198: 2014-08-27T04:44:44 | R198: 1899527-1|480330-1 | S198: 0 | T198: 197
A199: 4367449 | B199: kr | C199: 1 | D199: 자유관 | E199: t | F199: 4302481 | G199: kr | H199: 1 | I199: Nippert | J199: r | K199: Bronze | L199: 11 | M199: 24 | N199: 330 | O199: 2014-07-20 | P199: 4 days | Q199: 2014-08-27T04:44:44 | R199: 4367449-1|4302481-1 | S199: 0 | T199: 198
A200: 4591140 | B200: kr | C200: 1 | D200: hangbee | E200: p | F200: 3003331 | G200: kr | H200: 1 | I200: 니콜리콜 | J200: t | K200: Bronze | L200: 10 | M200: 22 | N200: 330 | O200: 2014-07-26 | P200: 2 days | Q200: 2014-08-27T04:44:44 | R200: 4591140-1|3003331-1 | S200: 0 | T200: 199
... 4300 more rows

Sheet 3v3 Team
A1: Player ID 1 | B1: Player 1 Region | C1: Player 1 Subregion | D1: Player 1 Name | E1: Player 1 Race | F1: Player ID 2 | G1: Player 2 Region | H1: Player 2 Subregion | I1: Player 2 Name | J1: Player 2 Race | K1: Player ID 3 | L1: Player 3 Region | M1: Player 3 Subregion | N1: Player 3 Name | O1: Player 3 Race | P1: League | Q1: Win | R1: Loss | S1: Score | T1: Date Joined | U1: Last Game | V1: Timestamp | W1: TrueID | X1: Duplicate Check | Y1: Ordered ID
A2: 791308 | B2: kr | C2: 1 | D2: 찍찍찍 | E2: r | F2: 164879 | G2: kr | H2: 1 | I2: Neo | J2: r | K2: 76646 | L2: kr | M2: 1 | N2: 헉헉헉 | O2: r | P2: Bronze | Q2: 38 | R2: 42 | S2: 427 | T2: 2014-07-16 | U2: 1 days | V2: 2014-08-27T04:49:24 | W2: 791308-1|164879-1|76646-1 | X2: 0 | Y2: 1
A3: 999267 | B3: kr | C3: 2 | D3: MrWait | E3: p | F3: 998031 | G3: kr | H3: 2 | I3: Hork | J3: t | K3: 930697 | L3: kr | M3: 2 | N3: 上邪 | O3: z | P3: Bronze | Q3: 56 | R3: 84 | S3: 387 | T3: 2014-07-08 | U3: 17 hours | V3: 2014-08-27T04:49:24 | W3: 999267-2|998031-2|930697-2 | X3: 0 | Y3: 2
A4: 4385494 | B4: kr | C4: 1 | D4: 동굴트롤 | E4: p | F4: 2974519 | G4: kr | H4: 1 | I4: 투주누 | J4: p | K4: 226527 | L4: kr | M4: 1 | N4: 접속체크중 | O4: t | P4: Bronze | Q4: 14 | R4: 5 | S4: 382 | T4: 2014-07-24 | U4: 1 days | V4: 2014-08-27T04:49:24 | W4: 4385494-1|2974519-1|226527-1 | X4: 0 | Y4: 3
A5: 2504996 | B5: kr | C5: 1 | D5: whiteAngel | E5: p | F5: 2178665 | G5: kr | H5: 1 | I5: DarkAngelJin | J5: z | K5: 473204 | L5: kr | M5: 1 | N5: 망가진인형 | O5: t | P5: Bronze | Q5: 16 | R5: 21 | S5: 377 | T5: 2014-08-13 | U5: 1 days | V5: 2014-08-27T04:49:24 | W5: 2504996-1|2178665-1|473204-1 | X5: 0 | Y5: 4
A6: 615261 | B6: kr | C6: 2 | D6: 小葉子 | E6: z | F6: 387829 | G6: kr | H6: 2 | I6: Houston | J6: r | K6: 92185 | L6: kr | M6: 2 | N6: MayDayGun | O6: t | P6: Bronze | Q6: 29 | R6: 27 | S6: 376 | T6: 2014-07-22 | U6: 1 days | V6: 2014-08-27T04:49:24 | W6: 615261-2|387829-2|92185-2 | X6: 0 | Y6: 5
A7: 425628 | B7: kr | C7: 2 | D7: LaKyStrikE | E7: t | F7: 425401 | G7: kr | H7: 2 | I7: Tokilu | J7: p | K7: 283318 | L7: kr | M7: 2 | N7: 鄭尚恩 | O7: p | P7: Bronze | Q7: 25 | R7: 32 | S7: 370 | T7: 2014-07-22 | U7: 17 hours | V7: 2014-08-27T04:49:24 | W7: 425628-2|425401-2|283318-2 | X7: 0 | Y7: 6
A8: 4256025 | B8: kr | C8: 1 | D8: 레이온지 | E8: p | F8: 327796 | G8: kr | H8: 1 | I8: Siz | J8: r | K8: 180669 | L8: kr | M8: 1 | N8: King | O8: p | P8: Bronze | Q8: 29 | R8: 32 | S8: 368 | T8: 2014-07-12 | U8: 10 days | V8: 2014-08-27T04:49:24 | W8: 4256025-1|327796-1|180669-1 | X8: 0 | Y8: 7
A9: 498146 | B9: kr | C9: 1 | D9: AppMaker | E9: z | F9: 457727 | G9: kr | H9: 1 | I9: 도사 | J9: p | K9: 377460 | L9: kr | M9: 1 | N9: 쭈야르 | O9: t | P9: Bronze | Q9: 16 | R9: 18 | S9: 364 | T9: 2014-07-16 | U9: 1 days | V9: 2014-08-27T04:49:24 | W9: 498146-1|457727-1|377460-1 | X9: 0 | Y9: 8
A10: 619496 | B10: kr | C10: 2 | D10: TCH | E10: t | F10: 277684 | G10: kr | H10: 2 | I10: gbeansoup | J10: z | K10: 32862 | L10: kr | M10: 2 | N10: PZST | O10: r | P10: Bronze | Q10: 25 | R10: 33 | S10: 362 | T10: 2014-07-06 | U10: 3 days | V10: 2014-08-27T04:49:24 | W10: 619496-2|277684-2|32862-2 | X10: 0 | Y10: 9
A11: 775000 | B11: kr | C11: 2 | D11: AllenChen | E11: t | F11: 769884 | G11: kr | H11: 2 | I11: breaksoul | J11: t | K11: 691255 | L11: kr | M11: 2 | N11: White | O11: z | P11: Bronze | Q11: 12 | R11: 7 | S11: 352 | T11: 2014-07-24 | U11: 4 days | V11: 2014-08-27T04:49:24 | W11: 775000-2|769884-2|691255-2 | X11: 0 | Y11: 10
A12: 4550966 | B12: kr | C12: 1 | D12: 로이로이로이 | E12: p | F12: 2168495 | G12: kr | H12: 1 | I12: acidhead | J12: p | K12: 600175 | L12: kr | M12: 1 | N12: 너구리옆차기 | O12: t | P12: Bronze | Q12: 13 | R12: 17 | S12: 348 | T12: 2014-07-26 | U12: 1 days | V12: 2014-08-27T04:49:24 | W12: 4550966-1|2168495-1|600175-1 | X12: 0 | Y12: 11
A13: 1360820 | B13: kr | C13: 2 | D13: 跨殺小朋友 | E13: p | F13: 783163 | G13: kr | H13: 2 | I13: 遊羽非羽 | J13: t | K13: 782737 | L13: kr | M13: 2 | N13: ProtEctOR | O13: p | P13: Bronze | Q13: 12 | R13: 19 | S13: 348 | T13: 2014-08-17 | U13: 16 hours | V13: 2014-08-27T04:49:24 | W13: 1360820-2|783163-2|782737-2 | X13: 0 | Y13: 12
A14: 321365 | B14: kr | C14: 2 | D14: airmo | E14: t | F14: 156835 | G14: kr | H14: 2 | I14: bob | J14: p | K14: 32686 | L14: kr | M14: 2 | N14: Rot | O14: p | P14: Bronze | Q14: 11 | R14: 12 | S14: 345 | T14: 2014-08-11 | U14: 2 days | V14: 2014-08-27T04:49:24 | W14: 321365-2|156835-2|32686-2 | X14: 0 | Y14: 13
A15: 344669 | B15: kr | C15: 2 | D15: 七七 | E15: p | F15: 207687 | G15: kr | H15: 2 | I15: Ted | J15: r | K15: 171552 | L15: kr | M15: 2 | N15: 矇面加菲貓 | O15: p | P15: Bronze | Q15: 11 | R15: 3 | S15: 344 | T15: 2014-07-13 | U15: 7 days | V15: 2014-08-27T04:49:24 | W15: 344669-2|207687-2|171552-2 | X15: 0 | Y15: 14
A16: 3946436 | B16: kr | C16: 1 | D16: 혈공자 | E16: p | F16: 1910823 | G16: kr | H16: 1 | I16: JinHeeNoWiD | J16: t | K16: 364063 | L16: kr | M16: 1 | N16: Take | O16: z | P16: Bronze | Q16: 13 | R16: 8 | S16: 344 | T16: 2014-07-11 | U16: 2 days | V16: 2014-08-27T04:49:24 | W16: 3946436-1|1910823-1|364063-1 | X16: 0 | Y16: 15
A17: 4689057 | B17: kr | C17: 1 | D17: kimlovely | E17: z | F17: 3281982 | G17: kr | H17: 1 | I17: 흡혈토끼 | J17: p | K17: 687411 | L17: kr | M17: 1 | N17: 내가바닥 | O17: p | P17: Bronze | Q17: 19 | R17: 6 | S17: 341 | T17: 2014-07-29 | U17: 6 days | V17: 2014-08-27T04:49:24 | W17: 4689057-1|3281982-1|687411-1 | X17: 0 | Y17: 16
A18: 3535104 | B18: kr | C18: 1 | D18: 장동건 | E18: p | F18: 325795 | G18: kr | H18: 1 | I18: Tempest | J18: p | K18: 266715 | L18: kr | M18: 1 | N18: marine | O18: z | P18: Bronze | Q18: 12 | R18: 7 | S18: 340 | T18: 2014-08-17 | U18: 9 days | V18: 2014-08-27T04:49:24 | W18: 3535104-1|325795-1|266715-1 | X18: 0 | Y18: 17
A19: 341362 | B19: kr | C19: 1 | D19: 센티넬퀸 | E19: z | F19: 299166 | G19: kr | H19: 1 | I19: 방심은금물 | J19: r | K19: 144708 | L19: kr | M19: 1 | N19: 아로마향 | O19: p | P19: Bronze | Q19: 11 | R19: 10 | S19: 340 | T19: 2014-08-10 | U19: 7 days | V19: 2014-08-27T04:49:24 | W19: 341362-1|299166-1|144708-1 | X19: 0 | Y19: 18
A20: 4546895 | B20: kr | C20: 1 | D20: Chiep | E20: r | F20: 4019436 | G20: kr | H20: 1 | I20: 돈키호테 | J20: p | K20: 1989535 | L20: kr | M20: 1 | N20: Ronaldo | O20: t | P20: Bronze | Q20: 8 | R20: 10 | S20: 340 | T20: 2014-08-13 | U20: 2 days | V20: 2014-08-27T04:49:24 | W20: 4546895-1|4019436-1|1989535-1 | X20: 0 | Y20: 19
A21: 4137001 | B21: kr | C21: 1 | D21: 유진짱 | E21: p | F21: 3717659 | G21: kr | H21: 1 | I21: 장유진 | J21: p | K21: 1633263 | L21: kr | M21: 1 | N21: 생보 | O21: z | P21: Bronze | Q21: 18 | R21: 22 | S21: 339 | T21: 2014-08-09 | U21: 1 days | V21: 2014-08-27T04:49:24 | W21: 4137001-1|3717659-1|1633263-1 | X21: 0 | Y21: 20
A22: 4704063 | B22: kr | C22: 1 | D22: 에스트리드킴 | E22: p | F22: 4641501 | G22: kr | H22: 1 | I22: 류호빵 | J22: p | K22: 3992702 | L22: kr | M22: 1 | N22: 황제준영 | O22: t | P22: Bronze | Q22: 14 | R22: 21 | S22: 337 | T22: 2014-08-06 | U22: 18 hours | V22: 2014-08-27T04:49:24 | W22: 4704063-1|4641501-1|3992702-1 | X22: 0 | Y22: 21
A23: 791308 | B23: kr | C23: 1 | D23: 찍찍찍 | E23: r | F23: 164879 | G23: kr | H23: 1 | I23: Neo | J23: r | K23: 162942 | L23: kr | M23: 1 | N23: 퍽퍽퍽 | O23: t | P23: Bronze | Q23: 9 | R23: 23 | S23: 337 | T23: 2014-08-20 | U23: 4 days | V23: 2014-08-27T04:49:24 | W23: 791308-1|164879-1|162942-1 | X23: 0 | Y23: 22
A24: 4636147 | B24: kr | C24: 1 | D24: 주월동 | E24: t | F24: 4632160 | G24: kr | H24: 1 | I24: 주월동왕 | J24: p | K24: 4128694 | L24: kr | M24: 1 | N24: joyoungtae | O24: p | P24: Bronze | Q24: 24 | R24: 36 | S24: 335 | T24: 2014-07-17 | U24: 2 days | V24: 2014-08-27T04:49:24 | W24: 4636147-1|4632160-1|4128694-1 | X24: 0 | Y24: 23
A25: 1215542 | B25: kr | C25: 1 | D25: 짐헬퍼트 | E25: p | F25: 1184394 | G25: kr | H25: 1 | I25: 드와이트슈르트 | J25: z | K25: 84224 | L25: kr | M25: 1 | N25: 마이클스캇 | O25: t | P25: Bronze | Q25: 18 | R25: 17 | S25: 328 | T25: 2014-07-18 | U25: 12 days | V25: 2014-08-27T04:49:24 | W25: 1215542-1|1184394-1|84224-1 | X25: 0 | Y25: 24
A26: 2013610 | B26: kr | C26: 1 | D26: Arondight | E26: t | F26: 264387 | G26: kr | H26: 1 | I26: FrostMagic | J26: p | K26: 169570 | L26: kr | M26: 1 | N26: Jason | O26: r | P26: Bronze | Q26: 22 | R26: 33 | S26: 326 | T26: 2014-08-12 | U26: 2 days | V26: 2014-08-27T04:49:24 | W26: 2013610-1|264387-1|169570-1 | X26: 0 | Y26: 25
A27: 3522696 | B27: kr | C27: 1 | D27: 애정남 | E27: z | F27: 3522371 | G27: kr | H27: 1 | I27: 얼굴이속임수 | J27: p | K27: 3148394 | L27: kr | M27: 1 | N27: 울트라캡짱 | O27: t | P27: Bronze | Q27: 24 | R27: 23 | S27: 325 | T27: 2014-07-10 | U27: 4 days | V27: 2014-08-27T04:49:24 | W27: 3522696-1|3522371-1|3148394-1 | X27: 0 | Y27: 26
A28: 1498264 | B28: kr | C28: 1 | D28: 프로 | E28: z | F28: 1349702 | G28: kr | H28: 1 | I28: 글로리아 | J28: r | K28: 703137 | L28: kr | M28: 1 | N28: 핫베이글 | O28: r | P28: Bronze | Q28: 10 | R28: 22 | S28: 324 | T28: 2014-08-14 | U28: 5 days | V28: 2014-08-27T04:49:24 | W28: 1498264-1|1349702-1|703137-1 | X28: 0 | Y28: 27
A29: 4102773 | B29: kr | C29: 1 | D29: Eastar | E29: t | F29: 1635114 | G29: kr | H29: 1 | I29: 아린 | J29: r | K29: 1507077 | L29: kr | M29: 1 | N29: rltkflrj | O29: p | P29: Bronze | Q29: 13 | R29: 16 | S29: 321 | T29: 2014-07-11 | U29: 24 minutes | V29: 2014-08-27T04:49:24 | W29: 4102773-1|1635114-1|1507077-1 | X29: 0 | Y29: 28
A30: 819452 | B30: kr | C30: 2 | D30: RYA | E30: p | F30: 810133 | G30: kr | H30: 2 | I30: TWDeatX | J30: t | K30: 808938 | L30: kr | M30: 2 | N30: Incertin | O30: p | P30: Bronze | Q30: 25 | R30: 36 | S30: 320 | T30: 2014-08-15 | U30: 1 days | V30: 2014-08-27T04:49:24 | W30: 819452-2|810133-2|808938-2 | X30: 0 | Y30: 29
A31: 345733 | B31: kr | C31: 2 | D31: MaDRoLL | E31: r | F31: 243462 | G31: kr | H31: 2 | I31: MaDKYO | J31: r | K31: 155761 | L31: kr | M31: 2 | N31: MaDevil | O31: r | P31: Bronze | Q31: 10 | R31: 7 | S31: 308 | T31: 2014-08-05 | U31: 18 hours | V31: 2014-08-27T04:49:24 | W31: 345733-2|243462-2|155761-2 | X31: 0 | Y31: 30
A32: 2823259 | B32: kr | C32: 1 | D32: 어디야 | E32: p | F32: 2822782 | G32: kr | H32: 1 | I32: Pacemit | J32: p | K32: 2756439 | L32: kr | M32: 1 | N32: dragonzone | O32: p | P32: Bronze | Q32: 13 | R32: 15 | S32: 308 | T32: 2014-08-15 | U32: 11 days | V32: 2014-08-27T04:49:24 | W32: 2823259-1|2822782-1|2756439-1 | X32: 0 | Y32: 31
A33: 4529388 | B33: kr | C33: 1 | D33: 고스티브잡스 | E33: t | F33: 636729 | G33: kr | H33: 1 | I33: 교원구몬 | J33: t | K33: 144083 | L33: kr | M33: 1 | N33: 외상후통증 | O33: r | P33: Bronze | Q33: 38 | R33: 56 | S33: 307 | T33: 2014-07-14 | U33: 2 days | V33: 2014-08-27T04:49:24 | W33: 4529388-1|636729-1|144083-1 | X33: 0 | Y33: 32
A34: 3362003 | B34: kr | C34: 1 | D34: 스타에대한열정 | E34: p | F34: 1974414 | G34: kr | H34: 1 | I34: 바쿠 | J34: t | K34: 1972960 | L34: kr | M34: 1 | N34: Fivlsm | O34: z | P34: Bronze | Q34: 9 | R34: 8 | S34: 306 | T34: 2014-07-15 | U34: 21 days | V34: 2014-08-27T04:49:24 | W34: 3362003-1|1974414-1|1972960-1 | X34: 0 | Y34: 33
A35: 3506997 | B35: kr | C35: 1 | D35: 진석아사랑해 | E35: t | F35: 2761697 | G35: kr | H35: 1 | I35: 헬리키페온 | J35: t | K35: 1600205 | L35: kr | M35: 1 | N35: SshipduckK | O35: t | P35: Bronze | Q35: 9 | R35: 8 | S35: 306 | T35: 2014-08-23 | U35: 49 minutes | V35: 2014-08-27T04:49:24 | W35: 3506997-1|2761697-1|1600205-1 | X35: 0 | Y35: 34
A36: 4569422 | B36: kr | C36: 1 | D36: 케뤼 | E36: z | F36: 4550966 | G36: kr | H36: 1 | I36: 로이로이로이 | J36: p | K36: 2168495 | L36: kr | M36: 1 | N36: acidhead | O36: p | P36: Bronze | Q36: 15 | R36: 13 | S36: 304 | T36: 2014-08-02 | U36: 12 days | V36: 2014-08-27T04:49:24 | W36: 4569422-1|4550966-1|2168495-1 | X36: 0 | Y36: 35
A37: 4629980 | B37: kr | C37: 1 | D37: eogmlrla | E37: t | F37: 3085448 | G37: kr | H37: 1 | I37: 양딱 | J37: z | K37: 1808662 | L37: kr | M37: 1 | N37: 다덤벼 | O37: p | P37: Bronze | Q37: 13 | R37: 16 | S37: 304 | T37: 2014-07-23 | U37: 8 days | V37: 2014-08-27T04:49:24 | W37: 4629980-1|3085448-1|1808662-1 | X37: 0 | Y37: 36
A38: 4431250 | B38: kr | C38: 1 | D38: jsangel | E38: p | F38: 4260944 | G38: kr | H38: 1 | I38: StevePark | J38: z | K38: 667563 | L38: kr | M38: 1 | N38: Emporer | O38: p | P38: Bronze | Q38: 24 | R38: 30 | S38: 304 | T38: 2014-07-07 | U38: 1 hours | V38: 2014-08-27T04:49:24 | W38: 4431250-1|4260944-1|667563-1 | X38: 0 | Y38: 37
A39: 3803019 | B39: kr | C39: 1 | D39: 태박 | E39: z | F39: 2872988 | G39: kr | H39: 1 | I39: 좐준 | J39: t | K39: 1940259 | L39: kr | M39: 1 | N39: 규댕 | O39: t | P39: Bronze | Q39: 10 | R39: 11 | S39: 297 | T39: 2014-07-16 | U39: 20 days | V39: 2014-08-27T04:49:24 | W39: 3803019-1|2872988-1|1940259-1 | X39: 0 | Y39: 38
A40: 2221740 | B40: kr | C40: 1 | D40: acemmx | E40: p | F40: 573922 | G40: kr | H40: 1 | I40: 덕만이 | J40: z | K40: 197669 | L40: kr | M40: 1 | N40: 시험지는땔감 | O40: z | P40: Bronze | Q40: 9 | R40: 7 | S40: 296 | T40: 2014-07-26 | U40: 10 days | V40: 2014-08-27T04:49:24 | W40: 2221740-1|573922-1|197669-1 | X40: 0 | Y40: 39
A41: 1336164 | B41: kr | C41: 2 | D41: IIIIIIIIIIII | E41: t | F41: 1334644 | G41: kr | H41: 2 | I41: 流水 | J41: z | K41: 4251394 | L41: kr | M41: 1 | N41: 기린 | O41: r | P41: Bronze | Q41: 25 | R41: 34 | S41: 293 | T41: 2014-07-08 | U41: 13 days | V41: 2014-08-27T04:49:24 | W41: 1336164-2|1334644-2|4251394-1 | X41: 0 | Y41: 40
A42: 2003595 | B42: kr | C42: 1 | D42: 고인돌 | E42: p | F42: 1292514 | G42: kr | H42: 1 | I42: 임요환 | J42: z | K42: 560145 | L42: kr | M42: 1 | N42: 오싹이 | O42: r | P42: Bronze | Q42: 10 | R42: 9 | S42: 290 | T42: 2014-08-05 | U42: 3 days | V42: 2014-08-27T04:49:24 | W42: 2003595-1|1292514-1|560145-1 | X42: 0 | Y42: 41
A43: 2677897 | B43: kr | C43: 1 | D43: Altitude | E43: t | F43: 2671026 | G43: kr | H43: 1 | I43: 르네상스 | J43: z | K43: 101590 | L43: kr | M43: 1 | N43: 오렌지피시방 | O43: p | P43: Bronze | Q43: 9 | R43: 12 | S43: 290 | T43: 2014-07-16 | U43: 20 days | V43: 2014-08-27T04:49:24 | W43: 2677897-1|2671026-1|101590-1 | X43: 0 | Y43: 42
A44: 423045 | B44: kr | C44: 2 | D44: EricYeh | E44: t | F44: 229303 | G44: kr | H44: 2 | I44: KIRA | J44: z | K44: 207253 | L44: kr | M44: 2 | N44: 風之鎧 | O44: z | P44: Bronze | Q44: 17 | R44: 17 | S44: 289 | T44: 2014-07-13 | U44: 3 days | V44: 2014-08-27T04:49:24 | W44: 423045-2|229303-2|207253-2 | X44: 0 | Y44: 43
A45: 4206045 | B45: kr | C45: 1 | D45: youna | E45: z | F45: 2574575 | G45: kr | H45: 1 | I45: JotJoongDing | J45: p | K45: 1682535 | L45: kr | M45: 1 | N45: 영감을달라 | O45: r | P45: Bronze | Q45: 9 | R45: 1 | S45: 284 | T45: 2014-07-31 | U45: 24 days | V45: 2014-08-27T04:49:24 | W45: 4206045-1|2574575-1|1682535-1 | X45: 0 | Y45: 44
A46: 2945164 | B46: kr | C46: 1 | D46: 시야나 | E46: t | F46: 2694735 | G46: kr | H46: 1 | I46: 슈운 | J46: z | K46: 2589373 | L46: kr | M46: 1 | N46: 고라 | O46: p | P46: Bronze | Q46: 27 | R46: 29 | S46: 282 | T46: 2014-07-17 | U46: 21 days | V46: 2014-08-27T04:49:24 | W46: 2945164-1|2694735-1|2589373-1 | X46: 0 | Y46: 45
A47: 3153107 | B47: kr | C47: 1 | D47: sutvin | E47: r | F47: 2027883 | G47: kr | H47: 1 | I47: 쌍둥이근성 | J47: t | K47: 262897 | L47: kr | M47: 1 | N47: 라라러러 | O47: r | P47: Bronze | Q47: 14 | R47: 26 | S47: 282 | T47: 2014-07-07 | U47: 1 days | V47: 2014-08-27T04:49:24 | W47: 3153107-1|2027883-1|262897-1 | X47: 0 | Y47: 46
A48: 4672896 | B48: kr | C48: 1 | D48: 이중사 | E48: p | F48: 4664076 | G48: kr | H48: 1 | I48: 메이드탑 | J48: z | K48: 4662817 | L48: kr | M48: 1 | N48: 명품성기 | O48: p | P48: Bronze | Q48: 19 | R48: 19 | S48: 281 | T48: 2014-07-22 | U48: 7 days | V48: 2014-08-27T04:49:24 | W48: 4672896-1|4664076-1|4662817-1 | X48: 0 | Y48: 47
A49: 979932 | B49: kr | C49: 1 | D49: 라센칸 | E49: p | F49: 239351 | G49: kr | H49: 1 | I49: 고도리 | J49: p | K49: 137311 | L49: kr | M49: 1 | N49: APPLE | O49: p | P49: Bronze | Q49: 13 | R49: 24 | S49: 281 | T49: 2014-08-06 | U49: 2 days | V49: 2014-08-27T04:49:24 | W49: 979932-1|239351-1|137311-1 | X49: 0 | Y49: 48
A50: 2298213 | B50: kr | C50: 1 | D50: 청면수 | E50: p | F50: 2172314 | G50: kr | H50: 1 | I50: 곰쥐 | J50: r | K50: 868034 | L50: kr | M50: 1 | N50: 날아라슈즈 | O50: t | P50: Bronze | Q50: 10 | R50: 10 | S50: 280 | T50: 2014-07-18 | U50: 9 days | V50: 2014-08-27T04:49:24 | W50: 2298213-1|2172314-1|868034-1 | X50: 0 | Y50: 49
A51: 4294165 | B51: kr | C51: 1 | D51: 에반 | E51: t | F51: 3060139 | G51: kr | H51: 1 | I51: 다이로그 | J51: t | K51: 1650102 | L51: kr | M51: 1 | N51: 지랭이 | O51: p | P51: Bronze | Q51: 18 | R51: 20 | S51: 278 | T51: 2014-07-08 | U51: 4 days | V51: 2014-08-27T04:49:24 | W51: 4294165-1|3060139-1|1650102-1 | X51: 0 | Y51: 50
A52: 2904125 | B52: kr | C52: 1 | D52: 깝충 | E52: p | F52: 2889788 | G52: kr | H52: 1 | I52: 향긋한아로마 | J52: t | K52: 2859513 | L52: kr | M52: 1 | N52: KILLYOU | O52: p | P52: Bronze | Q52: 24 | R52: 32 | S52: 276 | T52: 2014-08-10 | U52: 9 days | V52: 2014-08-27T04:49:24 | W52: 2904125-1|2889788-1|2859513-1 | X52: 0 | Y52: 51
A53: 1425288 | B53: kr | C53: 1 | D53: 또치킹 | E53: p | F53: 1339071 | G53: kr | H53: 1 | I53: 강회장님 | J53: p | K53: 1254823 | L53: kr | M53: 1 | N53: 저통황제 | O53: t | P53: Bronze | Q53: 13 | R53: 16 | S53: 275 | T53: 2014-08-05 | U53: 6 days | V53: 2014-08-27T04:49:24 | W53: 1425288-1|1339071-1|1254823-1 | X53: 0 | Y53: 52
A54: 4186295 | B54: kr | C54: 1 | D54: cpeter | E54: p | F54: 2948063 | G54: kr | H54: 1 | I54: kaprea | J54: t | K54: 378590 | L54: kr | M54: 1 | N54: 한국호랑이 | O54: r | P54: Bronze | Q54: 15 | R54: 14 | S54: 274 | T54: 2014-07-26 | U54: 19 days | V54: 2014-08-27T04:49:24 | W54: 4186295-1|2948063-1|378590-1 | X54: 0 | Y54: 53
A55: 905334 | B55: kr | C55: 2 | D55: 小月丸號 | E55: z | F55: 891079 | G55: kr | H55: 2 | I55: JingGeSmida | J55: z | K55: 873581 | L55: kr | M55: 2 | N55: Terry | O55: t | P55: Bronze | Q55: 9 | R55: 9 | S55: 272 | T55: 2014-08-09 | U55: 13 days | V55: 2014-08-27T04:49:24 | W55: 905334-2|891079-2|873581-2 | X55: 0 | Y55: 54
A56: 2584494 | B56: kr | C56: 1 | D56: gara | E56: p | F56: 2516311 | G56: kr | H56: 1 | I56: SmartMICKEY | J56: t | K56: 1448338 | L56: kr | M56: 1 | N56: 오늘처음 | O56: t | P56: Bronze | Q56: 16 | R56: 11 | S56: 270 | T56: 2014-07-17 | U56: 27 days | V56: 2014-08-27T04:49:24 | W56: 2584494-1|2516311-1|1448338-1 | X56: 0 | Y56: 55
A57: 4591140 | B57: kr | C57: 1 | D57: hangbee | E57: t | F57: 3003331 | G57: kr | H57: 1 | I57: 니콜리콜 | J57: t | K57: 2524640 | L57: kr | M57: 1 | N57: 무등산타잔 | O57: t | P57: Bronze | Q57: 12 | R57: 17 | S57: 270 | T57: 2014-07-19 | U57: 10 days | V57: 2014-08-27T04:49:24 | W57: 4591140-1|3003331-1|2524640-1 | X57: 0 | Y57: 56
A58: 3208989 | B58: kr | C58: 1 | D58: 불어사전 | E58: z | F58: 1882814 | G58: kr | H58: 1 | I58: 푸흣 | J58: p | K58: 1711468 | L58: kr | M58: 1 | N58: 호롤로로 | O58: p | P58: Bronze | Q58: 11 | R58: 7 | S58: 267 | T58: 2014-07-13 | U58: 24 days | V58: 2014-08-27T04:49:24 | W58: 3208989-1|1882814-1|1711468-1 | X58: 0 | Y58: 57
A59: 4145421 | B59: kr | C59: 1 | D59: 금보트페 | E59: r | F59: 1502975 | G59: kr | H59: 1 | I59: 마모루 | J59: t | K59: 811462 | L59: kr | M59: 1 | N59: 독산선남선녀 | O59: p | P59: Bronze | Q59: 11 | R59: 10 | S59: 267 | T59: 2014-08-07 | U59: 19 days | V59: 2014-08-27T04:49:24 | W59: 4145421-1|1502975-1|811462-1 | X59: 0 | Y59: 58
A60: 1361406 | B60: kr | C60: 1 | D60: blueiris | E60: r | F60: 1093048 | G60: kr | H60: 1 | I60: 우리지금만나 | J60: r | K60: 697025 | L60: kr | M60: 1 | N60: 하루빨리 | O60: r | P60: Bronze | Q60: 8 | R60: 5 | S60: 266 | T60: 2014-07-19 | U60: 8 days | V60: 2014-08-27T04:49:24 | W60: 1361406-1|1093048-1|697025-1 | X60: 0 | Y60: 59
A61: 3535424 | B61: kr | C61: 1 | D61: 서기 | E61: p | F61: 1769187 | G61: kr | H61: 1 | I61: 해결사 | J61: p | K61: 279855 | L61: kr | M61: 1 | N61: 로렌세이 | O61: z | P61: Bronze | Q61: 9 | R61: 10 | S61: 266 | T61: 2014-08-06 | U61: 19 days | V61: 2014-08-27T04:49:24 | W61: 3535424-1|1769187-1|279855-1 | X61: 0 | Y61: 60
A62: 3458908 | B62: kr | C62: 1 | D62: QueenSunny | E62: r | F62: 2756987 | G62: kr | H62: 1 | I62: 납꽁치 | J62: p | K62: 1371281 | L62: kr | M62: 1 | N62: 에로틱한돌진 | O62: p | P62: Bronze | Q62: 8 | R62: 10 | S62: 266 | T62: 2014-08-07 | U62: 10 days | V62: 2014-08-27T04:49:24 | W62: 3458908-1|2756987-1|1371281-1 | X62: 0 | Y62: 61
A63: 345733 | B63: kr | C63: 2 | D63: MaDRoLL | E63: r | F63: 155761 | G63: kr | H63: 2 | I63: MaDevil | J63: r | K63: 93758 | L63: kr | M63: 2 | N63: dOrEmI | O63: r | P63: Bronze | Q63: 7 | R63: 9 | S63: 266 | T63: 2014-08-14 | U63: 8 days | V63: 2014-08-27T04:49:24 | W63: 345733-2|155761-2|93758-2 | X63: 0 | Y63: 62
A64: 3491596 | B64: kr | C64: 1 | D64: 너구리 | E64: t | F64: 1086984 | G64: kr | H64: 1 | I64: 고라니 | J64: z | K64: 590276 | L64: kr | M64: 1 | N64: 미친존재감 | O64: p | P64: Bronze | Q64: 9 | R64: 5 | S64: 264 | T64: 2014-07-11 | U64: 20 days | V64: 2014-08-27T04:49:24 | W64: 3491596-1|1086984-1|590276-1 | X64: 0 | Y64: 63
A65: 681009 | B65: kr | C65: 2 | D65: 肉腳是你 | E65: t | F65: 620902 | G65: kr | H65: 2 | I65: Anthony | J65: t | K65: 617734 | L65: kr | M65: 2 | N65: Lazyming | O65: r | P65: Bronze | Q65: 12 | R65: 11 | S65: 261 | T65: 2014-07-13 | U65: 3 days | V65: 2014-08-27T04:49:24 | W65: 681009-2|620902-2|617734-2 | X65: 0 | Y65: 64
A66: 2793198 | B66: kr | C66: 1 | D66: 이웃집호호로 | E66: p | F66: 2792166 | G66: kr | H66: 1 | I66: 데츠오 | J66: p | K66: 660405 | L66: kr | M66: 1 | N66: 조이락 | O66: t | P66: Bronze | Q66: 7 | R66: 5 | S66: 258 | T66: 2014-08-23 | U66: 1 days | V66: 2014-08-27T04:49:24 | W66: 2793198-1|2792166-1|660405-1 | X66: 0 | Y66: 65
A67: 2191817 | B67: kr | C67: 1 | D67: JHK | E67: t | F67: 1877085 | G67: kr | H67: 1 | I67: 쥬노 | J67: p | K67: 476545 | L67: kr | M67: 1 | N67: 테란 | O67: t | P67: Bronze | Q67: 14 | R67: 14 | S67: 255 | T67: 2014-07-18 | U67: 28 days | V67: 2014-08-27T04:49:24 | W67: 2191817-1|1877085-1|476545-1 | X67: 0 | Y67: 66
A68: 979202 | B68: kr | C68: 2 | D68: Rubo | E68: p | F68: 133398 | G68: kr | H68: 2 | I68: CFG | J68: z | K68: 131027 | L68: kr | M68: 2 | N68: CatCfrco | O68: p | P68: Bronze | Q68: 16 | R68: 26 | S68: 252 | T68: 2014-07-18 | U68: 2 days | V68: 2014-08-27T04:49:24 | W68: 979202-2|133398-2|131027-2 | X68: 0 | Y68: 67
A69: 325431 | B69: kr | C69: 2 | D69: yychen | E69: z | F69: 141401 | G69: kr | H69: 2 | I69: Jerry | J69: t | K69: 91030 | L69: kr | M69: 2 | N69: ReDrAy | O69: t | P69: Bronze | Q69: 17 | R69: 23 | S69: 251 | T69: 2014-07-08 | U69: 2 days | V69: 2014-08-27T04:49:24 | W69: 325431-2|141401-2|91030-2 | X69: 0 | Y69: 68
A70: 2744342 | B70: kr | C70: 1 | D70: 빨대소년 | E70: t | F70: 2390267 | G70: kr | H70: 1 | I70: imagecho | J70: p | K70: 1010322 | L70: kr | M70: 1 | N70: 림재발 | O70: p | P70: Bronze | Q70: 8 | R70: 8 | S70: 250 | T70: 2014-08-16 | U70: 10 days | V70: 2014-08-27T04:49:24 | W70: 2744342-1|2390267-1|1010322-1 | X70: 0 | Y70: 69
A71: 822002 | B71: kr | C71: 2 | D71: 洋皇 | E71: z | F71: 818352 | G71: kr | H71: 2 | I71: BILL | J71: t | K71: 814893 | L71: kr | M71: 2 | N71: Michael | O71: p | P71: Bronze | Q71: 15 | R71: 20 | S71: 249 | T71: 2014-07-10 | U71: 9 days | V71: 2014-08-27T04:49:24 | W71: 822002-2|818352-2|814893-2 | X71: 0 | Y71: 70
A72: 3450636 | B72: kr | C72: 1 | D72: 목사님 | E72: z | F72: 1364841 | G72: kr | H72: 1 | I72: wnfm | J72: r | K72: 310181 | L72: kr | M72: 1 | N72: 검은날개 | O72: p | P72: Bronze | Q72: 10 | R72: 9 | S72: 248 | T72: 2014-07-08 | U72: 23 days | V72: 2014-08-27T04:49:24 | W72: 3450636-1|1364841-1|310181-1 | X72: 0 | Y72: 71
A73: 4492673 | B73: kr | C73: 1 | D73: Dream | E73: t | F73: 3345484 | G73: kr | H73: 1 | I73: 병신들만만나 | J73: r | K73: 2166425 | L73: kr | M73: 1 | N73: lueny | O73: p | P73: Bronze | Q73: 11 | R73: 11 | S73: 244 | T73: 2014-07-12 | U73: 18 days | V73: 2014-08-27T04:49:24 | W73: 4492673-1|3345484-1|2166425-1 | X73: 0 | Y73: 72
A74: 1864028 | B74: kr | C74: 1 | D74: 저글링 | E74: z | F74: 661443 | G74: kr | H74: 1 | I74: 탐사정 | J74: p | K74: 330452 | L74: kr | M74: 1 | N74: Notaloneme | O74: p | P74: Bronze | Q74: 9 | R74: 9 | S74: 243 | T74: 2014-07-30 | U74: 23 days | V74: 2014-08-27T04:49:25 | W74: 1864028-1|661443-1|330452-1 | X74: 0 | Y74: 73
A75: 949341 | B75: kr | C75: 2 | D75: 殺手 | E75: z | F75: 762498 | G75: kr | H75: 2 | I75: 消失的惡魔 | J75: r | K75: 761924 | L75: kr | M75: 2 | N75: Hunter | O75: t | P75: Bronze | Q75: 8 | R75: 4 | S75: 242 | T75: 2014-07-22 | U75: 11 days | V75: 2014-08-27T04:49:25 | W75: 949341-2|762498-2|761924-2 | X75: 0 | Y75: 74
A76: 2566784 | B76: kr | C76: 1 | D76: eodhkdwkawkf | E76: p | F76: 2224939 | G76: kr | H76: 1 | I76: whyjay | J76: z | K76: 835065 | L76: kr | M76: 1 | N76: someday | O76: t | P76: Bronze | Q76: 9 | R76: 9 | S76: 242 | T76: 2014-07-31 | U76: 10 days | V76: 2014-08-27T04:49:25 | W76: 2566784-1|2224939-1|835065-1 | X76: 0 | Y76: 75
A77: 4360176 | B77: kr | C77: 1 | D77: ino | E77: p | F77: 2657190 | G77: kr | H77: 1 | I77: 공인수 | J77: t | K77: 801392 | L77: kr | M77: 1 | N77: sin | O77: p | P77: Bronze | Q77: 10 | R77: 14 | S77: 242 | T77: 2014-07-26 | U77: 2 days | V77: 2014-08-27T04:49:25 | W77: 4360176-1|2657190-1|801392-1 | X77: 0 | Y77: 76
A78: 1320365 | B78: kr | C78: 1 | D78: shadow | E78: z | F78: 908536 | G78: kr | H78: 1 | I78: AraMir | J78: r | K78: 908214 | L78: kr | M78: 1 | N78: 루피 | O78: t | P78: Bronze | Q78: 12 | R78: 6 | S78: 241 | T78: 2014-07-19 | U78: 38 days | V78: 2014-08-27T04:49:25 | W78: 1320365-1|908536-1|908214-1 | X78: 0 | Y78: 77
A79: 1101495 | B79: kr | C79: 2 | D79: 林帥韋 | E79: p | F79: 898756 | G79: kr | H79: 2 | I79: fire | J79: z | K79: 123283 | L79: kr | M79: 2 | N79: 大門伍郎 | O79: z | P79: Bronze | Q79: 8 | R79: 6 | S79: 240 | T79: 2014-07-24 | U79: 10 days | V79: 2014-08-27T04:49:25 | W79: 1101495-2|898756-2|123283-2 | X79: 0 | Y79: 78
A80: 1053773 | B80: kr | C80: 2 | D80: CTerNal | E80: z | F80: 1053075 | G80: kr | H80: 2 | I80: 小嶋陽菜 | J80: t | K80: 791499 | L80: kr | M80: 2 | N80: KevinRush | O80: p | P80: Bronze | Q80: 9 | R80: 14 | S80: 240 | T80: 2014-07-22 | U80: 14 days | V80: 2014-08-27T04:49:25 | W80: 1053773-2|1053075-2|791499-2 | X80: 0 | Y80: 79
A81: 1360802 | B81: kr | C81: 2 | D81: 認真大帥哥 | E81: t | F81: 1346682 | G81: kr | H81: 2 | I81: 愛有偉阿 | J81: z | K81: 804953 | L81: kr | M81: 2 | N81: 聰明大帥哥 | O81: t | P81: Bronze | Q81: 7 | R81: 15 | S81: 240 | T81: 2014-08-04 | U81: 18 hours | V81: 2014-08-27T04:49:25 | W81: 1360802-2|1346682-2|804953-2 | X81: 0 | Y81: 80
A82: 549861 | B82: kr | C82: 2 | D82: Mark | E82: p | F82: 180999 | G82: kr | H82: 2 | I82: 聖光審判 | J82: r | K82: 134132 | L82: kr | M82: 2 | N82: SamForce | O82: r | P82: Bronze | Q82: 8 | R82: 4 | S82: 238 | T82: 2014-08-06 | U82: 20 days | V82: 2014-08-27T04:49:25 | W82: 549861-2|180999-2|134132-2 | X82: 0 | Y82: 81
A83: 1136809 | B83: kr | C83: 1 | D83: 멀티핵 | E83: z | F83: 492743 | G83: kr | H83: 1 | I83: Ironytic | J83: p | K83: 405563 | L83: kr | M83: 1 | N83: 게르만족 | O83: p | P83: Bronze | Q83: 7 | R83: 11 | S83: 238 | T83: 2014-08-19 | U83: 1 days | V83: 2014-08-27T04:49:25 | W83: 1136809-1|492743-1|405563-1 | X83: 0 | Y83: 82
A84: 4393842 | B84: kr | C84: 1 | D84: 인두인두 | E84: p | F84: 4393090 | G84: kr | H84: 1 | I84: shin | J84: p | K84: 4341169 | L84: kr | M84: 1 | N84: 후니훈 | O84: p | P84: Bronze | Q84: 12 | R84: 16 | S84: 237 | T84: 2014-07-20 | U84: 13 days | V84: 2014-08-27T04:49:25 | W84: 4393842-1|4393090-1|4341169-1 | X84: 0 | Y84: 83
A85: 757016 | B85: kr | C85: 2 | D85: YLFYS | E85: r | F85: 450552 | G85: kr | H85: 2 | I85: Zozo | J85: p | K85: 440733 | L85: kr | M85: 2 | N85: BBB | O85: r | P85: Bronze | Q85: 11 | R85: 10 | S85: 235 | T85: 2014-07-18 | U85: 28 days | V85: 2014-08-27T04:49:25 | W85: 757016-2|450552-2|440733-2 | X85: 0 | Y85: 84
A86: 2271869 | B86: kr | C86: 1 | D86: 망할스타하기드럽 | E86: z | F86: 568502 | G86: kr | H86: 1 | I86: zswea | J86: r | K86: 126152 | L86: kr | M86: 1 | N86: 달팽이튀김 | O86: r | P86: Bronze | Q86: 9 | R86: 13 | S86: 234 | T86: 2014-08-14 | U86: 7 days | V86: 2014-08-27T04:49:25 | W86: 2271869-1|568502-1|126152-1 | X86: 0 | Y86: 85
A87: 1281154 | B87: kr | C87: 1 | D87: 캡틴산타 | E87: t | F87: 1142574 | G87: kr | H87: 1 | I87: 불곰 | J87: p | K87: 173902 | L87: kr | M87: 1 | N87: 티리온 | O87: r | P87: Bronze | Q87: 7 | R87: 11 | S87: 234 | T87: 2014-07-09 | U87: 5 days | V87: 2014-08-27T04:49:25 | W87: 1281154-1|1142574-1|173902-1 | X87: 0 | Y87: 86
A88: 3828675 | B88: kr | C88: 1 | D88: 은가이째라 | E88: z | F88: 1458249 | G88: kr | H88: 1 | I88: ggggbbbb | J88: t | K88: 253096 | L88: kr | M88: 1 | N88: 김똘똘 | O88: r | P88: Bronze | Q88: 7 | R88: 2 | S88: 233 | T88: 2014-07-28 | U88: 27 days | V88: 2014-08-27T04:49:25 | W88: 3828675-1|1458249-1|253096-1 | X88: 0 | Y88: 87
A89: 707208 | B89: kr | C89: 2 | D89: 阿龐 | E89: p | F89: 476967 | G89: kr | H89: 2 | I89: 阿琪仔 | J89: r | K89: 215443 | L89: kr | M89: 2 | N89: 竹科大攝狼 | O89: t | P89: Bronze | Q89: 13 | R89: 18 | S89: 233 | T89: 2014-07-15 | U89: 10 days | V89: 2014-08-27T04:49:25 | W89: 707208-2|476967-2|215443-2 | X89: 0 | Y89: 88
A90: 1424004 | B90: kr | C90: 1 | D90: 아돼 | E90: p | F90: 726648 | G90: kr | H90: 1 | I90: 발놈이 | J90: r | K90: 396676 | L90: kr | M90: 1 | N90: 뻑이가네 | O90: p | P90: Bronze | Q90: 8 | R90: 4 | S90: 232 | T90: 2014-07-19 | U90: 2 days | V90: 2014-08-27T04:49:25 | W90: 1424004-1|726648-1|396676-1 | X90: 0 | Y90: 89
A91: 4217231 | B91: kr | C91: 1 | D91: GalaxyS | E91: t | F91: 2347923 | G91: kr | H91: 1 | I91: 일수일멸 | J91: z | K91: 2313428 | L91: kr | M91: 1 | N91: jsh | O91: p | P91: Bronze | Q91: 6 | R91: 7 | S91: 232 | T91: 2014-07-30 | U91: 14 days | V91: 2014-08-27T04:49:25 | W91: 4217231-1|2347923-1|2313428-1 | X91: 0 | Y91: 90
A92: 2700912 | B92: kr | C92: 1 | D92: 라베니아 | E92: p | F92: 2694735 | G92: kr | H92: 1 | I92: 슈운 | J92: z | K92: 2589373 | L92: kr | M92: 1 | N92: 고라 | O92: p | P92: Bronze | Q92: 10 | R92: 17 | S92: 230 | T92: 2014-07-23 | U92: 13 days | V92: 2014-08-27T04:49:25 | W92: 2700912-1|2694735-1|2589373-1 | X92: 0 | Y92: 91
A93: 3902449 | B93: kr | C93: 1 | D93: 대빵 | E93: r | F93: 3897455 | G93: kr | H93: 1 | I93: 동방의별 | J93: p | K93: 2045440 | L93: kr | M93: 1 | N93: 스타머신 | O93: t | P93: Bronze | Q93: 10 | R93: 7 | S93: 227 | T93: 2014-07-08 | U93: 31 days | V93: 2014-08-27T04:49:25 | W93: 3902449-1|3897455-1|2045440-1 | X93: 0 | Y93: 92
A94: 3149025 | B94: kr | C94: 1 | D94: 해병대원 | E94: t | F94: 3100538 | G94: kr | H94: 1 | I94: gugugu | J94: p | K94: 1737659 | L94: kr | M94: 1 | N94: 김이병 | O94: p | P94: Bronze | Q94: 13 | R94: 15 | S94: 227 | T94: 2014-07-22 | U94: 24 days | V94: 2014-08-27T04:49:25 | W94: 3149025-1|3100538-1|1737659-1 | X94: 0 | Y94: 93
A95: 4468546 | B95: kr | C95: 1 | D95: Gamer | E95: r | F95: 1553181 | G95: kr | H95: 1 | I95: Light | J95: p | K95: 627800 | L95: kr | M95: 1 | N95: manchunha | O95: t | P95: Bronze | Q95: 7 | R95: 0 | S95: 226 | T95: 2014-07-25 | U95: 32 days | V95: 2014-08-27T04:49:25 | W95: 4468546-1|1553181-1|627800-1 | X95: 0 | Y95: 94
A96: 4506835 | B96: kr | C96: 1 | D96: Terranu | E96: z | F96: 4506809 | G96: kr | H96: 1 | I96: Jerguu | J96: r | K96: 4506616 | L96: kr | M96: 1 | N96: Protossu | O96: p | P96: Bronze | Q96: 7 | R96: 9 | S96: 226 | T96: 2014-07-26 | U96: 4 days | V96: 2014-08-27T04:49:25 | W96: 4506835-1|4506809-1|4506616-1 | X96: 0 | Y96: 95
A97: 3687780 | B97: kr | C97: 1 | D97: 새벽소리 | E97: p | F97: 1277962 | G97: kr | H97: 1 | I97: harefoot | J97: t | K97: 842430 | L97: kr | M97: 1 | N97: 버려진자 | O97: z | P97: Bronze | Q97: 7 | R97: 10 | S97: 225 | T97: 2014-07-27 | U97: 17 days | V97: 2014-08-27T04:49:25 | W97: 3687780-1|1277962-1|842430-1 | X97: 0 | Y97: 96
A98: 2845373 | B98: kr | C98: 1 | D98: callu | E98: z | F98: 2585364 | G98: kr | H98: 1 | I98: 김자유 | J98: p | K98: 2030962 | L98: kr | M98: 1 | N98: 아라비안나이트 | O98: p | P98: Bronze | Q98: 7 | R98: 6 | S98: 223 | T98: 2014-07-07 | U98: 11 days | V98: 2014-08-27T04:49:25 | W98: 2845373-1|2585364-1|2030962-1 | X98: 0 | Y98: 97
A99: 3414103 | B99: kr | C99: 1 | D99: JJANGOON | E99: p | F99: 3395370 | G99: kr | H99: 1 | I99: Tom | J99: p | K99: 1923501 | L99: kr | M99: 1 | N99: TitaNium | O99: p | P99: Bronze | Q99: 8 | R99: 10 | S99: 222 | T99: 2014-08-17 | U99: 3 days | V99: 2014-08-27T04:49:25 | W99: 3414103-1|3395370-1|1923501-1 | X99: 0 | Y99: 98
A100: 756147 | B100: kr | C100: 1 | D100: 머리급돌격병 | E100: t | F100: 167275 | G100: kr | H100: 1 | I100: 비듬맛뇌 | J100: z | K100: 108970 | L100: kr | M100: 1 | N100: 오퍼레이터 | O100: t | P100: Bronze | Q100: 8 | R100: 11 | S100: 222 | T100: 2014-08-01 | U100: 20 days | V100: 2014-08-27T04:49:25 | W100: 756147-1|167275-1|108970-1 | X100: 0 | Y100: 99
A101: 912720 | B101: kr | C101: 2 | D101: 防衛軍司令 | E101: t | F101: 89054 | G101: kr | H101: 2 | I101: PTcBulkOu | J101: t | K101: 63470 | L101: kr | M101: 2 | N101: PTcNickLiu | O101: t | P101: Bronze | Q101: 7 | R101: 3 | S101: 220 | T101: 2014-08-08 | U101: 14 days | V101: 2014-08-27T04:49:25 | W101: 912720-2|89054-2|63470-2 | X101: 0 | Y101: 100
A102: 1504849 | B102: kr | C102: 1 | D102: 슈발 | E102: t | F102: 1350308 | G102: kr | H102: 1 | I102: 페이퍼 | J102: p | K102: 1167573 | L102: kr | M102: 1 | N102: Demonics | O102: t | P102: Bronze | Q102: 8 | R102: 5 | S102: 219 | T102: 2014-07-24 | U102: 26 days | V102: 2014-08-27T04:49:25 | W102: 1504849-1|1350308-1|1167573-1 | X102: 0 | Y102: 101
A103: 4394187 | B103: kr | C103: 1 | D103: head | E103: r | F103: 4321863 | G103: kr | H103: 1 | I103: rush | J103: r | K103: 922546 | L103: kr | M103: 1 | N103: 똥팔이여왕 | O103: p | P103: Bronze | Q103: 8 | R103: 7 | S103: 216 | T103: 2014-08-07 | U103: 19 days | V103: 2014-08-27T04:49:25 | W103: 4394187-1|4321863-1|922546-1 | X103: 0 | Y103: 102
A104: 1372766 | B104: kr | C104: 1 | D104: 알천 | E104: p | F104: 736550 | G104: kr | H104: 1 | I104: KIllERBlACK | J104: t | K104: 526545 | L104: kr | M104: 1 | N104: 테란 | O104: p | P104: Bronze | Q104: 7 | R104: 9 | S104: 214 | T104: 2014-08-10 | U104: 9 days | V104: 2014-08-27T04:49:25 | W104: 1372766-1|736550-1|526545-1 | X104: 0 | Y104: 103
A105: 4612943 | B105: kr | C105: 1 | D105: 헌터임 | E105: t | F105: 4611189 | G105: kr | H105: 1 | I105: IIIlllIIIlll | J105: p | K105: 4609773 | L105: kr | M105: 1 | N105: 엉큼한늑대 | O105: t | P105: Bronze | Q105: 9 | R105: 14 | S105: 214 | T105: 2014-07-23 | U105: 2 days | V105: 2014-08-27T04:49:25 | W105: 4612943-1|4611189-1|4609773-1 | X105: 0 | Y105: 104
A106: 2337133 | B106: kr | C106: 1 | D106: 바크주크 | E106: p | F106: 2334671 | G106: kr | H106: 1 | I106: 니엄마르 | J106: t | K106: 545708 | L106: kr | M106: 1 | N106: 삭쾡이 | O106: r | P106: Bronze | Q106: 6 | R106: 0 | S106: 212 | T106: 2014-07-26 | U106: 3 days | V106: 2014-08-27T04:49:25 | W106: 2337133-1|2334671-1|545708-1 | X106: 0 | Y106: 105
A107: 1250435 | B107: kr | C107: 2 | D107: twopointthre | E107: p | F107: 274499 | G107: kr | H107: 2 | I107: PLJeans | J107: p | K107: 259301 | L107: kr | M107: 2 | N107: fhkk | O107: z | P107: Bronze | Q107: 7 | R107: 1 | S107: 212 | T107: 2014-08-01 | U107: 25 days | V107: 2014-08-27T04:49:25 | W107: 1250435-2|274499-2|259301-2 | X107: 0 | Y107: 106
A108: 4054867 | B108: kr | C108: 1 | D108: kwan | E108: t | F108: 1592018 | G108: kr | H108: 1 | I108: loku | J108: p | K108: 647004 | L108: kr | M108: 1 | N108: gentleguy | O108: t | P108: Bronze | Q108: 8 | R108: 4 | S108: 212 | T108: 2014-07-30 | U108: 9 days | V108: 2014-08-27T04:49:25 | W108: 4054867-1|1592018-1|647004-1 | X108: 0 | Y108: 107
A109: 1362518 | B109: kr | C109: 2 | D109: 西門大官人 | E109: z | F109: 283455 | G109: kr | H109: 2 | I109: 工兵管制士 | J109: p | K109: 143070 | L109: kr | M109: 2 | N109: 佐佐木 | O109: t | P109: Bronze | Q109: 8 | R109: 8 | S109: 212 | T109: 2014-08-13 | U109: 4 days | V109: 2014-08-27T04:49:25 | W109: 1362518-2|283455-2|143070-2 | X109: 0 | Y109: 108
A110: 2950833 | B110: kr | C110: 1 | D110: IIIIIIIIIIII | E110: t | F110: 2467975 | G110: kr | H110: 1 | I110: 우후훗 | J110: p | K110: 1751159 | L110: kr | M110: 1 | N110: 카카우스 | O110: t | P110: Bronze | Q110: 6 | R110: 6 | S110: 212 | T110: 2014-08-19 | U110: 7 days | V110: 2014-08-27T04:49:25 | W110: 2950833-1|2467975-1|1751159-1 | X110: 0 | Y110: 109
A111: 1039655 | B111: kr | C111: 2 | D111: fayehuang | E111: z | F111: 523959 | G111: kr | H111: 2 | I111: 剋理斯 | J111: p | K111: 204279 | L111: kr | M111: 2 | N111: 跳蛋超人 | O111: r | P111: Bronze | Q111: 6 | R111: 10 | S111: 212 | T111: 2014-07-22 | U111: 30 days | V111: 2014-08-27T04:49:25 | W111: 1039655-2|523959-2|204279-2 | X111: 0 | Y111: 110
A112: 4601592 | B112: kr | C112: 1 | D112: Margaret | E112: z | F112: 3899426 | G112: kr | H112: 1 | I112: eSfu | J112: z | K112: 1756229 | L112: kr | M112: 1 | N112: 천안 | O112: r | P112: Bronze | Q112: 7 | R112: 12 | S112: 212 | T112: 2014-08-05 | U112: 15 days | V112: 2014-08-27T04:49:25 | W112: 4601592-1|3899426-1|1756229-1 | X112: 0 | Y112: 111
A113: 4696854 | B113: kr | C113: 1 | D113: 김종아 | E113: p | F113: 4476582 | G113: kr | H113: 1 | I113: 지키리 | J113: r | K113: 2817600 | L113: kr | M113: 1 | N113: 함성근 | O113: p | P113: Bronze | Q113: 6 | R113: 11 | S113: 212 | T113: 2014-08-27 | U113: 1 hours | V113: 2014-08-27T04:49:25 | W113: 4696854-1|4476582-1|2817600-1 | X113: 0 | Y113: 112
A114: 4701421 | B114: kr | C114: 1 | D114: 쿠바나 | E114: p | F114: 4351926 | G114: kr | H114: 1 | I114: 적토마아 | J114: t | K114: 982533 | L114: kr | M114: 1 | N114: 엔젤비트 | O114: z | P114: Bronze | Q114: 11 | R114: 9 | S114: 211 | T114: 2014-08-05 | U114: 22 days | V114: 2014-08-27T04:49:25 | W114: 4701421-1|4351926-1|982533-1 | X114: 0 | Y114: 113
A115: 4364342 | B115: kr | C115: 1 | D115: innnovation | E115: p | F115: 4346756 | G115: kr | H115: 1 | I115: SpecialJH | J115: t | K115: 1883978 | L115: kr | M115: 1 | N115: 헌터오렌지 | O115: r | P115: Bronze | Q115: 6 | R115: 5 | S115: 210 | T115: 2014-07-19 | U115: 10 days | V115: 2014-08-27T04:49:25 | W115: 4364342-1|4346756-1|1883978-1 | X115: 0 | Y115: 114
A116: 1138890 | B116: kr | C116: 1 | D116: windycij | E116: r | F116: 451258 | G116: kr | H116: 1 | I116: Okinopi | J116: p | K116: 330476 | L116: kr | M116: 1 | N116: kyogogo | O116: t | P116: Bronze | Q116: 9 | R116: 8 | S116: 209 | T116: 2014-07-13 | U116: 20 days | V116: 2014-08-27T04:49:25 | W116: 1138890-1|451258-1|330476-1 | X116: 0 | Y116: 115
A117: 1346160 | B117: kr | C117: 2 | D117: 虛無飄渺 | E117: r | F117: 751162 | G117: kr | H117: 2 | I117: 手機柑仔店 | J117: p | K117: 402338 | L117: kr | M117: 2 | N117: sax | O117: r | P117: Bronze | Q117: 8 | R117: 8 | S117: 208 | T117: 2014-08-01 | U117: 18 days | V117: 2014-08-27T04:49:25 | W117: 1346160-2|751162-2|402338-2 | X117: 0 | Y117: 116
A118: 3836469 | B118: kr | C118: 1 | D118: Jintae | E118: r | F118: 1477986 | G118: kr | H118: 1 | I118: 땅크보이 | J118: p | K118: 294300 | L118: kr | M118: 1 | N118: 별빛금속쿠크리 | O118: r | P118: Bronze | Q118: 8 | R118: 8 | S118: 208 | T118: 2014-08-17 | U118: 4 days | V118: 2014-08-27T04:49:25 | W118: 3836469-1|1477986-1|294300-1 | X118: 0 | Y118: 117
A119: 3521425 | B119: kr | C119: 1 | D119: 마탄의사수 | E119: z | F119: 2500139 | G119: kr | H119: 1 | I119: 보노샿녀니 | J119: p | K119: 1965040 | L119: kr | M119: 1 | N119: Mercury | O119: p | P119: Bronze | Q119: 9 | R119: 12 | S119: 208 | T119: 2014-08-08 | U119: 10 days | V119: 2014-08-27T04:49:25 | W119: 3521425-1|2500139-1|1965040-1 | X119: 0 | Y119: 118
A120: 819376 | B120: kr | C120: 2 | D120: Sinnrc | E120: r | F120: 447175 | G120: kr | H120: 2 | I120: Goemon | J120: z | K120: 283455 | L120: kr | M120: 2 | N120: 工兵管制士 | O120: r | P120: Bronze | Q120: 10 | R120: 6 | S120: 206 | T120: 2014-07-10 | U120: 31 days | V120: 2014-08-27T04:49:25 | W120: 819376-2|447175-2|283455-2 | X120: 0 | Y120: 119
A121: 4136638 | B121: kr | C121: 1 | D121: 아름다운인생 | E121: z | F121: 2170288 | G121: kr | H121: 1 | I121: 날으는용 | J121: p | K121: 1964115 | L121: kr | M121: 1 | N121: refdgs | O121: p | P121: Bronze | Q121: 7 | R121: 8 | S121: 206 | T121: 2014-08-09 | U121: 17 days | V121: 2014-08-27T04:49:25 | W121: 4136638-1|2170288-1|1964115-1 | X121: 0 | Y121: 120
A122: 2860326 | B122: kr | C122: 1 | D122: 가쯔오우동 | E122: p | F122: 2530133 | G122: kr | H122: 1 | I122: 월앙 | J122: z | K122: 718959 | L122: kr | M122: 1 | N122: 김밥팔아 | O122: p | P122: Bronze | Q122: 8 | R122: 10 | S122: 206 | T122: 2014-08-01 | U122: 13 days | V122: 2014-08-27T04:49:25 | W122: 2860326-1|2530133-1|718959-1 | X122: 0 | Y122: 121
A123: 2392815 | B123: kr | C123: 1 | D123: ChaosTail | E123: t | F123: 213521 | G123: kr | H123: 1 | I123: Asran | J123: p | K123: 130216 | L123: kr | M123: 1 | N123: Killgameshi | O123: z | P123: Bronze | Q123: 7 | R123: 4 | S123: 204 | T123: 2014-07-26 | U123: 2 days | V123: 2014-08-27T04:49:25 | W123: 2392815-1|213521-1|130216-1 | X123: 0 | Y123: 122
A124: 4686963 | B124: kr | C124: 1 | D124: Yahweh | E124: p | F124: 4685642 | G124: kr | H124: 1 | I124: maven | J124: p | K124: 4684738 | L124: kr | M124: 1 | N124: schweiss | O124: t | P124: Bronze | Q124: 12 | R124: 17 | S124: 203 | T124: 2014-07-16 | U124: 36 days | V124: 2014-08-27T04:49:25 | W124: 4686963-1|4685642-1|4684738-1 | X124: 0 | Y124: 123
A125: 4685272 | B125: kr | C125: 1 | D125: 오이상용 | E125: p | F125: 4465564 | G125: kr | H125: 1 | I125: Flash | J125: t | K125: 3950662 | L125: kr | M125: 1 | N125: 칠백이십칠 | O125: t | P125: Bronze | Q125: 8 | R125: 16 | S125: 202 | T125: 2014-07-12 | U125: 4 days | V125: 2014-08-27T04:49:25 | W125: 4685272-1|4465564-1|3950662-1 | X125: 0 | Y125: 124
A126: 769459 | B126: kr | C126: 2 | D126: 波風水門 | E126: t | F126: 58552 | G126: kr | H126: 2 | I126: jchsh | J126: r | K126: 36441 | L126: kr | M126: 2 | N126: 天啟坦克 | O126: p | P126: Bronze | Q126: 7 | R126: 1 | S126: 200 | T126: 2014-08-12 | U126: 2 days | V126: 2014-08-27T04:49:25 | W126: 769459-2|58552-2|36441-2 | X126: 0 | Y126: 125
A127: 3704099 | B127: kr | C127: 1 | D127: 크레노 | E127: t | F127: 2822458 | G127: kr | H127: 1 | I127: 그르르 | J127: p | K127: 681797 | L127: kr | M127: 1 | N127: WOL | O127: p | P127: Bronze | Q127: 9 | R127: 11 | S127: 200 | T127: 2014-08-01 | U127: 25 days | V127: 2014-08-27T04:49:25 | W127: 3704099-1|2822458-1|681797-1 | X127: 0 | Y127: 126
A128: 972182 | B128: kr | C128: 2 | D128: SinCara | E128: p | F128: 970890 | G128: kr | H128: 2 | I128: HelliOn | J128: z | K128: 970580 | L128: kr | M128: 2 | N128: Pioneer | O128: p | P128: Bronze | Q128: 12 | R128: 14 | S128: 199 | T128: 2014-07-22 | U128: 30 days | V128: 2014-08-27T04:49:25 | W128: 972182-2|970890-2|970580-2 | X128: 0 | Y128: 127
A129: 3906146 | B129: kr | C129: 1 | D129: 신화를만든저그 | E129: z | F129: 3398276 | G129: kr | H129: 1 | I129: ItSherry | J129: t | K129: 1219830 | L129: kr | M129: 1 | N129: ElNiNo | O129: p | P129: Bronze | Q129: 6 | R129: 1 | S129: 198 | T129: 2014-07-27 | U129: 3 days | V129: 2014-08-27T04:49:25 | W129: 3906146-1|3398276-1|1219830-1 | X129: 0 | Y129: 128
A130: 4629958 | B130: kr | C130: 1 | D130: lim | E130: p | F130: 4628292 | G130: kr | H130: 1 | I130: KKKK | J130: p | K130: 4212992 | L130: kr | M130: 1 | N130: 크리살리드 | O130: t | P130: Bronze | Q130: 7 | R130: 7 | S130: 196 | T130: 2014-08-24 | U130: 3 days | V130: 2014-08-27T04:49:25 | W130: 4629958-1|4628292-1|4212992-1 | X130: 0 | Y130: 129
A131: 209891 | B131: kr | C131: 1 | D131: 마니무따 | E131: t | F131: 113487 | G131: kr | H131: 1 | I131: 좋은향 | J131: t | K131: 88350 | L131: kr | M131: 1 | N131: 녀비 | O131: z | P131: Bronze | Q131: 10 | R131: 13 | S131: 195 | T131: 2014-07-19 | U131: 29 days | V131: 2014-08-27T04:49:25 | W131: 209891-1|113487-1|88350-1 | X131: 0 | Y131: 130
A132: 900218 | B132: kr | C132: 1 | D132: theapple | E132: p | F132: 825275 | G132: kr | H132: 1 | I132: 키키키 | J132: z | K132: 525185 | L132: kr | M132: 1 | N132: 우에노쥬리 | O132: t | P132: Bronze | Q132: 7 | R132: 4 | S132: 194 | T132: 2014-08-05 | U132: 9 days | V132: 2014-08-27T04:49:25 | W132: 900218-1|825275-1|525185-1 | X132: 0 | Y132: 131
A133: 1344894 | B133: kr | C133: 2 | D133: LocKeYXX | E133: p | F133: 1067708 | G133: kr | H133: 2 | I133: MoMark | J133: r | K133: 77614 | L133: kr | M133: 2 | N133: losfair | O133: r | P133: Bronze | Q133: 20 | R133: 21 | S133: 191 | T133: 2014-07-12 | U133: 29 days | V133: 2014-08-27T04:49:25 | W133: 1344894-2|1067708-2|77614-2 | X133: 0 | Y133: 132
A134: 800301 | B134: kr | C134: 2 | D134: 偶速神專打尼 | E134: r | F134: 735078 | G134: kr | H134: 2 | I134: lIIIIIIIIIII | J134: t | K134: 362406 | L134: kr | M134: 2 | N134: llllllllllll | O134: t | P134: Bronze | Q134: 5 | R134: 4 | S134: 190 | T134: 2014-07-22 | U134: 17 hours | V134: 2014-08-27T04:49:25 | W134: 800301-2|735078-2|362406-2 | X134: 0 | Y134: 133
A135: 4332519 | B135: kr | C135: 1 | D135: 듄서애비 | E135: p | F135: 4315195 | G135: kr | H135: 1 | I135: 발광하노 | J135: p | K135: 762126 | L135: kr | M135: 1 | N135: 빠루 | O135: z | P135: Bronze | Q135: 6 | R135: 5 | S135: 190 | T135: 2014-07-29 | U135: 23 days | V135: 2014-08-27T04:49:25 | W135: 4332519-1|4315195-1|762126-1 | X135: 0 | Y135: 134
A136: 1766781 | B136: kr | C136: 1 | D136: hiems | E136: p | F136: 230318 | G136: kr | H136: 1 | I136: Taihou | J136: r | K136: 87985 | L136: kr | M136: 1 | N136: 천사들의변혁 | O136: t | P136: Bronze | Q136: 7 | R136: 2 | S136: 189 | T136: 2014-07-11 | U136: 21 hours | V136: 2014-08-27T04:49:25 | W136: 1766781-1|230318-1|87985-1 | X136: 0 | Y136: 135
A137: 532335 | B137: kr | C137: 1 | D137: 체게바라 | E137: r | F137: 262969 | G137: kr | H137: 1 | I137: 죠스맛바 | J137: z | K137: 253700 | L137: kr | M137: 1 | N137: 헤라티 | O137: r | P137: Bronze | Q137: 6 | R137: 4 | S137: 188 | T137: 2014-08-03 | U137: 10 days | V137: 2014-08-27T04:49:25 | W137: 532335-1|262969-1|253700-1 | X137: 0 | Y137: 136
A138: 1355097 | B138: kr | C138: 2 | D138: Ezel | E138: p | F138: 1002495 | G138: kr | H138: 2 | I138: llllllllllll | J138: t | K138: 773438 | L138: kr | M138: 2 | N138: BadEnd | O138: p | P138: Bronze | Q138: 7 | R138: 10 | S138: 188 | T138: 2014-07-30 | U138: 26 days | V138: 2014-08-27T04:49:25 | W138: 1355097-2|1002495-2|773438-2 | X138: 0 | Y138: 137
A139: 4016294 | B139: kr | C139: 1 | D139: 최희 | E139: t | F139: 3668836 | G139: kr | H139: 1 | I139: 한가인 | J139: p | K139: 3251988 | L139: kr | M139: 1 | N139: 메카닉 | O139: p | P139: Bronze | Q139: 6 | R139: 1 | S139: 186 | T139: 2014-07-27 | U139: 30 days | V139: 2014-08-27T04:49:25 | W139: 4016294-1|3668836-1|3251988-1 | X139: 0 | Y139: 138
A140: 3390136 | B140: kr | C140: 1 | D140: 프로토스 | E140: p | F140: 3359095 | G140: kr | H140: 1 | I140: Sundaydream | J140: t | K140: 1882814 | L140: kr | M140: 1 | N140: 푸흣 | O140: p | P140: Bronze | Q140: 6 | R140: 6 | S140: 186 | T140: 2014-08-15 | U140: 11 days | V140: 2014-08-27T04:49:25 | W140: 3390136-1|3359095-1|1882814-1 | X140: 0 | Y140: 139
A141: 1473216 | B141: kr | C141: 1 | D141: koyoriphya | E141: z | F141: 342705 | G141: kr | H141: 1 | I141: 렌테 | J141: r | K141: 197607 | L141: kr | M141: 1 | N141: optics | O141: r | P141: Bronze | Q141: 6 | R141: 2 | S141: 184 | T141: 2014-07-12 | U141: 19 days | V141: 2014-08-27T04:49:25 | W141: 1473216-1|342705-1|197607-1 | X141: 0 | Y141: 140
A142: 4536578 | B142: kr | C142: 1 | D142: 구평동레전드 | E142: z | F142: 1104246 | G142: kr | H142: 1 | I142: deviltoss | J142: z | K142: 91078 | L142: kr | M142: 1 | N142: 대길이 | O142: r | P142: Bronze | Q142: 9 | R142: 5 | S142: 182 | T142: 2014-08-20 | U142: 7 days | V142: 2014-08-27T04:49:25 | W142: 4536578-1|1104246-1|91078-1 | X142: 0 | Y142: 141
A143: 1935213 | B143: kr | C143: 1 | D143: 지갱이 | E143: r | F143: 1283372 | G143: kr | H143: 1 | I143: 로코따 | J143: r | K143: 384515 | L143: kr | M143: 1 | N143: bouktae | O143: r | P143: Bronze | Q143: 6 | R143: 4 | S143: 182 | T143: 2014-07-19 | U143: 24 days | V143: 2014-08-27T04:49:25 | W143: 1935213-1|1283372-1|384515-1 | X143: 0 | Y143: 142
A144: 1347006 | B144: kr | C144: 2 | D144: BoLun | E144: p | F144: 359285 | G144: kr | H144: 2 | I144: Felix | J144: p | K144: 194213 | L144: kr | M144: 2 | N144: kan | O144: z | P144: Bronze | Q144: 15 | R144: 7 | S144: 180 | T144: 2014-07-08 | U144: 34 days | V144: 2014-08-27T04:49:25 | W144: 1347006-2|359285-2|194213-2 | X144: 0 | Y144: 143
A145: 4085758 | B145: kr | C145: 1 | D145: sbs | E145: z | F145: 4083448 | G145: kr | H145: 1 | I145: hueand | J145: t | K145: 371711 | L145: kr | M145: 1 | N145: AngleofAtack | O145: p | P145: Bronze | Q145: 5 | R145: 5 | S145: 180 | T145: 2014-08-20 | U145: 4 days | V145: 2014-08-27T04:49:25 | W145: 4085758-1|4083448-1|371711-1 | X145: 0 | Y145: 144
A146: 4111749 | B146: kr | C146: 1 | D146: Cani | E146: r | F146: 4111339 | G146: kr | H146: 1 | I146: 배롱 | J146: z | K146: 2907437 | L146: kr | M146: 1 | N146: 바울 | O146: r | P146: Bronze | Q146: 5 | R146: 0 | S146: 178 | T146: 2014-08-25 | U146: 1 days | V146: 2014-08-27T04:49:25 | W146: 4111749-1|4111339-1|2907437-1 | X146: 0 | Y146: 145
A147: 1745996 | B147: kr | C147: 1 | D147: NamYangJuTOP | E147: p | F147: 1728425 | G147: kr | H147: 1 | I147: NedVed | J147: t | K147: 982936 | L147: kr | M147: 1 | N147: 필수 | O147: p | P147: Bronze | Q147: 5 | R147: 1 | S147: 178 | T147: 2014-08-26 | U147: 20 hours | V147: 2014-08-27T04:49:25 | W147: 1745996-1|1728425-1|982936-1 | X147: 0 | Y147: 146
A148: 3593382 | B148: kr | C148: 1 | D148: doubleimpact | E148: z | F148: 1217426 | G148: kr | H148: 1 | I148: 마오시 | J148: p | K148: 93107 | L148: kr | M148: 1 | N148: 스타짱 | O148: t | P148: Bronze | Q148: 7 | R148: 4 | S148: 178 | T148: 2014-07-30 | U148: 27 days | V148: 2014-08-27T04:49:25 | W148: 3593382-1|1217426-1|93107-1 | X148: 0 | Y148: 147
A149: 4701251 | B149: kr | C149: 1 | D149: eliteguy | E149: t | F149: 711369 | G149: kr | H149: 1 | I149: 약장수 | J149: p | K149: 614611 | L149: kr | M149: 1 | N149: ArchTemplar | O149: p | P149: Bronze | Q149: 6 | R149: 13 | S149: 178 | T149: 2014-08-23 | U149: 1 days | V149: 2014-08-27T04:49:25 | W149: 4701251-1|711369-1|614611-1 | X149: 0 | Y149: 148
A150: 1618401 | B150: kr | C150: 1 | D150: Cesc | E150: p | F150: 1565094 | G150: kr | H150: 1 | I150: 해병왕 | J150: t | K150: 897049 | L150: kr | M150: 1 | N150: solid | O150: z | P150: Bronze | Q150: 7 | R150: 10 | S150: 177 | T150: 2014-07-22 | U150: 29 days | V150: 2014-08-27T04:49:25 | W150: 1618401-1|1565094-1|897049-1 | X150: 0 | Y150: 149
A151: 167497 | B151: kr | C151: 1 | D151: 비카용마 | E151: p | F151: 108697 | G151: kr | H151: 1 | I151: DarkDragon | J151: p | K151: 89498 | L151: kr | M151: 1 | N151: Computer | O151: t | P151: Bronze | Q151: 9 | R151: 16 | S151: 177 | T151: 2014-07-31 | U151: 20 days | V151: 2014-08-27T04:49:25 | W151: 167497-1|108697-1|89498-1 | X151: 0 | Y151: 150
A152: 3546042 | B152: kr | C152: 1 | D152: woo | E152: r | F152: 2563942 | G152: kr | H152: 1 | I152: 랑랑인 | J152: r | K152: 253017 | L152: kr | M152: 1 | N152: woo | O152: r | P152: Bronze | Q152: 6 | R152: 3 | S152: 176 | T152: 2014-08-06 | U152: 1 days | V152: 2014-08-27T04:49:25 | W152: 3546042-1|2563942-1|253017-1 | X152: 0 | Y152: 151
A153: 2910770 | B153: kr | C153: 1 | D153: 친절한둘리 | E153: p | F153: 1850699 | G153: kr | H153: 1 | I153: Yuhluf | J153: r | K153: 414762 | L153: kr | M153: 1 | N153: 미스트칵테일 | O153: t | P153: Bronze | Q153: 6 | R153: 4 | S153: 176 | T153: 2014-07-11 | U153: 18 days | V153: 2014-08-27T04:49:25 | W153: 2910770-1|1850699-1|414762-1 | X153: 0 | Y153: 152
A154: 1108440 | B154: kr | C154: 2 | D154: 周杰倫 | E154: p | F154: 83183 | G154: kr | H154: 2 | I154: GPE | J154: p | K154: 35056 | L154: kr | M154: 2 | N154: kirry | O154: z | P154: Bronze | Q154: 6 | R154: 4 | S154: 176 | T154: 2014-07-16 | U154: 21 days | V154: 2014-08-27T04:49:25 | W154: 1108440-2|83183-2|35056-2 | X154: 0 | Y154: 153
A155: 2446069 | B155: kr | C155: 1 | D155: artbt | E155: t | F155: 2207502 | G155: kr | H155: 1 | I155: 유병언 | J155: z | K155: 648957 | L155: kr | M155: 1 | N155: 김엄마 | O155: t | P155: Bronze | Q155: 6 | R155: 2 | S155: 174 | T155: 2014-08-17 | U155: 9 days | V155: 2014-08-27T04:49:25 | W155: 2446069-1|2207502-1|648957-1 | X155: 0 | Y155: 154
A156: 3915473 | B156: kr | C156: 1 | D156: 나팔관브레이커 | E156: p | F156: 2266169 | G156: kr | H156: 1 | I156: 자궁브레이커 | J156: z | K156: 2098011 | L156: kr | M156: 1 | N156: 정우성 | O156: r | P156: Bronze | Q156: 5 | R156: 2 | S156: 174 | T156: 2014-08-02 | U156: 25 days | V156: 2014-08-27T04:49:25 | W156: 3915473-1|2266169-1|2098011-1 | X156: 0 | Y156: 155
A157: 4456904 | B157: kr | C157: 1 | D157: TLaw | E157: t | F157: 4434713 | G157: kr | H157: 1 | I157: Havox | J157: z | K157: 4433072 | L157: kr | M157: 1 | N157: LIA | O157: p | P157: Bronze | Q157: 5 | R157: 4 | S157: 174 | T157: 2014-08-26 | U157: 18 hours | V157: 2014-08-27T04:49:25 | W157: 4456904-1|4434713-1|4433072-1 | X157: 0 | Y157: 156
A158: 1243943 | B158: kr | C158: 2 | D158: 微笑冰 | E158: z | F158: 1190053 | G158: kr | H158: 2 | I158: 阿寶 | J158: t | K158: 987545 | L158: kr | M158: 2 | N158: Tony | O158: p | P158: Bronze | Q158: 8 | R158: 8 | S158: 174 | T158: 2014-07-09 | U158: 29 days | V158: 2014-08-27T04:49:25 | W158: 1243943-2|1190053-2|987545-2 | X158: 0 | Y158: 157
A159: 1135594 | B159: kr | C159: 2 | D159: AlmostHim | E159: z | F159: 1073877 | G159: kr | H159: 2 | I159: Andy | J159: p | K159: 943071 | L159: kr | M159: 2 | N159: NeXusRad | O159: r | P159: Bronze | Q159: 8 | R159: 13 | S159: 174 | T159: 2014-07-08 | U159: 2 days | V159: 2014-08-27T04:49:25 | W159: 1135594-2|1073877-2|943071-2 | X159: 0 | Y159: 158
A160: 908344 | B160: kr | C160: 2 | D160: MONSTER | E160: r | F160: 694433 | G160: kr | H160: 2 | I160: 無定勒 | J160: p | K160: 190124 | L160: kr | M160: 2 | N160: 艾洛德 | O160: t | P160: Bronze | Q160: 6 | R160: 3 | S160: 173 | T160: 2014-07-16 | U160: 36 days | V160: 2014-08-27T04:49:25 | W160: 908344-2|694433-2|190124-2 | X160: 0 | Y160: 159
A161: 3667135 | B161: kr | C161: 1 | D161: 알베자스 | E161: t | F161: 1053649 | G161: kr | H161: 1 | I161: 나두셔줘 | J161: p | K161: 1050450 | L161: kr | M161: 1 | N161: 뺀질이와조초딩 | O161: p | P161: Bronze | Q161: 6 | R161: 0 | S161: 172 | T161: 2014-07-12 | U161: 14 days | V161: 2014-08-27T04:49:25 | W161: 3667135-1|1053649-1|1050450-1 | X161: 0 | Y161: 160
A162: 4699509 | B162: kr | C162: 1 | D162: 병옥엄유 | E162: p | F162: 4618362 | G162: kr | H162: 1 | I162: 규완 | J162: z | K162: 3491992 | L162: kr | M162: 1 | N162: 대건킬러 | O162: p | P162: Bronze | Q162: 8 | R162: 5 | S162: 172 | T162: 2014-08-02 | U162: 12 days | V162: 2014-08-27T04:49:25 | W162: 4699509-1|4618362-1|3491992-1 | X162: 0 | Y162: 161
A163: 1074172 | B163: kr | C163: 1 | D163: DragonD | E163: t | F163: 1028489 | G163: kr | H163: 1 | I163: 히달고고 | J163: p | K163: 81350 | L163: kr | M163: 1 | N163: johan | O163: z | P163: Bronze | Q163: 6 | R163: 4 | S163: 172 | T163: 2014-07-20 | U163: 22 days | V163: 2014-08-27T04:49:25 | W163: 1074172-1|1028489-1|81350-1 | X163: 0 | Y163: 162
A164: 4097677 | B164: kr | C164: 1 | D164: 나는상한가 | E164: p | F164: 4069138 | G164: kr | H164: 1 | I164: always | J164: z | K164: 4067794 | L164: kr | M164: 1 | N164: misonim | O164: p | P164: Bronze | Q164: 6 | R164: 4 | S164: 172 | T164: 2014-08-23 | U164: 3 days | V164: 2014-08-27T04:49:25 | W164: 4097677-1|4069138-1|4067794-1 | X164: 0 | Y164: 163
A165: 122244 | B165: kr | C165: 2 | D165: eScShEtLeR | E165: r | F165: 120216 | G165: kr | H165: 2 | I165: eScDSC | J165: t | K165: 86520 | L165: kr | M165: 2 | N165: eScKai | O165: p | P165: Bronze | Q165: 5 | R165: 8 | S165: 172 | T165: 2014-07-07 | U165: 6 days | V165: 2014-08-27T04:49:25 | W165: 122244-2|120216-2|86520-2 | X165: 0 | Y165: 164
A166: 4581474 | B166: kr | C166: 1 | D166: 여우구슬 | E166: p | F166: 1482336 | G166: kr | H166: 1 | I166: NyxSafe | J166: t | K166: 700975 | L166: kr | M166: 1 | N166: 섹근 | O166: r | P166: Bronze | Q166: 6 | R166: 1 | S166: 170 | T166: 2014-07-25 | U166: 32 days | V166: 2014-08-27T04:49:25 | W166: 4581474-1|1482336-1|700975-1 | X166: 0 | Y166: 165
A167: 860178 | B167: kr | C167: 2 | D167: 壞人阿驞 | E167: z | F167: 731229 | G167: kr | H167: 2 | I167: nevermind | J167: p | K167: 508284 | L167: kr | M167: 2 | N167: Avenger | O167: t | P167: Bronze | Q167: 5 | R167: 2 | S167: 170 | T167: 2014-07-22 | U167: 11 days | V167: 2014-08-27T04:49:25 | W167: 860178-2|731229-2|508284-2 | X167: 0 | Y167: 166
A168: 2424979 | B168: kr | C168: 1 | D168: 내띠띠에캔디 | E168: r | F168: 2026234 | G168: kr | H168: 1 | I168: 빌게이츠 | J168: z | K168: 1285807 | L168: kr | M168: 1 | N168: 대부님 | O168: t | P168: Bronze | Q168: 5 | R168: 7 | S168: 170 | T168: 2014-08-09 | U168: 3 days | V168: 2014-08-27T04:49:25 | W168: 2424979-1|2026234-1|1285807-1 | X168: 0 | Y168: 167
A169: 2778046 | B169: kr | C169: 1 | D169: Babatos | E169: z | F169: 2739379 | G169: kr | H169: 1 | I169: 으뜸마루 | J169: p | K169: 1965885 | L169: kr | M169: 1 | N169: torporB | O169: p | P169: Bronze | Q169: 6 | R169: 10 | S169: 170 | T169: 2014-08-01 | U169: 9 days | V169: 2014-08-27T04:49:25 | W169: 2778046-1|2739379-1|1965885-1 | X169: 0 | Y169: 168
A170: 4338629 | B170: kr | C170: 1 | D170: 재수생 | E170: p | F170: 2716899 | G170: kr | H170: 1 | I170: 파괴신 | J170: t | K170: 1686269 | L170: kr | M170: 1 | N170: 김덕쿵덕배 | O170: r | P170: Bronze | Q170: 6 | R170: 1 | S170: 168 | T170: 2014-08-16 | U170: 11 days | V170: 2014-08-27T04:49:25 | W170: 4338629-1|2716899-1|1686269-1 | X170: 0 | Y170: 169
A171: 1742586 | B171: kr | C171: 1 | D171: 바기오 | E171: r | F171: 1742148 | G171: kr | H171: 1 | I171: 니미똥 | J171: r | K171: 159450 | L171: kr | M171: 1 | N171: Next | O171: p | P171: Bronze | Q171: 5 | R171: 1 | S171: 168 | T171: 2014-07-29 | U171: 29 days | V171: 2014-08-27T04:49:25 | W171: 1742586-1|1742148-1|159450-1 | X171: 0 | Y171: 170
A172: 1530770 | B172: kr | C172: 1 | D172: 아린시아 | E172: t | F172: 1317793 | G172: kr | H172: 1 | I172: 박효신 | J172: t | K172: 578260 | L172: kr | M172: 1 | N172: 별노래 | O172: r | P172: Bronze | Q172: 5 | R172: 4 | S172: 168 | T172: 2014-07-18 | U172: 14 days | V172: 2014-08-27T04:49:25 | W172: 1530770-1|1317793-1|578260-1 | X172: 0 | Y172: 171
A173: 4333016 | B173: kr | C173: 1 | D173: POHANGROKMC | E173: p | F173: 4110777 | G173: kr | H173: 1 | I173: 차니 | J173: p | K173: 2610612 | L173: kr | M173: 1 | N173: 태겸이 | O173: t | P173: Bronze | Q173: 5 | R173: 6 | S173: 168 | T173: 2014-08-15 | U173: 12 days | V173: 2014-08-27T04:49:25 | W173: 4333016-1|4110777-1|2610612-1 | X173: 0 | Y173: 172
A174: 907212 | B174: kr | C174: 2 | D174: Risky | E174: p | F174: 861405 | G174: kr | H174: 2 | I174: EvilDanAtt | J174: t | K174: 570903 | L174: kr | M174: 2 | N174: segalai | O174: z | P174: Bronze | Q174: 5 | R174: 0 | S174: 166 | T174: 2014-07-19 | U174: 34 days | V174: 2014-08-27T04:49:25 | W174: 907212-2|861405-2|570903-2 | X174: 0 | Y174: 173
A175: 1304878 | B175: kr | C175: 2 | D175: 不小心就 | E175: z | F175: 1142908 | G175: kr | H175: 2 | I175: kevin | J175: p | K175: 658588 | L175: kr | M175: 2 | N175: 鎗王之王 | O175: r | P175: Bronze | Q175: 5 | R175: 3 | S175: 166 | T175: 2014-07-22 | U175: 1 days | V175: 2014-08-27T04:49:25 | W175: 1304878-2|1142908-2|658588-2 | X175: 0 | Y175: 174
A176: 1762053 | B176: kr | C176: 1 | D176: 하라쇼 | E176: p | F176: 106842 | G176: kr | H176: 1 | I176: Cheese | J176: t | K176: 92556 | L176: kr | M176: 1 | N176: 박마리 | O176: p | P176: Bronze | Q176: 6 | R176: 4 | S176: 166 | T176: 2014-07-20 | U176: 32 days | V176: 2014-08-27T04:49:25 | W176: 1762053-1|106842-1|92556-1 | X176: 0 | Y176: 175
A177: 744706 | B177: kr | C177: 1 | D177: 앗거긴안됫 | E177: t | F177: 643152 | G177: kr | H177: 1 | I177: 앗거긴안됫 | J177: r | K177: 157700 | L177: kr | M177: 1 | N177: 앗거긴안됫 | O177: p | P177: Bronze | Q177: 4 | R177: 3 | S177: 166 | T177: 2014-08-26 | U177: 21 hours | V177: 2014-08-27T04:49:25 | W177: 744706-1|643152-1|157700-1 | X177: 0 | Y177: 176
A178: 3985061 | B178: kr | C178: 1 | D178: uyoouy | E178: p | F178: 747907 | G178: kr | H178: 1 | I178: busterII | J178: r | K178: 210769 | L178: kr | M178: 1 | N178: 겟어웨이 | O178: p | P178: Bronze | Q178: 7 | R178: 7 | S178: 166 | T178: 2014-07-26 | U178: 27 days | V178: 2014-08-27T04:49:25 | W178: 3985061-1|747907-1|210769-1 | X178: 0 | Y178: 177
A179: 4683232 | B179: kr | C179: 1 | D179: 알란시어러 | E179: z | F179: 638853 | G179: kr | H179: 1 | I179: ALBIREO | J179: t | K179: 376477 | L179: kr | M179: 1 | N179: mnbvv | O179: z | P179: Bronze | Q179: 8 | R179: 10 | S179: 165 | T179: 2014-07-09 | U179: 44 days | V179: 2014-08-27T04:49:25 | W179: 4683232-1|638853-1|376477-1 | X179: 0 | Y179: 178
A180: 4418441 | B180: kr | C180: 1 | D180: inchoative | E180: z | F180: 4235374 | G180: kr | H180: 1 | I180: 두부맨 | J180: z | K180: 4193497 | L180: kr | M180: 1 | N180: Grendel | O180: p | P180: Bronze | Q180: 5 | R180: 0 | S180: 164 | T180: 2014-07-25 | U180: 32 days | V180: 2014-08-27T04:49:25 | W180: 4418441-1|4235374-1|4193497-1 | X180: 0 | Y180: 179
A181: 4447839 | B181: kr | C181: 1 | D181: 김사랑이진리 | E181: p | F181: 1622531 | G181: kr | H181: 1 | I181: 비와당신을 | J181: z | K181: 1619694 | L181: kr | M181: 1 | N181: 붕어빵 | O181: p | P181: Bronze | Q181: 6 | R181: 2 | S181: 164 | T181: 2014-08-11 | U181: 13 days | V181: 2014-08-27T04:49:25 | W181: 4447839-1|1622531-1|1619694-1 | X181: 0 | Y181: 180
A182: 4560333 | B182: kr | C182: 1 | D182: 시화공고사거리 | E182: p | F182: 2005238 | G182: kr | H182: 1 | I182: 뭐린 | J182: z | K182: 1368844 | L182: kr | M182: 1 | N182: BooRalDely | O182: t | P182: Bronze | Q182: 5 | R182: 3 | S182: 164 | T182: 2014-08-06 | U182: 13 days | V182: 2014-08-27T04:49:25 | W182: 4560333-1|2005238-1|1368844-1 | X182: 0 | Y182: 181
A183: 3143068 | B183: kr | C183: 1 | D183: CLYDA | E183: t | F183: 621638 | G183: kr | H183: 1 | I183: Zamorak | J183: z | K183: 484605 | L183: kr | M183: 1 | N183: TheStyle | O183: p | P183: Bronze | Q183: 4 | R183: 3 | S183: 164 | T183: 2014-08-12 | U183: 14 days | V183: 2014-08-27T04:49:25 | W183: 3143068-1|621638-1|484605-1 | X183: 0 | Y183: 182
A184: 1355761 | B184: kr | C184: 2 | D184: Zeroforone | E184: p | F184: 1069761 | G184: kr | H184: 2 | I184: 殺殺殺 | J184: r | K184: 825123 | L184: kr | M184: 2 | N184: Desperado | O184: t | P184: Bronze | Q184: 6 | R184: 8 | S184: 162 | T184: 2014-07-29 | U184: 15 days | V184: 2014-08-27T04:49:25 | W184: 1355761-2|1069761-2|825123-2 | X184: 0 | Y184: 183
A185: 4007538 | B185: kr | C185: 1 | D185: Rouyng | E185: p | F185: 4003389 | G185: kr | H185: 1 | I185: ggplay | J185: p | K185: 3653386 | L185: kr | M185: 1 | N185: 라이또 | O185: p | P185: Bronze | Q185: 7 | R185: 6 | S185: 160 | T185: 2014-07-18 | U185: 39 days | V185: 2014-08-27T04:49:25 | W185: 4007538-1|4003389-1|3653386-1 | X185: 0 | Y185: 184
A186: 3052325 | B186: kr | C186: 1 | D186: 스타종결마스터 | E186: z | F186: 2229179 | G186: kr | H186: 1 | I186: 어머나어이쿠 | J186: r | K186: 1903539 | L186: kr | M186: 1 | N186: 존맥클레인 | O186: t | P186: Bronze | Q186: 5 | R186: 7 | S186: 160 | T186: 2014-07-25 | U186: 5 days | V186: 2014-08-27T04:49:25 | W186: 3052325-1|2229179-1|1903539-1 | X186: 0 | Y186: 185
A187: 1270244 | B187: kr | C187: 2 | D187: CYL | E187: p | F187: 320635 | G187: kr | H187: 2 | I187: Panda | J187: t | K187: 134166 | L187: kr | M187: 2 | N187: AutumnLeaves | O187: z | P187: Bronze | Q187: 7 | R187: 6 | S187: 159 | T187: 2014-07-11 | U187: 36 days | V187: 2014-08-27T04:49:25 | W187: 1270244-2|320635-2|134166-2 | X187: 0 | Y187: 186
A188: 4634933 | B188: kr | C188: 1 | D188: 날씬한하마 | E188: z | F188: 3849938 | G188: kr | H188: 1 | I188: 진이 | J188: r | K188: 548068 | L188: kr | M188: 1 | N188: 참치닌자 | O188: z | P188: Bronze | Q188: 4 | R188: 1 | S188: 158 | T188: 2014-08-15 | U188: 11 days | V188: 2014-08-27T04:49:25 | W188: 4634933-1|3849938-1|548068-1 | X188: 0 | Y188: 187
A189: 3765461 | B189: kr | C189: 1 | D189: lIlIlIlIlIlI | E189: r | F189: 950543 | G189: kr | H189: 1 | I189: 함뒤져볼텨시끼야 | J189: r | K189: 575127 | L189: kr | M189: 1 | N189: 함주거불텨시끼야 | O189: t | P189: Bronze | Q189: 6 | R189: 3 | S189: 158 | T189: 2014-08-12 | U189: 14 days | V189: 2014-08-27T04:49:25 | W189: 3765461-1|950543-1|575127-1 | X189: 0 | Y189: 188
A190: 4264546 | B190: kr | C190: 1 | D190: 삼류단 | E190: p | F190: 1009624 | G190: kr | H190: 1 | I190: 일벌엉아 | J190: p | K190: 114063 | L190: kr | M190: 1 | N190: 레이너 | O190: z | P190: Bronze | Q190: 5 | R190: 1 | S190: 156 | T190: 2014-07-16 | U190: 15 days | V190: 2014-08-27T04:49:25 | W190: 4264546-1|1009624-1|114063-1 | X190: 0 | Y190: 189
A191: 4446743 | B191: kr | C191: 1 | D191: IlIlIlIlIlII | E191: t | F191: 1943413 | G191: kr | H191: 1 | I191: 으아니 | J191: z | K191: 103719 | L191: kr | M191: 1 | N191: 냥하고 | O191: p | P191: Bronze | Q191: 6 | R191: 4 | S191: 156 | T191: 2014-07-07 | U191: 9 days | V191: 2014-08-27T04:49:25 | W191: 4446743-1|1943413-1|103719-1 | X191: 0 | Y191: 190
A192: 4540291 | B192: kr | C192: 1 | D192: kis | E192: p | F192: 4508730 | G192: kr | H192: 1 | I192: dori | J192: t | K192: 3016555 | L192: kr | M192: 1 | N192: PrOzErG | O192: z | P192: Bronze | Q192: 5 | R192: 7 | S192: 156 | T192: 2014-07-26 | U192: 19 days | V192: 2014-08-27T04:49:25 | W192: 4540291-1|4508730-1|3016555-1 | X192: 0 | Y192: 191
A193: 4594440 | B193: kr | C193: 1 | D193: allstar | E193: z | F193: 4199902 | G193: kr | H193: 1 | I193: HBC | J193: t | K193: 4195129 | L193: kr | M193: 1 | N193: 양희건 | O193: p | P193: Bronze | Q193: 6 | R193: 3 | S193: 154 | T193: 2014-07-12 | U193: 18 days | V193: 2014-08-27T04:49:25 | W193: 4594440-1|4199902-1|4195129-1 | X193: 0 | Y193: 192
A194: 2989359 | B194: kr | C194: 1 | D194: 도노반 | E194: z | F194: 2988435 | G194: kr | H194: 1 | I194: 랄라돼지 | J194: p | K194: 1294211 | L194: kr | M194: 1 | N194: 괄활옹 | O194: p | P194: Bronze | Q194: 5 | R194: 4 | S194: 154 | T194: 2014-07-27 | U194: 15 days | V194: 2014-08-27T04:49:25 | W194: 2989359-1|2988435-1|1294211-1 | X194: 0 | Y194: 193
A195: 774586 | B195: kr | C195: 2 | D195: LowFang | E195: p | F195: 762617 | G195: kr | H195: 2 | I195: Yeh | J195: r | K195: 761785 | L195: kr | M195: 2 | N195: mosa | O195: p | P195: Bronze | Q195: 6 | R195: 7 | S195: 154 | T195: 2014-07-31 | U195: 13 days | V195: 2014-08-27T04:49:25 | W195: 774586-2|762617-2|761785-2 | X195: 0 | Y195: 194
A196: 995803 | B196: kr | C196: 1 | D196: 불패신화 | E196: p | F196: 602995 | G196: kr | H196: 1 | I196: 굿럭 | J196: t | K196: 567587 | L196: kr | M196: 1 | N196: 극한의고독 | O196: z | P196: Bronze | Q196: 6 | R196: 7 | S196: 154 | T196: 2014-08-08 | U196: 18 days | V196: 2014-08-27T04:49:26 | W196: 995803-1|602995-1|567587-1 | X196: 0 | Y196: 195
A197: 3027954 | B197: kr | C197: 1 | D197: 마린보이 | E197: r | F197: 3027764 | G197: kr | H197: 1 | I197: 강친 | J197: t | K197: 2323862 | L197: kr | M197: 1 | N197: 잠탱 | O197: r | P197: Bronze | Q197: 5 | R197: 8 | S197: 154 | T197: 2014-08-11 | U197: 16 days | V197: 2014-08-27T04:49:26 | W197: 3027954-1|3027764-1|2323862-1 | X197: 0 | Y197: 196
A198: 2532367 | B198: kr | C198: 1 | D198: 저그 | E198: z | F198: 1714322 | G198: kr | H198: 1 | I198: 성대삼선남 | J198: z | K198: 1597720 | L198: kr | M198: 1 | N198: Playmaster | O198: p | P198: Bronze | Q198: 5 | R198: 0 | S198: 152 | T198: 2014-08-25 | U198: 1 days | V198: 2014-08-27T04:49:26 | W198: 2532367-1|1714322-1|1597720-1 | X198: 0 | Y198: 197
A199: 2030531 | B199: kr | C199: 1 | D199: 판피린큐 | E199: p | F199: 1503194 | G199: kr | H199: 1 | I199: 짭쪼름해 | J199: p | K199: 399150 | L199: kr | M199: 1 | N199: 경기도질럿 | O199: t | P199: Bronze | Q199: 4 | R199: 2 | S199: 152 | T199: 2014-07-26 | U199: 31 days | V199: 2014-08-27T04:49:26 | W199: 2030531-1|1503194-1|399150-1 | X199: 0 | Y199: 198
A200: 1469777 | B200: kr | C200: 1 | D200: woojje | E200: r | F200: 398913 | G200: kr | H200: 1 | I200: 시노자키아이 | J200: r | K200: 241654 | L200: kr | M200: 1 | N200: 마쓰타 | O200: t | P200: Bronze | Q200: 7 | R200: 5 | S200: 152 | T200: 2014-07-25 | U200: 32 days | V200: 2014-08-27T04:49:26 | W200: 1469777-1|398913-1|241654-1 | X200: 0 | Y200: 199
... 2050 more rows

Sheet 4v4 Team
A1: Player ID 1 | B1: Player 1 Region | C1: Player 1 Subregion | D1: Player 1 Name | E1: Player 1 Race | F1: Player ID 2 | G1: Player 2 Region | H1: Player 2 Subregion | I1: Player 2 Name | J1: Player 2 Race | K1: Player ID 3 | L1: Player 3 Region | M1: Player 3 Subregion | N1: Player 3 Name | O1: Player 3 Race | P1: Player ID 4 | Q1: Player 4 Region | R1: Player 4 Subregion | S1: Player 4 Name | T1: Player 4 Race | U1: League | V1: Win | W1: Loss | X1: Score | Y1: Date Joined | Z1: Last Game | AA1: Timestamp | AB1: TrueID | AC1: Duplicate Check | AD1: Ordered ID
A2: 815864 | B2: kr | C2: 2 | D2: 陳家二少 | E2: p | F2: 775000 | G2: kr | H2: 2 | I2: AllenChen | J2: t | K2: 769884 | L2: kr | M2: 2 | N2: breaksoul | O2: t | P2: 691255 | Q2: kr | R2: 2 | S2: White | T2: z | U2: Bronze | V2: 18 | W2: 21 | X2: 394 | Y2: 2014-07-08 | Z2: 1 days | AA2: 2014-08-27T04:50:36 | AB2: 815864-2|775000-2|769884-2|691255-2 | AC2: 0 | AD2: 1
A3: 410140 | B3: kr | C3: 2 | D3: Visnjic | E3: r | F3: 345733 | G3: kr | H3: 2 | I3: MaDRoLL | J3: r | K3: 243462 | L3: kr | M3: 2 | N3: MaDKYO | O3: r | P3: 155761 | Q3: kr | R3: 2 | S3: MaDevil | T3: r | U3: Bronze | V3: 9 | W3: 10 | X3: 370 | Y3: 2014-08-03 | Z3: 18 hours | AA3: 2014-08-27T04:50:36 | AB3: 410140-2|345733-2|243462-2|155761-2 | AC3: 0 | AD3: 2
A4: 4386212 | B4: kr | C4: 1 | D4: 크앙 | E4: p | F4: 890761 | G4: kr | H4: 1 | I4: TurtlePlayer | J4: t | K4: 527460 | L4: kr | M4: 1 | N4: Labdori | O4: t | P4: 169463 | Q4: kr | R4: 1 | S4: mSnTAEYEON | T4: r | U4: Bronze | V4: 9 | W4: 7 | X4: 328 | Y4: 2014-07-11 | Z4: 5 days | AA4: 2014-08-27T04:50:36 | AB4: 4386212-1|890761-1|527460-1|169463-1 | AC4: 0 | AD4: 3
A5: 4608024 | B5: kr | C5: 1 | D5: 최첨단개사료 | E5: z | F5: 1389996 | G5: kr | H5: 1 | I5: 스타테일김택용 | J5: t | K5: 1100457 | L5: kr | M5: 1 | N5: 바보 | O5: z | P5: 930619 | Q5: kr | R5: 1 | S5: 로그스 | T5: p | U5: Bronze | V5: 10 | W5: 10 | X5: 313 | Y5: 2014-08-05 | Z5: 18 days | AA5: 2014-08-27T04:50:36 | AB5: 4608024-1|1389996-1|1100457-1|930619-1 | AC5: 0 | AD5: 4
A6: 4386990 | B6: kr | C6: 1 | D6: 자라잔수 | E6: t | F6: 4380814 | G6: kr | H6: 1 | I6: 김성수 | J6: r | K6: 4372242 | L6: kr | M6: 1 | N6: 뻐킹 | O6: t | P6: 865071 | Q6: kr | R6: 1 | S6: 쭈니 | T6: r | U6: Bronze | V6: 10 | W6: 17 | X6: 308 | Y6: 2014-08-16 | Z6: 4 days | AA6: 2014-08-27T04:50:36 | AB6: 4386990-1|4380814-1|4372242-1|865071-1 | AC6: 0 | AD6: 5
A7: 935184 | B7: kr | C7: 2 | D7: 炭疽熱 | E7: p | F7: 684471 | G7: kr | H7: 2 | I7: Higurashi | J7: r | K7: 322506 | L7: kr | M7: 2 | N7: 居居 | O7: t | P7: 80642 | Q7: kr | R7: 2 | S7: victor | T7: r | U7: Bronze | V7: 7 | W7: 3 | X7: 296 | Y7: 2014-07-21 | Z7: 12 days | AA7: 2014-08-27T04:50:36 | AB7: 935184-2|684471-2|322506-2|80642-2 | AC7: 0 | AD7: 6
A8: 455075 | B8: kr | C8: 2 | D8: MaDRice | E8: p | F8: 345733 | G8: kr | H8: 2 | I8: MaDRoLL | J8: r | K8: 243462 | L8: kr | M8: 2 | N8: MaDKYO | O8: r | P8: 155761 | Q8: kr | R8: 2 | S8: MaDevil | T8: r | U8: Bronze | V8: 10 | W8: 13 | X8: 288 | Y8: 2014-08-06 | Z8: 1 days | AA8: 2014-08-27T04:50:36 | AB8: 455075-2|345733-2|243462-2|155761-2 | AC8: 0 | AD8: 7
A9: 905334 | B9: kr | C9: 2 | D9: 小月丸號 | E9: z | F9: 891079 | G9: kr | H9: 2 | I9: JingGeSmida | J9: t | K9: 873581 | L9: kr | M9: 2 | N9: Terry | O9: t | P9: 722444 | Q9: kr | R9: 2 | S9: TianNuSmida | T9: t | U9: Bronze | V9: 13 | W9: 26 | X9: 278 | Y9: 2014-07-23 | Z9: 11 days | AA9: 2014-08-27T04:50:36 | AB9: 905334-2|891079-2|873581-2|722444-2 | AC9: 0 | AD9: 8
A10: 2666732 | B10: kr | C10: 1 | D10: 행요 | E10: p | F10: 1854261 | G10: kr | H10: 1 | I10: NoneNamED | J10: z | K10: 981984 | L10: kr | M10: 1 | N10: 강남불곰 | O10: t | P10: 601249 | Q10: kr | R10: 1 | S10: Zero | T10: r | U10: Bronze | V10: 7 | W10: 1 | X10: 274 | Y10: 2014-08-19 | Z10: 8 days | AA10: 2014-08-27T04:50:36 | AB10: 2666732-1|1854261-1|981984-1|601249-1 | AC10: 0 | AD10: 9
A11: 345733 | B11: kr | C11: 2 | D11: MaDRoLL | E11: r | F11: 243462 | G11: kr | H11: 2 | I11: MaDKYO | J11: r | K11: 155761 | L11: kr | M11: 2 | N11: MaDevil | O11: r | P11: 93758 | Q11: kr | R11: 2 | S11: dOrEmI | T11: r | U11: Bronze | V11: 7 | W11: 11 | X11: 272 | Y11: 2014-08-18 | Z11: 5 days | AA11: 2014-08-27T04:50:36 | AB11: 345733-2|243462-2|155761-2|93758-2 | AC11: 0 | AD11: 10
A12: 410140 | B12: kr | C12: 2 | D12: Visnjic | E12: r | F12: 345733 | G12: kr | H12: 2 | I12: MaDRoLL | J12: r | K12: 155761 | L12: kr | M12: 2 | N12: MaDevil | O12: r | P12: 93758 | Q12: kr | R12: 2 | S12: dOrEmI | T12: r | U12: Bronze | V12: 9 | W12: 7 | X12: 264 | Y12: 2014-08-24 | Z12: 2 days | AA12: 2014-08-27T04:50:36 | AB12: 410140-2|345733-2|155761-2|93758-2 | AC12: 0 | AD12: 11
A13: 4702145 | B13: kr | C13: 1 | D13: 경이 | E13: p | F13: 3535424 | G13: kr | H13: 1 | I13: 서기 | J13: p | K13: 1769187 | L13: kr | M13: 1 | N13: 해결사 | O13: p | P13: 279855 | Q13: kr | R13: 1 | S13: 로렌세이 | T13: r | U13: Bronze | V13: 7 | W13: 11 | X13: 256 | Y13: 2014-08-06 | Z13: 7 days | AA13: 2014-08-27T04:50:36 | AB13: 4702145-1|3535424-1|1769187-1|279855-1 | AC13: 0 | AD13: 12
A14: 3723493 | B14: kr | C14: 1 | D14: 즐겜유저 | E14: z | F14: 3108254 | G14: kr | H14: 1 | I14: 나이키져지 | J14: p | K14: 2019524 | L14: kr | M14: 1 | N14: 탱자 | O14: t | P14: 1021605 | Q14: kr | R14: 1 | S14: Zeratul | T14: p | U14: Bronze | V14: 6 | W14: 2 | X14: 250 | Y14: 2014-08-02 | Z14: 16 days | AA14: 2014-08-27T04:50:36 | AB14: 3723493-1|3108254-1|2019524-1|1021605-1 | AC14: 0 | AD14: 13
A15: 1270244 | B15: kr | C15: 2 | D15: CYL | E15: p | F15: 465616 | G15: kr | H15: 2 | I15: PITT | J15: r | K15: 134166 | L15: kr | M15: 2 | N15: AutumnLeaves | O15: r | P15: 52796 | Q15: kr | R15: 2 | S15: Ephesus | T15: p | U15: Bronze | V15: 7 | W15: 7 | X15: 248 | Y15: 2014-08-02 | Z15: 12 days | AA15: 2014-08-27T04:50:36 | AB15: 1270244-2|465616-2|134166-2|52796-2 | AC15: 0 | AD15: 14
A16: 4256025 | B16: kr | C16: 1 | D16: 레이온지 | E16: p | F16: 327796 | G16: kr | H16: 1 | I16: Siz | J16: r | K16: 180669 | L16: kr | M16: 1 | N16: King | O16: p | P16: 119908 | Q16: kr | R16: 1 | S16: SsunChip | T16: r | U16: Bronze | V16: 9 | W16: 20 | X16: 248 | Y16: 2014-07-26 | Z16: 4 days | AA16: 2014-08-27T04:50:36 | AB16: 4256025-1|327796-1|180669-1|119908-1 | AC16: 0 | AD16: 15
A17: 4413018 | B17: kr | C17: 1 | D17: 뭘봥 | E17: z | F17: 4378132 | G17: kr | H17: 1 | I17: 뭘봐씨방생아 | J17: p | K17: 2610619 | L17: kr | M17: 1 | N17: Soon | O17: t | P17: 420568 | Q17: kr | R17: 1 | S17: 요쓰방 | T17: z | U17: Bronze | V17: 6 | W17: 4 | X17: 246 | Y17: 2014-08-02 | Z17: 24 days | AA17: 2014-08-27T04:50:36 | AB17: 4413018-1|4378132-1|2610619-1|420568-1 | AC17: 0 | AD17: 16
A18: 1216969 | B18: kr | C18: 2 | D18: 漠刀 | E18: z | F18: 764117 | G18: kr | H18: 2 | I18: Lingogo | J18: t | K18: 196075 | L18: kr | M18: 2 | N18: 聖潔之子 | O18: z | P18: 127863 | Q18: kr | R18: 2 | S18: 轟布朗 | T18: z | U18: Bronze | V18: 8 | W18: 3 | X18: 244 | Y18: 2014-08-09 | Z18: 17 days | AA18: 2014-08-27T04:50:36 | AB18: 1216969-2|764117-2|196075-2|127863-2 | AC18: 0 | AD18: 17
A19: 1398911 | B19: kr | C19: 1 | D19: 하늘나루 | E19: z | F19: 554958 | G19: kr | H19: 1 | I19: 다르엘 | J19: t | K19: 133191 | L19: kr | M19: 1 | N19: 존맛 | O19: r | P19: 101498 | Q19: kr | R19: 1 | S19: Nerz | T19: r | U19: Bronze | V19: 7 | W19: 15 | X19: 240 | Y19: 2014-08-19 | Z19: 1 days | AA19: 2014-08-27T04:50:36 | AB19: 1398911-1|554958-1|133191-1|101498-1 | AC19: 0 | AD19: 18
A20: 874164 | B20: kr | C20: 2 | D20: Max | E20: t | F20: 731229 | G20: kr | H20: 2 | I20: nevermind | J20: p | K20: 508284 | L20: kr | M20: 2 | N20: Avenger | O20: t | P20: 51750 | Q20: kr | R20: 2 | S20: 梗王 | T20: p | U20: Bronze | V20: 7 | W20: 12 | X20: 238 | Y20: 2014-08-11 | Z20: 11 days | AA20: 2014-08-27T04:50:36 | AB20: 874164-2|731229-2|508284-2|51750-2 | AC20: 0 | AD20: 19
A21: 3727611 | B21: kr | C21: 1 | D21: 건달 | E21: p | F21: 2607895 | G21: kr | H21: 1 | I21: 수지내꺼 | J21: t | K21: 1553341 | L21: kr | M21: 1 | N21: 자유 | O21: z | P21: 1436440 | Q21: kr | R21: 1 | S21: 김민구 | T21: p | U21: Bronze | V21: 9 | W21: 9 | X21: 234 | Y21: 2014-07-29 | Z21: 19 days | AA21: 2014-08-27T04:50:36 | AB21: 3727611-1|2607895-1|1553341-1|1436440-1 | AC21: 0 | AD21: 20
A22: 4141610 | B22: kr | C22: 1 | D22: 천하평정 | E22: p | F22: 4141007 | G22: kr | H22: 1 | I22: blacktie | J22: p | K22: 4140975 | L22: kr | M22: 1 | N22: 악마 | O22: p | P22: 3969388 | Q22: kr | R22: 1 | S22: 효시깅 | T22: r | U22: Bronze | V22: 8 | W22: 11 | X22: 234 | Y22: 2014-07-11 | Z22: 1 days | AA22: 2014-08-27T04:50:36 | AB22: 4141610-1|4141007-1|4140975-1|3969388-1 | AC22: 0 | AD22: 21
A23: 1557590 | B23: kr | C23: 1 | D23: 잇보 | E23: z | F23: 1247974 | G23: kr | H23: 1 | I23: 중실이 | J23: p | K23: 989328 | L23: kr | M23: 1 | N23: 패턴삭 | O23: t | P23: 135135 | Q23: kr | R23: 1 | S23: 디남송 | T23: p | U23: Bronze | V23: 11 | W23: 9 | X23: 229 | Y23: 2014-07-12 | Z23: 39 days | AA23: 2014-08-27T04:50:36 | AB23: 1557590-1|1247974-1|989328-1|135135-1 | AC23: 0 | AD23: 22
A24: 4667340 | B24: kr | C24: 1 | D24: 애플과실즙 | E24: z | F24: 3054772 | G24: kr | H24: 1 | I24: 뽀록군주 | J24: p | K24: 2215309 | L24: kr | M24: 1 | N24: 단순히돌진 | O24: t | P24: 132619 | Q24: kr | R24: 1 | S24: JDH | T24: r | U24: Bronze | V24: 9 | W24: 11 | X24: 222 | Y24: 2014-08-05 | Z24: 21 days | AA24: 2014-08-27T04:50:36 | AB24: 4667340-1|3054772-1|2215309-1|132619-1 | AC24: 0 | AD24: 23
A25: 1227946 | B25: kr | C25: 1 | D25: 머뷰요호 | E25: z | F25: 1214710 | G25: kr | H25: 1 | I25: 다너만보게해 | J25: t | K25: 990955 | L25: kr | M25: 1 | N25: OCTETshiny | O25: p | P25: 987996 | Q25: kr | R25: 1 | S25: 게겡이 | T25: t | U25: Bronze | V25: 8 | W25: 4 | X25: 221 | Y25: 2014-07-22 | Z25: 34 days | AA25: 2014-08-27T04:50:36 | AB25: 1227946-1|1214710-1|990955-1|987996-1 | AC25: 0 | AD25: 24
A26: 1095496 | B26: kr | C26: 1 | D26: 쩌리 | E26: r | F26: 1008477 | G26: kr | H26: 1 | I26: 자유의날개 | J26: t | K26: 960788 | L26: kr | M26: 1 | N26: fousbyus | O26: r | P26: 849855 | Q26: kr | R26: 1 | S26: Limhw | T26: r | U26: Bronze | V26: 6 | W26: 11 | X26: 218 | Y26: 2014-08-01 | Z26: 25 days | AA26: 2014-08-27T04:50:36 | AB26: 1095496-1|1008477-1|960788-1|849855-1 | AC26: 0 | AD26: 25
A27: 4630042 | B27: kr | C27: 1 | D27: dlrbxor | E27: p | F27: 4093919 | G27: kr | H27: 1 | I27: 최종병기핵 | J27: r | K27: 1477986 | L27: kr | M27: 1 | N27: 땅크보이 | O27: t | P27: 294300 | Q27: kr | R27: 1 | S27: 별빛금속쿠크리 | T27: r | U27: Bronze | V27: 10 | W27: 13 | X27: 210 | Y27: 2014-07-18 | Z27: 11 days | AA27: 2014-08-27T04:50:36 | AB27: 4630042-1|4093919-1|1477986-1|294300-1 | AC27: 0 | AD27: 26
A28: 2945164 | B28: kr | C28: 1 | D28: 시야나 | E28: t | F28: 2700912 | G28: kr | H28: 1 | I28: 라베니아 | J28: p | K28: 2694735 | L28: kr | M28: 1 | N28: 슈운 | O28: z | P28: 2589373 | Q28: kr | R28: 1 | S28: 고라 | T28: p | U28: Bronze | V28: 13 | W28: 18 | X28: 192 | Y28: 2014-07-15 | Z28: 26 days | AA28: 2014-08-27T04:50:36 | AB28: 2945164-1|2700912-1|2694735-1|2589373-1 | AC28: 0 | AD28: 27
A29: 3057706 | B29: kr | C29: 1 | D29: Armegeddon | E29: z | F29: 2213849 | G29: kr | H29: 1 | I29: Mohandar | J29: p | K29: 1695258 | L29: kr | M29: 1 | N29: Assasins | O29: p | P29: 1232912 | Q29: kr | R29: 1 | S29: stimarine | T29: t | U29: Bronze | V29: 6 | W29: 1 | X29: 188 | Y29: 2014-08-06 | Z29: 21 days | AA29: 2014-08-27T04:50:36 | AB29: 3057706-1|2213849-1|1695258-1|1232912-1 | AC29: 0 | AD29: 28
A30: 1856582 | B30: kr | C30: 1 | D30: 전신전령 | E30: t | F30: 1367829 | G30: kr | H30: 1 | I30: 캬앙 | J30: t | K30: 139376 | L30: kr | M30: 1 | N30: KissMatthew | O30: p | P30: 112244 | Q30: kr | R30: 1 | S30: 하늘물꼬기 | T30: z | U30: Bronze | V30: 7 | W30: 5 | X30: 188 | Y30: 2014-08-19 | Z30: 21 hours | AA30: 2014-08-27T04:50:36 | AB30: 1856582-1|1367829-1|139376-1|112244-1 | AC30: 0 | AD30: 29
A31: 4706323 | B31: kr | C31: 1 | D31: AquaFive | E31: t | F31: 4623107 | G31: kr | H31: 1 | I31: BaneringZerg | J31: z | K31: 2917618 | L31: kr | M31: 1 | N31: FlameMarine | O31: t | P31: 901870 | Q31: kr | R31: 1 | S31: 찌랑이 | T31: p | U31: Bronze | V31: 8 | W31: 9 | X31: 186 | Y31: 2014-08-09 | Z31: 16 days | AA31: 2014-08-27T04:50:36 | AB31: 4706323-1|4623107-1|2917618-1|901870-1 | AC31: 0 | AD31: 30
A32: 4345428 | B32: kr | C32: 1 | D32: 육스 | E32: p | F32: 1932449 | G32: kr | H32: 1 | I32: embakum | J32: r | K32: 960788 | L32: kr | M32: 1 | N32: fousbyus | O32: r | P32: 849855 | Q32: kr | R32: 1 | S32: Limhw | T32: r | U32: Bronze | V32: 5 | W32: 8 | X32: 184 | Y32: 2014-08-08 | Z32: 18 days | AA32: 2014-08-27T04:50:36 | AB32: 4345428-1|1932449-1|960788-1|849855-1 | AC32: 0 | AD32: 31
A33: 707208 | B33: kr | C33: 2 | D33: 阿龐 | E33: p | F33: 618441 | G33: kr | H33: 2 | I33: JamesCCWu | J33: r | K33: 476967 | L33: kr | M33: 2 | N33: 阿琪仔 | O33: r | P33: 215443 | Q33: kr | R33: 2 | S33: 竹科大攝狼 | T33: t | U33: Bronze | V33: 8 | W33: 19 | X33: 184 | Y33: 2014-07-31 | Z33: 8 days | AA33: 2014-08-27T04:50:36 | AB33: 707208-2|618441-2|476967-2|215443-2 | AC33: 0 | AD33: 32
A34: 1183856 | B34: kr | C34: 2 | D34: 小胖 | E34: p | F34: 615118 | G34: kr | H34: 2 | I34: Roger | J34: p | K34: 83183 | L34: kr | M34: 2 | N34: GPE | O34: p | P34: 35056 | Q34: kr | R34: 2 | S34: kirry | T34: z | U34: Bronze | V34: 5 | W34: 4 | X34: 181 | Y34: 2014-07-23 | Z34: 35 days | AA34: 2014-08-27T04:50:36 | AB34: 1183856-2|615118-2|83183-2|35056-2 | AC34: 0 | AD34: 33
A35: 860178 | B35: kr | C35: 2 | D35: 壞人阿驞 | E35: z | F35: 508284 | G35: kr | H35: 2 | I35: Avenger | J35: t | K35: 75734 | L35: kr | M35: 2 | N35: Felix | O35: z | P35: 51750 | Q35: kr | R35: 2 | S35: 梗王 | T35: z | U35: Bronze | V35: 5 | W35: 2 | X35: 178 | Y35: 2014-07-27 | Z35: 2 days | AA35: 2014-08-27T04:50:36 | AB35: 860178-2|508284-2|75734-2|51750-2 | AC35: 0 | AD35: 34
A36: 3318554 | B36: kr | C36: 1 | D36: 파이리 | E36: z | F36: 832358 | G36: kr | H36: 1 | I36: 꼬부기 | J36: p | K36: 227405 | L36: kr | M36: 1 | N36: 피카츄 | O36: t | P36: 182108 | Q36: kr | R36: 1 | S36: 이상해씨 | T36: t | U36: Bronze | V36: 5 | W36: 3 | X36: 174 | Y36: 2014-08-04 | Z36: 21 days | AA36: 2014-08-27T04:50:36 | AB36: 3318554-1|832358-1|227405-1|182108-1 | AC36: 0 | AD36: 35
A37: 764744 | B37: kr | C37: 2 | D37: Bigtree | E37: p | F37: 107234 | G37: kr | H37: 2 | I37: GTQ | J37: p | K37: 80382 | L37: kr | M37: 2 | N37: Nitric | O37: r | P37: 38371 | Q37: kr | R37: 2 | S37: AriesHuangTW | T37: z | U37: Bronze | V37: 4 | W37: 1 | X37: 173 | Y37: 2014-07-22 | Z37: 35 days | AA37: 2014-08-27T04:50:36 | AB37: 764744-2|107234-2|80382-2|38371-2 | AC37: 0 | AD37: 36
A38: 2398307 | B38: kr | C38: 1 | D38: 빵꾸똥꾸깡꺼옹쓰 | E38: t | F38: 2135915 | G38: kr | H38: 1 | I38: PokerFaceBM | J38: z | K38: 2134792 | L38: kr | M38: 1 | N38: Inception | O38: p | P38: 155835 | Q38: kr | R38: 1 | S38: MetaCarpBoss | T38: z | U38: Bronze | V38: 7 | W38: 12 | X38: 160 | Y38: 2014-08-04 | Z38: 3 days | AA38: 2014-08-27T04:50:36 | AB38: 2398307-1|2135915-1|2134792-1|155835-1 | AC38: 0 | AD38: 37
A39: 867539 | B39: kr | C39: 2 | D39: OrzHsin | E39: z | F39: 860178 | G39: kr | H39: 2 | I39: 壞人阿驞 | J39: z | K39: 820199 | L39: kr | M39: 2 | N39: 工具人 | O39: r | P39: 508284 | Q39: kr | R39: 2 | S39: Avenger | T39: t | U39: Bronze | V39: 4 | W39: 1 | X39: 158 | Y39: 2014-07-23 | Z39: 10 days | AA39: 2014-08-27T04:50:36 | AB39: 867539-2|860178-2|820199-2|508284-2 | AC39: 0 | AD39: 38
A40: 1035158 | B40: kr | C40: 2 | D40: ComicDog | E40: z | F40: 121241 | G40: kr | H40: 2 | I40: Leeloo | J40: t | K40: 111929 | L40: kr | M40: 2 | N40: AndyYang | O40: p | P40: 74224 | Q40: kr | R40: 2 | S40: byes | T40: z | U40: Bronze | V40: 4 | W40: 11 | X40: 158 | Y40: 2014-07-27 | Z40: 13 days | AA40: 2014-08-27T04:50:36 | AB40: 1035158-2|121241-2|111929-2|74224-2 | AC40: 0 | AD40: 39
A41: 769937 | B41: kr | C41: 2 | D41: 無俚頭 | E41: t | F41: 769577 | G41: kr | H41: 2 | I41: Edward | J41: p | K41: 768648 | L41: kr | M41: 2 | N41: 黑眼圈 | O41: p | P41: 36930 | Q41: kr | R41: 2 | S41: 小可樂 | T41: z | U41: Bronze | V41: 6 | W41: 2 | X41: 152 | Y41: 2014-08-11 | Z41: 14 days | AA41: 2014-08-27T04:50:36 | AB41: 769937-2|769577-2|768648-2|36930-2 | AC41: 0 | AD41: 40
A42: 4401800 | B42: kr | C42: 1 | D42: ColdLogic | E42: r | F42: 4400202 | G42: kr | H42: 1 | I42: eckers | J42: t | K42: 4400012 | L42: kr | M42: 1 | N42: Hsuperdroid | O42: t | P42: 4391533 | Q42: kr | R42: 1 | S42: UsedToBeGood | T42: r | U42: Bronze | V42: 5 | W42: 1 | X42: 146 | Y42: 2014-07-11 | Z42: 25 days | AA42: 2014-08-27T04:50:36 | AB42: 4401800-1|4400202-1|4400012-1|4391533-1 | AC42: 0 | AD42: 41
A43: 3848486 | B43: kr | C43: 1 | D43: 리셀 | E43: r | F43: 3828675 | G43: kr | H43: 1 | I43: 은가이째라 | J43: r | K43: 1458249 | L43: kr | M43: 1 | N43: ggggbbbb | O43: r | P43: 253096 | Q43: kr | R43: 1 | S43: 김똘똘 | T43: r | U43: Bronze | V43: 5 | W43: 0 | X43: 144 | Y43: 2014-08-01 | Z43: 26 days | AA43: 2014-08-27T04:50:36 | AB43: 3848486-1|3828675-1|1458249-1|253096-1 | AC43: 0 | AD43: 42
A44: 2697677 | B44: kr | C44: 1 | D44: 월계동시피족 | E44: z | F44: 2696472 | G44: kr | H44: 1 | I44: 월계동오렌지족 | J44: r | K44: 2695446 | L44: kr | M44: 1 | N44: 한승연 | O44: r | P44: 201025 | Q44: kr | R44: 1 | S44: Beryl | T44: t | U44: Bronze | V44: 4 | W44: 4 | X44: 144 | Y44: 2014-08-01 | Z44: 11 days | AA44: 2014-08-27T04:50:36 | AB44: 2697677-1|2696472-1|2695446-1|201025-1 | AC44: 0 | AD44: 43
A45: 3669679 | B45: kr | C45: 1 | D45: 투혼똥고 | E45: t | F45: 3669652 | G45: kr | H45: 1 | I45: 삐약이 | J45: t | K45: 1530012 | L45: kr | M45: 1 | N45: 빠오 | O45: z | P45: 1075030 | Q45: kr | R45: 1 | S45: bbbbboddddd | T45: p | U45: Bronze | V45: 6 | W45: 9 | X45: 144 | Y45: 2014-08-20 | Z45: 5 days | AA45: 2014-08-27T04:50:36 | AB45: 3669679-1|3669652-1|1530012-1|1075030-1 | AC45: 0 | AD45: 44
A46: 4684433 | B46: kr | C46: 1 | D46: halery | E46: p | F46: 4476077 | G46: kr | H46: 1 | I46: Bin | J46: z | K46: 4475018 | L46: kr | M46: 1 | N46: Nirvana | O46: t | P46: 4475017 | Q46: kr | R46: 1 | S46: Yao | T46: p | U46: Bronze | V46: 9 | W46: 14 | X46: 144 | Y46: 2014-07-11 | Z46: 38 days | AA46: 2014-08-27T04:50:36 | AB46: 4684433-1|4476077-1|4475018-1|4475017-1 | AC46: 0 | AD46: 45
A47: 1194853 | B47: kr | C47: 1 | D47: Physics | E47: p | F47: 483157 | G47: kr | H47: 1 | I47: 운영 | J47: z | K47: 425418 | L47: kr | M47: 1 | N47: 포유마이마인드 | O47: t | P47: 107492 | Q47: kr | R47: 1 | S47: Supremum | T47: t | U47: Bronze | V47: 7 | W47: 2 | X47: 142 | Y47: 2014-08-20 | Z47: 7 days | AA47: 2014-08-27T04:50:36 | AB47: 1194853-1|483157-1|425418-1|107492-1 | AC47: 0 | AD47: 46
A48: 2785462 | B48: kr | C48: 1 | D48: 아리르나 | E48: t | F48: 1977257 | G48: kr | H48: 1 | I48: 고난큐 | J48: t | K48: 598187 | L48: kr | M48: 1 | N48: 살려줘 | O48: p | P48: 337369 | Q48: kr | R48: 1 | S48: 대체로무해함 | T48: z | U48: Bronze | V48: 5 | W48: 0 | X48: 140 | Y48: 2014-08-03 | Z48: 24 days | AA48: 2014-08-27T04:50:36 | AB48: 2785462-1|1977257-1|598187-1|337369-1 | AC48: 0 | AD48: 47
A49: 632792 | B49: kr | C49: 1 | D49: 돌계단 | E49: t | F49: 621135 | G49: kr | H49: 1 | I49: 학교가자 | J49: z | K49: 440632 | L49: kr | M49: 1 | N49: 일동차렷 | O49: p | P49: 428581 | Q49: kr | R49: 1 | S49: 스파르타 | T49: r | U49: Bronze | V49: 5 | W49: 6 | X49: 140 | Y49: 2014-08-07 | Z49: 19 days | AA49: 2014-08-27T04:50:36 | AB49: 632792-1|621135-1|440632-1|428581-1 | AC49: 0 | AD49: 48
A50: 2825092 | B50: kr | C50: 1 | D50: Tetsuki | E50: z | F50: 2793198 | G50: kr | H50: 1 | I50: 이웃집호호로 | J50: p | K50: 2792166 | L50: kr | M50: 1 | N50: 데츠오 | O50: p | P50: 660405 | Q50: kr | R50: 1 | S50: 조이락 | T50: t | U50: Bronze | V50: 4 | W50: 6 | X50: 140 | Y50: 2014-08-08 | Z50: 9 days | AA50: 2014-08-27T04:50:36 | AB50: 2825092-1|2793198-1|2792166-1|660405-1 | AC50: 0 | AD50: 49
A51: 3155474 | B51: kr | C51: 1 | D51: DIM | E51: p | F51: 2224396 | G51: kr | H51: 1 | I51: 카펜시스 | J51: r | K51: 871611 | L51: kr | M51: 1 | N51: taro | O51: t | P51: 461649 | Q51: kr | R51: 1 | S51: FlameRed | T51: r | U51: Bronze | V51: 7 | W51: 8 | X51: 139 | Y51: 2014-07-08 | Z51: 39 days | AA51: 2014-08-27T04:50:36 | AB51: 3155474-1|2224396-1|871611-1|461649-1 | AC51: 0 | AD51: 50
A52: 4659354 | B52: kr | C52: 1 | D52: 허탱 | E52: t | F52: 1848331 | G52: kr | H52: 1 | I52: DREAMwin | J52: t | K52: 1260586 | L52: kr | M52: 1 | N52: 점멸추적자 | O52: p | P52: 1257448 | Q52: kr | R52: 1 | S52: 유라 | T52: p | U52: Bronze | V52: 5 | W52: 8 | X52: 138 | Y52: 2014-08-16 | Z52: 10 days | AA52: 2014-08-27T04:50:36 | AB52: 4659354-1|1848331-1|1260586-1|1257448-1 | AC52: 0 | AD52: 51
A53: 4378132 | B53: kr | C53: 1 | D53: 뭘봐씨방생아 | E53: p | F53: 2610619 | G53: kr | H53: 1 | I53: Soon | J53: p | K53: 1148024 | L53: kr | M53: 1 | N53: 삶의이유 | O53: p | P53: 420568 | Q53: kr | R53: 1 | S53: 요쓰방 | T53: z | U53: Bronze | V53: 4 | W53: 1 | X53: 134 | Y53: 2014-07-23 | Z53: 34 days | AA53: 2014-08-27T04:50:36 | AB53: 4378132-1|2610619-1|1148024-1|420568-1 | AC53: 0 | AD53: 52
A54: 3068132 | B54: kr | C54: 1 | D54: 아잉부끄러 | E54: r | F54: 2171797 | G54: kr | H54: 1 | I54: whitenike | J54: z | K54: 1209261 | L54: kr | M54: 1 | N54: 열탱 | O54: r | P54: 1199869 | Q54: kr | R54: 1 | S54: MercedesBenz | T54: p | U54: Bronze | V54: 3 | W54: 3 | X54: 132 | Y54: 2014-08-07 | Z54: 19 days | AA54: 2014-08-27T04:50:36 | AB54: 3068132-1|2171797-1|1209261-1|1199869-1 | AC54: 0 | AD54: 53
A55: 3198721 | B55: kr | C55: 1 | D55: parkih | E55: t | F55: 588547 | G55: kr | H55: 1 | I55: Namc | J55: z | K55: 451205 | L55: kr | M55: 1 | N55: mustacheman | O55: p | P55: 338047 | Q55: kr | R55: 1 | S55: jimessi | T55: t | U55: Bronze | V55: 5 | W55: 6 | X55: 132 | Y55: 2014-08-24 | Z55: 3 days | AA55: 2014-08-27T04:50:36 | AB55: 3198721-1|588547-1|451205-1|338047-1 | AC55: 0 | AD55: 54
A56: 3047030 | B56: kr | C56: 1 | D56: 퍼니푸딩 | E56: p | F56: 1194853 | G56: kr | H56: 1 | I56: Physics | J56: p | K56: 425418 | L56: kr | M56: 1 | N56: 포유마이마인드 | O56: z | P56: 107492 | Q56: kr | R56: 1 | S56: Supremum | T56: t | U56: Bronze | V56: 4 | W56: 1 | X56: 130 | Y56: 2014-08-19 | Z56: 7 days | AA56: 2014-08-27T04:50:36 | AB56: 3047030-1|1194853-1|425418-1|107492-1 | AC56: 0 | AD56: 55
A57: 3277766 | B57: kr | C57: 1 | D57: 타이탄하울링 | E57: z | F57: 2646949 | G57: kr | H57: 1 | I57: 노무어 | J57: t | K57: 1558763 | L57: kr | M57: 1 | N57: 파워포로리야 | O57: p | P57: 1187642 | Q57: kr | R57: 1 | S57: 슴가라이더 | T57: p | U57: Bronze | V57: 4 | W57: 2 | X57: 130 | Y57: 2014-08-19 | Z57: 7 days | AA57: 2014-08-27T04:50:36 | AB57: 3277766-1|2646949-1|1558763-1|1187642-1 | AC57: 0 | AD57: 56
A58: 867539 | B58: kr | C58: 2 | D58: OrzHsin | E58: t | F58: 820199 | G58: kr | H58: 2 | I58: 工具人 | J58: r | K58: 508284 | L58: kr | M58: 2 | N58: Avenger | O58: t | P58: 51750 | Q58: kr | R58: 2 | S58: 梗王 | T58: p | U58: Bronze | V58: 3 | W58: 3 | X58: 130 | Y58: 2014-07-20 | Z58: 11 days | AA58: 2014-08-27T04:50:36 | AB58: 867539-2|820199-2|508284-2|51750-2 | AC58: 0 | AD58: 57
A59: 988854 | B59: kr | C59: 2 | D59: Hades | E59: p | F59: 707208 | G59: kr | H59: 2 | I59: 阿龐 | J59: p | K59: 618441 | L59: kr | M59: 2 | N59: JamesCCWu | O59: r | P59: 215443 | Q59: kr | R59: 2 | S59: 竹科大攝狼 | T59: t | U59: Bronze | V59: 7 | W59: 28 | X59: 130 | Y59: 2014-07-06 | Z59: 17 hours | AA59: 2014-08-27T04:50:36 | AB59: 988854-2|707208-2|618441-2|215443-2 | AC59: 0 | AD59: 58
A60: 4264546 | B60: kr | C60: 1 | D60: 삼류단 | E60: p | F60: 1009624 | G60: kr | H60: 1 | I60: 일벌엉아 | J60: p | K60: 319170 | L60: kr | M60: 1 | N60: 황간지 | O60: t | P60: 114063 | Q60: kr | R60: 1 | S60: 레이너 | T60: t | U60: Bronze | V60: 4 | W60: 1 | X60: 128 | Y60: 2014-08-06 | Z60: 15 days | AA60: 2014-08-27T04:50:36 | AB60: 4264546-1|1009624-1|319170-1|114063-1 | AC60: 0 | AD60: 59
A61: 1345739 | B61: kr | C61: 2 | D61: 伊亞 | E61: p | F61: 1184720 | G61: kr | H61: 2 | I61: 鍾小潔 | J61: t | K61: 931009 | L61: kr | M61: 2 | N61: sai | O61: p | P61: 683305 | Q61: kr | R61: 2 | S61: HCH | T61: p | U61: Bronze | V61: 5 | W61: 5 | X61: 128 | Y61: 2014-07-23 | Z61: 34 days | AA61: 2014-08-27T04:50:36 | AB61: 1345739-2|1184720-2|931009-2|683305-2 | AC61: 0 | AD61: 60
A62: 2180675 | B62: kr | C62: 1 | D62: 오지에서초밥장사 | E62: p | F62: 1469218 | G62: kr | H62: 1 | I62: BAKUMAN | J62: r | K62: 1023736 | L62: kr | M62: 1 | N62: 오지에서김밥장사 | O62: t | P62: 138956 | Q62: kr | R62: 1 | S62: 메딕노래방 | T62: t | U62: Bronze | V62: 4 | W62: 8 | X62: 128 | Y62: 2014-07-22 | Z62: 35 days | AA62: 2014-08-27T04:50:36 | AB62: 2180675-1|1469218-1|1023736-1|138956-1 | AC62: 0 | AD62: 61
A63: 2715492 | B63: kr | C63: 1 | D63: Serapial | E63: t | F63: 2310241 | G63: kr | H63: 1 | I63: 어린환자 | J63: p | K63: 2194517 | L63: kr | M63: 1 | N63: CheckMate | O63: r | P63: 549472 | Q63: kr | R63: 1 | S63: hwangsc | T63: z | U63: Bronze | V63: 4 | W63: 0 | X63: 126 | Y63: 2014-08-05 | Z63: 22 days | AA63: 2014-08-27T04:50:36 | AB63: 2715492-1|2310241-1|2194517-1|549472-1 | AC63: 0 | AD63: 62
A64: 2091731 | B64: kr | C64: 1 | D64: Messi | E64: z | F64: 2091367 | G64: kr | H64: 1 | I64: 우와앙 | J64: p | K64: 1006345 | L64: kr | M64: 1 | N64: 왼손은거들뿐 | O64: t | P64: 874221 | Q64: kr | R64: 1 | S64: Test | T64: z | U64: Bronze | V64: 4 | W64: 0 | X64: 126 | Y64: 2014-08-25 | Z64: 1 days | AA64: 2014-08-27T04:50:36 | AB64: 2091731-1|2091367-1|1006345-1|874221-1 | AC64: 0 | AD64: 63
A65: 941955 | B65: kr | C65: 2 | D65: NeeLiao | E65: p | F65: 111929 | G65: kr | H65: 2 | I65: AndyYang | J65: p | K65: 90873 | L65: kr | M65: 2 | N65: BRZkbs | O65: z | P65: 74224 | Q65: kr | R65: 2 | S65: byes | T65: r | U65: Bronze | V65: 4 | W65: 8 | X65: 126 | Y65: 2014-08-01 | Z65: 7 days | AA65: 2014-08-27T04:50:36 | AB65: 941955-2|111929-2|90873-2|74224-2 | AC65: 0 | AD65: 64
A66: 1935213 | B66: kr | C66: 1 | D66: 지갱이 | E66: r | F66: 1927664 | G66: kr | H66: 1 | I66: 럭키보이 | J66: r | K66: 1283372 | L66: kr | M66: 1 | N66: 로코따 | O66: r | P66: 189427 | Q66: kr | R66: 1 | S66: 유가네 | T66: p | U66: Bronze | V66: 4 | W66: 3 | X66: 124 | Y66: 2014-08-08 | Z66: 18 days | AA66: 2014-08-27T04:50:36 | AB66: 1935213-1|1927664-1|1283372-1|189427-1 | AC66: 0 | AD66: 65
A67: 886272 | B67: kr | C67: 2 | D67: Seraphim | E67: p | F67: 692150 | G67: kr | H67: 2 | I67: 黃師虎 | J67: p | K67: 285917 | L67: kr | M67: 2 | N67: Stanley | O67: z | P67: 211245 | Q67: kr | R67: 2 | S67: MyThVance | T67: p | U67: Bronze | V67: 5 | W67: 4 | X67: 124 | Y67: 2014-08-23 | Z67: 4 days | AA67: 2014-08-27T04:50:36 | AB67: 886272-2|692150-2|285917-2|211245-2 | AC67: 0 | AD67: 66
A68: 1184720 | B68: kr | C68: 2 | D68: 鍾小潔 | E68: t | F68: 683701 | G68: kr | H68: 2 | I68: Charles | J68: p | K68: 603469 | L68: kr | M68: 2 | N68: Athina | O68: r | P68: 100164 | Q68: kr | R68: 2 | S68: 貪狼 | T68: r | U68: Bronze | V68: 3 | W68: 7 | X68: 122 | Y68: 2014-07-22 | Z68: 10 days | AA68: 2014-08-27T04:50:36 | AB68: 1184720-2|683701-2|603469-2|100164-2 | AC68: 0 | AD68: 67
A69: 1886341 | B69: kr | C69: 1 | D69: 물곰 | E69: r | F69: 1674493 | G69: kr | H69: 1 | I69: 순규 | J69: r | K69: 1672991 | L69: kr | M69: 1 | N69: 나만기달려 | O69: r | P69: 1604071 | Q69: kr | R69: 1 | S69: Muelinzelo | T69: t | U69: Bronze | V69: 5 | W69: 1 | X69: 120 | Y69: 2014-08-02 | Z69: 24 days | AA69: 2014-08-27T04:50:36 | AB69: 1886341-1|1674493-1|1672991-1|1604071-1 | AC69: 0 | AD69: 68
A70: 686246 | B70: kr | C70: 1 | D70: pbi | E70: p | F70: 334608 | G70: kr | H70: 1 | I70: 아일루 | J70: z | K70: 265648 | L70: kr | M70: 1 | N70: 두류하 | O70: z | P70: 138976 | Q70: kr | R70: 1 | S70: 묘향현령 | T70: p | U70: Bronze | V70: 4 | W70: 2 | X70: 120 | Y70: 2014-08-02 | Z70: 24 days | AA70: 2014-08-27T04:50:36 | AB70: 686246-1|334608-1|265648-1|138976-1 | AC70: 0 | AD70: 69
A71: 4659354 | B71: kr | C71: 1 | D71: 허탱 | E71: t | F71: 2465559 | G71: kr | H71: 1 | I71: 회광반조 | J71: z | K71: 1260586 | L71: kr | M71: 1 | N71: 점멸추적자 | O71: r | P71: 1257448 | Q71: kr | R71: 1 | S71: 유라 | T71: p | U71: Bronze | V71: 6 | W71: 4 | X71: 117 | Y71: 2014-07-07 | Z71: 41 days | AA71: 2014-08-27T04:50:36 | AB71: 4659354-1|2465559-1|1260586-1|1257448-1 | AC71: 0 | AD71: 70
A72: 2191817 | B72: kr | C72: 1 | D72: JHK | E72: t | F72: 1877085 | G72: kr | H72: 1 | I72: 쥬노 | J72: p | K72: 773470 | L72: kr | M72: 1 | N72: 마지막황제 | O72: z | P72: 476545 | Q72: kr | R72: 1 | S72: 테란 | T72: t | U72: Bronze | V72: 5 | W72: 7 | X72: 116 | Y72: 2014-07-30 | Z72: 28 days | AA72: 2014-08-27T04:50:36 | AB72: 2191817-1|1877085-1|773470-1|476545-1 | AC72: 0 | AD72: 71
A73: 1008182 | B73: kr | C73: 2 | D73: BusterApin | E73: p | F73: 628641 | G73: kr | H73: 2 | I73: 強運孔鏘 | J73: t | K73: 628602 | L73: kr | M73: 2 | N73: 灰長龍 | O73: p | P73: 391811 | Q73: kr | R73: 2 | S73: 飯包 | T73: z | U73: Bronze | V73: 4 | W73: 8 | X73: 116 | Y73: 2014-08-09 | Z73: 2 days | AA73: 2014-08-27T04:50:36 | AB73: 1008182-2|628641-2|628602-2|391811-2 | AC73: 0 | AD73: 72
A74: 4575101 | B74: kr | C74: 1 | D74: Hamtori | E74: t | F74: 1473216 | G74: kr | H74: 1 | I74: koyoriphya | J74: z | K74: 342705 | L74: kr | M74: 1 | N74: 렌테 | O74: r | P74: 197607 | Q74: kr | R74: 1 | S74: optics | T74: r | U74: Bronze | V74: 4 | W74: 1 | X74: 112 | Y74: 2014-07-29 | Z74: 28 days | AA74: 2014-08-27T04:50:36 | AB74: 4575101-1|1473216-1|342705-1|197607-1 | AC74: 0 | AD74: 73
A75: 4619158 | B75: kr | C75: 1 | D75: 무자비해요 | E75: t | F75: 3163752 | G75: kr | H75: 1 | I75: VanQs | J75: t | K75: 919211 | L75: kr | M75: 1 | N75: 포대장 | O75: p | P75: 298952 | Q75: kr | R75: 1 | S75: 자유의일격 | T75: t | U75: Bronze | V75: 4 | W75: 1 | X75: 111 | Y75: 2014-07-15 | Z75: 42 days | AA75: 2014-08-27T04:50:36 | AB75: 4619158-1|3163752-1|919211-1|298952-1 | AC75: 0 | AD75: 74
A76: 2832787 | B76: kr | C76: 1 | D76: 찰리얌 | E76: r | F76: 2368829 | G76: kr | H76: 1 | I76: 맛없는빵 | J76: p | K76: 304244 | L76: kr | M76: 1 | N76: 우주군사령장관 | O76: r | P76: 152527 | Q76: kr | R76: 1 | S76: 히스기야 | T76: r | U76: Bronze | V76: 3 | W76: 6 | X76: 108 | Y76: 2014-07-21 | Z76: 37 days | AA76: 2014-08-27T04:50:37 | AB76: 2832787-1|2368829-1|304244-1|152527-1 | AC76: 0 | AD76: 75
A77: 3652260 | B77: kr | C77: 1 | D77: oscar | E77: t | F77: 3322501 | G77: kr | H77: 1 | I77: 빠니알 | J77: z | K77: 3158528 | L77: kr | M77: 1 | N77: caramel | O77: t | P77: 2535125 | Q77: kr | R77: 1 | S77: tlmqkf | T77: z | U77: Bronze | V77: 4 | W77: 2 | X77: 106 | Y77: 2014-08-05 | Z77: 21 days | AA77: 2014-08-27T04:50:37 | AB77: 3652260-1|3322501-1|3158528-1|2535125-1 | AC77: 0 | AD77: 76
A78: 4531725 | B78: kr | C78: 1 | D78: Lucky | E78: t | F78: 4476077 | G78: kr | H78: 1 | I78: Bin | J78: z | K78: 4475018 | L78: kr | M78: 1 | N78: Nirvana | O78: t | P78: 4475017 | Q78: kr | R78: 1 | S78: Yao | T78: p | U78: Bronze | V78: 4 | W78: 2 | X78: 104 | Y78: 2014-08-02 | Z78: 24 days | AA78: 2014-08-27T04:50:37 | AB78: 4531725-1|4476077-1|4475018-1|4475017-1 | AC78: 0 | AD78: 77
A79: 2805888 | B79: kr | C79: 1 | D79: 호랑이두마리치킨 | E79: p | F79: 2615430 | G79: kr | H79: 1 | I79: Swordmaster | J79: r | K79: 2298112 | L79: kr | M79: 1 | N79: 사라캐리건친구 | O79: z | P79: 812541 | Q79: kr | R79: 1 | S79: dedicatus | T79: r | U79: Bronze | V79: 3 | W79: 1 | X79: 100 | Y79: 2014-08-16 | Z79: 10 days | AA79: 2014-08-27T04:50:37 | AB79: 2805888-1|2615430-1|2298112-1|812541-1 | AC79: 0 | AD79: 78
A80: 3277766 | B80: kr | C80: 1 | D80: 타이탄하울링 | E80: z | F80: 2646949 | G80: kr | H80: 1 | I80: 노무어 | J80: t | K80: 1187642 | L80: kr | M80: 1 | N80: 슴가라이더 | O80: p | P80: 240020 | Q80: kr | R80: 1 | S80: 북풍 | T80: p | U80: Bronze | V80: 4 | W80: 0 | X80: 99 | Y80: 2014-07-14 | Z80: 43 days | AA80: 2014-08-27T04:50:37 | AB80: 3277766-1|2646949-1|1187642-1|240020-1 | AC80: 0 | AD80: 79
A81: 4699313 | B81: kr | C81: 1 | D81: 방배동윤호랭이 | E81: p | F81: 3459684 | G81: kr | H81: 1 | I81: 아트클랜원모집중 | J81: z | K81: 3005662 | L81: kr | M81: 1 | N81: INTHuman | O81: z | P81: 1898233 | Q81: kr | R81: 1 | S81: 건빵 | T81: t | U81: Bronze | V81: 6 | W81: 1 | X81: 96 | Y81: 2014-08-23 | Z81: 3 days | AA81: 2014-08-27T04:50:37 | AB81: 4699313-1|3459684-1|3005662-1|1898233-1 | AC81: 0 | AD81: 80
A82: 4638606 | B82: kr | C82: 1 | D82: 오바액션 | E82: p | F82: 4602207 | G82: kr | H82: 1 | I82: 안녕하세요 | J82: p | K82: 2374809 | L82: kr | M82: 1 | N82: PuZzle | O82: z | P82: 1200187 | Q82: kr | R82: 1 | S82: 석회장 | T82: t | U82: Bronze | V82: 4 | W82: 2 | X82: 96 | Y82: 2014-07-13 | Z82: 11 days | AA82: 2014-08-27T04:50:37 | AB82: 4638606-1|4602207-1|2374809-1|1200187-1 | AC82: 0 | AD82: 81
A83: 886272 | B83: kr | C83: 2 | D83: Seraphim | E83: t | F83: 692150 | G83: kr | H83: 2 | I83: 黃師虎 | J83: p | K83: 574972 | L83: kr | M83: 2 | N83: killgigi | O83: r | P83: 285917 | Q83: kr | R83: 2 | S83: Stanley | T83: r | U83: Bronze | V83: 5 | W83: 3 | X83: 96 | Y83: 2014-08-16 | Z83: 11 days | AA83: 2014-08-27T04:50:37 | AB83: 886272-2|692150-2|574972-2|285917-2 | AC83: 0 | AD83: 82
A84: 4566656 | B84: kr | C84: 1 | D84: 개털쟁이투 | E84: z | F84: 4312089 | G84: kr | H84: 1 | I84: 거신자지 | J84: p | K84: 3586911 | L84: kr | M84: 1 | N84: 쉬발라마 | O84: z | P84: 757181 | Q84: kr | R84: 1 | S84: 하늘빵 | T84: t | U84: Bronze | V84: 6 | W84: 5 | X84: 96 | Y84: 2014-08-23 | Z84: 3 days | AA84: 2014-08-27T04:50:37 | AB84: 4566656-1|4312089-1|3586911-1|757181-1 | AC84: 0 | AD84: 83
A85: 3277766 | B85: kr | C85: 1 | D85: 타이탄하울링 | E85: z | F85: 1187642 | G85: kr | H85: 1 | I85: 슴가라이더 | J85: p | K85: 905476 | L85: kr | M85: 1 | N85: OnzZ | O85: r | P85: 353510 | Q85: kr | R85: 1 | S85: HongTles | T85: t | U85: Bronze | V85: 4 | W85: 4 | X85: 96 | Y85: 2014-08-18 | Z85: 8 days | AA85: 2014-08-27T04:50:37 | AB85: 3277766-1|1187642-1|905476-1|353510-1 | AC85: 0 | AD85: 84
A86: 4345428 | B86: kr | C86: 1 | D86: 육스 | E86: r | F86: 1509164 | G86: kr | H86: 1 | I86: kaikang | J86: p | K86: 1008477 | L86: kr | M86: 1 | N86: 자유의날개 | O86: r | P86: 849855 | Q86: kr | R86: 1 | S86: Limhw | T86: r | U86: Bronze | V86: 4 | W86: 8 | X86: 96 | Y86: 2014-08-15 | Z86: 11 days | AA86: 2014-08-27T04:50:37 | AB86: 4345428-1|1509164-1|1008477-1|849855-1 | AC86: 0 | AD86: 85
A87: 3751112 | B87: kr | C87: 1 | D87: Strategy | E87: p | F87: 2182211 | G87: kr | H87: 1 | I87: SiegeEngine | J87: t | K87: 2048758 | L87: kr | M87: 1 | N87: star | O87: t | P87: 2048584 | Q87: kr | R87: 1 | S87: 꼬랙 | T87: t | U87: Bronze | V87: 3 | W87: 7 | X87: 96 | Y87: 2014-08-17 | Z87: 9 days | AA87: 2014-08-27T04:50:37 | AB87: 3751112-1|2182211-1|2048758-1|2048584-1 | AC87: 0 | AD87: 86
A88: 4709951 | B88: kr | C88: 1 | D88: 사이안화칼륨 | E88: p | F88: 3406284 | G88: kr | H88: 1 | I88: RnUi | J88: p | K88: 3106222 | L88: kr | M88: 1 | N88: Lnsa | O88: z | P88: 1213348 | Q88: kr | R88: 1 | S88: 에테르날리스 | T88: t | U88: Bronze | V88: 3 | W88: 14 | X88: 96 | Y88: 2014-08-13 | Z88: 6 days | AA88: 2014-08-27T04:50:37 | AB88: 4709951-1|3406284-1|3106222-1|1213348-1 | AC88: 0 | AD88: 87
A89: 944677 | B89: kr | C89: 2 | D89: Top | E89: t | F89: 930857 | G89: kr | H89: 2 | I89: Jun | J89: z | K89: 907212 | L89: kr | M89: 2 | N89: Risky | O89: p | P89: 861405 | Q89: kr | R89: 2 | S89: EvilDanAtt | T89: t | U89: Bronze | V89: 4 | W89: 3 | X89: 94 | Y89: 2014-07-26 | Z89: 31 days | AA89: 2014-08-27T04:50:37 | AB89: 944677-2|930857-2|907212-2|861405-2 | AC89: 0 | AD89: 88
A90: 1067653 | B90: kr | C90: 2 | D90: JKwolf | E90: t | F90: 979067 | G90: kr | H90: 2 | I90: Tetsu | J90: z | K90: 494231 | L90: kr | M90: 2 | N90: 龍劍修羅 | O90: t | P90: 490285 | Q90: kr | R90: 2 | S90: akevina | T90: p | U90: Bronze | V90: 3 | W90: 5 | X90: 94 | Y90: 2014-07-25 | Z90: 32 days | AA90: 2014-08-27T04:50:37 | AB90: 1067653-2|979067-2|494231-2|490285-2 | AC90: 0 | AD90: 89
A91: 4401800 | B91: kr | C91: 1 | D91: ColdLogic | E91: r | F91: 4400202 | G91: kr | H91: 1 | I91: eckers | J91: t | K91: 4400012 | L91: kr | M91: 1 | N91: Hsuperdroid | O91: t | P91: 4394227 | Q91: kr | R91: 1 | S91: Jacx | T91: t | U91: Bronze | V91: 3 | W91: 9 | X91: 94 | Y91: 2014-07-11 | Z91: 4 days | AA91: 2014-08-27T04:50:37 | AB91: 4401800-1|4400202-1|4400012-1|4394227-1 | AC91: 0 | AD91: 90
A92: 3906411 | B92: kr | C92: 1 | D92: MSTG | E92: t | F92: 3874706 | G92: kr | H92: 1 | I92: MSTJ | J92: t | K92: 3874169 | L92: kr | M92: 1 | N92: MSTO | O92: r | P92: 1335119 | Q92: kr | R92: 1 | S92: MSTL | T92: z | U92: Bronze | V92: 5 | W92: 8 | X92: 92 | Y92: 2014-07-24 | Z92: 30 days | AA92: 2014-08-27T04:50:37 | AB92: 3906411-1|3874706-1|3874169-1|1335119-1 | AC92: 0 | AD92: 91
A93: 4019995 | B93: kr | C93: 1 | D93: 핑핑은행 | E93: p | F93: 4016294 | G93: kr | H93: 1 | I93: 아룰룰루루루루 | J93: t | K93: 3668836 | L93: kr | M93: 1 | N93: 한가인 | O93: t | P93: 2687659 | Q93: kr | R93: 1 | S93: 아이유 | T93: r | U93: Bronze | V93: 2 | W93: 5 | X93: 92 | Y93: 2014-07-20 | Z93: 37 days | AA93: 2014-08-27T04:50:37 | AB93: 4019995-1|4016294-1|3668836-1|2687659-1 | AC93: 0 | AD93: 92
A94: 2555786 | B94: kr | C94: 1 | D94: 프렌 | E94: p | F94: 1803058 | G94: kr | H94: 1 | I94: Aras | J94: t | K94: 1104246 | L94: kr | M94: 1 | N94: deviltoss | O94: t | P94: 91078 | Q94: kr | R94: 1 | S94: 대길이 | T94: r | U94: Bronze | V94: 3 | W94: 0 | X94: 90 | Y94: 2014-07-24 | Z94: 32 days | AA94: 2014-08-27T04:50:37 | AB94: 2555786-1|1803058-1|1104246-1|91078-1 | AC94: 0 | AD94: 93
